Workbook

Sheet Runde
A1: =Parameter!B15 & " Rd" -> 26/27 Rd | B1: 1 | C1: =COUNTA(E3:E11) -> 0 | G1: Tipps | S1: Anzahl | V1: Punkte | EB1: 1 | EC1: 0
A2: Zeit | B2: Sp | C2: Team 1 | D2: Team 2 | E2: Erg. | G2: =Parameter!C1 -> MA | I2: =Parameter!D1 -> MN | K2: =Parameter!E1 -> AH | M2: =Parameter!F1 -> KS | O2: =Parameter!G1 -> LM | Q2: =Parameter!H1 -> EN | S2: 1 | T2: 2 | U2: X | V2: =G2 -> MA | W2: =I2 -> MN | X2: =K2 -> AH | Y2: =M2 -> KS | Z2: =O2 -> LM | AA2: =Q2 -> EN | EB2: 2 | EC2: 1
A3: Fr 20:30 | B3: 1 | EB3: X | EC3: 2
A4: Sa 15:30 | B4: 2 | EC4: 3
A5: Sa 15:30 | B5: 3 | EC5: 4
A6: Sa 15:30 | B6: 4 | EC6: 5
A7: Sa 15:30 | B7: 5 | EC7: 6
A8: Sa 15:30 | B8: 6 | EC8: 7
A9: Sa 18:30 | B9: 7 | EC9: 8
A10: So 15:30 | B10: 8 | EC10: 9
A11: So 17:30 | B11: 9
D12: =B1 -> 1 | S12: =B1 -> 1 | V12: =ROUND(SUM(V3:V11),1) -> 0 | W12: 0 | X12: 0 | Y12: 0 | Z12: 0 | AA12: 0 | AC12: =RANK(V12,$V12:$AA12) -> 1 | AD12: =RANK(W12,$V12:$AA12) -> 1 | AE12: 1 | AF12: 1 | AG12: 1 | AH12: 1
D13: Herbst | S13: Herbst | V13: 0 | W13: 0 | X13: 0 | Y13: 0 | Z13: 0 | AA13: 0 | AC13: 1 | AD13: 1 | AE13: 1 | AF13: 1 | AG13: 1 | AH13: 1
D14: Frühjahr | S14: Frühjahr | V14: 0 | W14: 0 | X14: 0 | Y14: 0 | Z14: 0 | AA14: 0 | AC14: 1 | AD14: 1 | AE14: 1 | AF14: 1 | AG14: 1 | AH14: 1
D15: =Parameter!B15 -> 26/27 | S15: =D15 -> 26/27 | V15: =IF($B$1>17,V14+V13,0) -> 0 | W15: 0 | X15: 0 | Y15: 0 | Z15: 0 | AA15: 0 | AC15: 1 | AD15: 1 | AE15: 1 | AF15: 1 | AG15: 1 | AH15: 1

Sheet Daten (hidden)
A1: =Parameter!B15 -> 26/27 | F1: Erg | H1: =Parameter!C1 -> MA | J1: =Parameter!D1 -> MN | L1: =Parameter!E1 -> AH | N1: =Parameter!F1 -> KS | P1: =Parameter!G1 -> LM | R1: =Parameter!H1 -> EN | W1: =Parameter!C1 -> MA | X1: =Parameter!D1 -> MN | Y1: =Parameter!E1 -> AH | Z1: =Parameter!F1 -> KS | AA1: =Parameter!G1 -> LM | AB1: =Parameter!H1 -> EN | AC1: =Parameter!C1 -> MA | AD1: =Parameter!D1 -> MN | AE1: =Parameter!E1 -> AH | AF1: =Parameter!F1 -> KS | AG1: =Parameter!G1 -> LM | AH1: =Parameter!H1 -> EN | AI1: =Parameter!C1 -> MA | AJ1: =Parameter!D1 -> MN | AK1: =Parameter!E1 -> AH | AL1: =Parameter!F1 -> KS | AM1: =Parameter!G1 -> LM | AN1: =Parameter!H1 -> EN
A2: Runde | B2: Zeit | C2: Spiel | D2: M1 | E2: M2 | F2: H | G2: A | H2: H | I2: A | J2: H | K2: A | L2: H | M2: A | N2: H | O2: A | P2: H | Q2: A | R2: H | S2: A | T2: Bemerkung | W2: Punkte in der Runde | AC2: Punkte in der Saison | AI2: Punkte im Jahr
A3: 1 | B3: Fr 20:30 | C3: 1 | AC3: =SUM(W$3:W3) -> 0 | AD3: =SUM(X$3:X3) -> 0 | AE3: =SUM(Y$3:Y3) -> 0 | AF3: =SUM(Z$3:Z3) -> 0 | AG3: =SUM(AA$3:AA3) -> 0 | AH3: =SUM(AB$3:AB3) -> 0 | AI3: =SUM(W$3:W3) -> 0 | AJ3: =SUM(X$3:X3) -> 0 | AK3: =SUM(Y$3:Y3) -> 0 | AL3: =SUM(Z$3:Z3) -> 0 | AM3: =SUM(AA$3:AA3) -> 0 | AN3: =SUM(AB$3:AB3) -> 0
A4: 1 | B4: Sa 15:30 | C4: 2 | AC4: =SUM(W$3:W4) -> 0 | AD4: =SUM(X$3:X4) -> 0 | AE4: =SUM(Y$3:Y4) -> 0 | AF4: =SUM(Z$3:Z4) -> 0 | AG4: =SUM(AA$3:AA4) -> 0 | AH4: =SUM(AB$3:AB4) -> 0 | AI4: =SUM(W$3:W4) -> 0 | AJ4: =SUM(X$3:X4) -> 0 | AK4: =SUM(Y$3:Y4) -> 0 | AL4: =SUM(Z$3:Z4) -> 0 | AM4: =SUM(AA$3:AA4) -> 0 | AN4: =SUM(AB$3:AB4) -> 0
A5: 1 | B5: Sa 15:30 | C5: 3 | AC5: =SUM(W$3:W5) -> 0 | AD5: =SUM(X$3:X5) -> 0 | AE5: =SUM(Y$3:Y5) -> 0 | AF5: =SUM(Z$3:Z5) -> 0 | AG5: =SUM(AA$3:AA5) -> 0 | AH5: =SUM(AB$3:AB5) -> 0 | AI5: =SUM(W$3:W5) -> 0 | AJ5: =SUM(X$3:X5) -> 0 | AK5: =SUM(Y$3:Y5) -> 0 | AL5: =SUM(Z$3:Z5) -> 0 | AM5: =SUM(AA$3:AA5) -> 0 | AN5: =SUM(AB$3:AB5) -> 0
A6: 1 | B6: Sa 15:30 | C6: 4 | AC6: =SUM(W$3:W6) -> 0 | AD6: =SUM(X$3:X6) -> 0 | AE6: =SUM(Y$3:Y6) -> 0 | AF6: =SUM(Z$3:Z6) -> 0 | AG6: =SUM(AA$3:AA6) -> 0 | AH6: =SUM(AB$3:AB6) -> 0 | AI6: =SUM(W$3:W6) -> 0 | AJ6: =SUM(X$3:X6) -> 0 | AK6: =SUM(Y$3:Y6) -> 0 | AL6: =SUM(Z$3:Z6) -> 0 | AM6: =SUM(AA$3:AA6) -> 0 | AN6: =SUM(AB$3:AB6) -> 0
A7: 1 | B7: Sa 15:30 | C7: 5 | AC7: =SUM(W$3:W7) -> 0 | AD7: =SUM(X$3:X7) -> 0 | AE7: =SUM(Y$3:Y7) -> 0 | AF7: =SUM(Z$3:Z7) -> 0 | AG7: =SUM(AA$3:AA7) -> 0 | AH7: =SUM(AB$3:AB7) -> 0 | AI7: =SUM(W$3:W7) -> 0 | AJ7: =SUM(X$3:X7) -> 0 | AK7: =SUM(Y$3:Y7) -> 0 | AL7: =SUM(Z$3:Z7) -> 0 | AM7: =SUM(AA$3:AA7) -> 0 | AN7: =SUM(AB$3:AB7) -> 0
A8: 1 | B8: Sa 15:30 | C8: 6 | AC8: =SUM(W$3:W8) -> 0 | AD8: =SUM(X$3:X8) -> 0 | AE8: =SUM(Y$3:Y8) -> 0 | AF8: =SUM(Z$3:Z8) -> 0 | AG8: =SUM(AA$3:AA8) -> 0 | AH8: =SUM(AB$3:AB8) -> 0 | AI8: =SUM(W$3:W8) -> 0 | AJ8: =SUM(X$3:X8) -> 0 | AK8: =SUM(Y$3:Y8) -> 0 | AL8: =SUM(Z$3:Z8) -> 0 | AM8: =SUM(AA$3:AA8) -> 0 | AN8: =SUM(AB$3:AB8) -> 0
A9: 1 | B9: Sa 18:30 | C9: 7 | AC9: =SUM(W$3:W9) -> 0 | AD9: =SUM(X$3:X9) -> 0 | AE9: =SUM(Y$3:Y9) -> 0 | AF9: =SUM(Z$3:Z9) -> 0 | AG9: =SUM(AA$3:AA9) -> 0 | AH9: =SUM(AB$3:AB9) -> 0 | AI9: =SUM(W$3:W9) -> 0 | AJ9: =SUM(X$3:X9) -> 0 | AK9: =SUM(Y$3:Y9) -> 0 | AL9: =SUM(Z$3:Z9) -> 0 | AM9: =SUM(AA$3:AA9) -> 0 | AN9: =SUM(AB$3:AB9) -> 0
A10: 1 | B10: So 15:30 | C10: 8 | AC10: =SUM(W$3:W10) -> 0 | AD10: =SUM(X$3:X10) -> 0 | AE10: =SUM(Y$3:Y10) -> 0 | AF10: =SUM(Z$3:Z10) -> 0 | AG10: =SUM(AA$3:AA10) -> 0 | AH10: =SUM(AB$3:AB10) -> 0 | AI10: =SUM(W$3:W10) -> 0 | AJ10: =SUM(X$3:X10) -> 0 | AK10: =SUM(Y$3:Y10) -> 0 | AL10: =SUM(Z$3:Z10) -> 0 | AM10: =SUM(AA$3:AA10) -> 0 | AN10: =SUM(AB$3:AB10) -> 0
A11: 1 | B11: So 17:30 | C11: 9 | AC11: =SUM(W$3:W11) -> 0 | AD11: =SUM(X$3:X11) -> 0 | AE11: =SUM(Y$3:Y11) -> 0 | AF11: =SUM(Z$3:Z11) -> 0 | AG11: =SUM(AA$3:AA11) -> 0 | AH11: =SUM(AB$3:AB11) -> 0 | AI11: =SUM(W$3:W11) -> 0 | AJ11: =SUM(X$3:X11) -> 0 | AK11: =SUM(Y$3:Y11) -> 0 | AL11: =SUM(Z$3:Z11) -> 0 | AM11: =SUM(AA$3:AA11) -> 0 | AN11: =SUM(AB$3:AB11) -> 0
A12: 2 | B12: Fr 20:30 | C12: 1 | AC12: =SUM(W$3:W12) -> 0 | AD12: =SUM(X$3:X12) -> 0 | AE12: =SUM(Y$3:Y12) -> 0 | AF12: =SUM(Z$3:Z12) -> 0 | AG12: =SUM(AA$3:AA12) -> 0 | AH12: =SUM(AB$3:AB12) -> 0 | AI12: =SUM(W$3:W12) -> 0 | AJ12: =SUM(X$3:X12) -> 0 | AK12: =SUM(Y$3:Y12) -> 0 | AL12: =SUM(Z$3:Z12) -> 0 | AM12: =SUM(AA$3:AA12) -> 0 | AN12: =SUM(AB$3:AB12) -> 0
A13: 2 | B13: Sa 15:30 | C13: 2 | AC13: =SUM(W$3:W13) -> 0 | AD13: =SUM(X$3:X13) -> 0 | AE13: =SUM(Y$3:Y13) -> 0 | AF13: =SUM(Z$3:Z13) -> 0 | AG13: =SUM(AA$3:AA13) -> 0 | AH13: =SUM(AB$3:AB13) -> 0 | AI13: =SUM(W$3:W13) -> 0 | AJ13: =SUM(X$3:X13) -> 0 | AK13: =SUM(Y$3:Y13) -> 0 | AL13: =SUM(Z$3:Z13) -> 0 | AM13: =SUM(AA$3:AA13) -> 0 | AN13: =SUM(AB$3:AB13) -> 0
A14: 2 | B14: Sa 15:30 | C14: 3 | AC14: =SUM(W$3:W14) -> 0 | AD14: =SUM(X$3:X14) -> 0 | AE14: =SUM(Y$3:Y14) -> 0 | AF14: =SUM(Z$3:Z14) -> 0 | AG14: =SUM(AA$3:AA14) -> 0 | AH14: =SUM(AB$3:AB14) -> 0 | AI14: =SUM(W$3:W14) -> 0 | AJ14: =SUM(X$3:X14) -> 0 | AK14: =SUM(Y$3:Y14) -> 0 | AL14: =SUM(Z$3:Z14) -> 0 | AM14: =SUM(AA$3:AA14) -> 0 | AN14: =SUM(AB$3:AB14) -> 0
A15: 2 | B15: Sa 15:30 | C15: 4 | AC15: =SUM(W$3:W15) -> 0 | AD15: =SUM(X$3:X15) -> 0 | AE15: =SUM(Y$3:Y15) -> 0 | AF15: =SUM(Z$3:Z15) -> 0 | AG15: =SUM(AA$3:AA15) -> 0 | AH15: =SUM(AB$3:AB15) -> 0 | AI15: =SUM(W$3:W15) -> 0 | AJ15: =SUM(X$3:X15) -> 0 | AK15: =SUM(Y$3:Y15) -> 0 | AL15: =SUM(Z$3:Z15) -> 0 | AM15: =SUM(AA$3:AA15) -> 0 | AN15: =SUM(AB$3:AB15) -> 0
A16: 2 | B16: Sa 15:30 | C16: 5 | AC16: =SUM(W$3:W16) -> 0 | AD16: =SUM(X$3:X16) -> 0 | AE16: =SUM(Y$3:Y16) -> 0 | AF16: =SUM(Z$3:Z16) -> 0 | AG16: =SUM(AA$3:AA16) -> 0 | AH16: =SUM(AB$3:AB16) -> 0 | AI16: =SUM(W$3:W16) -> 0 | AJ16: =SUM(X$3:X16) -> 0 | AK16: =SUM(Y$3:Y16) -> 0 | AL16: =SUM(Z$3:Z16) -> 0 | AM16: =SUM(AA$3:AA16) -> 0 | AN16: =SUM(AB$3:AB16) -> 0
A17: 2 | B17: Sa 18:30 | C17: 6 | AC17: =SUM(W$3:W17) -> 0 | AD17: =SUM(X$3:X17) -> 0 | AE17: =SUM(Y$3:Y17) -> 0 | AF17: =SUM(Z$3:Z17) -> 0 | AG17: =SUM(AA$3:AA17) -> 0 | AH17: =SUM(AB$3:AB17) -> 0 | AI17: =SUM(W$3:W17) -> 0 | AJ17: =SUM(X$3:X17) -> 0 | AK17: =SUM(Y$3:Y17) -> 0 | AL17: =SUM(Z$3:Z17) -> 0 | AM17: =SUM(AA$3:AA17) -> 0 | AN17: =SUM(AB$3:AB17) -> 0
A18: 2 | B18: So 15:30 | C18: 7 | AC18: =SUM(W$3:W18) -> 0 | AD18: =SUM(X$3:X18) -> 0 | AE18: =SUM(Y$3:Y18) -> 0 | AF18: =SUM(Z$3:Z18) -> 0 | AG18: =SUM(AA$3:AA18) -> 0 | AH18: =SUM(AB$3:AB18) -> 0 | AI18: =SUM(W$3:W18) -> 0 | AJ18: =SUM(X$3:X18) -> 0 | AK18: =SUM(Y$3:Y18) -> 0 | AL18: =SUM(Z$3:Z18) -> 0 | AM18: =SUM(AA$3:AA18) -> 0 | AN18: =SUM(AB$3:AB18) -> 0
A19: 2 | B19: So 19:30 | C19: 8 | AC19: =SUM(W$3:W19) -> 0 | AD19: =SUM(X$3:X19) -> 0 | AE19: =SUM(Y$3:Y19) -> 0 | AF19: =SUM(Z$3:Z19) -> 0 | AG19: =SUM(AA$3:AA19) -> 0 | AH19: =SUM(AB$3:AB19) -> 0 | AI19: =SUM(W$3:W19) -> 0 | AJ19: =SUM(X$3:X19) -> 0 | AK19: =SUM(Y$3:Y19) -> 0 | AL19: =SUM(Z$3:Z19) -> 0 | AM19: =SUM(AA$3:AA19) -> 0 | AN19: =SUM(AB$3:AB19) -> 0
A20: 2 | B20: So 17:30 | C20: 9 | AC20: =SUM(W$3:W20) -> 0 | AD20: =SUM(X$3:X20) -> 0 | AE20: =SUM(Y$3:Y20) -> 0 | AF20: =SUM(Z$3:Z20) -> 0 | AG20: =SUM(AA$3:AA20) -> 0 | AH20: =SUM(AB$3:AB20) -> 0 | AI20: =SUM(W$3:W20) -> 0 | AJ20: =SUM(X$3:X20) -> 0 | AK20: =SUM(Y$3:Y20) -> 0 | AL20: =SUM(Z$3:Z20) -> 0 | AM20: =SUM(AA$3:AA20) -> 0 | AN20: =SUM(AB$3:AB20) -> 0
A21: 3 | B21: Fr 20:30 | C21: 1 | AC21: =SUM(W$3:W21) -> 0 | AD21: =SUM(X$3:X21) -> 0 | AE21: =SUM(Y$3:Y21) -> 0 | AF21: =SUM(Z$3:Z21) -> 0 | AG21: =SUM(AA$3:AA21) -> 0 | AH21: =SUM(AB$3:AB21) -> 0 | AI21: =SUM(W$3:W21) -> 0 | AJ21: =SUM(X$3:X21) -> 0 | AK21: =SUM(Y$3:Y21) -> 0 | AL21: =SUM(Z$3:Z21) -> 0 | AM21: =SUM(AA$3:AA21) -> 0 | AN21: =SUM(AB$3:AB21) -> 0
A22: 3 | B22: Sa 15:30 | C22: 2 | AC22: =SUM(W$3:W22) -> 0 | AD22: =SUM(X$3:X22) -> 0 | AE22: =SUM(Y$3:Y22) -> 0 | AF22: =SUM(Z$3:Z22) -> 0 | AG22: =SUM(AA$3:AA22) -> 0 | AH22: =SUM(AB$3:AB22) -> 0 | AI22: =SUM(W$3:W22) -> 0 | AJ22: =SUM(X$3:X22) -> 0 | AK22: =SUM(Y$3:Y22) -> 0 | AL22: =SUM(Z$3:Z22) -> 0 | AM22: =SUM(AA$3:AA22) -> 0 | AN22: =SUM(AB$3:AB22) -> 0
A23: 3 | B23: Sa 15:30 | C23: 3 | AC23: =SUM(W$3:W23) -> 0 | AD23: =SUM(X$3:X23) -> 0 | AE23: =SUM(Y$3:Y23) -> 0 | AF23: =SUM(Z$3:Z23) -> 0 | AG23: =SUM(AA$3:AA23) -> 0 | AH23: =SUM(AB$3:AB23) -> 0 | AI23: =SUM(W$3:W23) -> 0 | AJ23: =SUM(X$3:X23) -> 0 | AK23: =SUM(Y$3:Y23) -> 0 | AL23: =SUM(Z$3:Z23) -> 0 | AM23: =SUM(AA$3:AA23) -> 0 | AN23: =SUM(AB$3:AB23) -> 0
A24: 3 | B24: Sa 15:30 | C24: 4 | AC24: =SUM(W$3:W24) -> 0 | AD24: =SUM(X$3:X24) -> 0 | AE24: =SUM(Y$3:Y24) -> 0 | AF24: =SUM(Z$3:Z24) -> 0 | AG24: =SUM(AA$3:AA24) -> 0 | AH24: =SUM(AB$3:AB24) -> 0 | AI24: =SUM(W$3:W24) -> 0 | AJ24: =SUM(X$3:X24) -> 0 | AK24: =SUM(Y$3:Y24) -> 0 | AL24: =SUM(Z$3:Z24) -> 0 | AM24: =SUM(AA$3:AA24) -> 0 | AN24: =SUM(AB$3:AB24) -> 0
A25: 3 | B25: Sa 15:30 | C25: 5 | AC25: =SUM(W$3:W25) -> 0 | AD25: =SUM(X$3:X25) -> 0 | AE25: =SUM(Y$3:Y25) -> 0 | AF25: =SUM(Z$3:Z25) -> 0 | AG25: =SUM(AA$3:AA25) -> 0 | AH25: =SUM(AB$3:AB25) -> 0 | AI25: =SUM(W$3:W25) -> 0 | AJ25: =SUM(X$3:X25) -> 0 | AK25: =SUM(Y$3:Y25) -> 0 | AL25: =SUM(Z$3:Z25) -> 0 | AM25: =SUM(AA$3:AA25) -> 0 | AN25: =SUM(AB$3:AB25) -> 0
A26: 3 | B26: Sa 15:30 | C26: 6 | AC26: =SUM(W$3:W26) -> 0 | AD26: =SUM(X$3:X26) -> 0 | AE26: =SUM(Y$3:Y26) -> 0 | AF26: =SUM(Z$3:Z26) -> 0 | AG26: =SUM(AA$3:AA26) -> 0 | AH26: =SUM(AB$3:AB26) -> 0 | AI26: =SUM(W$3:W26) -> 0 | AJ26: =SUM(X$3:X26) -> 0 | AK26: =SUM(Y$3:Y26) -> 0 | AL26: =SUM(Z$3:Z26) -> 0 | AM26: =SUM(AA$3:AA26) -> 0 | AN26: =SUM(AB$3:AB26) -> 0
A27: 3 | B27: Sa 18:30 | C27: 7 | AC27: =SUM(W$3:W27) -> 0 | AD27: =SUM(X$3:X27) -> 0 | AE27: =SUM(Y$3:Y27) -> 0 | AF27: =SUM(Z$3:Z27) -> 0 | AG27: =SUM(AA$3:AA27) -> 0 | AH27: =SUM(AB$3:AB27) -> 0 | AI27: =SUM(W$3:W27) -> 0 | AJ27: =SUM(X$3:X27) -> 0 | AK27: =SUM(Y$3:Y27) -> 0 | AL27: =SUM(Z$3:Z27) -> 0 | AM27: =SUM(AA$3:AA27) -> 0 | AN27: =SUM(AB$3:AB27) -> 0
A28: 3 | B28: So 15:30 | C28: 8 | AC28: =SUM(W$3:W28) -> 0 | AD28: =SUM(X$3:X28) -> 0 | AE28: =SUM(Y$3:Y28) -> 0 | AF28: =SUM(Z$3:Z28) -> 0 | AG28: =SUM(AA$3:AA28) -> 0 | AH28: =SUM(AB$3:AB28) -> 0 | AI28: =SUM(W$3:W28) -> 0 | AJ28: =SUM(X$3:X28) -> 0 | AK28: =SUM(Y$3:Y28) -> 0 | AL28: =SUM(Z$3:Z28) -> 0 | AM28: =SUM(AA$3:AA28) -> 0 | AN28: =SUM(AB$3:AB28) -> 0
A29: 3 | B29: So 17:30 | C29: 9 | AC29: =SUM(W$3:W29) -> 0 | AD29: =SUM(X$3:X29) -> 0 | AE29: =SUM(Y$3:Y29) -> 0 | AF29: =SUM(Z$3:Z29) -> 0 | AG29: =SUM(AA$3:AA29) -> 0 | AH29: =SUM(AB$3:AB29) -> 0 | AI29: =SUM(W$3:W29) -> 0 | AJ29: =SUM(X$3:X29) -> 0 | AK29: =SUM(Y$3:Y29) -> 0 | AL29: =SUM(Z$3:Z29) -> 0 | AM29: =SUM(AA$3:AA29) -> 0 | AN29: =SUM(AB$3:AB29) -> 0
A30: 4 | B30: Fr 20:30 | C30: 1 | AC30: =SUM(W$3:W30) -> 0 | AD30: =SUM(X$3:X30) -> 0 | AE30: =SUM(Y$3:Y30) -> 0 | AF30: =SUM(Z$3:Z30) -> 0 | AG30: =SUM(AA$3:AA30) -> 0 | AH30: =SUM(AB$3:AB30) -> 0 | AI30: =SUM(W$3:W30) -> 0 | AJ30: =SUM(X$3:X30) -> 0 | AK30: =SUM(Y$3:Y30) -> 0 | AL30: =SUM(Z$3:Z30) -> 0 | AM30: =SUM(AA$3:AA30) -> 0 | AN30: =SUM(AB$3:AB30) -> 0
A31: 4 | B31: Sa 15:30 | C31: 2 | AC31: =SUM(W$3:W31) -> 0 | AD31: =SUM(X$3:X31) -> 0 | AE31: =SUM(Y$3:Y31) -> 0 | AF31: =SUM(Z$3:Z31) -> 0 | AG31: =SUM(AA$3:AA31) -> 0 | AH31: =SUM(AB$3:AB31) -> 0 | AI31: =SUM(W$3:W31) -> 0 | AJ31: =SUM(X$3:X31) -> 0 | AK31: =SUM(Y$3:Y31) -> 0 | AL31: =SUM(Z$3:Z31) -> 0 | AM31: =SUM(AA$3:AA31) -> 0 | AN31: =SUM(AB$3:AB31) -> 0
A32: 4 | B32: Sa 15:30 | C32: 3 | AC32: =SUM(W$3:W32) -> 0 | AD32: =SUM(X$3:X32) -> 0 | AE32: =SUM(Y$3:Y32) -> 0 | AF32: =SUM(Z$3:Z32) -> 0 | AG32: =SUM(AA$3:AA32) -> 0 | AH32: =SUM(AB$3:AB32) -> 0 | AI32: =SUM(W$3:W32) -> 0 | AJ32: =SUM(X$3:X32) -> 0 | AK32: =SUM(Y$3:Y32) -> 0 | AL32: =SUM(Z$3:Z32) -> 0 | AM32: =SUM(AA$3:AA32) -> 0 | AN32: =SUM(AB$3:AB32) -> 0
A33: 4 | B33: Sa 15:30 | C33: 4 | AC33: =SUM(W$3:W33) -> 0 | AD33: =SUM(X$3:X33) -> 0 | AE33: =SUM(Y$3:Y33) -> 0 | AF33: =SUM(Z$3:Z33) -> 0 | AG33: =SUM(AA$3:AA33) -> 0 | AH33: =SUM(AB$3:AB33) -> 0 | AI33: =SUM(W$3:W33) -> 0 | AJ33: =SUM(X$3:X33) -> 0 | AK33: =SUM(Y$3:Y33) -> 0 | AL33: =SUM(Z$3:Z33) -> 0 | AM33: =SUM(AA$3:AA33) -> 0 | AN33: =SUM(AB$3:AB33) -> 0
A34: 4 | B34: Sa 15:30 | C34: 5 | AC34: =SUM(W$3:W34) -> 0 | AD34: =SUM(X$3:X34) -> 0 | AE34: =SUM(Y$3:Y34) -> 0 | AF34: =SUM(Z$3:Z34) -> 0 | AG34: =SUM(AA$3:AA34) -> 0 | AH34: =SUM(AB$3:AB34) -> 0 | AI34: =SUM(W$3:W34) -> 0 | AJ34: =SUM(X$3:X34) -> 0 | AK34: =SUM(Y$3:Y34) -> 0 | AL34: =SUM(Z$3:Z34) -> 0 | AM34: =SUM(AA$3:AA34) -> 0 | AN34: =SUM(AB$3:AB34) -> 0
A35: 4 | B35: Sa 18:30 | C35: 6 | AC35: =SUM(W$3:W35) -> 0 | AD35: =SUM(X$3:X35) -> 0 | AE35: =SUM(Y$3:Y35) -> 0 | AF35: =SUM(Z$3:Z35) -> 0 | AG35: =SUM(AA$3:AA35) -> 0 | AH35: =SUM(AB$3:AB35) -> 0 | AI35: =SUM(W$3:W35) -> 0 | AJ35: =SUM(X$3:X35) -> 0 | AK35: =SUM(Y$3:Y35) -> 0 | AL35: =SUM(Z$3:Z35) -> 0 | AM35: =SUM(AA$3:AA35) -> 0 | AN35: =SUM(AB$3:AB35) -> 0
A36: 4 | B36: So 15:30 | C36: 7 | AC36: =SUM(W$3:W36) -> 0 | AD36: =SUM(X$3:X36) -> 0 | AE36: =SUM(Y$3:Y36) -> 0 | AF36: =SUM(Z$3:Z36) -> 0 | AG36: =SUM(AA$3:AA36) -> 0 | AH36: =SUM(AB$3:AB36) -> 0 | AI36: =SUM(W$3:W36) -> 0 | AJ36: =SUM(X$3:X36) -> 0 | AK36: =SUM(Y$3:Y36) -> 0 | AL36: =SUM(Z$3:Z36) -> 0 | AM36: =SUM(AA$3:AA36) -> 0 | AN36: =SUM(AB$3:AB36) -> 0
A37: 4 | B37: So 17:30 | C37: 8 | AC37: =SUM(W$3:W37) -> 0 | AD37: =SUM(X$3:X37) -> 0 | AE37: =SUM(Y$3:Y37) -> 0 | AF37: =SUM(Z$3:Z37) -> 0 | AG37: =SUM(AA$3:AA37) -> 0 | AH37: =SUM(AB$3:AB37) -> 0 | AI37: =SUM(W$3:W37) -> 0 | AJ37: =SUM(X$3:X37) -> 0 | AK37: =SUM(Y$3:Y37) -> 0 | AL37: =SUM(Z$3:Z37) -> 0 | AM37: =SUM(AA$3:AA37) -> 0 | AN37: =SUM(AB$3:AB37) -> 0
A38: 4 | B38: So 19:30 | C38: 9 | AC38: =SUM(W$3:W38) -> 0 | AD38: =SUM(X$3:X38) -> 0 | AE38: =SUM(Y$3:Y38) -> 0 | AF38: =SUM(Z$3:Z38) -> 0 | AG38: =SUM(AA$3:AA38) -> 0 | AH38: =SUM(AB$3:AB38) -> 0 | AI38: =SUM(W$3:W38) -> 0 | AJ38: =SUM(X$3:X38) -> 0 | AK38: =SUM(Y$3:Y38) -> 0 | AL38: =SUM(Z$3:Z38) -> 0 | AM38: =SUM(AA$3:AA38) -> 0 | AN38: =SUM(AB$3:AB38) -> 0
A39: 5 | B39: Fr 20:30 | C39: 1 | AC39: =SUM(W$3:W39) -> 0 | AD39: =SUM(X$3:X39) -> 0 | AE39: =SUM(Y$3:Y39) -> 0 | AF39: =SUM(Z$3:Z39) -> 0 | AG39: =SUM(AA$3:AA39) -> 0 | AH39: =SUM(AB$3:AB39) -> 0 | AI39: =SUM(W$3:W39) -> 0 | AJ39: =SUM(X$3:X39) -> 0 | AK39: =SUM(Y$3:Y39) -> 0 | AL39: =SUM(Z$3:Z39) -> 0 | AM39: =SUM(AA$3:AA39) -> 0 | AN39: =SUM(AB$3:AB39) -> 0
A40: 5 | B40: Sa 15:30 | C40: 2 | AC40: =SUM(W$3:W40) -> 0 | AD40: =SUM(X$3:X40) -> 0 | AE40: =SUM(Y$3:Y40) -> 0 | AF40: =SUM(Z$3:Z40) -> 0 | AG40: =SUM(AA$3:AA40) -> 0 | AH40: =SUM(AB$3:AB40) -> 0 | AI40: =SUM(W$3:W40) -> 0 | AJ40: =SUM(X$3:X40) -> 0 | AK40: =SUM(Y$3:Y40) -> 0 | AL40: =SUM(Z$3:Z40) -> 0 | AM40: =SUM(AA$3:AA40) -> 0 | AN40: =SUM(AB$3:AB40) -> 0
A41: 5 | B41: Sa 15:30 | C41: 3 | AC41: =SUM(W$3:W41) -> 0 | AD41: =SUM(X$3:X41) -> 0 | AE41: =SUM(Y$3:Y41) -> 0 | AF41: =SUM(Z$3:Z41) -> 0 | AG41: =SUM(AA$3:AA41) -> 0 | AH41: =SUM(AB$3:AB41) -> 0 | AI41: =SUM(W$3:W41) -> 0 | AJ41: =SUM(X$3:X41) -> 0 | AK41: =SUM(Y$3:Y41) -> 0 | AL41: =SUM(Z$3:Z41) -> 0 | AM41: =SUM(AA$3:AA41) -> 0 | AN41: =SUM(AB$3:AB41) -> 0
A42: 5 | B42: Sa 15:30 | C42: 4 | AC42: =SUM(W$3:W42) -> 0 | AD42: =SUM(X$3:X42) -> 0 | AE42: =SUM(Y$3:Y42) -> 0 | AF42: =SUM(Z$3:Z42) -> 0 | AG42: =SUM(AA$3:AA42) -> 0 | AH42: =SUM(AB$3:AB42) -> 0 | AI42: =SUM(W$3:W42) -> 0 | AJ42: =SUM(X$3:X42) -> 0 | AK42: =SUM(Y$3:Y42) -> 0 | AL42: =SUM(Z$3:Z42) -> 0 | AM42: =SUM(AA$3:AA42) -> 0 | AN42: =SUM(AB$3:AB42) -> 0
A43: 5 | B43: Sa 15:30 | C43: 5 | AC43: =SUM(W$3:W43) -> 0 | AD43: =SUM(X$3:X43) -> 0 | AE43: =SUM(Y$3:Y43) -> 0 | AF43: =SUM(Z$3:Z43) -> 0 | AG43: =SUM(AA$3:AA43) -> 0 | AH43: =SUM(AB$3:AB43) -> 0 | AI43: =SUM(W$3:W43) -> 0 | AJ43: =SUM(X$3:X43) -> 0 | AK43: =SUM(Y$3:Y43) -> 0 | AL43: =SUM(Z$3:Z43) -> 0 | AM43: =SUM(AA$3:AA43) -> 0 | AN43: =SUM(AB$3:AB43) -> 0
A44: 5 | B44: Sa 18:30 | C44: 6 | AC44: =SUM(W$3:W44) -> 0 | AD44: =SUM(X$3:X44) -> 0 | AE44: =SUM(Y$3:Y44) -> 0 | AF44: =SUM(Z$3:Z44) -> 0 | AG44: =SUM(AA$3:AA44) -> 0 | AH44: =SUM(AB$3:AB44) -> 0 | AI44: =SUM(W$3:W44) -> 0 | AJ44: =SUM(X$3:X44) -> 0 | AK44: =SUM(Y$3:Y44) -> 0 | AL44: =SUM(Z$3:Z44) -> 0 | AM44: =SUM(AA$3:AA44) -> 0 | AN44: =SUM(AB$3:AB44) -> 0
A45: 5 | B45: So 15:30 | C45: 7 | AC45: =SUM(W$3:W45) -> 0 | AD45: =SUM(X$3:X45) -> 0 | AE45: =SUM(Y$3:Y45) -> 0 | AF45: =SUM(Z$3:Z45) -> 0 | AG45: =SUM(AA$3:AA45) -> 0 | AH45: =SUM(AB$3:AB45) -> 0 | AI45: =SUM(W$3:W45) -> 0 | AJ45: =SUM(X$3:X45) -> 0 | AK45: =SUM(Y$3:Y45) -> 0 | AL45: =SUM(Z$3:Z45) -> 0 | AM45: =SUM(AA$3:AA45) -> 0 | AN45: =SUM(AB$3:AB45) -> 0
A46: 5 | B46: So 17:30 | C46: 8 | AC46: =SUM(W$3:W46) -> 0 | AD46: =SUM(X$3:X46) -> 0 | AE46: =SUM(Y$3:Y46) -> 0 | AF46: =SUM(Z$3:Z46) -> 0 | AG46: =SUM(AA$3:AA46) -> 0 | AH46: =SUM(AB$3:AB46) -> 0 | AI46: =SUM(W$3:W46) -> 0 | AJ46: =SUM(X$3:X46) -> 0 | AK46: =SUM(Y$3:Y46) -> 0 | AL46: =SUM(Z$3:Z46) -> 0 | AM46: =SUM(AA$3:AA46) -> 0 | AN46: =SUM(AB$3:AB46) -> 0
A47: 5 | B47: So 19:30 | C47: 9 | AC47: =SUM(W$3:W47) -> 0 | AD47: =SUM(X$3:X47) -> 0 | AE47: =SUM(Y$3:Y47) -> 0 | AF47: =SUM(Z$3:Z47) -> 0 | AG47: =SUM(AA$3:AA47) -> 0 | AH47: =SUM(AB$3:AB47) -> 0 | AI47: =SUM(W$3:W47) -> 0 | AJ47: =SUM(X$3:X47) -> 0 | AK47: =SUM(Y$3:Y47) -> 0 | AL47: =SUM(Z$3:Z47) -> 0 | AM47: =SUM(AA$3:AA47) -> 0 | AN47: =SUM(AB$3:AB47) -> 0
A48: 6 | B48: Fr 20:30 | C48: 1 | AC48: =SUM(W$3:W48) -> 0 | AD48: =SUM(X$3:X48) -> 0 | AE48: =SUM(Y$3:Y48) -> 0 | AF48: =SUM(Z$3:Z48) -> 0 | AG48: =SUM(AA$3:AA48) -> 0 | AH48: =SUM(AB$3:AB48) -> 0 | AI48: =SUM(W$3:W48) -> 0 | AJ48: =SUM(X$3:X48) -> 0 | AK48: =SUM(Y$3:Y48) -> 0 | AL48: =SUM(Z$3:Z48) -> 0 | AM48: =SUM(AA$3:AA48) -> 0 | AN48: =SUM(AB$3:AB48) -> 0
A49: 6 | B49: Sa 15:30 | C49: 2 | AC49: =SUM(W$3:W49) -> 0 | AD49: =SUM(X$3:X49) -> 0 | AE49: =SUM(Y$3:Y49) -> 0 | AF49: =SUM(Z$3:Z49) -> 0 | AG49: =SUM(AA$3:AA49) -> 0 | AH49: =SUM(AB$3:AB49) -> 0 | AI49: =SUM(W$3:W49) -> 0 | AJ49: =SUM(X$3:X49) -> 0 | AK49: =SUM(Y$3:Y49) -> 0 | AL49: =SUM(Z$3:Z49) -> 0 | AM49: =SUM(AA$3:AA49) -> 0 | AN49: =SUM(AB$3:AB49) -> 0
A50: 6 | B50: Sa 15:30 | C50: 3 | AC50: =SUM(W$3:W50) -> 0 | AD50: =SUM(X$3:X50) -> 0 | AE50: =SUM(Y$3:Y50) -> 0 | AF50: =SUM(Z$3:Z50) -> 0 | AG50: =SUM(AA$3:AA50) -> 0 | AH50: =SUM(AB$3:AB50) -> 0 | AI50: =SUM(W$3:W50) -> 0 | AJ50: =SUM(X$3:X50) -> 0 | AK50: =SUM(Y$3:Y50) -> 0 | AL50: =SUM(Z$3:Z50) -> 0 | AM50: =SUM(AA$3:AA50) -> 0 | AN50: =SUM(AB$3:AB50) -> 0
A51: 6 | B51: Sa 15:30 | C51: 4 | AC51: =SUM(W$3:W51) -> 0 | AD51: =SUM(X$3:X51) -> 0 | AE51: =SUM(Y$3:Y51) -> 0 | AF51: =SUM(Z$3:Z51) -> 0 | AG51: =SUM(AA$3:AA51) -> 0 | AH51: =SUM(AB$3:AB51) -> 0 | AI51: =SUM(W$3:W51) -> 0 | AJ51: =SUM(X$3:X51) -> 0 | AK51: =SUM(Y$3:Y51) -> 0 | AL51: =SUM(Z$3:Z51) -> 0 | AM51: =SUM(AA$3:AA51) -> 0 | AN51: =SUM(AB$3:AB51) -> 0
A52: 6 | B52: Sa 15:30 | C52: 5 | AC52: =SUM(W$3:W52) -> 0 | AD52: =SUM(X$3:X52) -> 0 | AE52: =SUM(Y$3:Y52) -> 0 | AF52: =SUM(Z$3:Z52) -> 0 | AG52: =SUM(AA$3:AA52) -> 0 | AH52: =SUM(AB$3:AB52) -> 0 | AI52: =SUM(W$3:W52) -> 0 | AJ52: =SUM(X$3:X52) -> 0 | AK52: =SUM(Y$3:Y52) -> 0 | AL52: =SUM(Z$3:Z52) -> 0 | AM52: =SUM(AA$3:AA52) -> 0 | AN52: =SUM(AB$3:AB52) -> 0
A53: 6 | B53: Sa 18:30 | C53: 6 | AC53: =SUM(W$3:W53) -> 0 | AD53: =SUM(X$3:X53) -> 0 | AE53: =SUM(Y$3:Y53) -> 0 | AF53: =SUM(Z$3:Z53) -> 0 | AG53: =SUM(AA$3:AA53) -> 0 | AH53: =SUM(AB$3:AB53) -> 0 | AI53: =SUM(W$3:W53) -> 0 | AJ53: =SUM(X$3:X53) -> 0 | AK53: =SUM(Y$3:Y53) -> 0 | AL53: =SUM(Z$3:Z53) -> 0 | AM53: =SUM(AA$3:AA53) -> 0 | AN53: =SUM(AB$3:AB53) -> 0
A54: 6 | B54: So 15:30 | C54: 7 | AC54: =SUM(W$3:W54) -> 0 | AD54: =SUM(X$3:X54) -> 0 | AE54: =SUM(Y$3:Y54) -> 0 | AF54: =SUM(Z$3:Z54) -> 0 | AG54: =SUM(AA$3:AA54) -> 0 | AH54: =SUM(AB$3:AB54) -> 0 | AI54: =SUM(W$3:W54) -> 0 | AJ54: =SUM(X$3:X54) -> 0 | AK54: =SUM(Y$3:Y54) -> 0 | AL54: =SUM(Z$3:Z54) -> 0 | AM54: =SUM(AA$3:AA54) -> 0 | AN54: =SUM(AB$3:AB54) -> 0
A55: 6 | B55: So 17:30 | C55: 8 | AC55: =SUM(W$3:W55) -> 0 | AD55: =SUM(X$3:X55) -> 0 | AE55: =SUM(Y$3:Y55) -> 0 | AF55: =SUM(Z$3:Z55) -> 0 | AG55: =SUM(AA$3:AA55) -> 0 | AH55: =SUM(AB$3:AB55) -> 0 | AI55: =SUM(W$3:W55) -> 0 | AJ55: =SUM(X$3:X55) -> 0 | AK55: =SUM(Y$3:Y55) -> 0 | AL55: =SUM(Z$3:Z55) -> 0 | AM55: =SUM(AA$3:AA55) -> 0 | AN55: =SUM(AB$3:AB55) -> 0
A56: 6 | B56: So 19:30 | C56: 9 | AC56: =SUM(W$3:W56) -> 0 | AD56: =SUM(X$3:X56) -> 0 | AE56: =SUM(Y$3:Y56) -> 0 | AF56: =SUM(Z$3:Z56) -> 0 | AG56: =SUM(AA$3:AA56) -> 0 | AH56: =SUM(AB$3:AB56) -> 0 | AI56: =SUM(W$3:W56) -> 0 | AJ56: =SUM(X$3:X56) -> 0 | AK56: =SUM(Y$3:Y56) -> 0 | AL56: =SUM(Z$3:Z56) -> 0 | AM56: =SUM(AA$3:AA56) -> 0 | AN56: =SUM(AB$3:AB56) -> 0
A57: 7 | B57: Fr 20:30 | C57: 1 | AC57: =SUM(W$3:W57) -> 0 | AD57: =SUM(X$3:X57) -> 0 | AE57: =SUM(Y$3:Y57) -> 0 | AF57: =SUM(Z$3:Z57) -> 0 | AG57: =SUM(AA$3:AA57) -> 0 | AH57: =SUM(AB$3:AB57) -> 0 | AI57: =SUM(W$3:W57) -> 0 | AJ57: =SUM(X$3:X57) -> 0 | AK57: =SUM(Y$3:Y57) -> 0 | AL57: =SUM(Z$3:Z57) -> 0 | AM57: =SUM(AA$3:AA57) -> 0 | AN57: =SUM(AB$3:AB57) -> 0
A58: 7 | B58: Sa 15:30 | C58: 2 | AC58: =SUM(W$3:W58) -> 0 | AD58: =SUM(X$3:X58) -> 0 | AE58: =SUM(Y$3:Y58) -> 0 | AF58: =SUM(Z$3:Z58) -> 0 | AG58: =SUM(AA$3:AA58) -> 0 | AH58: =SUM(AB$3:AB58) -> 0 | AI58: =SUM(W$3:W58) -> 0 | AJ58: =SUM(X$3:X58) -> 0 | AK58: =SUM(Y$3:Y58) -> 0 | AL58: =SUM(Z$3:Z58) -> 0 | AM58: =SUM(AA$3:AA58) -> 0 | AN58: =SUM(AB$3:AB58) -> 0
A59: 7 | B59: Sa 15:30 | C59: 3 | AC59: =SUM(W$3:W59) -> 0 | AD59: =SUM(X$3:X59) -> 0 | AE59: =SUM(Y$3:Y59) -> 0 | AF59: =SUM(Z$3:Z59) -> 0 | AG59: =SUM(AA$3:AA59) -> 0 | AH59: =SUM(AB$3:AB59) -> 0 | AI59: =SUM(W$3:W59) -> 0 | AJ59: =SUM(X$3:X59) -> 0 | AK59: =SUM(Y$3:Y59) -> 0 | AL59: =SUM(Z$3:Z59) -> 0 | AM59: =SUM(AA$3:AA59) -> 0 | AN59: =SUM(AB$3:AB59) -> 0
A60: 7 | B60: Sa 15:30 | C60: 4 | AC60: =SUM(W$3:W60) -> 0 | AD60: =SUM(X$3:X60) -> 0 | AE60: =SUM(Y$3:Y60) -> 0 | AF60: =SUM(Z$3:Z60) -> 0 | AG60: =SUM(AA$3:AA60) -> 0 | AH60: =SUM(AB$3:AB60) -> 0 | AI60: =SUM(W$3:W60) -> 0 | AJ60: =SUM(X$3:X60) -> 0 | AK60: =SUM(Y$3:Y60) -> 0 | AL60: =SUM(Z$3:Z60) -> 0 | AM60: =SUM(AA$3:AA60) -> 0 | AN60: =SUM(AB$3:AB60) -> 0
A61: 7 | B61: Sa 15:30 | C61: 5 | AC61: =SUM(W$3:W61) -> 0 | AD61: =SUM(X$3:X61) -> 0 | AE61: =SUM(Y$3:Y61) -> 0 | AF61: =SUM(Z$3:Z61) -> 0 | AG61: =SUM(AA$3:AA61) -> 0 | AH61: =SUM(AB$3:AB61) -> 0 | AI61: =SUM(W$3:W61) -> 0 | AJ61: =SUM(X$3:X61) -> 0 | AK61: =SUM(Y$3:Y61) -> 0 | AL61: =SUM(Z$3:Z61) -> 0 | AM61: =SUM(AA$3:AA61) -> 0 | AN61: =SUM(AB$3:AB61) -> 0
A62: 7 | B62: Sa 15:30 | C62: 6 | AC62: =SUM(W$3:W62) -> 0 | AD62: =SUM(X$3:X62) -> 0 | AE62: =SUM(Y$3:Y62) -> 0 | AF62: =SUM(Z$3:Z62) -> 0 | AG62: =SUM(AA$3:AA62) -> 0 | AH62: =SUM(AB$3:AB62) -> 0 | AI62: =SUM(W$3:W62) -> 0 | AJ62: =SUM(X$3:X62) -> 0 | AK62: =SUM(Y$3:Y62) -> 0 | AL62: =SUM(Z$3:Z62) -> 0 | AM62: =SUM(AA$3:AA62) -> 0 | AN62: =SUM(AB$3:AB62) -> 0
A63: 7 | B63: Sa 18:30 | C63: 7 | AC63: =SUM(W$3:W63) -> 0 | AD63: =SUM(X$3:X63) -> 0 | AE63: =SUM(Y$3:Y63) -> 0 | AF63: =SUM(Z$3:Z63) -> 0 | AG63: =SUM(AA$3:AA63) -> 0 | AH63: =SUM(AB$3:AB63) -> 0 | AI63: =SUM(W$3:W63) -> 0 | AJ63: =SUM(X$3:X63) -> 0 | AK63: =SUM(Y$3:Y63) -> 0 | AL63: =SUM(Z$3:Z63) -> 0 | AM63: =SUM(AA$3:AA63) -> 0 | AN63: =SUM(AB$3:AB63) -> 0
A64: 7 | B64: So 15:30 | C64: 8 | AC64: =SUM(W$3:W64) -> 0 | AD64: =SUM(X$3:X64) -> 0 | AE64: =SUM(Y$3:Y64) -> 0 | AF64: =SUM(Z$3:Z64) -> 0 | AG64: =SUM(AA$3:AA64) -> 0 | AH64: =SUM(AB$3:AB64) -> 0 | AI64: =SUM(W$3:W64) -> 0 | AJ64: =SUM(X$3:X64) -> 0 | AK64: =SUM(Y$3:Y64) -> 0 | AL64: =SUM(Z$3:Z64) -> 0 | AM64: =SUM(AA$3:AA64) -> 0 | AN64: =SUM(AB$3:AB64) -> 0
A65: 7 | B65: So 17:30 | C65: 9 | AC65: =SUM(W$3:W65) -> 0 | AD65: =SUM(X$3:X65) -> 0 | AE65: =SUM(Y$3:Y65) -> 0 | AF65: =SUM(Z$3:Z65) -> 0 | AG65: =SUM(AA$3:AA65) -> 0 | AH65: =SUM(AB$3:AB65) -> 0 | AI65: =SUM(W$3:W65) -> 0 | AJ65: =SUM(X$3:X65) -> 0 | AK65: =SUM(Y$3:Y65) -> 0 | AL65: =SUM(Z$3:Z65) -> 0 | AM65: =SUM(AA$3:AA65) -> 0 | AN65: =SUM(AB$3:AB65) -> 0
A66: 8 | B66: Fr 20:30 | C66: 1 | AC66: =SUM(W$3:W66) -> 0 | AD66: =SUM(X$3:X66) -> 0 | AE66: =SUM(Y$3:Y66) -> 0 | AF66: =SUM(Z$3:Z66) -> 0 | AG66: =SUM(AA$3:AA66) -> 0 | AH66: =SUM(AB$3:AB66) -> 0 | AI66: =SUM(W$3:W66) -> 0 | AJ66: =SUM(X$3:X66) -> 0 | AK66: =SUM(Y$3:Y66) -> 0 | AL66: =SUM(Z$3:Z66) -> 0 | AM66: =SUM(AA$3:AA66) -> 0 | AN66: =SUM(AB$3:AB66) -> 0
A67: 8 | B67: Sa 15:30 | C67: 2 | AC67: =SUM(W$3:W67) -> 0 | AD67: =SUM(X$3:X67) -> 0 | AE67: =SUM(Y$3:Y67) -> 0 | AF67: =SUM(Z$3:Z67) -> 0 | AG67: =SUM(AA$3:AA67) -> 0 | AH67: =SUM(AB$3:AB67) -> 0 | AI67: =SUM(W$3:W67) -> 0 | AJ67: =SUM(X$3:X67) -> 0 | AK67: =SUM(Y$3:Y67) -> 0 | AL67: =SUM(Z$3:Z67) -> 0 | AM67: =SUM(AA$3:AA67) -> 0 | AN67: =SUM(AB$3:AB67) -> 0
A68: 8 | B68: Sa 15:30 | C68: 3 | AC68: =SUM(W$3:W68) -> 0 | AD68: =SUM(X$3:X68) -> 0 | AE68: =SUM(Y$3:Y68) -> 0 | AF68: =SUM(Z$3:Z68) -> 0 | AG68: =SUM(AA$3:AA68) -> 0 | AH68: =SUM(AB$3:AB68) -> 0 | AI68: =SUM(W$3:W68) -> 0 | AJ68: =SUM(X$3:X68) -> 0 | AK68: =SUM(Y$3:Y68) -> 0 | AL68: =SUM(Z$3:Z68) -> 0 | AM68: =SUM(AA$3:AA68) -> 0 | AN68: =SUM(AB$3:AB68) -> 0
A69: 8 | B69: Sa 15:30 | C69: 4 | AC69: =SUM(W$3:W69) -> 0 | AD69: =SUM(X$3:X69) -> 0 | AE69: =SUM(Y$3:Y69) -> 0 | AF69: =SUM(Z$3:Z69) -> 0 | AG69: =SUM(AA$3:AA69) -> 0 | AH69: =SUM(AB$3:AB69) -> 0 | AI69: =SUM(W$3:W69) -> 0 | AJ69: =SUM(X$3:X69) -> 0 | AK69: =SUM(Y$3:Y69) -> 0 | AL69: =SUM(Z$3:Z69) -> 0 | AM69: =SUM(AA$3:AA69) -> 0 | AN69: =SUM(AB$3:AB69) -> 0
A70: 8 | B70: Sa 15:30 | C70: 5 | AC70: =SUM(W$3:W70) -> 0 | AD70: =SUM(X$3:X70) -> 0 | AE70: =SUM(Y$3:Y70) -> 0 | AF70: =SUM(Z$3:Z70) -> 0 | AG70: =SUM(AA$3:AA70) -> 0 | AH70: =SUM(AB$3:AB70) -> 0 | AI70: =SUM(W$3:W70) -> 0 | AJ70: =SUM(X$3:X70) -> 0 | AK70: =SUM(Y$3:Y70) -> 0 | AL70: =SUM(Z$3:Z70) -> 0 | AM70: =SUM(AA$3:AA70) -> 0 | AN70: =SUM(AB$3:AB70) -> 0
A71: 8 | B71: Sa 15:30 | C71: 6 | AC71: =SUM(W$3:W71) -> 0 | AD71: =SUM(X$3:X71) -> 0 | AE71: =SUM(Y$3:Y71) -> 0 | AF71: =SUM(Z$3:Z71) -> 0 | AG71: =SUM(AA$3:AA71) -> 0 | AH71: =SUM(AB$3:AB71) -> 0 | AI71: =SUM(W$3:W71) -> 0 | AJ71: =SUM(X$3:X71) -> 0 | AK71: =SUM(Y$3:Y71) -> 0 | AL71: =SUM(Z$3:Z71) -> 0 | AM71: =SUM(AA$3:AA71) -> 0 | AN71: =SUM(AB$3:AB71) -> 0
A72: 8 | B72: Sa 18:30 | C72: 7 | AC72: =SUM(W$3:W72) -> 0 | AD72: =SUM(X$3:X72) -> 0 | AE72: =SUM(Y$3:Y72) -> 0 | AF72: =SUM(Z$3:Z72) -> 0 | AG72: =SUM(AA$3:AA72) -> 0 | AH72: =SUM(AB$3:AB72) -> 0 | AI72: =SUM(W$3:W72) -> 0 | AJ72: =SUM(X$3:X72) -> 0 | AK72: =SUM(Y$3:Y72) -> 0 | AL72: =SUM(Z$3:Z72) -> 0 | AM72: =SUM(AA$3:AA72) -> 0 | AN72: =SUM(AB$3:AB72) -> 0
A73: 8 | B73: So 15:30 | C73: 8 | AC73: =SUM(W$3:W73) -> 0 | AD73: =SUM(X$3:X73) -> 0 | AE73: =SUM(Y$3:Y73) -> 0 | AF73: =SUM(Z$3:Z73) -> 0 | AG73: =SUM(AA$3:AA73) -> 0 | AH73: =SUM(AB$3:AB73) -> 0 | AI73: =SUM(W$3:W73) -> 0 | AJ73: =SUM(X$3:X73) -> 0 | AK73: =SUM(Y$3:Y73) -> 0 | AL73: =SUM(Z$3:Z73) -> 0 | AM73: =SUM(AA$3:AA73) -> 0 | AN73: =SUM(AB$3:AB73) -> 0
A74: 8 | B74: So 17:30 | C74: 9 | AC74: =SUM(W$3:W74) -> 0 | AD74: =SUM(X$3:X74) -> 0 | AE74: =SUM(Y$3:Y74) -> 0 | AF74: =SUM(Z$3:Z74) -> 0 | AG74: =SUM(AA$3:AA74) -> 0 | AH74: =SUM(AB$3:AB74) -> 0 | AI74: =SUM(W$3:W74) -> 0 | AJ74: =SUM(X$3:X74) -> 0 | AK74: =SUM(Y$3:Y74) -> 0 | AL74: =SUM(Z$3:Z74) -> 0 | AM74: =SUM(AA$3:AA74) -> 0 | AN74: =SUM(AB$3:AB74) -> 0
A75: 9 | B75: Fr 20:30 | C75: 1 | AC75: =SUM(W$3:W75) -> 0 | AD75: =SUM(X$3:X75) -> 0 | AE75: =SUM(Y$3:Y75) -> 0 | AF75: =SUM(Z$3:Z75) -> 0 | AG75: =SUM(AA$3:AA75) -> 0 | AH75: =SUM(AB$3:AB75) -> 0 | AI75: =SUM(W$3:W75) -> 0 | AJ75: =SUM(X$3:X75) -> 0 | AK75: =SUM(Y$3:Y75) -> 0 | AL75: =SUM(Z$3:Z75) -> 0 | AM75: =SUM(AA$3:AA75) -> 0 | AN75: =SUM(AB$3:AB75) -> 0
A76: 9 | B76: Sa 15:30 | C76: 2 | AC76: =SUM(W$3:W76) -> 0 | AD76: =SUM(X$3:X76) -> 0 | AE76: =SUM(Y$3:Y76) -> 0 | AF76: =SUM(Z$3:Z76) -> 0 | AG76: =SUM(AA$3:AA76) -> 0 | AH76: =SUM(AB$3:AB76) -> 0 | AI76: =SUM(W$3:W76) -> 0 | AJ76: =SUM(X$3:X76) -> 0 | AK76: =SUM(Y$3:Y76) -> 0 | AL76: =SUM(Z$3:Z76) -> 0 | AM76: =SUM(AA$3:AA76) -> 0 | AN76: =SUM(AB$3:AB76) -> 0
A77: 9 | B77: Sa 15:30 | C77: 3 | AC77: =SUM(W$3:W77) -> 0 | AD77: =SUM(X$3:X77) -> 0 | AE77: =SUM(Y$3:Y77) -> 0 | AF77: =SUM(Z$3:Z77) -> 0 | AG77: =SUM(AA$3:AA77) -> 0 | AH77: =SUM(AB$3:AB77) -> 0 | AI77: =SUM(W$3:W77) -> 0 | AJ77: =SUM(X$3:X77) -> 0 | AK77: =SUM(Y$3:Y77) -> 0 | AL77: =SUM(Z$3:Z77) -> 0 | AM77: =SUM(AA$3:AA77) -> 0 | AN77: =SUM(AB$3:AB77) -> 0
A78: 9 | B78: Sa 15:30 | C78: 4 | AC78: =SUM(W$3:W78) -> 0 | AD78: =SUM(X$3:X78) -> 0 | AE78: =SUM(Y$3:Y78) -> 0 | AF78: =SUM(Z$3:Z78) -> 0 | AG78: =SUM(AA$3:AA78) -> 0 | AH78: =SUM(AB$3:AB78) -> 0 | AI78: =SUM(W$3:W78) -> 0 | AJ78: =SUM(X$3:X78) -> 0 | AK78: =SUM(Y$3:Y78) -> 0 | AL78: =SUM(Z$3:Z78) -> 0 | AM78: =SUM(AA$3:AA78) -> 0 | AN78: =SUM(AB$3:AB78) -> 0
A79: 9 | B79: Sa 15:30 | C79: 5 | AC79: =SUM(W$3:W79) -> 0 | AD79: =SUM(X$3:X79) -> 0 | AE79: =SUM(Y$3:Y79) -> 0 | AF79: =SUM(Z$3:Z79) -> 0 | AG79: =SUM(AA$3:AA79) -> 0 | AH79: =SUM(AB$3:AB79) -> 0 | AI79: =SUM(W$3:W79) -> 0 | AJ79: =SUM(X$3:X79) -> 0 | AK79: =SUM(Y$3:Y79) -> 0 | AL79: =SUM(Z$3:Z79) -> 0 | AM79: =SUM(AA$3:AA79) -> 0 | AN79: =SUM(AB$3:AB79) -> 0
A80: 9 | B80: Sa 15:30 | C80: 6 | AC80: =SUM(W$3:W80) -> 0 | AD80: =SUM(X$3:X80) -> 0 | AE80: =SUM(Y$3:Y80) -> 0 | AF80: =SUM(Z$3:Z80) -> 0 | AG80: =SUM(AA$3:AA80) -> 0 | AH80: =SUM(AB$3:AB80) -> 0 | AI80: =SUM(W$3:W80) -> 0 | AJ80: =SUM(X$3:X80) -> 0 | AK80: =SUM(Y$3:Y80) -> 0 | AL80: =SUM(Z$3:Z80) -> 0 | AM80: =SUM(AA$3:AA80) -> 0 | AN80: =SUM(AB$3:AB80) -> 0
A81: 9 | B81: Sa 18:30 | C81: 7 | AC81: =SUM(W$3:W81) -> 0 | AD81: =SUM(X$3:X81) -> 0 | AE81: =SUM(Y$3:Y81) -> 0 | AF81: =SUM(Z$3:Z81) -> 0 | AG81: =SUM(AA$3:AA81) -> 0 | AH81: =SUM(AB$3:AB81) -> 0 | AI81: =SUM(W$3:W81) -> 0 | AJ81: =SUM(X$3:X81) -> 0 | AK81: =SUM(Y$3:Y81) -> 0 | AL81: =SUM(Z$3:Z81) -> 0 | AM81: =SUM(AA$3:AA81) -> 0 | AN81: =SUM(AB$3:AB81) -> 0
A82: 9 | B82: So 15:30 | C82: 8 | AC82: =SUM(W$3:W82) -> 0 | AD82: =SUM(X$3:X82) -> 0 | AE82: =SUM(Y$3:Y82) -> 0 | AF82: =SUM(Z$3:Z82) -> 0 | AG82: =SUM(AA$3:AA82) -> 0 | AH82: =SUM(AB$3:AB82) -> 0 | AI82: =SUM(W$3:W82) -> 0 | AJ82: =SUM(X$3:X82) -> 0 | AK82: =SUM(Y$3:Y82) -> 0 | AL82: =SUM(Z$3:Z82) -> 0 | AM82: =SUM(AA$3:AA82) -> 0 | AN82: =SUM(AB$3:AB82) -> 0
A83: 9 | B83: So 17:30 | C83: 9 | AC83: =SUM(W$3:W83) -> 0 | AD83: =SUM(X$3:X83) -> 0 | AE83: =SUM(Y$3:Y83) -> 0 | AF83: =SUM(Z$3:Z83) -> 0 | AG83: =SUM(AA$3:AA83) -> 0 | AH83: =SUM(AB$3:AB83) -> 0 | AI83: =SUM(W$3:W83) -> 0 | AJ83: =SUM(X$3:X83) -> 0 | AK83: =SUM(Y$3:Y83) -> 0 | AL83: =SUM(Z$3:Z83) -> 0 | AM83: =SUM(AA$3:AA83) -> 0 | AN83: =SUM(AB$3:AB83) -> 0
A84: 10 | B84: Fr 20:30 | C84: 1 | AC84: =SUM(W$3:W84) -> 0 | AD84: =SUM(X$3:X84) -> 0 | AE84: =SUM(Y$3:Y84) -> 0 | AF84: =SUM(Z$3:Z84) -> 0 | AG84: =SUM(AA$3:AA84) -> 0 | AH84: =SUM(AB$3:AB84) -> 0 | AI84: =SUM(W$3:W84) -> 0 | AJ84: =SUM(X$3:X84) -> 0 | AK84: =SUM(Y$3:Y84) -> 0 | AL84: =SUM(Z$3:Z84) -> 0 | AM84: =SUM(AA$3:AA84) -> 0 | AN84: =SUM(AB$3:AB84) -> 0
A85: 10 | B85: Sa 15:30 | C85: 2 | AC85: =SUM(W$3:W85) -> 0 | AD85: =SUM(X$3:X85) -> 0 | AE85: =SUM(Y$3:Y85) -> 0 | AF85: =SUM(Z$3:Z85) -> 0 | AG85: =SUM(AA$3:AA85) -> 0 | AH85: =SUM(AB$3:AB85) -> 0 | AI85: =SUM(W$3:W85) -> 0 | AJ85: =SUM(X$3:X85) -> 0 | AK85: =SUM(Y$3:Y85) -> 0 | AL85: =SUM(Z$3:Z85) -> 0 | AM85: =SUM(AA$3:AA85) -> 0 | AN85: =SUM(AB$3:AB85) -> 0
A86: 10 | B86: Sa 15:30 | C86: 3 | AC86: =SUM(W$3:W86) -> 0 | AD86: =SUM(X$3:X86) -> 0 | AE86: =SUM(Y$3:Y86) -> 0 | AF86: =SUM(Z$3:Z86) -> 0 | AG86: =SUM(AA$3:AA86) -> 0 | AH86: =SUM(AB$3:AB86) -> 0 | AI86: =SUM(W$3:W86) -> 0 | AJ86: =SUM(X$3:X86) -> 0 | AK86: =SUM(Y$3:Y86) -> 0 | AL86: =SUM(Z$3:Z86) -> 0 | AM86: =SUM(AA$3:AA86) -> 0 | AN86: =SUM(AB$3:AB86) -> 0
A87: 10 | B87: Sa 15:30 | C87: 4 | AC87: =SUM(W$3:W87) -> 0 | AD87: =SUM(X$3:X87) -> 0 | AE87: =SUM(Y$3:Y87) -> 0 | AF87: =SUM(Z$3:Z87) -> 0 | AG87: =SUM(AA$3:AA87) -> 0 | AH87: =SUM(AB$3:AB87) -> 0 | AI87: =SUM(W$3:W87) -> 0 | AJ87: =SUM(X$3:X87) -> 0 | AK87: =SUM(Y$3:Y87) -> 0 | AL87: =SUM(Z$3:Z87) -> 0 | AM87: =SUM(AA$3:AA87) -> 0 | AN87: =SUM(AB$3:AB87) -> 0
A88: 10 | B88: Sa 15:30 | C88: 5 | AC88: =SUM(W$3:W88) -> 0 | AD88: =SUM(X$3:X88) -> 0 | AE88: =SUM(Y$3:Y88) -> 0 | AF88: =SUM(Z$3:Z88) -> 0 | AG88: =SUM(AA$3:AA88) -> 0 | AH88: =SUM(AB$3:AB88) -> 0 | AI88: =SUM(W$3:W88) -> 0 | AJ88: =SUM(X$3:X88) -> 0 | AK88: =SUM(Y$3:Y88) -> 0 | AL88: =SUM(Z$3:Z88) -> 0 | AM88: =SUM(AA$3:AA88) -> 0 | AN88: =SUM(AB$3:AB88) -> 0
A89: 10 | B89: Sa 18:30 | C89: 6 | AC89: =SUM(W$3:W89) -> 0 | AD89: =SUM(X$3:X89) -> 0 | AE89: =SUM(Y$3:Y89) -> 0 | AF89: =SUM(Z$3:Z89) -> 0 | AG89: =SUM(AA$3:AA89) -> 0 | AH89: =SUM(AB$3:AB89) -> 0 | AI89: =SUM(W$3:W89) -> 0 | AJ89: =SUM(X$3:X89) -> 0 | AK89: =SUM(Y$3:Y89) -> 0 | AL89: =SUM(Z$3:Z89) -> 0 | AM89: =SUM(AA$3:AA89) -> 0 | AN89: =SUM(AB$3:AB89) -> 0
A90: 10 | B90: So 15:30 | C90: 7 | AC90: =SUM(W$3:W90) -> 0 | AD90: =SUM(X$3:X90) -> 0 | AE90: =SUM(Y$3:Y90) -> 0 | AF90: =SUM(Z$3:Z90) -> 0 | AG90: =SUM(AA$3:AA90) -> 0 | AH90: =SUM(AB$3:AB90) -> 0 | AI90: =SUM(W$3:W90) -> 0 | AJ90: =SUM(X$3:X90) -> 0 | AK90: =SUM(Y$3:Y90) -> 0 | AL90: =SUM(Z$3:Z90) -> 0 | AM90: =SUM(AA$3:AA90) -> 0 | AN90: =SUM(AB$3:AB90) -> 0
A91: 10 | B91: So 17:30 | C91: 8 | AC91: =SUM(W$3:W91) -> 0 | AD91: =SUM(X$3:X91) -> 0 | AE91: =SUM(Y$3:Y91) -> 0 | AF91: =SUM(Z$3:Z91) -> 0 | AG91: =SUM(AA$3:AA91) -> 0 | AH91: =SUM(AB$3:AB91) -> 0 | AI91: =SUM(W$3:W91) -> 0 | AJ91: =SUM(X$3:X91) -> 0 | AK91: =SUM(Y$3:Y91) -> 0 | AL91: =SUM(Z$3:Z91) -> 0 | AM91: =SUM(AA$3:AA91) -> 0 | AN91: =SUM(AB$3:AB91) -> 0
A92: 10 | B92: So 19:30 | C92: 9 | AC92: =SUM(W$3:W92) -> 0 | AD92: =SUM(X$3:X92) -> 0 | AE92: =SUM(Y$3:Y92) -> 0 | AF92: =SUM(Z$3:Z92) -> 0 | AG92: =SUM(AA$3:AA92) -> 0 | AH92: =SUM(AB$3:AB92) -> 0 | AI92: =SUM(W$3:W92) -> 0 | AJ92: =SUM(X$3:X92) -> 0 | AK92: =SUM(Y$3:Y92) -> 0 | AL92: =SUM(Z$3:Z92) -> 0 | AM92: =SUM(AA$3:AA92) -> 0 | AN92: =SUM(AB$3:AB92) -> 0
A93: 11 | B93: Fr 20:30 | C93: 1 | AC93: =SUM(W$3:W93) -> 0 | AD93: =SUM(X$3:X93) -> 0 | AE93: =SUM(Y$3:Y93) -> 0 | AF93: =SUM(Z$3:Z93) -> 0 | AG93: =SUM(AA$3:AA93) -> 0 | AH93: =SUM(AB$3:AB93) -> 0 | AI93: =SUM(W$3:W93) -> 0 | AJ93: =SUM(X$3:X93) -> 0 | AK93: =SUM(Y$3:Y93) -> 0 | AL93: =SUM(Z$3:Z93) -> 0 | AM93: =SUM(AA$3:AA93) -> 0 | AN93: =SUM(AB$3:AB93) -> 0
A94: 11 | B94: Sa 15:30 | C94: 2 | AC94: =SUM(W$3:W94) -> 0 | AD94: =SUM(X$3:X94) -> 0 | AE94: =SUM(Y$3:Y94) -> 0 | AF94: =SUM(Z$3:Z94) -> 0 | AG94: =SUM(AA$3:AA94) -> 0 | AH94: =SUM(AB$3:AB94) -> 0 | AI94: =SUM(W$3:W94) -> 0 | AJ94: =SUM(X$3:X94) -> 0 | AK94: =SUM(Y$3:Y94) -> 0 | AL94: =SUM(Z$3:Z94) -> 0 | AM94: =SUM(AA$3:AA94) -> 0 | AN94: =SUM(AB$3:AB94) -> 0
A95: 11 | B95: Sa 15:30 | C95: 3 | AC95: =SUM(W$3:W95) -> 0 | AD95: =SUM(X$3:X95) -> 0 | AE95: =SUM(Y$3:Y95) -> 0 | AF95: =SUM(Z$3:Z95) -> 0 | AG95: =SUM(AA$3:AA95) -> 0 | AH95: =SUM(AB$3:AB95) -> 0 | AI95: =SUM(W$3:W95) -> 0 | AJ95: =SUM(X$3:X95) -> 0 | AK95: =SUM(Y$3:Y95) -> 0 | AL95: =SUM(Z$3:Z95) -> 0 | AM95: =SUM(AA$3:AA95) -> 0 | AN95: =SUM(AB$3:AB95) -> 0
A96: 11 | B96: Sa 15:30 | C96: 4 | AC96: =SUM(W$3:W96) -> 0 | AD96: =SUM(X$3:X96) -> 0 | AE96: =SUM(Y$3:Y96) -> 0 | AF96: =SUM(Z$3:Z96) -> 0 | AG96: =SUM(AA$3:AA96) -> 0 | AH96: =SUM(AB$3:AB96) -> 0 | AI96: =SUM(W$3:W96) -> 0 | AJ96: =SUM(X$3:X96) -> 0 | AK96: =SUM(Y$3:Y96) -> 0 | AL96: =SUM(Z$3:Z96) -> 0 | AM96: =SUM(AA$3:AA96) -> 0 | AN96: =SUM(AB$3:AB96) -> 0
A97: 11 | B97: Sa 15:30 | C97: 5 | AC97: =SUM(W$3:W97) -> 0 | AD97: =SUM(X$3:X97) -> 0 | AE97: =SUM(Y$3:Y97) -> 0 | AF97: =SUM(Z$3:Z97) -> 0 | AG97: =SUM(AA$3:AA97) -> 0 | AH97: =SUM(AB$3:AB97) -> 0 | AI97: =SUM(W$3:W97) -> 0 | AJ97: =SUM(X$3:X97) -> 0 | AK97: =SUM(Y$3:Y97) -> 0 | AL97: =SUM(Z$3:Z97) -> 0 | AM97: =SUM(AA$3:AA97) -> 0 | AN97: =SUM(AB$3:AB97) -> 0
A98: 11 | B98: Sa 15:30 | C98: 6 | AC98: =SUM(W$3:W98) -> 0 | AD98: =SUM(X$3:X98) -> 0 | AE98: =SUM(Y$3:Y98) -> 0 | AF98: =SUM(Z$3:Z98) -> 0 | AG98: =SUM(AA$3:AA98) -> 0 | AH98: =SUM(AB$3:AB98) -> 0 | AI98: =SUM(W$3:W98) -> 0 | AJ98: =SUM(X$3:X98) -> 0 | AK98: =SUM(Y$3:Y98) -> 0 | AL98: =SUM(Z$3:Z98) -> 0 | AM98: =SUM(AA$3:AA98) -> 0 | AN98: =SUM(AB$3:AB98) -> 0
A99: 11 | B99: Sa 18:30 | C99: 7 | AC99: =SUM(W$3:W99) -> 0 | AD99: =SUM(X$3:X99) -> 0 | AE99: =SUM(Y$3:Y99) -> 0 | AF99: =SUM(Z$3:Z99) -> 0 | AG99: =SUM(AA$3:AA99) -> 0 | AH99: =SUM(AB$3:AB99) -> 0 | AI99: =SUM(W$3:W99) -> 0 | AJ99: =SUM(X$3:X99) -> 0 | AK99: =SUM(Y$3:Y99) -> 0 | AL99: =SUM(Z$3:Z99) -> 0 | AM99: =SUM(AA$3:AA99) -> 0 | AN99: =SUM(AB$3:AB99) -> 0
A100: 11 | B100: So 15:30 | C100: 8 | AC100: =SUM(W$3:W100) -> 0 | AD100: =SUM(X$3:X100) -> 0 | AE100: =SUM(Y$3:Y100) -> 0 | AF100: =SUM(Z$3:Z100) -> 0 | AG100: =SUM(AA$3:AA100) -> 0 | AH100: =SUM(AB$3:AB100) -> 0 | AI100: =SUM(W$3:W100) -> 0 | AJ100: =SUM(X$3:X100) -> 0 | AK100: =SUM(Y$3:Y100) -> 0 | AL100: =SUM(Z$3:Z100) -> 0 | AM100: =SUM(AA$3:AA100) -> 0 | AN100: =SUM(AB$3:AB100) -> 0
A101: 11 | B101: So 17:30 | C101: 9 | AC101: =SUM(W$3:W101) -> 0 | AD101: =SUM(X$3:X101) -> 0 | AE101: =SUM(Y$3:Y101) -> 0 | AF101: =SUM(Z$3:Z101) -> 0 | AG101: =SUM(AA$3:AA101) -> 0 | AH101: =SUM(AB$3:AB101) -> 0 | AI101: =SUM(W$3:W101) -> 0 | AJ101: =SUM(X$3:X101) -> 0 | AK101: =SUM(Y$3:Y101) -> 0 | AL101: =SUM(Z$3:Z101) -> 0 | AM101: =SUM(AA$3:AA101) -> 0 | AN101: =SUM(AB$3:AB101) -> 0
A102: 12 | B102: Fr 20:30 | C102: 1 | AC102: =SUM(W$3:W102) -> 0 | AD102: =SUM(X$3:X102) -> 0 | AE102: =SUM(Y$3:Y102) -> 0 | AF102: =SUM(Z$3:Z102) -> 0 | AG102: =SUM(AA$3:AA102) -> 0 | AH102: =SUM(AB$3:AB102) -> 0 | AI102: =SUM(W$3:W102) -> 0 | AJ102: =SUM(X$3:X102) -> 0 | AK102: =SUM(Y$3:Y102) -> 0 | AL102: =SUM(Z$3:Z102) -> 0 | AM102: =SUM(AA$3:AA102) -> 0 | AN102: =SUM(AB$3:AB102) -> 0
A103: 12 | B103: Sa 15:30 | C103: 2 | AC103: =SUM(W$3:W103) -> 0 | AD103: =SUM(X$3:X103) -> 0 | AE103: =SUM(Y$3:Y103) -> 0 | AF103: =SUM(Z$3:Z103) -> 0 | AG103: =SUM(AA$3:AA103) -> 0 | AH103: =SUM(AB$3:AB103) -> 0 | AI103: =SUM(W$3:W103) -> 0 | AJ103: =SUM(X$3:X103) -> 0 | AK103: =SUM(Y$3:Y103) -> 0 | AL103: =SUM(Z$3:Z103) -> 0 | AM103: =SUM(AA$3:AA103) -> 0 | AN103: =SUM(AB$3:AB103) -> 0
A104: 12 | B104: Sa 15:30 | C104: 3 | AC104: =SUM(W$3:W104) -> 0 | AD104: =SUM(X$3:X104) -> 0 | AE104: =SUM(Y$3:Y104) -> 0 | AF104: =SUM(Z$3:Z104) -> 0 | AG104: =SUM(AA$3:AA104) -> 0 | AH104: =SUM(AB$3:AB104) -> 0 | AI104: =SUM(W$3:W104) -> 0 | AJ104: =SUM(X$3:X104) -> 0 | AK104: =SUM(Y$3:Y104) -> 0 | AL104: =SUM(Z$3:Z104) -> 0 | AM104: =SUM(AA$3:AA104) -> 0 | AN104: =SUM(AB$3:AB104) -> 0
A105: 12 | B105: Sa 15:30 | C105: 4 | AC105: =SUM(W$3:W105) -> 0 | AD105: =SUM(X$3:X105) -> 0 | AE105: =SUM(Y$3:Y105) -> 0 | AF105: =SUM(Z$3:Z105) -> 0 | AG105: =SUM(AA$3:AA105) -> 0 | AH105: =SUM(AB$3:AB105) -> 0 | AI105: =SUM(W$3:W105) -> 0 | AJ105: =SUM(X$3:X105) -> 0 | AK105: =SUM(Y$3:Y105) -> 0 | AL105: =SUM(Z$3:Z105) -> 0 | AM105: =SUM(AA$3:AA105) -> 0 | AN105: =SUM(AB$3:AB105) -> 0
A106: 12 | B106: Sa 15:30 | C106: 5 | AC106: =SUM(W$3:W106) -> 0 | AD106: =SUM(X$3:X106) -> 0 | AE106: =SUM(Y$3:Y106) -> 0 | AF106: =SUM(Z$3:Z106) -> 0 | AG106: =SUM(AA$3:AA106) -> 0 | AH106: =SUM(AB$3:AB106) -> 0 | AI106: =SUM(W$3:W106) -> 0 | AJ106: =SUM(X$3:X106) -> 0 | AK106: =SUM(Y$3:Y106) -> 0 | AL106: =SUM(Z$3:Z106) -> 0 | AM106: =SUM(AA$3:AA106) -> 0 | AN106: =SUM(AB$3:AB106) -> 0
A107: 12 | B107: Sa 18:30 | C107: 6 | AC107: =SUM(W$3:W107) -> 0 | AD107: =SUM(X$3:X107) -> 0 | AE107: =SUM(Y$3:Y107) -> 0 | AF107: =SUM(Z$3:Z107) -> 0 | AG107: =SUM(AA$3:AA107) -> 0 | AH107: =SUM(AB$3:AB107) -> 0 | AI107: =SUM(W$3:W107) -> 0 | AJ107: =SUM(X$3:X107) -> 0 | AK107: =SUM(Y$3:Y107) -> 0 | AL107: =SUM(Z$3:Z107) -> 0 | AM107: =SUM(AA$3:AA107) -> 0 | AN107: =SUM(AB$3:AB107) -> 0
A108: 12 | B108: So 15:30 | C108: 7 | AC108: =SUM(W$3:W108) -> 0 | AD108: =SUM(X$3:X108) -> 0 | AE108: =SUM(Y$3:Y108) -> 0 | AF108: =SUM(Z$3:Z108) -> 0 | AG108: =SUM(AA$3:AA108) -> 0 | AH108: =SUM(AB$3:AB108) -> 0 | AI108: =SUM(W$3:W108) -> 0 | AJ108: =SUM(X$3:X108) -> 0 | AK108: =SUM(Y$3:Y108) -> 0 | AL108: =SUM(Z$3:Z108) -> 0 | AM108: =SUM(AA$3:AA108) -> 0 | AN108: =SUM(AB$3:AB108) -> 0
A109: 12 | B109: So 17:30 | C109: 8 | AC109: =SUM(W$3:W109) -> 0 | AD109: =SUM(X$3:X109) -> 0 | AE109: =SUM(Y$3:Y109) -> 0 | AF109: =SUM(Z$3:Z109) -> 0 | AG109: =SUM(AA$3:AA109) -> 0 | AH109: =SUM(AB$3:AB109) -> 0 | AI109: =SUM(W$3:W109) -> 0 | AJ109: =SUM(X$3:X109) -> 0 | AK109: =SUM(Y$3:Y109) -> 0 | AL109: =SUM(Z$3:Z109) -> 0 | AM109: =SUM(AA$3:AA109) -> 0 | AN109: =SUM(AB$3:AB109) -> 0
A110: 12 | B110: So 19:30 | C110: 9 | AC110: =SUM(W$3:W110) -> 0 | AD110: =SUM(X$3:X110) -> 0 | AE110: =SUM(Y$3:Y110) -> 0 | AF110: =SUM(Z$3:Z110) -> 0 | AG110: =SUM(AA$3:AA110) -> 0 | AH110: =SUM(AB$3:AB110) -> 0 | AI110: =SUM(W$3:W110) -> 0 | AJ110: =SUM(X$3:X110) -> 0 | AK110: =SUM(Y$3:Y110) -> 0 | AL110: =SUM(Z$3:Z110) -> 0 | AM110: =SUM(AA$3:AA110) -> 0 | AN110: =SUM(AB$3:AB110) -> 0
A111: 13 | B111: Fr 20:30 | C111: 1 | AC111: =SUM(W$3:W111) -> 0 | AD111: =SUM(X$3:X111) -> 0 | AE111: =SUM(Y$3:Y111) -> 0 | AF111: =SUM(Z$3:Z111) -> 0 | AG111: =SUM(AA$3:AA111) -> 0 | AH111: =SUM(AB$3:AB111) -> 0 | AI111: =SUM(W$3:W111) -> 0 | AJ111: =SUM(X$3:X111) -> 0 | AK111: =SUM(Y$3:Y111) -> 0 | AL111: =SUM(Z$3:Z111) -> 0 | AM111: =SUM(AA$3:AA111) -> 0 | AN111: =SUM(AB$3:AB111) -> 0
A112: 13 | B112: Sa 15:30 | C112: 2 | AC112: =SUM(W$3:W112) -> 0 | AD112: =SUM(X$3:X112) -> 0 | AE112: =SUM(Y$3:Y112) -> 0 | AF112: =SUM(Z$3:Z112) -> 0 | AG112: =SUM(AA$3:AA112) -> 0 | AH112: =SUM(AB$3:AB112) -> 0 | AI112: =SUM(W$3:W112) -> 0 | AJ112: =SUM(X$3:X112) -> 0 | AK112: =SUM(Y$3:Y112) -> 0 | AL112: =SUM(Z$3:Z112) -> 0 | AM112: =SUM(AA$3:AA112) -> 0 | AN112: =SUM(AB$3:AB112) -> 0
A113: 13 | B113: Sa 15:30 | C113: 3 | AC113: =SUM(W$3:W113) -> 0 | AD113: =SUM(X$3:X113) -> 0 | AE113: =SUM(Y$3:Y113) -> 0 | AF113: =SUM(Z$3:Z113) -> 0 | AG113: =SUM(AA$3:AA113) -> 0 | AH113: =SUM(AB$3:AB113) -> 0 | AI113: =SUM(W$3:W113) -> 0 | AJ113: =SUM(X$3:X113) -> 0 | AK113: =SUM(Y$3:Y113) -> 0 | AL113: =SUM(Z$3:Z113) -> 0 | AM113: =SUM(AA$3:AA113) -> 0 | AN113: =SUM(AB$3:AB113) -> 0
A114: 13 | B114: Sa 15:30 | C114: 4 | AC114: =SUM(W$3:W114) -> 0 | AD114: =SUM(X$3:X114) -> 0 | AE114: =SUM(Y$3:Y114) -> 0 | AF114: =SUM(Z$3:Z114) -> 0 | AG114: =SUM(AA$3:AA114) -> 0 | AH114: =SUM(AB$3:AB114) -> 0 | AI114: =SUM(W$3:W114) -> 0 | AJ114: =SUM(X$3:X114) -> 0 | AK114: =SUM(Y$3:Y114) -> 0 | AL114: =SUM(Z$3:Z114) -> 0 | AM114: =SUM(AA$3:AA114) -> 0 | AN114: =SUM(AB$3:AB114) -> 0
A115: 13 | B115: Sa 15:30 | C115: 5 | AC115: =SUM(W$3:W115) -> 0 | AD115: =SUM(X$3:X115) -> 0 | AE115: =SUM(Y$3:Y115) -> 0 | AF115: =SUM(Z$3:Z115) -> 0 | AG115: =SUM(AA$3:AA115) -> 0 | AH115: =SUM(AB$3:AB115) -> 0 | AI115: =SUM(W$3:W115) -> 0 | AJ115: =SUM(X$3:X115) -> 0 | AK115: =SUM(Y$3:Y115) -> 0 | AL115: =SUM(Z$3:Z115) -> 0 | AM115: =SUM(AA$3:AA115) -> 0 | AN115: =SUM(AB$3:AB115) -> 0
A116: 13 | B116: Sa 15:30 | C116: 6 | AC116: =SUM(W$3:W116) -> 0 | AD116: =SUM(X$3:X116) -> 0 | AE116: =SUM(Y$3:Y116) -> 0 | AF116: =SUM(Z$3:Z116) -> 0 | AG116: =SUM(AA$3:AA116) -> 0 | AH116: =SUM(AB$3:AB116) -> 0 | AI116: =SUM(W$3:W116) -> 0 | AJ116: =SUM(X$3:X116) -> 0 | AK116: =SUM(Y$3:Y116) -> 0 | AL116: =SUM(Z$3:Z116) -> 0 | AM116: =SUM(AA$3:AA116) -> 0 | AN116: =SUM(AB$3:AB116) -> 0
A117: 13 | B117: Sa 18:30 | C117: 7 | AC117: =SUM(W$3:W117) -> 0 | AD117: =SUM(X$3:X117) -> 0 | AE117: =SUM(Y$3:Y117) -> 0 | AF117: =SUM(Z$3:Z117) -> 0 | AG117: =SUM(AA$3:AA117) -> 0 | AH117: =SUM(AB$3:AB117) -> 0 | AI117: =SUM(W$3:W117) -> 0 | AJ117: =SUM(X$3:X117) -> 0 | AK117: =SUM(Y$3:Y117) -> 0 | AL117: =SUM(Z$3:Z117) -> 0 | AM117: =SUM(AA$3:AA117) -> 0 | AN117: =SUM(AB$3:AB117) -> 0
A118: 13 | B118: So 15:30 | C118: 8 | AC118: =SUM(W$3:W118) -> 0 | AD118: =SUM(X$3:X118) -> 0 | AE118: =SUM(Y$3:Y118) -> 0 | AF118: =SUM(Z$3:Z118) -> 0 | AG118: =SUM(AA$3:AA118) -> 0 | AH118: =SUM(AB$3:AB118) -> 0 | AI118: =SUM(W$3:W118) -> 0 | AJ118: =SUM(X$3:X118) -> 0 | AK118: =SUM(Y$3:Y118) -> 0 | AL118: =SUM(Z$3:Z118) -> 0 | AM118: =SUM(AA$3:AA118) -> 0 | AN118: =SUM(AB$3:AB118) -> 0
A119: 13 | B119: So 17:30 | C119: 9 | AC119: =SUM(W$3:W119) -> 0 | AD119: =SUM(X$3:X119) -> 0 | AE119: =SUM(Y$3:Y119) -> 0 | AF119: =SUM(Z$3:Z119) -> 0 | AG119: =SUM(AA$3:AA119) -> 0 | AH119: =SUM(AB$3:AB119) -> 0 | AI119: =SUM(W$3:W119) -> 0 | AJ119: =SUM(X$3:X119) -> 0 | AK119: =SUM(Y$3:Y119) -> 0 | AL119: =SUM(Z$3:Z119) -> 0 | AM119: =SUM(AA$3:AA119) -> 0 | AN119: =SUM(AB$3:AB119) -> 0
A120: 14 | B120: Fr 20:30 | C120: 1 | AC120: =SUM(W$3:W120) -> 0 | AD120: =SUM(X$3:X120) -> 0 | AE120: =SUM(Y$3:Y120) -> 0 | AF120: =SUM(Z$3:Z120) -> 0 | AG120: =SUM(AA$3:AA120) -> 0 | AH120: =SUM(AB$3:AB120) -> 0 | AI120: =SUM(W$3:W120) -> 0 | AJ120: =SUM(X$3:X120) -> 0 | AK120: =SUM(Y$3:Y120) -> 0 | AL120: =SUM(Z$3:Z120) -> 0 | AM120: =SUM(AA$3:AA120) -> 0 | AN120: =SUM(AB$3:AB120) -> 0
A121: 14 | B121: Sa 15:30 | C121: 2 | AC121: =SUM(W$3:W121) -> 0 | AD121: =SUM(X$3:X121) -> 0 | AE121: =SUM(Y$3:Y121) -> 0 | AF121: =SUM(Z$3:Z121) -> 0 | AG121: =SUM(AA$3:AA121) -> 0 | AH121: =SUM(AB$3:AB121) -> 0 | AI121: =SUM(W$3:W121) -> 0 | AJ121: =SUM(X$3:X121) -> 0 | AK121: =SUM(Y$3:Y121) -> 0 | AL121: =SUM(Z$3:Z121) -> 0 | AM121: =SUM(AA$3:AA121) -> 0 | AN121: =SUM(AB$3:AB121) -> 0
A122: 14 | B122: Sa 15:30 | C122: 3 | AC122: =SUM(W$3:W122) -> 0 | AD122: =SUM(X$3:X122) -> 0 | AE122: =SUM(Y$3:Y122) -> 0 | AF122: =SUM(Z$3:Z122) -> 0 | AG122: =SUM(AA$3:AA122) -> 0 | AH122: =SUM(AB$3:AB122) -> 0 | AI122: =SUM(W$3:W122) -> 0 | AJ122: =SUM(X$3:X122) -> 0 | AK122: =SUM(Y$3:Y122) -> 0 | AL122: =SUM(Z$3:Z122) -> 0 | AM122: =SUM(AA$3:AA122) -> 0 | AN122: =SUM(AB$3:AB122) -> 0
A123: 14 | B123: Sa 15:30 | C123: 4 | AC123: =SUM(W$3:W123) -> 0 | AD123: =SUM(X$3:X123) -> 0 | AE123: =SUM(Y$3:Y123) -> 0 | AF123: =SUM(Z$3:Z123) -> 0 | AG123: =SUM(AA$3:AA123) -> 0 | AH123: =SUM(AB$3:AB123) -> 0 | AI123: =SUM(W$3:W123) -> 0 | AJ123: =SUM(X$3:X123) -> 0 | AK123: =SUM(Y$3:Y123) -> 0 | AL123: =SUM(Z$3:Z123) -> 0 | AM123: =SUM(AA$3:AA123) -> 0 | AN123: =SUM(AB$3:AB123) -> 0
A124: 14 | B124: Sa 15:30 | C124: 5 | AC124: =SUM(W$3:W124) -> 0 | AD124: =SUM(X$3:X124) -> 0 | AE124: =SUM(Y$3:Y124) -> 0 | AF124: =SUM(Z$3:Z124) -> 0 | AG124: =SUM(AA$3:AA124) -> 0 | AH124: =SUM(AB$3:AB124) -> 0 | AI124: =SUM(W$3:W124) -> 0 | AJ124: =SUM(X$3:X124) -> 0 | AK124: =SUM(Y$3:Y124) -> 0 | AL124: =SUM(Z$3:Z124) -> 0 | AM124: =SUM(AA$3:AA124) -> 0 | AN124: =SUM(AB$3:AB124) -> 0
A125: 14 | B125: Sa 18:30 | C125: 6 | AC125: =SUM(W$3:W125) -> 0 | AD125: =SUM(X$3:X125) -> 0 | AE125: =SUM(Y$3:Y125) -> 0 | AF125: =SUM(Z$3:Z125) -> 0 | AG125: =SUM(AA$3:AA125) -> 0 | AH125: =SUM(AB$3:AB125) -> 0 | AI125: =SUM(W$3:W125) -> 0 | AJ125: =SUM(X$3:X125) -> 0 | AK125: =SUM(Y$3:Y125) -> 0 | AL125: =SUM(Z$3:Z125) -> 0 | AM125: =SUM(AA$3:AA125) -> 0 | AN125: =SUM(AB$3:AB125) -> 0
A126: 14 | B126: So 15:30 | C126: 7 | AC126: =SUM(W$3:W126) -> 0 | AD126: =SUM(X$3:X126) -> 0 | AE126: =SUM(Y$3:Y126) -> 0 | AF126: =SUM(Z$3:Z126) -> 0 | AG126: =SUM(AA$3:AA126) -> 0 | AH126: =SUM(AB$3:AB126) -> 0 | AI126: =SUM(W$3:W126) -> 0 | AJ126: =SUM(X$3:X126) -> 0 | AK126: =SUM(Y$3:Y126) -> 0 | AL126: =SUM(Z$3:Z126) -> 0 | AM126: =SUM(AA$3:AA126) -> 0 | AN126: =SUM(AB$3:AB126) -> 0
A127: 14 | B127: So 17:30 | C127: 8 | AC127: =SUM(W$3:W127) -> 0 | AD127: =SUM(X$3:X127) -> 0 | AE127: =SUM(Y$3:Y127) -> 0 | AF127: =SUM(Z$3:Z127) -> 0 | AG127: =SUM(AA$3:AA127) -> 0 | AH127: =SUM(AB$3:AB127) -> 0 | AI127: =SUM(W$3:W127) -> 0 | AJ127: =SUM(X$3:X127) -> 0 | AK127: =SUM(Y$3:Y127) -> 0 | AL127: =SUM(Z$3:Z127) -> 0 | AM127: =SUM(AA$3:AA127) -> 0 | AN127: =SUM(AB$3:AB127) -> 0
A128: 14 | B128: So 19:30 | C128: 9 | AC128: =SUM(W$3:W128) -> 0 | AD128: =SUM(X$3:X128) -> 0 | AE128: =SUM(Y$3:Y128) -> 0 | AF128: =SUM(Z$3:Z128) -> 0 | AG128: =SUM(AA$3:AA128) -> 0 | AH128: =SUM(AB$3:AB128) -> 0 | AI128: =SUM(W$3:W128) -> 0 | AJ128: =SUM(X$3:X128) -> 0 | AK128: =SUM(Y$3:Y128) -> 0 | AL128: =SUM(Z$3:Z128) -> 0 | AM128: =SUM(AA$3:AA128) -> 0 | AN128: =SUM(AB$3:AB128) -> 0
A129: 15 | B129: Fr 20:30 | C129: 1 | AC129: =SUM(W$3:W129) -> 0 | AD129: =SUM(X$3:X129) -> 0 | AE129: =SUM(Y$3:Y129) -> 0 | AF129: =SUM(Z$3:Z129) -> 0 | AG129: =SUM(AA$3:AA129) -> 0 | AH129: =SUM(AB$3:AB129) -> 0 | AI129: =SUM(W$3:W129) -> 0 | AJ129: =SUM(X$3:X129) -> 0 | AK129: =SUM(Y$3:Y129) -> 0 | AL129: =SUM(Z$3:Z129) -> 0 | AM129: =SUM(AA$3:AA129) -> 0 | AN129: =SUM(AB$3:AB129) -> 0
A130: 15 | B130: Sa 15:30 | C130: 2 | AC130: =SUM(W$3:W130) -> 0 | AD130: =SUM(X$3:X130) -> 0 | AE130: =SUM(Y$3:Y130) -> 0 | AF130: =SUM(Z$3:Z130) -> 0 | AG130: =SUM(AA$3:AA130) -> 0 | AH130: =SUM(AB$3:AB130) -> 0 | AI130: =SUM(W$3:W130) -> 0 | AJ130: =SUM(X$3:X130) -> 0 | AK130: =SUM(Y$3:Y130) -> 0 | AL130: =SUM(Z$3:Z130) -> 0 | AM130: =SUM(AA$3:AA130) -> 0 | AN130: =SUM(AB$3:AB130) -> 0
A131: 15 | B131: Sa 15:30 | C131: 3 | AC131: =SUM(W$3:W131) -> 0 | AD131: =SUM(X$3:X131) -> 0 | AE131: =SUM(Y$3:Y131) -> 0 | AF131: =SUM(Z$3:Z131) -> 0 | AG131: =SUM(AA$3:AA131) -> 0 | AH131: =SUM(AB$3:AB131) -> 0 | AI131: =SUM(W$3:W131) -> 0 | AJ131: =SUM(X$3:X131) -> 0 | AK131: =SUM(Y$3:Y131) -> 0 | AL131: =SUM(Z$3:Z131) -> 0 | AM131: =SUM(AA$3:AA131) -> 0 | AN131: =SUM(AB$3:AB131) -> 0
A132: 15 | B132: Sa 15:30 | C132: 4 | AC132: =SUM(W$3:W132) -> 0 | AD132: =SUM(X$3:X132) -> 0 | AE132: =SUM(Y$3:Y132) -> 0 | AF132: =SUM(Z$3:Z132) -> 0 | AG132: =SUM(AA$3:AA132) -> 0 | AH132: =SUM(AB$3:AB132) -> 0 | AI132: =SUM(W$3:W132) -> 0 | AJ132: =SUM(X$3:X132) -> 0 | AK132: =SUM(Y$3:Y132) -> 0 | AL132: =SUM(Z$3:Z132) -> 0 | AM132: =SUM(AA$3:AA132) -> 0 | AN132: =SUM(AB$3:AB132) -> 0
A133: 15 | B133: Sa 15:30 | C133: 5 | AC133: =SUM(W$3:W133) -> 0 | AD133: =SUM(X$3:X133) -> 0 | AE133: =SUM(Y$3:Y133) -> 0 | AF133: =SUM(Z$3:Z133) -> 0 | AG133: =SUM(AA$3:AA133) -> 0 | AH133: =SUM(AB$3:AB133) -> 0 | AI133: =SUM(W$3:W133) -> 0 | AJ133: =SUM(X$3:X133) -> 0 | AK133: =SUM(Y$3:Y133) -> 0 | AL133: =SUM(Z$3:Z133) -> 0 | AM133: =SUM(AA$3:AA133) -> 0 | AN133: =SUM(AB$3:AB133) -> 0
A134: 15 | B134: Sa 15:30 | C134: 6 | AC134: =SUM(W$3:W134) -> 0 | AD134: =SUM(X$3:X134) -> 0 | AE134: =SUM(Y$3:Y134) -> 0 | AF134: =SUM(Z$3:Z134) -> 0 | AG134: =SUM(AA$3:AA134) -> 0 | AH134: =SUM(AB$3:AB134) -> 0 | AI134: =SUM(W$3:W134) -> 0 | AJ134: =SUM(X$3:X134) -> 0 | AK134: =SUM(Y$3:Y134) -> 0 | AL134: =SUM(Z$3:Z134) -> 0 | AM134: =SUM(AA$3:AA134) -> 0 | AN134: =SUM(AB$3:AB134) -> 0
A135: 15 | B135: Sa 18:30 | C135: 7 | AC135: =SUM(W$3:W135) -> 0 | AD135: =SUM(X$3:X135) -> 0 | AE135: =SUM(Y$3:Y135) -> 0 | AF135: =SUM(Z$3:Z135) -> 0 | AG135: =SUM(AA$3:AA135) -> 0 | AH135: =SUM(AB$3:AB135) -> 0 | AI135: =SUM(W$3:W135) -> 0 | AJ135: =SUM(X$3:X135) -> 0 | AK135: =SUM(Y$3:Y135) -> 0 | AL135: =SUM(Z$3:Z135) -> 0 | AM135: =SUM(AA$3:AA135) -> 0 | AN135: =SUM(AB$3:AB135) -> 0
A136: 15 | B136: So 15:30 | C136: 8 | AC136: =SUM(W$3:W136) -> 0 | AD136: =SUM(X$3:X136) -> 0 | AE136: =SUM(Y$3:Y136) -> 0 | AF136: =SUM(Z$3:Z136) -> 0 | AG136: =SUM(AA$3:AA136) -> 0 | AH136: =SUM(AB$3:AB136) -> 0 | AI136: =SUM(W$3:W136) -> 0 | AJ136: =SUM(X$3:X136) -> 0 | AK136: =SUM(Y$3:Y136) -> 0 | AL136: =SUM(Z$3:Z136) -> 0 | AM136: =SUM(AA$3:AA136) -> 0 | AN136: =SUM(AB$3:AB136) -> 0
A137: 15 | B137: So 17:30 | C137: 9 | AC137: =SUM(W$3:W137) -> 0 | AD137: =SUM(X$3:X137) -> 0 | AE137: =SUM(Y$3:Y137) -> 0 | AF137: =SUM(Z$3:Z137) -> 0 | AG137: =SUM(AA$3:AA137) -> 0 | AH137: =SUM(AB$3:AB137) -> 0 | AI137: =SUM(W$3:W137) -> 0 | AJ137: =SUM(X$3:X137) -> 0 | AK137: =SUM(Y$3:Y137) -> 0 | AL137: =SUM(Z$3:Z137) -> 0 | AM137: =SUM(AA$3:AA137) -> 0 | AN137: =SUM(AB$3:AB137) -> 0
A138: 16 | B138: Fr 20:30 | C138: 1 | AC138: =SUM(W$3:W138) -> 0 | AD138: =SUM(X$3:X138) -> 0 | AE138: =SUM(Y$3:Y138) -> 0 | AF138: =SUM(Z$3:Z138) -> 0 | AG138: =SUM(AA$3:AA138) -> 0 | AH138: =SUM(AB$3:AB138) -> 0 | AI138: =SUM(W$3:W138) -> 0 | AJ138: =SUM(X$3:X138) -> 0 | AK138: =SUM(Y$3:Y138) -> 0 | AL138: =SUM(Z$3:Z138) -> 0 | AM138: =SUM(AA$3:AA138) -> 0 | AN138: =SUM(AB$3:AB138) -> 0
A139: 16 | B139: Sa 15:30 | C139: 2 | AC139: =SUM(W$3:W139) -> 0 | AD139: =SUM(X$3:X139) -> 0 | AE139: =SUM(Y$3:Y139) -> 0 | AF139: =SUM(Z$3:Z139) -> 0 | AG139: =SUM(AA$3:AA139) -> 0 | AH139: =SUM(AB$3:AB139) -> 0 | AI139: =SUM(W$3:W139) -> 0 | AJ139: =SUM(X$3:X139) -> 0 | AK139: =SUM(Y$3:Y139) -> 0 | AL139: =SUM(Z$3:Z139) -> 0 | AM139: =SUM(AA$3:AA139) -> 0 | AN139: =SUM(AB$3:AB139) -> 0
A140: 16 | B140: Sa 15:30 | C140: 3 | AC140: =SUM(W$3:W140) -> 0 | AD140: =SUM(X$3:X140) -> 0 | AE140: =SUM(Y$3:Y140) -> 0 | AF140: =SUM(Z$3:Z140) -> 0 | AG140: =SUM(AA$3:AA140) -> 0 | AH140: =SUM(AB$3:AB140) -> 0 | AI140: =SUM(W$3:W140) -> 0 | AJ140: =SUM(X$3:X140) -> 0 | AK140: =SUM(Y$3:Y140) -> 0 | AL140: =SUM(Z$3:Z140) -> 0 | AM140: =SUM(AA$3:AA140) -> 0 | AN140: =SUM(AB$3:AB140) -> 0
A141: 16 | B141: Sa 15:30 | C141: 4 | AC141: =SUM(W$3:W141) -> 0 | AD141: =SUM(X$3:X141) -> 0 | AE141: =SUM(Y$3:Y141) -> 0 | AF141: =SUM(Z$3:Z141) -> 0 | AG141: =SUM(AA$3:AA141) -> 0 | AH141: =SUM(AB$3:AB141) -> 0 | AI141: =SUM(W$3:W141) -> 0 | AJ141: =SUM(X$3:X141) -> 0 | AK141: =SUM(Y$3:Y141) -> 0 | AL141: =SUM(Z$3:Z141) -> 0 | AM141: =SUM(AA$3:AA141) -> 0 | AN141: =SUM(AB$3:AB141) -> 0
A142: 16 | B142: Sa 15:30 | C142: 5 | AC142: =SUM(W$3:W142) -> 0 | AD142: =SUM(X$3:X142) -> 0 | AE142: =SUM(Y$3:Y142) -> 0 | AF142: =SUM(Z$3:Z142) -> 0 | AG142: =SUM(AA$3:AA142) -> 0 | AH142: =SUM(AB$3:AB142) -> 0 | AI142: =SUM(W$3:W142) -> 0 | AJ142: =SUM(X$3:X142) -> 0 | AK142: =SUM(Y$3:Y142) -> 0 | AL142: =SUM(Z$3:Z142) -> 0 | AM142: =SUM(AA$3:AA142) -> 0 | AN142: =SUM(AB$3:AB142) -> 0
A143: 16 | B143: Sa 15:30 | C143: 6 | AC143: =SUM(W$3:W143) -> 0 | AD143: =SUM(X$3:X143) -> 0 | AE143: =SUM(Y$3:Y143) -> 0 | AF143: =SUM(Z$3:Z143) -> 0 | AG143: =SUM(AA$3:AA143) -> 0 | AH143: =SUM(AB$3:AB143) -> 0 | AI143: =SUM(W$3:W143) -> 0 | AJ143: =SUM(X$3:X143) -> 0 | AK143: =SUM(Y$3:Y143) -> 0 | AL143: =SUM(Z$3:Z143) -> 0 | AM143: =SUM(AA$3:AA143) -> 0 | AN143: =SUM(AB$3:AB143) -> 0
A144: 16 | B144: Sa 18:30 | C144: 7 | AC144: =SUM(W$3:W144) -> 0 | AD144: =SUM(X$3:X144) -> 0 | AE144: =SUM(Y$3:Y144) -> 0 | AF144: =SUM(Z$3:Z144) -> 0 | AG144: =SUM(AA$3:AA144) -> 0 | AH144: =SUM(AB$3:AB144) -> 0 | AI144: =SUM(W$3:W144) -> 0 | AJ144: =SUM(X$3:X144) -> 0 | AK144: =SUM(Y$3:Y144) -> 0 | AL144: =SUM(Z$3:Z144) -> 0 | AM144: =SUM(AA$3:AA144) -> 0 | AN144: =SUM(AB$3:AB144) -> 0
A145: 16 | B145: So 15:30 | C145: 8 | AC145: =SUM(W$3:W145) -> 0 | AD145: =SUM(X$3:X145) -> 0 | AE145: =SUM(Y$3:Y145) -> 0 | AF145: =SUM(Z$3:Z145) -> 0 | AG145: =SUM(AA$3:AA145) -> 0 | AH145: =SUM(AB$3:AB145) -> 0 | AI145: =SUM(W$3:W145) -> 0 | AJ145: =SUM(X$3:X145) -> 0 | AK145: =SUM(Y$3:Y145) -> 0 | AL145: =SUM(Z$3:Z145) -> 0 | AM145: =SUM(AA$3:AA145) -> 0 | AN145: =SUM(AB$3:AB145) -> 0
A146: 16 | B146: So 17:30 | C146: 9 | AC146: =SUM(W$3:W146) -> 0 | AD146: =SUM(X$3:X146) -> 0 | AE146: =SUM(Y$3:Y146) -> 0 | AF146: =SUM(Z$3:Z146) -> 0 | AG146: =SUM(AA$3:AA146) -> 0 | AH146: =SUM(AB$3:AB146) -> 0 | AI146: =SUM(W$3:W146) -> 0 | AJ146: =SUM(X$3:X146) -> 0 | AK146: =SUM(Y$3:Y146) -> 0 | AL146: =SUM(Z$3:Z146) -> 0 | AM146: =SUM(AA$3:AA146) -> 0 | AN146: =SUM(AB$3:AB146) -> 0
A147: 17 | B147: Di 18:30 | C147: 1 | AC147: =SUM(W$3:W147) -> 0 | AD147: =SUM(X$3:X147) -> 0 | AE147: =SUM(Y$3:Y147) -> 0 | AF147: =SUM(Z$3:Z147) -> 0 | AG147: =SUM(AA$3:AA147) -> 0 | AH147: =SUM(AB$3:AB147) -> 0 | AI147: =SUM(W$3:W147) -> 0 | AJ147: =SUM(X$3:X147) -> 0 | AK147: =SUM(Y$3:Y147) -> 0 | AL147: =SUM(Z$3:Z147) -> 0 | AM147: =SUM(AA$3:AA147) -> 0 | AN147: =SUM(AB$3:AB147) -> 0
A148: 17 | B148: Di 20:30 | C148: 2 | AC148: =SUM(W$3:W148) -> 0 | AD148: =SUM(X$3:X148) -> 0 | AE148: =SUM(Y$3:Y148) -> 0 | AF148: =SUM(Z$3:Z148) -> 0 | AG148: =SUM(AA$3:AA148) -> 0 | AH148: =SUM(AB$3:AB148) -> 0 | AI148: =SUM(W$3:W148) -> 0 | AJ148: =SUM(X$3:X148) -> 0 | AK148: =SUM(Y$3:Y148) -> 0 | AL148: =SUM(Z$3:Z148) -> 0 | AM148: =SUM(AA$3:AA148) -> 0 | AN148: =SUM(AB$3:AB148) -> 0
A149: 17 | B149: Di 20:30 | C149: 3 | AC149: =SUM(W$3:W149) -> 0 | AD149: =SUM(X$3:X149) -> 0 | AE149: =SUM(Y$3:Y149) -> 0 | AF149: =SUM(Z$3:Z149) -> 0 | AG149: =SUM(AA$3:AA149) -> 0 | AH149: =SUM(AB$3:AB149) -> 0 | AI149: =SUM(W$3:W149) -> 0 | AJ149: =SUM(X$3:X149) -> 0 | AK149: =SUM(Y$3:Y149) -> 0 | AL149: =SUM(Z$3:Z149) -> 0 | AM149: =SUM(AA$3:AA149) -> 0 | AN149: =SUM(AB$3:AB149) -> 0
A150: 17 | B150: Di 20:30 | C150: 4 | AC150: =SUM(W$3:W150) -> 0 | AD150: =SUM(X$3:X150) -> 0 | AE150: =SUM(Y$3:Y150) -> 0 | AF150: =SUM(Z$3:Z150) -> 0 | AG150: =SUM(AA$3:AA150) -> 0 | AH150: =SUM(AB$3:AB150) -> 0 | AI150: =SUM(W$3:W150) -> 0 | AJ150: =SUM(X$3:X150) -> 0 | AK150: =SUM(Y$3:Y150) -> 0 | AL150: =SUM(Z$3:Z150) -> 0 | AM150: =SUM(AA$3:AA150) -> 0 | AN150: =SUM(AB$3:AB150) -> 0
A151: 17 | B151: Mi 18:30 | C151: 5 | AC151: =SUM(W$3:W151) -> 0 | AD151: =SUM(X$3:X151) -> 0 | AE151: =SUM(Y$3:Y151) -> 0 | AF151: =SUM(Z$3:Z151) -> 0 | AG151: =SUM(AA$3:AA151) -> 0 | AH151: =SUM(AB$3:AB151) -> 0 | AI151: =SUM(W$3:W151) -> 0 | AJ151: =SUM(X$3:X151) -> 0 | AK151: =SUM(Y$3:Y151) -> 0 | AL151: =SUM(Z$3:Z151) -> 0 | AM151: =SUM(AA$3:AA151) -> 0 | AN151: =SUM(AB$3:AB151) -> 0
A152: 17 | B152: Mi 20:30 | C152: 6 | AC152: =SUM(W$3:W152) -> 0 | AD152: =SUM(X$3:X152) -> 0 | AE152: =SUM(Y$3:Y152) -> 0 | AF152: =SUM(Z$3:Z152) -> 0 | AG152: =SUM(AA$3:AA152) -> 0 | AH152: =SUM(AB$3:AB152) -> 0 | AI152: =SUM(W$3:W152) -> 0 | AJ152: =SUM(X$3:X152) -> 0 | AK152: =SUM(Y$3:Y152) -> 0 | AL152: =SUM(Z$3:Z152) -> 0 | AM152: =SUM(AA$3:AA152) -> 0 | AN152: =SUM(AB$3:AB152) -> 0
A153: 17 | B153: Mi 20:30 | C153: 7 | AC153: =SUM(W$3:W153) -> 0 | AD153: =SUM(X$3:X153) -> 0 | AE153: =SUM(Y$3:Y153) -> 0 | AF153: =SUM(Z$3:Z153) -> 0 | AG153: =SUM(AA$3:AA153) -> 0 | AH153: =SUM(AB$3:AB153) -> 0 | AI153: =SUM(W$3:W153) -> 0 | AJ153: =SUM(X$3:X153) -> 0 | AK153: =SUM(Y$3:Y153) -> 0 | AL153: =SUM(Z$3:Z153) -> 0 | AM153: =SUM(AA$3:AA153) -> 0 | AN153: =SUM(AB$3:AB153) -> 0
A154: 17 | B154: Mi 20:30 | C154: 8 | AC154: =SUM(W$3:W154) -> 0 | AD154: =SUM(X$3:X154) -> 0 | AE154: =SUM(Y$3:Y154) -> 0 | AF154: =SUM(Z$3:Z154) -> 0 | AG154: =SUM(AA$3:AA154) -> 0 | AH154: =SUM(AB$3:AB154) -> 0 | AI154: =SUM(W$3:W154) -> 0 | AJ154: =SUM(X$3:X154) -> 0 | AK154: =SUM(Y$3:Y154) -> 0 | AL154: =SUM(Z$3:Z154) -> 0 | AM154: =SUM(AA$3:AA154) -> 0 | AN154: =SUM(AB$3:AB154) -> 0
A155: 17 | B155: Do 20:30 | C155: 9 | AC155: =SUM(W$3:W155) -> 0 | AD155: =SUM(X$3:X155) -> 0 | AE155: =SUM(Y$3:Y155) -> 0 | AF155: =SUM(Z$3:Z155) -> 0 | AG155: =SUM(AA$3:AA155) -> 0 | AH155: =SUM(AB$3:AB155) -> 0 | AI155: =SUM(W$3:W155) -> 0 | AJ155: =SUM(X$3:X155) -> 0 | AK155: =SUM(Y$3:Y155) -> 0 | AL155: =SUM(Z$3:Z155) -> 0 | AM155: =SUM(AA$3:AA155) -> 0 | AN155: =SUM(AB$3:AB155) -> 0
A156: 18 | B156: Fr 20:30 | C156: 1 | AC156: =SUM(W$156:W156) -> 0 | AD156: =SUM(X$156:X156) -> 0 | AE156: =SUM(Y$156:Y156) -> 0 | AF156: =SUM(Z$156:Z156) -> 0 | AG156: =SUM(AA$156:AA156) -> 0 | AH156: =SUM(AB$156:AB156) -> 0 | AI156: =SUM(W$3:W156) -> 0 | AJ156: =SUM(X$3:X156) -> 0 | AK156: =SUM(Y$3:Y156) -> 0 | AL156: =SUM(Z$3:Z156) -> 0 | AM156: =SUM(AA$3:AA156) -> 0 | AN156: =SUM(AB$3:AB156) -> 0
A157: 18 | B157: Sa 15:30 | C157: 2 | AC157: =SUM(W$156:W157) -> 0 | AD157: =SUM(X$156:X157) -> 0 | AE157: =SUM(Y$156:Y157) -> 0 | AF157: =SUM(Z$156:Z157) -> 0 | AG157: =SUM(AA$156:AA157) -> 0 | AH157: =SUM(AB$156:AB157) -> 0 | AI157: =SUM(W$3:W157) -> 0 | AJ157: =SUM(X$3:X157) -> 0 | AK157: =SUM(Y$3:Y157) -> 0 | AL157: =SUM(Z$3:Z157) -> 0 | AM157: =SUM(AA$3:AA157) -> 0 | AN157: =SUM(AB$3:AB157) -> 0
A158: 18 | B158: Sa 15:30 | C158: 3 | AC158: =SUM(W$156:W158) -> 0 | AD158: =SUM(X$156:X158) -> 0 | AE158: =SUM(Y$156:Y158) -> 0 | AF158: =SUM(Z$156:Z158) -> 0 | AG158: =SUM(AA$156:AA158) -> 0 | AH158: =SUM(AB$156:AB158) -> 0 | AI158: =SUM(W$3:W158) -> 0 | AJ158: =SUM(X$3:X158) -> 0 | AK158: =SUM(Y$3:Y158) -> 0 | AL158: =SUM(Z$3:Z158) -> 0 | AM158: =SUM(AA$3:AA158) -> 0 | AN158: =SUM(AB$3:AB158) -> 0
A159: 18 | B159: Sa 15:30 | C159: 4 | AC159: =SUM(W$156:W159) -> 0 | AD159: =SUM(X$156:X159) -> 0 | AE159: =SUM(Y$156:Y159) -> 0 | AF159: =SUM(Z$156:Z159) -> 0 | AG159: =SUM(AA$156:AA159) -> 0 | AH159: =SUM(AB$156:AB159) -> 0 | AI159: =SUM(W$3:W159) -> 0 | AJ159: =SUM(X$3:X159) -> 0 | AK159: =SUM(Y$3:Y159) -> 0 | AL159: =SUM(Z$3:Z159) -> 0 | AM159: =SUM(AA$3:AA159) -> 0 | AN159: =SUM(AB$3:AB159) -> 0
A160: 18 | B160: Sa 15:30 | C160: 5 | AC160: =SUM(W$156:W160) -> 0 | AD160: =SUM(X$156:X160) -> 0 | AE160: =SUM(Y$156:Y160) -> 0 | AF160: =SUM(Z$156:Z160) -> 0 | AG160: =SUM(AA$156:AA160) -> 0 | AH160: =SUM(AB$156:AB160) -> 0 | AI160: =SUM(W$3:W160) -> 0 | AJ160: =SUM(X$3:X160) -> 0 | AK160: =SUM(Y$3:Y160) -> 0 | AL160: =SUM(Z$3:Z160) -> 0 | AM160: =SUM(AA$3:AA160) -> 0 | AN160: =SUM(AB$3:AB160) -> 0
A161: 18 | B161: Sa 15:30 | C161: 6 | AC161: =SUM(W$156:W161) -> 0 | AD161: =SUM(X$156:X161) -> 0 | AE161: =SUM(Y$156:Y161) -> 0 | AF161: =SUM(Z$156:Z161) -> 0 | AG161: =SUM(AA$156:AA161) -> 0 | AH161: =SUM(AB$156:AB161) -> 0 | AI161: =SUM(W$3:W161) -> 0 | AJ161: =SUM(X$3:X161) -> 0 | AK161: =SUM(Y$3:Y161) -> 0 | AL161: =SUM(Z$3:Z161) -> 0 | AM161: =SUM(AA$3:AA161) -> 0 | AN161: =SUM(AB$3:AB161) -> 0
A162: 18 | B162: Sa 18:30 | C162: 7 | AC162: =SUM(W$156:W162) -> 0 | AD162: =SUM(X$156:X162) -> 0 | AE162: =SUM(Y$156:Y162) -> 0 | AF162: =SUM(Z$156:Z162) -> 0 | AG162: =SUM(AA$156:AA162) -> 0 | AH162: =SUM(AB$156:AB162) -> 0 | AI162: =SUM(W$3:W162) -> 0 | AJ162: =SUM(X$3:X162) -> 0 | AK162: =SUM(Y$3:Y162) -> 0 | AL162: =SUM(Z$3:Z162) -> 0 | AM162: =SUM(AA$3:AA162) -> 0 | AN162: =SUM(AB$3:AB162) -> 0
A163: 18 | B163: So 15:30 | C163: 8 | AC163: =SUM(W$156:W163) -> 0 | AD163: =SUM(X$156:X163) -> 0 | AE163: =SUM(Y$156:Y163) -> 0 | AF163: =SUM(Z$156:Z163) -> 0 | AG163: =SUM(AA$156:AA163) -> 0 | AH163: =SUM(AB$156:AB163) -> 0 | AI163: =SUM(W$3:W163) -> 0 | AJ163: =SUM(X$3:X163) -> 0 | AK163: =SUM(Y$3:Y163) -> 0 | AL163: =SUM(Z$3:Z163) -> 0 | AM163: =SUM(AA$3:AA163) -> 0 | AN163: =SUM(AB$3:AB163) -> 0
A164: 18 | B164: So 17:30 | C164: 9 | AC164: =SUM(W$156:W164) -> 0 | AD164: =SUM(X$156:X164) -> 0 | AE164: =SUM(Y$156:Y164) -> 0 | AF164: =SUM(Z$156:Z164) -> 0 | AG164: =SUM(AA$156:AA164) -> 0 | AH164: =SUM(AB$156:AB164) -> 0 | AI164: =SUM(W$3:W164) -> 0 | AJ164: =SUM(X$3:X164) -> 0 | AK164: =SUM(Y$3:Y164) -> 0 | AL164: =SUM(Z$3:Z164) -> 0 | AM164: =SUM(AA$3:AA164) -> 0 | AN164: =SUM(AB$3:AB164) -> 0
A165: 19 | B165: Fr 20:30 | C165: 1 | AC165: =SUM(W$156:W165) -> 0 | AD165: =SUM(X$156:X165) -> 0 | AE165: =SUM(Y$156:Y165) -> 0 | AF165: =SUM(Z$156:Z165) -> 0 | AG165: =SUM(AA$156:AA165) -> 0 | AH165: =SUM(AB$156:AB165) -> 0 | AI165: =SUM(W$3:W165) -> 0 | AJ165: =SUM(X$3:X165) -> 0 | AK165: =SUM(Y$3:Y165) -> 0 | AL165: =SUM(Z$3:Z165) -> 0 | AM165: =SUM(AA$3:AA165) -> 0 | AN165: =SUM(AB$3:AB165) -> 0
A166: 19 | B166: Sa 15:30 | C166: 2 | AC166: =SUM(W$156:W166) -> 0 | AD166: =SUM(X$156:X166) -> 0 | AE166: =SUM(Y$156:Y166) -> 0 | AF166: =SUM(Z$156:Z166) -> 0 | AG166: =SUM(AA$156:AA166) -> 0 | AH166: =SUM(AB$156:AB166) -> 0 | AI166: =SUM(W$3:W166) -> 0 | AJ166: =SUM(X$3:X166) -> 0 | AK166: =SUM(Y$3:Y166) -> 0 | AL166: =SUM(Z$3:Z166) -> 0 | AM166: =SUM(AA$3:AA166) -> 0 | AN166: =SUM(AB$3:AB166) -> 0
A167: 19 | B167: Sa 15:30 | C167: 3 | AC167: =SUM(W$156:W167) -> 0 | AD167: =SUM(X$156:X167) -> 0 | AE167: =SUM(Y$156:Y167) -> 0 | AF167: =SUM(Z$156:Z167) -> 0 | AG167: =SUM(AA$156:AA167) -> 0 | AH167: =SUM(AB$156:AB167) -> 0 | AI167: =SUM(W$3:W167) -> 0 | AJ167: =SUM(X$3:X167) -> 0 | AK167: =SUM(Y$3:Y167) -> 0 | AL167: =SUM(Z$3:Z167) -> 0 | AM167: =SUM(AA$3:AA167) -> 0 | AN167: =SUM(AB$3:AB167) -> 0
A168: 19 | B168: Sa 15:30 | C168: 4 | AC168: =SUM(W$156:W168) -> 0 | AD168: =SUM(X$156:X168) -> 0 | AE168: =SUM(Y$156:Y168) -> 0 | AF168: =SUM(Z$156:Z168) -> 0 | AG168: =SUM(AA$156:AA168) -> 0 | AH168: =SUM(AB$156:AB168) -> 0 | AI168: =SUM(W$3:W168) -> 0 | AJ168: =SUM(X$3:X168) -> 0 | AK168: =SUM(Y$3:Y168) -> 0 | AL168: =SUM(Z$3:Z168) -> 0 | AM168: =SUM(AA$3:AA168) -> 0 | AN168: =SUM(AB$3:AB168) -> 0
A169: 19 | B169: Sa 15:30 | C169: 5 | AC169: =SUM(W$156:W169) -> 0 | AD169: =SUM(X$156:X169) -> 0 | AE169: =SUM(Y$156:Y169) -> 0 | AF169: =SUM(Z$156:Z169) -> 0 | AG169: =SUM(AA$156:AA169) -> 0 | AH169: =SUM(AB$156:AB169) -> 0 | AI169: =SUM(W$3:W169) -> 0 | AJ169: =SUM(X$3:X169) -> 0 | AK169: =SUM(Y$3:Y169) -> 0 | AL169: =SUM(Z$3:Z169) -> 0 | AM169: =SUM(AA$3:AA169) -> 0 | AN169: =SUM(AB$3:AB169) -> 0
A170: 19 | B170: Sa 15:30 | C170: 6 | AC170: =SUM(W$156:W170) -> 0 | AD170: =SUM(X$156:X170) -> 0 | AE170: =SUM(Y$156:Y170) -> 0 | AF170: =SUM(Z$156:Z170) -> 0 | AG170: =SUM(AA$156:AA170) -> 0 | AH170: =SUM(AB$156:AB170) -> 0 | AI170: =SUM(W$3:W170) -> 0 | AJ170: =SUM(X$3:X170) -> 0 | AK170: =SUM(Y$3:Y170) -> 0 | AL170: =SUM(Z$3:Z170) -> 0 | AM170: =SUM(AA$3:AA170) -> 0 | AN170: =SUM(AB$3:AB170) -> 0
A171: 19 | B171: Sa 18:30 | C171: 7 | AC171: =SUM(W$156:W171) -> 0 | AD171: =SUM(X$156:X171) -> 0 | AE171: =SUM(Y$156:Y171) -> 0 | AF171: =SUM(Z$156:Z171) -> 0 | AG171: =SUM(AA$156:AA171) -> 0 | AH171: =SUM(AB$156:AB171) -> 0 | AI171: =SUM(W$3:W171) -> 0 | AJ171: =SUM(X$3:X171) -> 0 | AK171: =SUM(Y$3:Y171) -> 0 | AL171: =SUM(Z$3:Z171) -> 0 | AM171: =SUM(AA$3:AA171) -> 0 | AN171: =SUM(AB$3:AB171) -> 0
A172: 19 | B172: So 15:30 | C172: 8 | AC172: =SUM(W$156:W172) -> 0 | AD172: =SUM(X$156:X172) -> 0 | AE172: =SUM(Y$156:Y172) -> 0 | AF172: =SUM(Z$156:Z172) -> 0 | AG172: =SUM(AA$156:AA172) -> 0 | AH172: =SUM(AB$156:AB172) -> 0 | AI172: =SUM(W$3:W172) -> 0 | AJ172: =SUM(X$3:X172) -> 0 | AK172: =SUM(Y$3:Y172) -> 0 | AL172: =SUM(Z$3:Z172) -> 0 | AM172: =SUM(AA$3:AA172) -> 0 | AN172: =SUM(AB$3:AB172) -> 0
A173: 19 | B173: So 17:30 | C173: 9 | AC173: =SUM(W$156:W173) -> 0 | AD173: =SUM(X$156:X173) -> 0 | AE173: =SUM(Y$156:Y173) -> 0 | AF173: =SUM(Z$156:Z173) -> 0 | AG173: =SUM(AA$156:AA173) -> 0 | AH173: =SUM(AB$156:AB173) -> 0 | AI173: =SUM(W$3:W173) -> 0 | AJ173: =SUM(X$3:X173) -> 0 | AK173: =SUM(Y$3:Y173) -> 0 | AL173: =SUM(Z$3:Z173) -> 0 | AM173: =SUM(AA$3:AA173) -> 0 | AN173: =SUM(AB$3:AB173) -> 0
A174: 20 | B174: Fr 20:30 | C174: 1 | AC174: =SUM(W$156:W174) -> 0 | AD174: =SUM(X$156:X174) -> 0 | AE174: =SUM(Y$156:Y174) -> 0 | AF174: =SUM(Z$156:Z174) -> 0 | AG174: =SUM(AA$156:AA174) -> 0 | AH174: =SUM(AB$156:AB174) -> 0 | AI174: =SUM(W$3:W174) -> 0 | AJ174: =SUM(X$3:X174) -> 0 | AK174: =SUM(Y$3:Y174) -> 0 | AL174: =SUM(Z$3:Z174) -> 0 | AM174: =SUM(AA$3:AA174) -> 0 | AN174: =SUM(AB$3:AB174) -> 0
A175: 20 | B175: Sa 15:30 | C175: 2 | AC175: =SUM(W$156:W175) -> 0 | AD175: =SUM(X$156:X175) -> 0 | AE175: =SUM(Y$156:Y175) -> 0 | AF175: =SUM(Z$156:Z175) -> 0 | AG175: =SUM(AA$156:AA175) -> 0 | AH175: =SUM(AB$156:AB175) -> 0 | AI175: =SUM(W$3:W175) -> 0 | AJ175: =SUM(X$3:X175) -> 0 | AK175: =SUM(Y$3:Y175) -> 0 | AL175: =SUM(Z$3:Z175) -> 0 | AM175: =SUM(AA$3:AA175) -> 0 | AN175: =SUM(AB$3:AB175) -> 0
A176: 20 | B176: Sa 15:30 | C176: 3 | AC176: =SUM(W$156:W176) -> 0 | AD176: =SUM(X$156:X176) -> 0 | AE176: =SUM(Y$156:Y176) -> 0 | AF176: =SUM(Z$156:Z176) -> 0 | AG176: =SUM(AA$156:AA176) -> 0 | AH176: =SUM(AB$156:AB176) -> 0 | AI176: =SUM(W$3:W176) -> 0 | AJ176: =SUM(X$3:X176) -> 0 | AK176: =SUM(Y$3:Y176) -> 0 | AL176: =SUM(Z$3:Z176) -> 0 | AM176: =SUM(AA$3:AA176) -> 0 | AN176: =SUM(AB$3:AB176) -> 0
A177: 20 | B177: Sa 15:30 | C177: 4 | AC177: =SUM(W$156:W177) -> 0 | AD177: =SUM(X$156:X177) -> 0 | AE177: =SUM(Y$156:Y177) -> 0 | AF177: =SUM(Z$156:Z177) -> 0 | AG177: =SUM(AA$156:AA177) -> 0 | AH177: =SUM(AB$156:AB177) -> 0 | AI177: =SUM(W$3:W177) -> 0 | AJ177: =SUM(X$3:X177) -> 0 | AK177: =SUM(Y$3:Y177) -> 0 | AL177: =SUM(Z$3:Z177) -> 0 | AM177: =SUM(AA$3:AA177) -> 0 | AN177: =SUM(AB$3:AB177) -> 0
A178: 20 | B178: Sa 15:30 | C178: 5 | AC178: =SUM(W$156:W178) -> 0 | AD178: =SUM(X$156:X178) -> 0 | AE178: =SUM(Y$156:Y178) -> 0 | AF178: =SUM(Z$156:Z178) -> 0 | AG178: =SUM(AA$156:AA178) -> 0 | AH178: =SUM(AB$156:AB178) -> 0 | AI178: =SUM(W$3:W178) -> 0 | AJ178: =SUM(X$3:X178) -> 0 | AK178: =SUM(Y$3:Y178) -> 0 | AL178: =SUM(Z$3:Z178) -> 0 | AM178: =SUM(AA$3:AA178) -> 0 | AN178: =SUM(AB$3:AB178) -> 0
A179: 20 | B179: Sa 15:30 | C179: 6 | AC179: =SUM(W$156:W179) -> 0 | AD179: =SUM(X$156:X179) -> 0 | AE179: =SUM(Y$156:Y179) -> 0 | AF179: =SUM(Z$156:Z179) -> 0 | AG179: =SUM(AA$156:AA179) -> 0 | AH179: =SUM(AB$156:AB179) -> 0 | AI179: =SUM(W$3:W179) -> 0 | AJ179: =SUM(X$3:X179) -> 0 | AK179: =SUM(Y$3:Y179) -> 0 | AL179: =SUM(Z$3:Z179) -> 0 | AM179: =SUM(AA$3:AA179) -> 0 | AN179: =SUM(AB$3:AB179) -> 0
A180: 20 | B180: Sa 18:30 | C180: 7 | AC180: =SUM(W$156:W180) -> 0 | AD180: =SUM(X$156:X180) -> 0 | AE180: =SUM(Y$156:Y180) -> 0 | AF180: =SUM(Z$156:Z180) -> 0 | AG180: =SUM(AA$156:AA180) -> 0 | AH180: =SUM(AB$156:AB180) -> 0 | AI180: =SUM(W$3:W180) -> 0 | AJ180: =SUM(X$3:X180) -> 0 | AK180: =SUM(Y$3:Y180) -> 0 | AL180: =SUM(Z$3:Z180) -> 0 | AM180: =SUM(AA$3:AA180) -> 0 | AN180: =SUM(AB$3:AB180) -> 0
A181: 20 | B181: So 15:30 | C181: 8 | AC181: =SUM(W$156:W181) -> 0 | AD181: =SUM(X$156:X181) -> 0 | AE181: =SUM(Y$156:Y181) -> 0 | AF181: =SUM(Z$156:Z181) -> 0 | AG181: =SUM(AA$156:AA181) -> 0 | AH181: =SUM(AB$156:AB181) -> 0 | AI181: =SUM(W$3:W181) -> 0 | AJ181: =SUM(X$3:X181) -> 0 | AK181: =SUM(Y$3:Y181) -> 0 | AL181: =SUM(Z$3:Z181) -> 0 | AM181: =SUM(AA$3:AA181) -> 0 | AN181: =SUM(AB$3:AB181) -> 0
A182: 20 | B182: So 17:30 | C182: 9 | AC182: =SUM(W$156:W182) -> 0 | AD182: =SUM(X$156:X182) -> 0 | AE182: =SUM(Y$156:Y182) -> 0 | AF182: =SUM(Z$156:Z182) -> 0 | AG182: =SUM(AA$156:AA182) -> 0 | AH182: =SUM(AB$156:AB182) -> 0 | AI182: =SUM(W$3:W182) -> 0 | AJ182: =SUM(X$3:X182) -> 0 | AK182: =SUM(Y$3:Y182) -> 0 | AL182: =SUM(Z$3:Z182) -> 0 | AM182: =SUM(AA$3:AA182) -> 0 | AN182: =SUM(AB$3:AB182) -> 0
A183: 21 | B183: Fr 20:30 | C183: 1 | AC183: =SUM(W$156:W183) -> 0 | AD183: =SUM(X$156:X183) -> 0 | AE183: =SUM(Y$156:Y183) -> 0 | AF183: =SUM(Z$156:Z183) -> 0 | AG183: =SUM(AA$156:AA183) -> 0 | AH183: =SUM(AB$156:AB183) -> 0 | AI183: =SUM(W$3:W183) -> 0 | AJ183: =SUM(X$3:X183) -> 0 | AK183: =SUM(Y$3:Y183) -> 0 | AL183: =SUM(Z$3:Z183) -> 0 | AM183: =SUM(AA$3:AA183) -> 0 | AN183: =SUM(AB$3:AB183) -> 0
A184: 21 | B184: Sa 15:30 | C184: 2 | AC184: =SUM(W$156:W184) -> 0 | AD184: =SUM(X$156:X184) -> 0 | AE184: =SUM(Y$156:Y184) -> 0 | AF184: =SUM(Z$156:Z184) -> 0 | AG184: =SUM(AA$156:AA184) -> 0 | AH184: =SUM(AB$156:AB184) -> 0 | AI184: =SUM(W$3:W184) -> 0 | AJ184: =SUM(X$3:X184) -> 0 | AK184: =SUM(Y$3:Y184) -> 0 | AL184: =SUM(Z$3:Z184) -> 0 | AM184: =SUM(AA$3:AA184) -> 0 | AN184: =SUM(AB$3:AB184) -> 0
A185: 21 | B185: Sa 15:30 | C185: 3 | AC185: =SUM(W$156:W185) -> 0 | AD185: =SUM(X$156:X185) -> 0 | AE185: =SUM(Y$156:Y185) -> 0 | AF185: =SUM(Z$156:Z185) -> 0 | AG185: =SUM(AA$156:AA185) -> 0 | AH185: =SUM(AB$156:AB185) -> 0 | AI185: =SUM(W$3:W185) -> 0 | AJ185: =SUM(X$3:X185) -> 0 | AK185: =SUM(Y$3:Y185) -> 0 | AL185: =SUM(Z$3:Z185) -> 0 | AM185: =SUM(AA$3:AA185) -> 0 | AN185: =SUM(AB$3:AB185) -> 0
A186: 21 | B186: Sa 15:30 | C186: 4 | AC186: =SUM(W$156:W186) -> 0 | AD186: =SUM(X$156:X186) -> 0 | AE186: =SUM(Y$156:Y186) -> 0 | AF186: =SUM(Z$156:Z186) -> 0 | AG186: =SUM(AA$156:AA186) -> 0 | AH186: =SUM(AB$156:AB186) -> 0 | AI186: =SUM(W$3:W186) -> 0 | AJ186: =SUM(X$3:X186) -> 0 | AK186: =SUM(Y$3:Y186) -> 0 | AL186: =SUM(Z$3:Z186) -> 0 | AM186: =SUM(AA$3:AA186) -> 0 | AN186: =SUM(AB$3:AB186) -> 0
A187: 21 | B187: Sa 15:30 | C187: 5 | AC187: =SUM(W$156:W187) -> 0 | AD187: =SUM(X$156:X187) -> 0 | AE187: =SUM(Y$156:Y187) -> 0 | AF187: =SUM(Z$156:Z187) -> 0 | AG187: =SUM(AA$156:AA187) -> 0 | AH187: =SUM(AB$156:AB187) -> 0 | AI187: =SUM(W$3:W187) -> 0 | AJ187: =SUM(X$3:X187) -> 0 | AK187: =SUM(Y$3:Y187) -> 0 | AL187: =SUM(Z$3:Z187) -> 0 | AM187: =SUM(AA$3:AA187) -> 0 | AN187: =SUM(AB$3:AB187) -> 0
A188: 21 | B188: Sa 15:30 | C188: 6 | AC188: =SUM(W$156:W188) -> 0 | AD188: =SUM(X$156:X188) -> 0 | AE188: =SUM(Y$156:Y188) -> 0 | AF188: =SUM(Z$156:Z188) -> 0 | AG188: =SUM(AA$156:AA188) -> 0 | AH188: =SUM(AB$156:AB188) -> 0 | AI188: =SUM(W$3:W188) -> 0 | AJ188: =SUM(X$3:X188) -> 0 | AK188: =SUM(Y$3:Y188) -> 0 | AL188: =SUM(Z$3:Z188) -> 0 | AM188: =SUM(AA$3:AA188) -> 0 | AN188: =SUM(AB$3:AB188) -> 0
A189: 21 | B189: Sa 18:30 | C189: 7 | AC189: =SUM(W$156:W189) -> 0 | AD189: =SUM(X$156:X189) -> 0 | AE189: =SUM(Y$156:Y189) -> 0 | AF189: =SUM(Z$156:Z189) -> 0 | AG189: =SUM(AA$156:AA189) -> 0 | AH189: =SUM(AB$156:AB189) -> 0 | AI189: =SUM(W$3:W189) -> 0 | AJ189: =SUM(X$3:X189) -> 0 | AK189: =SUM(Y$3:Y189) -> 0 | AL189: =SUM(Z$3:Z189) -> 0 | AM189: =SUM(AA$3:AA189) -> 0 | AN189: =SUM(AB$3:AB189) -> 0
A190: 21 | B190: So 15:30 | C190: 8 | AC190: =SUM(W$156:W190) -> 0 | AD190: =SUM(X$156:X190) -> 0 | AE190: =SUM(Y$156:Y190) -> 0 | AF190: =SUM(Z$156:Z190) -> 0 | AG190: =SUM(AA$156:AA190) -> 0 | AH190: =SUM(AB$156:AB190) -> 0 | AI190: =SUM(W$3:W190) -> 0 | AJ190: =SUM(X$3:X190) -> 0 | AK190: =SUM(Y$3:Y190) -> 0 | AL190: =SUM(Z$3:Z190) -> 0 | AM190: =SUM(AA$3:AA190) -> 0 | AN190: =SUM(AB$3:AB190) -> 0
A191: 21 | B191: So 17:30 | C191: 9 | AC191: =SUM(W$156:W191) -> 0 | AD191: =SUM(X$156:X191) -> 0 | AE191: =SUM(Y$156:Y191) -> 0 | AF191: =SUM(Z$156:Z191) -> 0 | AG191: =SUM(AA$156:AA191) -> 0 | AH191: =SUM(AB$156:AB191) -> 0 | AI191: =SUM(W$3:W191) -> 0 | AJ191: =SUM(X$3:X191) -> 0 | AK191: =SUM(Y$3:Y191) -> 0 | AL191: =SUM(Z$3:Z191) -> 0 | AM191: =SUM(AA$3:AA191) -> 0 | AN191: =SUM(AB$3:AB191) -> 0
A192: 22 | B192: Fr 20:30 | C192: 1 | AC192: =SUM(W$156:W192) -> 0 | AD192: =SUM(X$156:X192) -> 0 | AE192: =SUM(Y$156:Y192) -> 0 | AF192: =SUM(Z$156:Z192) -> 0 | AG192: =SUM(AA$156:AA192) -> 0 | AH192: =SUM(AB$156:AB192) -> 0 | AI192: =SUM(W$3:W192) -> 0 | AJ192: =SUM(X$3:X192) -> 0 | AK192: =SUM(Y$3:Y192) -> 0 | AL192: =SUM(Z$3:Z192) -> 0 | AM192: =SUM(AA$3:AA192) -> 0 | AN192: =SUM(AB$3:AB192) -> 0
A193: 22 | B193: Sa 15:30 | C193: 2 | AC193: =SUM(W$156:W193) -> 0 | AD193: =SUM(X$156:X193) -> 0 | AE193: =SUM(Y$156:Y193) -> 0 | AF193: =SUM(Z$156:Z193) -> 0 | AG193: =SUM(AA$156:AA193) -> 0 | AH193: =SUM(AB$156:AB193) -> 0 | AI193: =SUM(W$3:W193) -> 0 | AJ193: =SUM(X$3:X193) -> 0 | AK193: =SUM(Y$3:Y193) -> 0 | AL193: =SUM(Z$3:Z193) -> 0 | AM193: =SUM(AA$3:AA193) -> 0 | AN193: =SUM(AB$3:AB193) -> 0
A194: 22 | B194: Sa 15:30 | C194: 3 | AC194: =SUM(W$156:W194) -> 0 | AD194: =SUM(X$156:X194) -> 0 | AE194: =SUM(Y$156:Y194) -> 0 | AF194: =SUM(Z$156:Z194) -> 0 | AG194: =SUM(AA$156:AA194) -> 0 | AH194: =SUM(AB$156:AB194) -> 0 | AI194: =SUM(W$3:W194) -> 0 | AJ194: =SUM(X$3:X194) -> 0 | AK194: =SUM(Y$3:Y194) -> 0 | AL194: =SUM(Z$3:Z194) -> 0 | AM194: =SUM(AA$3:AA194) -> 0 | AN194: =SUM(AB$3:AB194) -> 0
A195: 22 | B195: Sa 15:30 | C195: 4 | AC195: =SUM(W$156:W195) -> 0 | AD195: =SUM(X$156:X195) -> 0 | AE195: =SUM(Y$156:Y195) -> 0 | AF195: =SUM(Z$156:Z195) -> 0 | AG195: =SUM(AA$156:AA195) -> 0 | AH195: =SUM(AB$156:AB195) -> 0 | AI195: =SUM(W$3:W195) -> 0 | AJ195: =SUM(X$3:X195) -> 0 | AK195: =SUM(Y$3:Y195) -> 0 | AL195: =SUM(Z$3:Z195) -> 0 | AM195: =SUM(AA$3:AA195) -> 0 | AN195: =SUM(AB$3:AB195) -> 0
A196: 22 | B196: Sa 15:30 | C196: 5 | AC196: =SUM(W$156:W196) -> 0 | AD196: =SUM(X$156:X196) -> 0 | AE196: =SUM(Y$156:Y196) -> 0 | AF196: =SUM(Z$156:Z196) -> 0 | AG196: =SUM(AA$156:AA196) -> 0 | AH196: =SUM(AB$156:AB196) -> 0 | AI196: =SUM(W$3:W196) -> 0 | AJ196: =SUM(X$3:X196) -> 0 | AK196: =SUM(Y$3:Y196) -> 0 | AL196: =SUM(Z$3:Z196) -> 0 | AM196: =SUM(AA$3:AA196) -> 0 | AN196: =SUM(AB$3:AB196) -> 0
A197: 22 | B197: Sa 15:30 | C197: 6 | AC197: =SUM(W$156:W197) -> 0 | AD197: =SUM(X$156:X197) -> 0 | AE197: =SUM(Y$156:Y197) -> 0 | AF197: =SUM(Z$156:Z197) -> 0 | AG197: =SUM(AA$156:AA197) -> 0 | AH197: =SUM(AB$156:AB197) -> 0 | AI197: =SUM(W$3:W197) -> 0 | AJ197: =SUM(X$3:X197) -> 0 | AK197: =SUM(Y$3:Y197) -> 0 | AL197: =SUM(Z$3:Z197) -> 0 | AM197: =SUM(AA$3:AA197) -> 0 | AN197: =SUM(AB$3:AB197) -> 0
A198: 22 | B198: Sa 18:30 | C198: 7 | AC198: =SUM(W$156:W198) -> 0 | AD198: =SUM(X$156:X198) -> 0 | AE198: =SUM(Y$156:Y198) -> 0 | AF198: =SUM(Z$156:Z198) -> 0 | AG198: =SUM(AA$156:AA198) -> 0 | AH198: =SUM(AB$156:AB198) -> 0 | AI198: =SUM(W$3:W198) -> 0 | AJ198: =SUM(X$3:X198) -> 0 | AK198: =SUM(Y$3:Y198) -> 0 | AL198: =SUM(Z$3:Z198) -> 0 | AM198: =SUM(AA$3:AA198) -> 0 | AN198: =SUM(AB$3:AB198) -> 0
A199: 22 | B199: So 15:30 | C199: 8 | AC199: =SUM(W$156:W199) -> 0 | AD199: =SUM(X$156:X199) -> 0 | AE199: =SUM(Y$156:Y199) -> 0 | AF199: =SUM(Z$156:Z199) -> 0 | AG199: =SUM(AA$156:AA199) -> 0 | AH199: =SUM(AB$156:AB199) -> 0 | AI199: =SUM(W$3:W199) -> 0 | AJ199: =SUM(X$3:X199) -> 0 | AK199: =SUM(Y$3:Y199) -> 0 | AL199: =SUM(Z$3:Z199) -> 0 | AM199: =SUM(AA$3:AA199) -> 0 | AN199: =SUM(AB$3:AB199) -> 0
A200: 22 | B200: So 17:30 | C200: 9 | AC200: =SUM(W$156:W200) -> 0 | AD200: =SUM(X$156:X200) -> 0 | AE200: =SUM(Y$156:Y200) -> 0 | AF200: =SUM(Z$156:Z200) -> 0 | AG200: =SUM(AA$156:AA200) -> 0 | AH200: =SUM(AB$156:AB200) -> 0 | AI200: =SUM(W$3:W200) -> 0 | AJ200: =SUM(X$3:X200) -> 0 | AK200: =SUM(Y$3:Y200) -> 0 | AL200: =SUM(Z$3:Z200) -> 0 | AM200: =SUM(AA$3:AA200) -> 0 | AN200: =SUM(AB$3:AB200) -> 0
... 108 more rows

Sheet Seidl
A1: Herbst | I1: Frühjahr | Q1: =Parameter!B15 -> 26/27
A2: Runde | B2: =Parameter!C1 -> MA | C2: =Parameter!D1 -> MN | D2: =Parameter!E1 -> AH | E2: =Parameter!F1 -> KS | F2: =Parameter!G1 -> LM | G2: =Parameter!H1 -> EN | I2: Runde | J2: =Parameter!C1 -> MA | K2: =Parameter!D1 -> MN | L2: =Parameter!E1 -> AH | M2: =Parameter!F1 -> KS | N2: =Parameter!G1 -> LM | O2: =Parameter!H1 -> EN | Q2: Runde | R2: =Parameter!C1 -> MA | S2: =Parameter!D1 -> MN | T2: =Parameter!E1 -> AH | U2: =Parameter!F1 -> KS | V2: =Parameter!G1 -> LM | W2: =Parameter!H1 -> EN
A3: 1 | I3: 18 | Q3: Tot | R3: =B20+J20 -> 0 | S3: 0 | T3: 0 | U3: 0 | V3: 0 | W3: 0
A4: 2 | I4: 19
A5: 3 | I5: 20
A6: 4 | I6: 21
A7: 5 | I7: 22
A8: 6 | I8: 23
A9: 7 | I9: 24
A10: 8 | I10: 25
A11: 9 | I11: 26
A12: 10 | I12: 27
A13: 11 | I13: 28
A14: 12 | I14: 29
A15: 13 | I15: 30
A16: 14 | I16: 31
A17: 15 | I17: 32
A18: 16 | I18: 33
A19: 17 | I19: 34
A20: Tot | B20: =SUM(B3:B19) -> 0 | C20: 0 | D20: 0 | E20: 0 | F20: 0 | G20: 0 | I20: Tot | J20: =SUM(J3:J19) -> 0 | K20: 0 | L20: 0 | M20: 0 | N20: 0 | O20: 0
A22: plus | B22: =SUMIF(B3:B19,">0",B3:B19) -> 0 | C22: 0 | D22: 0 | E22: 0 | F22: 0 | G22: 0 | I22: plus | J22: =SUMIF(J3:J19,">0",J3:J19) -> 0 | K22: 0 | L22: 0 | M22: 0 | N22: 0 | O22: 0 | Q22: plus | R22: =B22+J22 -> 0 | S22: 0 | T22: 0 | U22: 0 | V22: 0 | W22: 0
A23: minus | B23: =-SUMIF(B3:B19,"<0",B3:B19) -> 0 | C23: 0 | D23: 0 | E23: 0 | F23: 0 | G23: 0 | I23: minus | J23: =-SUMIF(J3:J19,"<0",J3:J19) -> 0 | K23: 0 | L23: 0 | M23: 0 | N23: 0 | O23: 0 | Q23: minus | R23: 0 | S23: 0 | T23: 0 | U23: 0 | V23: 0 | W23: 0

Sheet Übersicht
B2: Herbst | C2: Punkte einzeln | L2: Punkte kumulativ | U2: Rang einzeln | AB2: Rang kumulativ | AI2: Differenz zum Ersten | AP2: Herbst | AQ2: =Parameter!$C$1 -> MA | AR2: =Parameter!$D$1 -> MN | AS2: =Parameter!$E$1 -> AH | AT2: =Parameter!$F$1 -> KS | AU2: =Parameter!$G$1 -> LM | AV2: =Parameter!$H$1 -> EN
C3: =Parameter!$C$1 -> MA | D3: =Parameter!$D$1 -> MN | E3: =Parameter!$E$1 -> AH | F3: =Parameter!$F$1 -> KS | G3: =Parameter!$G$1 -> LM | H3: =Parameter!$H$1 -> EN | I3: Max | L3: =Parameter!$C$1 -> MA | M3: =Parameter!$D$1 -> MN | N3: =Parameter!$E$1 -> AH | O3: =Parameter!$F$1 -> KS | P3: =Parameter!$G$1 -> LM | Q3: =Parameter!$H$1 -> EN | R3: Max | U3: =Parameter!$C$1 -> MA | V3: =Parameter!$D$1 -> MN | W3: =Parameter!$E$1 -> AH | X3: =Parameter!$F$1 -> KS | Y3: =Parameter!$G$1 -> LM | Z3: =Parameter!$H$1 -> EN | AB3: =Parameter!$C$1 -> MA | AC3: =Parameter!$D$1 -> MN | AD3: =Parameter!$E$1 -> AH | AE3: =Parameter!$F$1 -> KS | AF3: =Parameter!$G$1 -> LM | AG3: =Parameter!$H$1 -> EN | AI3: =Parameter!$C$1 -> MA | AJ3: =Parameter!$D$1 -> MN | AK3: =Parameter!$E$1 -> AH | AL3: =Parameter!$F$1 -> KS | AM3: =Parameter!$G$1 -> LM | AN3: =Parameter!$H$1 -> EN | AP3: Rang | AQ3: =IF(C4>0,RANK(C21,$C$21:$H$21),"") -> 
B4: 1 | C4: 0 | D4: 0 | E4: 0 | F4: 0 | G4: 0 | H4: 0 | I4: =MAX(C4:H4) -> 0 | L4: =IF($I4=0,0,ROUND(SUM(C$4:C4),1)) -> 0 | M4: =IF($I4=0,0,ROUND(SUM(D$4:D4),1)) -> 0 | N4: =IF($I4=0,0,ROUND(SUM(E$4:E4),1)) -> 0 | O4: =IF($I4=0,0,ROUND(SUM(F$4:F4),1)) -> 0 | P4: =IF($I4=0,0,ROUND(SUM(G$4:G4),1)) -> 0 | Q4: =IF($I4=0,0,ROUND(SUM(H$4:H4),1)) -> 0 | R4: =MAX(L4:Q4) -> 0 | U4: =IF($I4>0,RANK(C4,$C4:$H4),"") ->  | AB4: =IF($R4>0,RANK(L4,$L4:$Q4),"") ->  | AI4: =L4-$R4 -> 0 | AJ4: 0 | AK4: 0 | AL4: 0 | AM4: 0 | AN4: 0 | AP4: Einsatz € | AQ4: =Parameter!C2 -> 25 | AR4: =Parameter!D2 -> 25 | AS4: =Parameter!E2 -> 25 | AT4: =Parameter!F2 -> 25 | AU4: =Parameter!G2 -> 0 | AV4: =Parameter!H2 -> 0
B5: 2 | C5: 0 | D5: 0 | E5: 0 | F5: 0 | G5: 0 | H5: 0 | I5: =MAX(C5:H5) -> 0 | L5: =IF($I5=0,0,ROUND(SUM(C$4:C5),1)) -> 0 | M5: =IF($I5=0,0,ROUND(SUM(D$4:D5),1)) -> 0 | N5: =IF($I5=0,0,ROUND(SUM(E$4:E5),1)) -> 0 | O5: =IF($I5=0,0,ROUND(SUM(F$4:F5),1)) -> 0 | P5: =IF($I5=0,0,ROUND(SUM(G$4:G5),1)) -> 0 | Q5: =IF($I5=0,0,ROUND(SUM(H$4:H5),1)) -> 0 | R5: =MAX(L5:Q5) -> 0 | U5: =IF($I5>0,RANK(C5,$C5:$H5),"") ->  | V5: =IF($I5>0,RANK(D5,$C5:$H5),"") ->  | W5: =IF($I5>0,RANK(E5,$C5:$H5),"") ->  | X5: =IF($I5>0,RANK(F5,$C5:$H5),"") ->  | Y5: =IF($I5>0,RANK(G5,$C5:$H5),"") ->  | Z5: =IF($I5>0,RANK(H5,$C5:$H5),"") ->  | AB5: =IF($R5>0,RANK(L5,$L5:$Q5),"") ->  | AC5: =IF($R5>0,RANK(M5,$L5:$Q5),"") ->  | AD5: =IF($R5>0,RANK(N5,$L5:$Q5),"") ->  | AE5: =IF($R5>0,RANK(O5,$L5:$Q5),"") ->  | AF5: =IF($R5>0,RANK(P5,$L5:$Q5),"") ->  | AG5: =IF($R5>0,RANK(Q5,$L5:$Q5),"") ->  | AI5: =L5-$R5 -> 0 | AJ5: =M5-$R5 -> 0 | AK5: =N5-$R5 -> 0 | AL5: =O5-$R5 -> 0 | AM5: =P5-$R5 -> 0 | AN5: =Q5-$R5 -> 0 | AP5: Anteil € | AQ5: =IF(C4>0,SUM($AQ4:$AV4)*INDEX(Parameter!$B$8:$B$13,Übersicht!AQ3,1),AQ4) -> 25 | AR5: =IF(D4>0,SUM($AQ4:$AV4)*INDEX(Parameter!$B$8:$B$13,Übersicht!AR3,1),AR4) -> 25 | AS5: =IF(E4>0,SUM($AQ4:$AV4)*INDEX(Parameter!$B$8:$B$13,Übersicht!AS3,1),AS4) -> 25 | AT5: =IF(F4>0,SUM($AQ4:$AV4)*INDEX(Parameter!$B$8:$B$13,Übersicht!AT3,1),AT4) -> 25 | AU5: =IF(G4>0,SUM($AQ4:$AV4)*INDEX(Parameter!$B$8:$B$13,Übersicht!AU3,1),AU4) -> 0 | AV5: =IF(H4>0,SUM($AQ4:$AV4)*INDEX(Parameter!$B$8:$B$13,Übersicht!AV3,1),AV4) -> 0
B6: 3 | C6: 0 | D6: 0 | E6: 0 | F6: 0 | G6: 0 | H6: 0 | I6: 0 | L6: =IF($I6=0,0,ROUND(SUM(C$4:C6),1)) -> 0 | M6: =IF($I6=0,0,ROUND(SUM(D$4:D6),1)) -> 0 | N6: =IF($I6=0,0,ROUND(SUM(E$4:E6),1)) -> 0 | O6: =IF($I6=0,0,ROUND(SUM(F$4:F6),1)) -> 0 | P6: =IF($I6=0,0,ROUND(SUM(G$4:G6),1)) -> 0 | Q6: =IF($I6=0,0,ROUND(SUM(H$4:H6),1)) -> 0 | R6: 0 | AI6: 0 | AJ6: 0 | AK6: 0 | AL6: 0 | AM6: 0 | AN6: 0 | AP6: Gewinn € | AQ6: =AQ5-AQ4 -> 0 | AR6: 0 | AS6: 0 | AT6: 0 | AU6: 0 | AV6: 0
B7: 4 | C7: 0 | D7: 0 | E7: 0 | F7: 0 | G7: 0 | H7: 0 | I7: 0 | L7: =IF($I7=0,0,ROUND(SUM(C$4:C7),1)) -> 0 | M7: =IF($I7=0,0,ROUND(SUM(D$4:D7),1)) -> 0 | N7: =IF($I7=0,0,ROUND(SUM(E$4:E7),1)) -> 0 | O7: =IF($I7=0,0,ROUND(SUM(F$4:F7),1)) -> 0 | P7: =IF($I7=0,0,ROUND(SUM(G$4:G7),1)) -> 0 | Q7: =IF($I7=0,0,ROUND(SUM(H$4:H7),1)) -> 0 | R7: 0 | AI7: 0 | AJ7: 0 | AK7: 0 | AL7: 0 | AM7: 0 | AN7: 0 | AP7: Siege | AQ7: =SUMIF(U4:U20,"=1",U4:U20) -> 0 | AR7: 0 | AS7: 0 | AT7: 0 | AU7: 0 | AV7: 0
B8: 5 | C8: 0 | D8: 0 | E8: 0 | F8: 0 | G8: 0 | H8: 0 | I8: 0 | L8: =IF($I8=0,0,ROUND(SUM(C$4:C8),1)) -> 0 | M8: =IF($I8=0,0,ROUND(SUM(D$4:D8),1)) -> 0 | N8: =IF($I8=0,0,ROUND(SUM(E$4:E8),1)) -> 0 | O8: =IF($I8=0,0,ROUND(SUM(F$4:F8),1)) -> 0 | P8: =IF($I8=0,0,ROUND(SUM(G$4:G8),1)) -> 0 | Q8: =IF($I8=0,0,ROUND(SUM(H$4:H8),1)) -> 0 | R8: 0 | AI8: 0 | AJ8: 0 | AK8: 0 | AL8: 0 | AM8: 0 | AN8: 0 | AP8: Seidl | AQ8: =Seidl!B20 -> 0 | AR8: =Seidl!C20 -> 0 | AS8: =Seidl!D20 -> 0 | AT8: =Seidl!E20 -> 0 | AU8: =Seidl!F20 -> 0 | AV8: =Seidl!G20 -> 0
B9: 6 | C9: 0 | D9: 0 | E9: 0 | F9: 0 | G9: 0 | H9: 0 | I9: 0 | L9: =IF($I9=0,0,ROUND(SUM(C$4:C9),1)) -> 0 | M9: =IF($I9=0,0,ROUND(SUM(D$4:D9),1)) -> 0 | N9: =IF($I9=0,0,ROUND(SUM(E$4:E9),1)) -> 0 | O9: =IF($I9=0,0,ROUND(SUM(F$4:F9),1)) -> 0 | P9: =IF($I9=0,0,ROUND(SUM(G$4:G9),1)) -> 0 | Q9: =IF($I9=0,0,ROUND(SUM(H$4:H9),1)) -> 0 | R9: 0 | AI9: 0 | AJ9: 0 | AK9: 0 | AL9: 0 | AM9: 0 | AN9: 0 | AP9: Seidl € | AQ9: =AQ8*Parameter!$B$16 -> 0 | AR9: =AR8*Parameter!$B$16 -> 0 | AS9: =AS8*Parameter!$B$16 -> 0 | AT9: =AT8*Parameter!$B$16 -> 0 | AU9: =AU8*Parameter!$B$16 -> 0 | AV9: =AV8*Parameter!$B$16 -> 0
B10: 7 | C10: 0 | D10: 0 | E10: 0 | F10: 0 | G10: 0 | H10: 0 | I10: 0 | L10: =IF($I10=0,0,ROUND(SUM(C$4:C10),1)) -> 0 | M10: =IF($I10=0,0,ROUND(SUM(D$4:D10),1)) -> 0 | N10: =IF($I10=0,0,ROUND(SUM(E$4:E10),1)) -> 0 | O10: =IF($I10=0,0,ROUND(SUM(F$4:F10),1)) -> 0 | P10: =IF($I10=0,0,ROUND(SUM(G$4:G10),1)) -> 0 | Q10: =IF($I10=0,0,ROUND(SUM(H$4:H10),1)) -> 0 | R10: 0 | AI10: 0 | AJ10: 0 | AK10: 0 | AL10: 0 | AM10: 0 | AN10: 0 | AQ10: =RANK(AQ9,$AQ9:$AT9) -> 1 | AR10: =RANK(AR9,$AQ9:$AT9) -> 1 | AS10: =RANK(AS9,$AQ9:$AT9) -> 1 | AT10: =RANK(AT9,$AQ9:$AT9) -> 1 | AU10: 0 | AV10: 0
B11: 8 | C11: 0 | D11: 0 | E11: 0 | F11: 0 | G11: 0 | H11: 0 | I11: 0 | L11: =IF($I11=0,0,ROUND(SUM(C$4:C11),1)) -> 0 | M11: =IF($I11=0,0,ROUND(SUM(D$4:D11),1)) -> 0 | N11: =IF($I11=0,0,ROUND(SUM(E$4:E11),1)) -> 0 | O11: =IF($I11=0,0,ROUND(SUM(F$4:F11),1)) -> 0 | P11: =IF($I11=0,0,ROUND(SUM(G$4:G11),1)) -> 0 | Q11: =IF($I11=0,0,ROUND(SUM(H$4:H11),1)) -> 0 | R11: 0 | X11: =IF($I11>0,RANK(F11,$C11:$H11),"") ->  | AI11: 0 | AJ11: 0 | AK11: 0 | AL11: 0 | AM11: 0 | AN11: 0 | AP11: Herbst € | AQ11: =AQ6+AQ9 -> 0 | AR11: 0 | AS11: 0 | AT11: 0 | AU11: 0 | AV11: 0
B12: 9 | C12: 0 | D12: 0 | E12: 0 | F12: 0 | G12: 0 | H12: 0 | I12: 0 | L12: =IF($I12=0,0,ROUND(SUM(C$4:C12),1)) -> 0 | M12: =IF($I12=0,0,ROUND(SUM(D$4:D12),1)) -> 0 | N12: =IF($I12=0,0,ROUND(SUM(E$4:E12),1)) -> 0 | O12: =IF($I12=0,0,ROUND(SUM(F$4:F12),1)) -> 0 | P12: =IF($I12=0,0,ROUND(SUM(G$4:G12),1)) -> 0 | Q12: =IF($I12=0,0,ROUND(SUM(H$4:H12),1)) -> 0 | R12: 0 | AI12: 0 | AJ12: 0 | AK12: 0 | AL12: 0 | AM12: 0 | AN12: 0 | AQ12: =IF(AQ4>0,RANK(AQ11,$AQ11:$AT11),0) -> 1 | AR12: 1 | AS12: 1 | AT12: 1 | AU12: 0 | AV12: 0
B13: 10 | C13: 0 | D13: 0 | E13: 0 | F13: 0 | G13: 0 | H13: 0 | I13: 0 | L13: =IF($I13=0,0,ROUND(SUM(C$4:C13),1)) -> 0 | M13: =IF($I13=0,0,ROUND(SUM(D$4:D13),1)) -> 0 | N13: =IF($I13=0,0,ROUND(SUM(E$4:E13),1)) -> 0 | O13: =IF($I13=0,0,ROUND(SUM(F$4:F13),1)) -> 0 | P13: =IF($I13=0,0,ROUND(SUM(G$4:G13),1)) -> 0 | Q13: =IF($I13=0,0,ROUND(SUM(H$4:H13),1)) -> 0 | R13: 0 | AI13: 0 | AJ13: 0 | AK13: 0 | AL13: 0 | AM13: 0 | AN13: 0
B14: 11 | C14: 0 | D14: 0 | E14: 0 | F14: 0 | G14: 0 | H14: 0 | I14: 0 | L14: =IF($I14=0,0,ROUND(SUM(C$4:C14),1)) -> 0 | M14: =IF($I14=0,0,ROUND(SUM(D$4:D14),1)) -> 0 | N14: =IF($I14=0,0,ROUND(SUM(E$4:E14),1)) -> 0 | O14: =IF($I14=0,0,ROUND(SUM(F$4:F14),1)) -> 0 | P14: =IF($I14=0,0,ROUND(SUM(G$4:G14),1)) -> 0 | Q14: =IF($I14=0,0,ROUND(SUM(H$4:H14),1)) -> 0 | R14: 0 | AI14: 0 | AJ14: 0 | AK14: 0 | AL14: 0 | AM14: 0 | AN14: 0
B15: 12 | C15: 0 | D15: 0 | E15: 0 | F15: 0 | G15: 0 | H15: 0 | I15: 0 | L15: =IF($I15=0,0,ROUND(SUM(C$4:C15),1)) -> 0 | M15: =IF($I15=0,0,ROUND(SUM(D$4:D15),1)) -> 0 | N15: =IF($I15=0,0,ROUND(SUM(E$4:E15),1)) -> 0 | O15: =IF($I15=0,0,ROUND(SUM(F$4:F15),1)) -> 0 | P15: =IF($I15=0,0,ROUND(SUM(G$4:G15),1)) -> 0 | Q15: =IF($I15=0,0,ROUND(SUM(H$4:H15),1)) -> 0 | R15: 0 | AI15: 0 | AJ15: 0 | AK15: 0 | AL15: 0 | AM15: 0 | AN15: 0 | AQ15: Maximale Punkte
B16: 13 | C16: 0 | D16: 0 | E16: 0 | F16: 0 | G16: 0 | H16: 0 | I16: 0 | L16: =IF($I16=0,0,ROUND(SUM(C$4:C16),1)) -> 0 | M16: =IF($I16=0,0,ROUND(SUM(D$4:D16),1)) -> 0 | N16: =IF($I16=0,0,ROUND(SUM(E$4:E16),1)) -> 0 | O16: =IF($I16=0,0,ROUND(SUM(F$4:F16),1)) -> 0 | P16: =IF($I16=0,0,ROUND(SUM(G$4:G16),1)) -> 0 | Q16: =IF($I16=0,0,ROUND(SUM(H$4:H16),1)) -> 0 | R16: 0 | AI16: 0 | AJ16: 0 | AK16: 0 | AL16: 0 | AM16: 0 | AN16: 0 | AQ16: =Parameter!$C$1 -> MA | AR16: =Parameter!$D$1 -> MN | AS16: =Parameter!$E$1 -> AH | AT16: =Parameter!$F$1 -> KS | AU16: =Parameter!$G$1 -> LM | AV16: =Parameter!$H$1 -> EN
B17: 14 | C17: 0 | D17: 0 | E17: 0 | F17: 0 | G17: 0 | H17: 0 | I17: 0 | L17: =IF($I17=0,0,ROUND(SUM(C$4:C17),1)) -> 0 | M17: =IF($I17=0,0,ROUND(SUM(D$4:D17),1)) -> 0 | N17: =IF($I17=0,0,ROUND(SUM(E$4:E17),1)) -> 0 | O17: =IF($I17=0,0,ROUND(SUM(F$4:F17),1)) -> 0 | P17: =IF($I17=0,0,ROUND(SUM(G$4:G17),1)) -> 0 | Q17: =IF($I17=0,0,ROUND(SUM(H$4:H17),1)) -> 0 | R17: 0 | AI17: 0 | AJ17: 0 | AK17: 0 | AL17: 0 | AM17: 0 | AN17: 0 | AQ17: =MAX(C4:C20) -> 0 | AR17: 0 | AS17: 0 | AT17: 0 | AU17: 0 | AV17: 0
B18: 15 | C18: 0 | D18: 0 | E18: 0 | F18: 0 | G18: 0 | H18: 0 | I18: 0 | L18: =IF($I18=0,0,ROUND(SUM(C$4:C18),1)) -> 0 | M18: =IF($I18=0,0,ROUND(SUM(D$4:D18),1)) -> 0 | N18: =IF($I18=0,0,ROUND(SUM(E$4:E18),1)) -> 0 | O18: =IF($I18=0,0,ROUND(SUM(F$4:F18),1)) -> 0 | P18: =IF($I18=0,0,ROUND(SUM(G$4:G18),1)) -> 0 | Q18: =IF($I18=0,0,ROUND(SUM(H$4:H18),1)) -> 0 | R18: 0 | AI18: 0 | AJ18: 0 | AK18: 0 | AL18: 0 | AM18: 0 | AN18: 0 | AQ18: Minimale Punkte
B19: 16 | C19: 0 | D19: 0 | E19: 0 | F19: 0 | G19: 0 | H19: 0 | I19: 0 | L19: =IF($I19=0,0,ROUND(SUM(C$4:C19),1)) -> 0 | M19: =IF($I19=0,0,ROUND(SUM(D$4:D19),1)) -> 0 | N19: =IF($I19=0,0,ROUND(SUM(E$4:E19),1)) -> 0 | O19: =IF($I19=0,0,ROUND(SUM(F$4:F19),1)) -> 0 | P19: =IF($I19=0,0,ROUND(SUM(G$4:G19),1)) -> 0 | Q19: =IF($I19=0,0,ROUND(SUM(H$4:H19),1)) -> 0 | R19: 0 | AI19: 0 | AJ19: 0 | AK19: 0 | AL19: 0 | AM19: 0 | AN19: 0 | AQ19: =Parameter!$C$1 -> MA | AR19: =Parameter!$D$1 -> MN | AS19: =Parameter!$E$1 -> AH | AT19: =Parameter!$F$1 -> KS | AU19: =Parameter!$G$1 -> LM | AV19: =Parameter!$H$1 -> EN
B20: 17 | C20: 0 | D20: 0 | E20: 0 | F20: 0 | G20: 0 | H20: 0 | I20: 0 | L20: =IF($I20=0,0,ROUND(SUM(C$4:C20),1)) -> 0 | M20: =IF($I20=0,0,ROUND(SUM(D$4:D20),1)) -> 0 | N20: =IF($I20=0,0,ROUND(SUM(E$4:E20),1)) -> 0 | O20: =IF($I20=0,0,ROUND(SUM(F$4:F20),1)) -> 0 | P20: =IF($I20=0,0,ROUND(SUM(G$4:G20),1)) -> 0 | Q20: =IF($I20=0,0,ROUND(SUM(H$4:H20),1)) -> 0 | R20: 0 | AI20: 0 | AJ20: 0 | AK20: 0 | AL20: 0 | AM20: 0 | AN20: 0 | AQ20: 0 | AR20: 0 | AS20: 0 | AT20: 0 | AU20: 0 | AV20: 0
B21: Herbst | C21: =ROUND(SUM(C4:C20),1) -> 0 | D21: 0 | E21: 0 | F21: 0 | G21: 0 | H21: 0 | I21: 0 | U21: =SUM(U4:U20)/COUNT(U4:U20) -> 
B24: Frühjahr | C24: Punkte einzeln | L24: Punkte kumulativ | U24: Rang einzeln | AB24: Rang kumulativ | AI24: Differenz zum Ersten | AP24: Frühjahr | AQ24: =Parameter!$C$1 -> MA | AR24: =Parameter!$D$1 -> MN | AS24: =Parameter!$E$1 -> AH | AT24: =Parameter!$F$1 -> KS | AU24: =Parameter!$G$1 -> LM | AV24: =Parameter!$H$1 -> EN
C25: =Parameter!$C$1 -> MA | D25: =Parameter!$D$1 -> MN | E25: =Parameter!$E$1 -> AH | F25: =Parameter!$F$1 -> KS | G25: =Parameter!$G$1 -> LM | H25: =Parameter!$H$1 -> EN | I25: Max | L25: =Parameter!$C$1 -> MA | M25: =Parameter!$D$1 -> MN | N25: =Parameter!$E$1 -> AH | O25: =Parameter!$F$1 -> KS | P25: =Parameter!$G$1 -> LM | Q25: =Parameter!$H$1 -> EN | R25: Max | U25: =Parameter!$C$1 -> MA | V25: =Parameter!$D$1 -> MN | W25: =Parameter!$E$1 -> AH | X25: =Parameter!$F$1 -> KS | Y25: =Parameter!$G$1 -> LM | Z25: =Parameter!$H$1 -> EN | AB25: =Parameter!$C$1 -> MA | AC25: =Parameter!$D$1 -> MN | AD25: =Parameter!$E$1 -> AH | AE25: =Parameter!$F$1 -> KS | AF25: =Parameter!$G$1 -> LM | AG25: =Parameter!$H$1 -> EN | AI25: =Parameter!$C$1 -> MA | AJ25: =Parameter!$D$1 -> MN | AK25: =Parameter!$E$1 -> AH | AL25: =Parameter!$F$1 -> KS | AM25: =Parameter!$G$1 -> LM | AN25: =Parameter!$H$1 -> EN | AP25: Rang | AQ25: =IF(C26>0,RANK(C43,$C$43:$H$43),"") -> 
B26: 18 | C26: 0 | D26: 0 | E26: 0 | F26: 0 | G26: 0 | H26: 0 | I26: =MAX(C26:H26) -> 0 | L26: =IF($I26=0,0,ROUND(SUM(C$26:C26),1)) -> 0 | M26: =IF($I26=0,0,ROUND(SUM(D$26:D26),1)) -> 0 | N26: =IF($I26=0,0,ROUND(SUM(E$26:E26),1)) -> 0 | O26: =IF($I26=0,0,ROUND(SUM(F$26:F26),1)) -> 0 | P26: =IF($I26=0,0,ROUND(SUM(G$26:G26),1)) -> 0 | Q26: =IF($I26=0,0,ROUND(SUM(H$26:H26),1)) -> 0 | R26: =MAX(L26:Q26) -> 0 | U26: =IF($I26>0,RANK(C26,$C26:$H26),"") ->  | V26: =IF($I26>0,RANK(D26,$C26:$H26),"") ->  | W26: =IF($I26>0,RANK(E26,$C26:$H26),"") ->  | X26: =IF($I26>0,RANK(F26,$C26:$H26),"") ->  | Y26: =IF($I26>0,RANK(G26,$C26:$H26),"") ->  | Z26: =IF($I26>0,RANK(H26,$C26:$H26),"") ->  | AB26: =IF($R26>0,RANK(L26,$L26:$Q26),"") ->  | AC26: =IF($R26>0,RANK(M26,$L26:$Q26),"") ->  | AD26: =IF($R26>0,RANK(N26,$L26:$Q26),"") ->  | AE26: =IF($R26>0,RANK(O26,$L26:$Q26),"") ->  | AF26: =IF($R26>0,RANK(P26,$L26:$Q26),"") ->  | AG26: =IF($R26>0,RANK(Q26,$L26:$Q26),"") ->  | AI26: =L26-$R26 -> 0 | AJ26: =M26-$R26 -> 0 | AK26: =N26-$R26 -> 0 | AL26: =O26-$R26 -> 0 | AM26: =P26-$R26 -> 0 | AN26: =Q26-$R26 -> 0 | AP26: Einsatz € | AQ26: =Parameter!C3 -> 25 | AR26: =Parameter!D3 -> 25 | AS26: =Parameter!E3 -> 25 | AT26: =Parameter!F3 -> 25 | AU26: =Parameter!G3 -> 0 | AV26: =Parameter!H3 -> 0
B27: 19 | C27: 0 | D27: 0 | E27: 0 | F27: 0 | G27: 0 | H27: 0 | I27: =MAX(C27:H27) -> 0 | L27: =IF($I27=0,0,ROUND(SUM(C$26:C27),1)) -> 0 | M27: =IF($I27=0,0,ROUND(SUM(D$26:D27),1)) -> 0 | N27: =IF($I27=0,0,ROUND(SUM(E$26:E27),1)) -> 0 | O27: =IF($I27=0,0,ROUND(SUM(F$26:F27),1)) -> 0 | P27: =IF($I27=0,0,ROUND(SUM(G$26:G27),1)) -> 0 | Q27: =IF($I27=0,0,ROUND(SUM(H$26:H27),1)) -> 0 | R27: =MAX(L27:Q27) -> 0 | U27: =IF($I27>0,RANK(C27,$C27:$H27),"") ->  | AB27: =IF($R27>0,RANK(L27,$L27:$Q27),"") ->  | AI27: =L27-$R27 -> 0 | AJ27: 0 | AK27: 0 | AL27: 0 | AM27: 0 | AN27: 0 | AP27: Anteil € | AQ27: =IF(C26>0,SUM($AQ26:$AV26)*INDEX(Parameter!$B$8:$B$13,Übersicht!AQ25,1),AQ26) -> 25 | AR27: =IF(D26>0,SUM($AQ26:$AV26)*INDEX(Parameter!$B$8:$B$13,Übersicht!AR25,1),AR26) -> 25 | AS27: =IF(E26>0,SUM($AQ26:$AV26)*INDEX(Parameter!$B$8:$B$13,Übersicht!AS25,1),AS26) -> 25 | AT27: =IF(F26>0,SUM($AQ26:$AV26)*INDEX(Parameter!$B$8:$B$13,Übersicht!AT25,1),AT26) -> 25 | AU27: =IF(G26>0,SUM($AQ26:$AV26)*INDEX(Parameter!$B$8:$B$13,Übersicht!AU25,1),AU26) -> 0 | AV27: =IF(H26>0,SUM($AQ26:$AV26)*INDEX(Parameter!$B$8:$B$13,Übersicht!AV25,1),AV26) -> 0
B28: 20 | C28: 0 | D28: 0 | E28: 0 | F28: 0 | G28: 0 | H28: 0 | I28: 0 | L28: =IF($I28=0,0,ROUND(SUM(C$26:C28),1)) -> 0 | M28: =IF($I28=0,0,ROUND(SUM(D$26:D28),1)) -> 0 | N28: =IF($I28=0,0,ROUND(SUM(E$26:E28),1)) -> 0 | O28: =IF($I28=0,0,ROUND(SUM(F$26:F28),1)) -> 0 | P28: =IF($I28=0,0,ROUND(SUM(G$26:G28),1)) -> 0 | Q28: =IF($I28=0,0,ROUND(SUM(H$26:H28),1)) -> 0 | R28: 0 | AI28: 0 | AJ28: 0 | AK28: 0 | AL28: 0 | AM28: 0 | AN28: 0 | AP28: Gewinn € | AQ28: =AQ27-AQ26 -> 0 | AR28: 0 | AS28: 0 | AT28: 0 | AU28: 0 | AV28: 0
B29: 21 | C29: 0 | D29: 0 | E29: 0 | F29: 0 | G29: 0 | H29: 0 | I29: 0 | L29: =IF($I29=0,0,ROUND(SUM(C$26:C29),1)) -> 0 | M29: =IF($I29=0,0,ROUND(SUM(D$26:D29),1)) -> 0 | N29: =IF($I29=0,0,ROUND(SUM(E$26:E29),1)) -> 0 | O29: =IF($I29=0,0,ROUND(SUM(F$26:F29),1)) -> 0 | P29: =IF($I29=0,0,ROUND(SUM(G$26:G29),1)) -> 0 | Q29: =IF($I29=0,0,ROUND(SUM(H$26:H29),1)) -> 0 | R29: 0 | AI29: 0 | AJ29: 0 | AK29: 0 | AL29: 0 | AM29: 0 | AN29: 0 | AP29: Siege | AQ29: =SUMIF(U26:U42,"=1",U26:U42) -> 0 | AR29: 0 | AS29: 0 | AT29: 0 | AU29: 0 | AV29: 0
B30: 22 | C30: 0 | D30: 0 | E30: 0 | F30: 0 | G30: 0 | H30: 0 | I30: 0 | L30: =IF($I30=0,0,ROUND(SUM(C$26:C30),1)) -> 0 | M30: =IF($I30=0,0,ROUND(SUM(D$26:D30),1)) -> 0 | N30: =IF($I30=0,0,ROUND(SUM(E$26:E30),1)) -> 0 | O30: =IF($I30=0,0,ROUND(SUM(F$26:F30),1)) -> 0 | P30: =IF($I30=0,0,ROUND(SUM(G$26:G30),1)) -> 0 | Q30: =IF($I30=0,0,ROUND(SUM(H$26:H30),1)) -> 0 | R30: 0 | AI30: 0 | AJ30: 0 | AK30: 0 | AL30: 0 | AM30: 0 | AN30: 0 | AP30: Seidl | AQ30: =Seidl!J20 -> 0 | AR30: =Seidl!K20 -> 0 | AS30: =Seidl!L20 -> 0 | AT30: =Seidl!M20 -> 0 | AU30: =Seidl!N20 -> 0 | AV30: =Seidl!O20 -> 0
B31: 23 | C31: 0 | D31: 0 | E31: 0 | F31: 0 | G31: 0 | H31: 0 | I31: 0 | L31: =IF($I31=0,0,ROUND(SUM(C$26:C31),1)) -> 0 | M31: =IF($I31=0,0,ROUND(SUM(D$26:D31),1)) -> 0 | N31: =IF($I31=0,0,ROUND(SUM(E$26:E31),1)) -> 0 | O31: =IF($I31=0,0,ROUND(SUM(F$26:F31),1)) -> 0 | P31: =IF($I31=0,0,ROUND(SUM(G$26:G31),1)) -> 0 | Q31: =IF($I31=0,0,ROUND(SUM(H$26:H31),1)) -> 0 | R31: 0 | AI31: 0 | AJ31: 0 | AK31: 0 | AL31: 0 | AM31: 0 | AN31: 0 | AP31: Seidl € | AQ31: =AQ30*Parameter!$B$17 -> 0 | AR31: =AR30*Parameter!$B$17 -> 0 | AS31: =AS30*Parameter!$B$17 -> 0 | AT31: =AT30*Parameter!$B$17 -> 0 | AU31: =AU30*Parameter!$B$17 -> 0 | AV31: =AV30*Parameter!$B$17 -> 0
B32: 24 | C32: 0 | D32: 0 | E32: 0 | F32: 0 | G32: 0 | H32: 0 | I32: 0 | L32: =IF($I32=0,0,ROUND(SUM(C$26:C32),1)) -> 0 | M32: =IF($I32=0,0,ROUND(SUM(D$26:D32),1)) -> 0 | N32: =IF($I32=0,0,ROUND(SUM(E$26:E32),1)) -> 0 | O32: =IF($I32=0,0,ROUND(SUM(F$26:F32),1)) -> 0 | P32: =IF($I32=0,0,ROUND(SUM(G$26:G32),1)) -> 0 | Q32: =IF($I32=0,0,ROUND(SUM(H$26:H32),1)) -> 0 | R32: 0 | AI32: 0 | AJ32: 0 | AK32: 0 | AL32: 0 | AM32: 0 | AN32: 0 | AQ32: =RANK(AQ31,$AQ31:$AT31) -> 1 | AR32: =RANK(AR31,$AQ31:$AT31) -> 1 | AS32: =RANK(AS31,$AQ31:$AT31) -> 1 | AT32: =RANK(AT31,$AQ31:$AT31) -> 1 | AU32: 0 | AV32: 0
B33: 25 | C33: 0 | D33: 0 | E33: 0 | F33: 0 | G33: 0 | H33: 0 | I33: 0 | L33: =IF($I33=0,0,ROUND(SUM(C$26:C33),1)) -> 0 | M33: =IF($I33=0,0,ROUND(SUM(D$26:D33),1)) -> 0 | N33: =IF($I33=0,0,ROUND(SUM(E$26:E33),1)) -> 0 | O33: =IF($I33=0,0,ROUND(SUM(F$26:F33),1)) -> 0 | P33: =IF($I33=0,0,ROUND(SUM(G$26:G33),1)) -> 0 | Q33: =IF($I33=0,0,ROUND(SUM(H$26:H33),1)) -> 0 | R33: 0 | AI33: 0 | AJ33: 0 | AK33: 0 | AL33: 0 | AM33: 0 | AN33: 0 | AP33: Frühjahr € | AQ33: =AQ28+AQ31 -> 0 | AR33: 0 | AS33: 0 | AT33: 0 | AU33: 0 | AV33: 0
B34: 26 | C34: 0 | D34: 0 | E34: 0 | F34: 0 | G34: 0 | H34: 0 | I34: 0 | L34: =IF($I34=0,0,ROUND(SUM(C$26:C34),1)) -> 0 | M34: =IF($I34=0,0,ROUND(SUM(D$26:D34),1)) -> 0 | N34: =IF($I34=0,0,ROUND(SUM(E$26:E34),1)) -> 0 | O34: =IF($I34=0,0,ROUND(SUM(F$26:F34),1)) -> 0 | P34: =IF($I34=0,0,ROUND(SUM(G$26:G34),1)) -> 0 | Q34: =IF($I34=0,0,ROUND(SUM(H$26:H34),1)) -> 0 | R34: 0 | AI34: 0 | AJ34: 0 | AK34: 0 | AL34: 0 | AM34: 0 | AN34: 0 | AQ34: =IF(AQ26>0,RANK(AQ33,$AQ33:$AT33),0) -> 1 | AR34: 1 | AS34: 1 | AT34: 1 | AU34: 0 | AV34: 0
B35: 27 | C35: 0 | D35: 0 | E35: 0 | F35: 0 | G35: 0 | H35: 0 | I35: 0 | L35: =IF($I35=0,0,ROUND(SUM(C$26:C35),1)) -> 0 | M35: =IF($I35=0,0,ROUND(SUM(D$26:D35),1)) -> 0 | N35: =IF($I35=0,0,ROUND(SUM(E$26:E35),1)) -> 0 | O35: =IF($I35=0,0,ROUND(SUM(F$26:F35),1)) -> 0 | P35: =IF($I35=0,0,ROUND(SUM(G$26:G35),1)) -> 0 | Q35: =IF($I35=0,0,ROUND(SUM(H$26:H35),1)) -> 0 | R35: 0 | AI35: 0 | AJ35: 0 | AK35: 0 | AL35: 0 | AM35: 0 | AN35: 0 | AP35: H+F | AQ35: =AQ33+AQ11 -> 0 | AR35: =AR33+AR11 -> 0 | AS35: 0 | AT35: 0
B36: 28 | C36: 0 | D36: 0 | E36: 0 | F36: 0 | G36: 0 | H36: 0 | I36: 0 | L36: =IF($I36=0,0,ROUND(SUM(C$26:C36),1)) -> 0 | M36: =IF($I36=0,0,ROUND(SUM(D$26:D36),1)) -> 0 | N36: =IF($I36=0,0,ROUND(SUM(E$26:E36),1)) -> 0 | O36: =IF($I36=0,0,ROUND(SUM(F$26:F36),1)) -> 0 | P36: =IF($I36=0,0,ROUND(SUM(G$26:G36),1)) -> 0 | Q36: =IF($I36=0,0,ROUND(SUM(H$26:H36),1)) -> 0 | R36: 0 | AI36: 0 | AJ36: 0 | AK36: 0 | AL36: 0 | AM36: 0 | AN36: 0
B37: 29 | C37: 0 | D37: 0 | E37: 0 | F37: 0 | G37: 0 | H37: 0 | I37: 0 | L37: =IF($I37=0,0,ROUND(SUM(C$26:C37),1)) -> 0 | M37: =IF($I37=0,0,ROUND(SUM(D$26:D37),1)) -> 0 | N37: =IF($I37=0,0,ROUND(SUM(E$26:E37),1)) -> 0 | O37: =IF($I37=0,0,ROUND(SUM(F$26:F37),1)) -> 0 | P37: =IF($I37=0,0,ROUND(SUM(G$26:G37),1)) -> 0 | Q37: =IF($I37=0,0,ROUND(SUM(H$26:H37),1)) -> 0 | R37: 0 | AI37: 0 | AJ37: 0 | AK37: 0 | AL37: 0 | AM37: 0 | AN37: 0 | AQ37: Maximale Punkte
B38: 30 | C38: 0 | D38: 0 | E38: 0 | F38: 0 | G38: 0 | H38: 0 | I38: 0 | L38: =IF($I38=0,0,ROUND(SUM(C$26:C38),1)) -> 0 | M38: =IF($I38=0,0,ROUND(SUM(D$26:D38),1)) -> 0 | N38: =IF($I38=0,0,ROUND(SUM(E$26:E38),1)) -> 0 | O38: =IF($I38=0,0,ROUND(SUM(F$26:F38),1)) -> 0 | P38: =IF($I38=0,0,ROUND(SUM(G$26:G38),1)) -> 0 | Q38: =IF($I38=0,0,ROUND(SUM(H$26:H38),1)) -> 0 | R38: 0 | AI38: 0 | AJ38: 0 | AK38: 0 | AL38: 0 | AM38: 0 | AN38: 0 | AQ38: =Parameter!$C$1 -> MA | AR38: =Parameter!$D$1 -> MN | AS38: =Parameter!$E$1 -> AH | AT38: =Parameter!$F$1 -> KS | AU38: =Parameter!$G$1 -> LM | AV38: =Parameter!$H$1 -> EN
B39: 31 | C39: 0 | D39: 0 | E39: 0 | F39: 0 | G39: 0 | H39: 0 | I39: 0 | L39: =IF($I39=0,0,ROUND(SUM(C$26:C39),1)) -> 0 | M39: =IF($I39=0,0,ROUND(SUM(D$26:D39),1)) -> 0 | N39: =IF($I39=0,0,ROUND(SUM(E$26:E39),1)) -> 0 | O39: =IF($I39=0,0,ROUND(SUM(F$26:F39),1)) -> 0 | P39: =IF($I39=0,0,ROUND(SUM(G$26:G39),1)) -> 0 | Q39: =IF($I39=0,0,ROUND(SUM(H$26:H39),1)) -> 0 | R39: 0 | AI39: 0 | AJ39: 0 | AK39: 0 | AL39: 0 | AM39: 0 | AN39: 0 | AQ39: =MAX(C26:C42) -> 0 | AR39: 0 | AS39: 0 | AT39: 0 | AU39: 0 | AV39: 0
B40: 32 | C40: 0 | D40: 0 | E40: 0 | F40: 0 | G40: 0 | H40: 0 | I40: 0 | L40: =IF($I40=0,0,ROUND(SUM(C$26:C40),1)) -> 0 | M40: =IF($I40=0,0,ROUND(SUM(D$26:D40),1)) -> 0 | N40: =IF($I40=0,0,ROUND(SUM(E$26:E40),1)) -> 0 | O40: =IF($I40=0,0,ROUND(SUM(F$26:F40),1)) -> 0 | P40: =IF($I40=0,0,ROUND(SUM(G$26:G40),1)) -> 0 | Q40: =IF($I40=0,0,ROUND(SUM(H$26:H40),1)) -> 0 | R40: 0 | AI40: 0 | AJ40: 0 | AK40: 0 | AL40: 0 | AM40: 0 | AN40: 0 | AQ40: Minimale Punkte
B41: 33 | C41: 0 | D41: 0 | E41: 0 | F41: 0 | G41: 0 | H41: 0 | I41: 0 | L41: =IF($I41=0,0,ROUND(SUM(C$26:C41),1)) -> 0 | M41: =IF($I41=0,0,ROUND(SUM(D$26:D41),1)) -> 0 | N41: =IF($I41=0,0,ROUND(SUM(E$26:E41),1)) -> 0 | O41: =IF($I41=0,0,ROUND(SUM(F$26:F41),1)) -> 0 | P41: =IF($I41=0,0,ROUND(SUM(G$26:G41),1)) -> 0 | Q41: =IF($I41=0,0,ROUND(SUM(H$26:H41),1)) -> 0 | R41: 0 | AI41: 0 | AJ41: 0 | AK41: 0 | AL41: 0 | AM41: 0 | AN41: 0 | AQ41: =Parameter!$C$1 -> MA | AR41: =Parameter!$D$1 -> MN | AS41: =Parameter!$E$1 -> AH | AT41: =Parameter!$F$1 -> KS | AU41: =Parameter!$G$1 -> LM | AV41: =Parameter!$H$1 -> EN
B42: 34 | C42: 0 | D42: 0 | E42: 0 | F42: 0 | G42: 0 | H42: 0 | I42: 0 | L42: =IF($I42=0,0,ROUND(SUM(C$26:C42),1)) -> 0 | M42: =IF($I42=0,0,ROUND(SUM(D$26:D42),1)) -> 0 | N42: =IF($I42=0,0,ROUND(SUM(E$26:E42),1)) -> 0 | O42: =IF($I42=0,0,ROUND(SUM(F$26:F42),1)) -> 0 | P42: =IF($I42=0,0,ROUND(SUM(G$26:G42),1)) -> 0 | Q42: =IF($I42=0,0,ROUND(SUM(H$26:H42),1)) -> 0 | R42: 0 | AI42: 0 | AJ42: 0 | AK42: 0 | AL42: 0 | AM42: 0 | AN42: 0 | AQ42: 0 | AR42: 0 | AS42: 0 | AT42: 0 | AU42: 0 | AV42: 0
B43: Frühjahr | C43: =ROUND(SUM(C26:C42),1) -> 0 | D43: 0 | E43: 0 | F43: 0 | G43: 0 | H43: 0 | I43: =MAX(C43:H43) -> 0 | U43: =SUM(U26:U42)/COUNT(U26:U42) -> 
B46: =Parameter!B15 -> 26/27 | C46: Punkte einzeln | L46: Punkte kumulativ | U46: Rang einzeln | AB46: Rang kumulativ | AI46: Differenz zum Ersten | AP46: =Parameter!B15 -> 26/27 | AQ46: =Parameter!$C$1 -> MA | AR46: =Parameter!$D$1 -> MN | AS46: =Parameter!$E$1 -> AH | AT46: =Parameter!$F$1 -> KS | AU46: =Parameter!$G$1 -> LM | AV46: =Parameter!$H$1 -> EN
C47: =Parameter!$C$1 -> MA | D47: =Parameter!$D$1 -> MN | E47: =Parameter!$E$1 -> AH | F47: =Parameter!$F$1 -> KS | G47: =Parameter!$G$1 -> LM | H47: =Parameter!$H$1 -> EN | I47: Max | L47: =Parameter!$C$1 -> MA | M47: =Parameter!$D$1 -> MN | N47: =Parameter!$E$1 -> AH | O47: =Parameter!$F$1 -> KS | P47: =Parameter!$G$1 -> LM | Q47: =Parameter!$H$1 -> EN | R47: Max | U47: =Parameter!$C$1 -> MA | V47: =Parameter!$D$1 -> MN | W47: =Parameter!$E$1 -> AH | X47: =Parameter!$F$1 -> KS | Y47: =Parameter!$G$1 -> LM | Z47: =Parameter!$H$1 -> EN | AB47: =Parameter!$C$1 -> MA | AC47: =Parameter!$D$1 -> MN | AD47: =Parameter!$E$1 -> AH | AE47: =Parameter!$F$1 -> KS | AF47: =Parameter!$G$1 -> LM | AG47: =Parameter!$H$1 -> EN | AI47: =Parameter!$C$1 -> MA | AJ47: =Parameter!$D$1 -> MN | AK47: =Parameter!$E$1 -> AH | AL47: =Parameter!$F$1 -> KS | AM47: =Parameter!$G$1 -> LM | AN47: =Parameter!$H$1 -> EN | AP47: Rang | AQ47: =IF(C48>0,RANK(C82,$C$82:$H$82),"") -> 
B48: 1 | C48: =C4 -> 0 | D48: 0 | E48: 0 | F48: 0 | G48: 0 | H48: 0 | I48: =MAX(C48:H48) -> 0 | L48: =IF($I48=0,0,ROUND(SUM(C$48:C48),1)) -> 0 | M48: =IF($I48=0,0,ROUND(SUM(D$48:D48),1)) -> 0 | N48: =IF($I48=0,0,ROUND(SUM(E$48:E48),1)) -> 0 | O48: =IF($I48=0,0,ROUND(SUM(F$48:F48),1)) -> 0 | P48: =IF($I48=0,0,ROUND(SUM(G$48:G48),1)) -> 0 | Q48: =IF($I48=0,0,ROUND(SUM(H$48:H48),1)) -> 0 | R48: =MAX(L48:Q48) -> 0 | U48: =U4 ->  | V48: =IF($I48>0,RANK(D48,$C48:$H48),"") ->  | W48: =IF($I48>0,RANK(E48,$C48:$H48),"") ->  | X48: =IF($I48>0,RANK(F48,$C48:$H48),"") ->  | Y48: =IF($I48>0,RANK(G48,$C48:$H48),"") ->  | Z48: =IF($I48>0,RANK(H48,$C48:$H48),"") ->  | AB48: =AB4 ->  | AC48: =IF($R48>0,RANK(M48,$L48:$Q48),"") ->  | AD48: =IF($R48>0,RANK(N48,$L48:$Q48),"") ->  | AE48: =IF($R48>0,RANK(O48,$L48:$Q48),"") ->  | AF48: =IF($R48>0,RANK(P48,$L48:$Q48),"") ->  | AG48: =IF($R48>0,RANK(Q48,$L48:$Q48),"") ->  | AI48: =L48-MAX($L48:$Q48) -> 0 | AJ48: =M48-MAX($L48:$Q48) -> 0 | AK48: =N48-MAX($L48:$Q48) -> 0 | AL48: =O48-MAX($L48:$Q48) -> 0 | AM48: =P48-MAX($L48:$Q48) -> 0 | AN48: =Q48-MAX($L48:$Q48) -> 0 | AP48: Einsatz € | AQ48: =Parameter!C4 -> 0 | AR48: =Parameter!D4 -> 0 | AS48: =Parameter!E4 -> 0 | AT48: =Parameter!F4 -> 0 | AU48: =Parameter!G4 -> 0 | AV48: =Parameter!H4 -> 0
B49: 2 | C49: =C5 -> 0 | D49: 0 | E49: 0 | F49: 0 | G49: 0 | H49: 0 | I49: =MAX(C49:H49) -> 0 | L49: =IF($I49=0,0,ROUND(SUM(C$48:C49),1)) -> 0 | M49: =IF($I49=0,0,ROUND(SUM(D$48:D49),1)) -> 0 | N49: =IF($I49=0,0,ROUND(SUM(E$48:E49),1)) -> 0 | O49: =IF($I49=0,0,ROUND(SUM(F$48:F49),1)) -> 0 | P49: =IF($I49=0,0,ROUND(SUM(G$48:G49),1)) -> 0 | Q49: =IF($I49=0,0,ROUND(SUM(H$48:H49),1)) -> 0 | R49: =MAX(L49:Q49) -> 0 | U49: =IF($I49>0,RANK(C49,$C49:$H49),"") ->  | V49: =IF($I49>0,RANK(D49,$C49:$H49),"") ->  | W49: =IF($I49>0,RANK(E49,$C49:$H49),"") ->  | X49: =IF($I49>0,RANK(F49,$C49:$H49),"") ->  | Y49: =IF($I49>0,RANK(G49,$C49:$H49),"") ->  | Z49: =IF($I49>0,RANK(H49,$C49:$H49),"") ->  | AB49: =IF($R49>0,RANK(L49,$L49:$Q49),"") ->  | AC49: =IF($R49>0,RANK(M49,$L49:$Q49),"") ->  | AD49: =IF($R49>0,RANK(N49,$L49:$Q49),"") ->  | AE49: =IF($R49>0,RANK(O49,$L49:$Q49),"") ->  | AF49: =IF($R49>0,RANK(P49,$L49:$Q49),"") ->  | AG49: =IF($R49>0,RANK(Q49,$L49:$Q49),"") ->  | AI49: 0 | AJ49: 0 | AK49: 0 | AL49: 0 | AM49: 0 | AN49: 0 | AP49: Anteil € | AQ49: =IF(C48>0,SUM($AQ48:$AV48)*INDEX(Parameter!$B$8:$B$13,Übersicht!AQ47,1),AQ48) -> 0 | AR49: =IF(D48>0,SUM($AQ48:$AV48)*INDEX(Parameter!$B$8:$B$13,Übersicht!AR47,1),AR48) -> 0 | AS49: =IF(E48>0,SUM($AQ48:$AV48)*INDEX(Parameter!$B$8:$B$13,Übersicht!AS47,1),AS48) -> 0 | AT49: =IF(F48>0,SUM($AQ48:$AV48)*INDEX(Parameter!$B$8:$B$13,Übersicht!AT47,1),AT48) -> 0 | AU49: =IF(G48>0,SUM($AQ48:$AV48)*INDEX(Parameter!$B$8:$B$13,Übersicht!AU47,1),AU48) -> 0 | AV49: =IF(H48>0,SUM($AQ48:$AV48)*INDEX(Parameter!$B$8:$B$13,Übersicht!AV47,1),AV48) -> 0
B50: 3 | C50: =C6 -> 0 | D50: 0 | E50: 0 | F50: 0 | G50: 0 | H50: 0 | I50: 0 | L50: =IF($I50=0,0,ROUND(SUM(C$48:C50),1)) -> 0 | M50: =IF($I50=0,0,ROUND(SUM(D$48:D50),1)) -> 0 | N50: =IF($I50=0,0,ROUND(SUM(E$48:E50),1)) -> 0 | O50: =IF($I50=0,0,ROUND(SUM(F$48:F50),1)) -> 0 | P50: =IF($I50=0,0,ROUND(SUM(G$48:G50),1)) -> 0 | Q50: =IF($I50=0,0,ROUND(SUM(H$48:H50),1)) -> 0 | R50: 0 | AI50: 0 | AJ50: 0 | AK50: 0 | AL50: 0 | AM50: 0 | AN50: 0 | AP50: Gewinn € | AQ50: =AQ49-AQ48 -> 0 | AR50: 0 | AS50: 0 | AT50: 0 | AU50: 0 | AV50: 0
B51: 4 | C51: =C7 -> 0 | D51: 0 | E51: 0 | F51: 0 | G51: 0 | H51: 0 | I51: 0 | L51: =IF($I51=0,0,ROUND(SUM(C$48:C51),1)) -> 0 | M51: =IF($I51=0,0,ROUND(SUM(D$48:D51),1)) -> 0 | N51: =IF($I51=0,0,ROUND(SUM(E$48:E51),1)) -> 0 | O51: =IF($I51=0,0,ROUND(SUM(F$48:F51),1)) -> 0 | P51: =IF($I51=0,0,ROUND(SUM(G$48:G51),1)) -> 0 | Q51: =IF($I51=0,0,ROUND(SUM(H$48:H51),1)) -> 0 | R51: 0 | AI51: 0 | AJ51: 0 | AK51: 0 | AL51: 0 | AM51: 0 | AN51: 0
B52: 5 | C52: =C8 -> 0 | D52: 0 | E52: 0 | F52: 0 | G52: 0 | H52: 0 | I52: 0 | L52: =IF($I52=0,0,ROUND(SUM(C$48:C52),1)) -> 0 | M52: =IF($I52=0,0,ROUND(SUM(D$48:D52),1)) -> 0 | N52: =IF($I52=0,0,ROUND(SUM(E$48:E52),1)) -> 0 | O52: =IF($I52=0,0,ROUND(SUM(F$48:F52),1)) -> 0 | P52: =IF($I52=0,0,ROUND(SUM(G$48:G52),1)) -> 0 | Q52: =IF($I52=0,0,ROUND(SUM(H$48:H52),1)) -> 0 | R52: 0 | AI52: 0 | AJ52: 0 | AK52: 0 | AL52: 0 | AM52: 0 | AN52: 0 | AP52: Herbst € | AQ52: =AQ11 -> 0 | AR52: 0 | AS52: 0 | AT52: 0 | AU52: 0 | AV52: 0
B53: 6 | C53: =C9 -> 0 | D53: 0 | E53: 0 | F53: 0 | G53: 0 | H53: 0 | I53: 0 | L53: =IF($I53=0,0,ROUND(SUM(C$48:C53),1)) -> 0 | M53: =IF($I53=0,0,ROUND(SUM(D$48:D53),1)) -> 0 | N53: =IF($I53=0,0,ROUND(SUM(E$48:E53),1)) -> 0 | O53: =IF($I53=0,0,ROUND(SUM(F$48:F53),1)) -> 0 | P53: =IF($I53=0,0,ROUND(SUM(G$48:G53),1)) -> 0 | Q53: =IF($I53=0,0,ROUND(SUM(H$48:H53),1)) -> 0 | R53: 0 | AI53: 0 | AJ53: 0 | AK53: 0 | AL53: 0 | AM53: 0 | AN53: 0 | AP53: Frühjahr € | AQ53: =AQ33 -> 0 | AR53: 0 | AS53: 0 | AT53: 0 | AU53: 0 | AV53: 0
B54: 7 | C54: =C10 -> 0 | D54: 0 | E54: 0 | F54: 0 | G54: 0 | H54: 0 | I54: 0 | L54: =IF($I54=0,0,ROUND(SUM(C$48:C54),1)) -> 0 | M54: =IF($I54=0,0,ROUND(SUM(D$48:D54),1)) -> 0 | N54: =IF($I54=0,0,ROUND(SUM(E$48:E54),1)) -> 0 | O54: =IF($I54=0,0,ROUND(SUM(F$48:F54),1)) -> 0 | P54: =IF($I54=0,0,ROUND(SUM(G$48:G54),1)) -> 0 | Q54: =IF($I54=0,0,ROUND(SUM(H$48:H54),1)) -> 0 | R54: 0 | AI54: 0 | AJ54: 0 | AK54: 0 | AL54: 0 | AM54: 0 | AN54: 0 | AP54: Jahr € | AQ54: =AQ50 -> 0 | AR54: 0 | AS54: 0 | AT54: 0 | AU54: 0 | AV54: 0
B55: 8 | C55: =C11 -> 0 | D55: 0 | E55: 0 | F55: 0 | G55: 0 | H55: 0 | I55: 0 | L55: =IF($I55=0,0,ROUND(SUM(C$48:C55),1)) -> 0 | M55: =IF($I55=0,0,ROUND(SUM(D$48:D55),1)) -> 0 | N55: =IF($I55=0,0,ROUND(SUM(E$48:E55),1)) -> 0 | O55: =IF($I55=0,0,ROUND(SUM(F$48:F55),1)) -> 0 | P55: =IF($I55=0,0,ROUND(SUM(G$48:G55),1)) -> 0 | Q55: =IF($I55=0,0,ROUND(SUM(H$48:H55),1)) -> 0 | R55: 0 | AI55: 0 | AJ55: 0 | AK55: 0 | AL55: 0 | AM55: 0 | AN55: 0 | AP55: =Parameter!B15&" €" -> 26/27 € | AQ55: =SUM(AQ52:AQ54) -> 0 | AR55: 0 | AS55: 0 | AT55: 0 | AU55: 0 | AV55: 0
B56: 9 | C56: =C12 -> 0 | D56: 0 | E56: 0 | F56: 0 | G56: 0 | H56: 0 | I56: 0 | L56: =IF($I56=0,0,ROUND(SUM(C$48:C56),1)) -> 0 | M56: =IF($I56=0,0,ROUND(SUM(D$48:D56),1)) -> 0 | N56: =IF($I56=0,0,ROUND(SUM(E$48:E56),1)) -> 0 | O56: =IF($I56=0,0,ROUND(SUM(F$48:F56),1)) -> 0 | P56: =IF($I56=0,0,ROUND(SUM(G$48:G56),1)) -> 0 | Q56: =IF($I56=0,0,ROUND(SUM(H$48:H56),1)) -> 0 | R56: 0 | AI56: 0 | AJ56: 0 | AK56: 0 | AL56: 0 | AM56: 0 | AN56: 0
B57: 10 | C57: =C13 -> 0 | D57: 0 | E57: 0 | F57: 0 | G57: 0 | H57: 0 | I57: 0 | L57: =IF($I57=0,0,ROUND(SUM(C$48:C57),1)) -> 0 | M57: =IF($I57=0,0,ROUND(SUM(D$48:D57),1)) -> 0 | N57: =IF($I57=0,0,ROUND(SUM(E$48:E57),1)) -> 0 | O57: =IF($I57=0,0,ROUND(SUM(F$48:F57),1)) -> 0 | P57: =IF($I57=0,0,ROUND(SUM(G$48:G57),1)) -> 0 | Q57: =IF($I57=0,0,ROUND(SUM(H$48:H57),1)) -> 0 | R57: 0 | AI57: 0 | AJ57: 0 | AK57: 0 | AL57: 0 | AM57: 0 | AN57: 0
B58: 11 | C58: =C14 -> 0 | D58: 0 | E58: 0 | F58: 0 | G58: 0 | H58: 0 | I58: 0 | L58: =IF($I58=0,0,ROUND(SUM(C$48:C58),1)) -> 0 | M58: =IF($I58=0,0,ROUND(SUM(D$48:D58),1)) -> 0 | N58: =IF($I58=0,0,ROUND(SUM(E$48:E58),1)) -> 0 | O58: =IF($I58=0,0,ROUND(SUM(F$48:F58),1)) -> 0 | P58: =IF($I58=0,0,ROUND(SUM(G$48:G58),1)) -> 0 | Q58: =IF($I58=0,0,ROUND(SUM(H$48:H58),1)) -> 0 | R58: 0 | AI58: 0 | AJ58: 0 | AK58: 0 | AL58: 0 | AM58: 0 | AN58: 0 | AQ58: Maximale Punkte
B59: 12 | C59: =C15 -> 0 | D59: 0 | E59: 0 | F59: 0 | G59: 0 | H59: 0 | I59: 0 | L59: =IF($I59=0,0,ROUND(SUM(C$48:C59),1)) -> 0 | M59: =IF($I59=0,0,ROUND(SUM(D$48:D59),1)) -> 0 | N59: =IF($I59=0,0,ROUND(SUM(E$48:E59),1)) -> 0 | O59: =IF($I59=0,0,ROUND(SUM(F$48:F59),1)) -> 0 | P59: =IF($I59=0,0,ROUND(SUM(G$48:G59),1)) -> 0 | Q59: =IF($I59=0,0,ROUND(SUM(H$48:H59),1)) -> 0 | R59: 0 | AI59: 0 | AJ59: 0 | AK59: 0 | AL59: 0 | AM59: 0 | AN59: 0 | AQ59: =Parameter!$C$1 -> MA | AR59: =Parameter!$D$1 -> MN | AS59: =Parameter!$E$1 -> AH | AT59: =Parameter!$F$1 -> KS | AU59: =Parameter!$G$1 -> LM | AV59: =Parameter!$H$1 -> EN
B60: 13 | C60: =C16 -> 0 | D60: 0 | E60: 0 | F60: 0 | G60: 0 | H60: 0 | I60: 0 | L60: =IF($I60=0,0,ROUND(SUM(C$48:C60),1)) -> 0 | M60: =IF($I60=0,0,ROUND(SUM(D$48:D60),1)) -> 0 | N60: =IF($I60=0,0,ROUND(SUM(E$48:E60),1)) -> 0 | O60: =IF($I60=0,0,ROUND(SUM(F$48:F60),1)) -> 0 | P60: =IF($I60=0,0,ROUND(SUM(G$48:G60),1)) -> 0 | Q60: =IF($I60=0,0,ROUND(SUM(H$48:H60),1)) -> 0 | R60: 0 | AI60: 0 | AJ60: 0 | AK60: 0 | AL60: 0 | AM60: 0 | AN60: 0 | AQ60: =MAX(C48:C81) -> 0 | AR60: 0 | AS60: 0 | AT60: 0 | AU60: 0 | AV60: 0
B61: 14 | C61: =C17 -> 0 | D61: 0 | E61: =E17 -> 0 | F61: 0 | G61: 0 | H61: 0 | I61: 0 | L61: =IF($I61=0,0,ROUND(SUM(C$48:C61),1)) -> 0 | M61: =IF($I61=0,0,ROUND(SUM(D$48:D61),1)) -> 0 | N61: =IF($I61=0,0,ROUND(SUM(E$48:E61),1)) -> 0 | O61: =IF($I61=0,0,ROUND(SUM(F$48:F61),1)) -> 0 | P61: =IF($I61=0,0,ROUND(SUM(G$48:G61),1)) -> 0 | Q61: =IF($I61=0,0,ROUND(SUM(H$48:H61),1)) -> 0 | R61: 0 | AI61: 0 | AJ61: 0 | AK61: 0 | AL61: 0 | AM61: 0 | AN61: 0 | AQ61: Minimale Punkte
B62: 15 | C62: =C18 -> 0 | D62: 0 | E62: =E18 -> 0 | F62: 0 | G62: 0 | H62: 0 | I62: 0 | L62: =IF($I62=0,0,ROUND(SUM(C$48:C62),1)) -> 0 | M62: =IF($I62=0,0,ROUND(SUM(D$48:D62),1)) -> 0 | N62: =IF($I62=0,0,ROUND(SUM(E$48:E62),1)) -> 0 | O62: =IF($I62=0,0,ROUND(SUM(F$48:F62),1)) -> 0 | P62: =IF($I62=0,0,ROUND(SUM(G$48:G62),1)) -> 0 | Q62: =IF($I62=0,0,ROUND(SUM(H$48:H62),1)) -> 0 | R62: 0 | AI62: 0 | AJ62: 0 | AK62: 0 | AL62: 0 | AM62: 0 | AN62: 0 | AQ62: =Parameter!$C$1 -> MA | AR62: =Parameter!$D$1 -> MN | AS62: =Parameter!$E$1 -> AH | AT62: =Parameter!$F$1 -> KS | AU62: =Parameter!$G$1 -> LM | AV62: =Parameter!$H$1 -> EN
B63: 16 | C63: =C19 -> 0 | D63: 0 | E63: 0 | F63: 0 | G63: 0 | H63: 0 | I63: 0 | L63: =IF($I63=0,0,ROUND(SUM(C$48:C63),1)) -> 0 | M63: =IF($I63=0,0,ROUND(SUM(D$48:D63),1)) -> 0 | N63: =IF($I63=0,0,ROUND(SUM(E$48:E63),1)) -> 0 | O63: =IF($I63=0,0,ROUND(SUM(F$48:F63),1)) -> 0 | P63: =IF($I63=0,0,ROUND(SUM(G$48:G63),1)) -> 0 | Q63: =IF($I63=0,0,ROUND(SUM(H$48:H63),1)) -> 0 | R63: 0 | AI63: 0 | AJ63: 0 | AK63: 0 | AL63: 0 | AM63: 0 | AN63: 0 | AQ63: 0 | AR63: 0 | AS63: 0 | AT63: 0 | AU63: 0 | AV63: 0
B64: 17 | C64: =C20 -> 0 | D64: 0 | E64: 0 | F64: 0 | G64: 0 | H64: 0 | I64: 0 | L64: =IF($I64=0,0,ROUND(SUM(C$48:C64),1)) -> 0 | M64: =IF($I64=0,0,ROUND(SUM(D$48:D64),1)) -> 0 | N64: =IF($I64=0,0,ROUND(SUM(E$48:E64),1)) -> 0 | O64: =IF($I64=0,0,ROUND(SUM(F$48:F64),1)) -> 0 | P64: =IF($I64=0,0,ROUND(SUM(G$48:G64),1)) -> 0 | Q64: =IF($I64=0,0,ROUND(SUM(H$48:H64),1)) -> 0 | R64: 0 | AI64: 0 | AJ64: 0 | AK64: 0 | AL64: 0 | AM64: 0 | AN64: 0
B65: 18 | C65: =C26 -> 0 | D65: 0 | E65: 0 | F65: 0 | G65: 0 | H65: 0 | I65: 0 | L65: =IF($I65=0,0,ROUND(SUM(C$48:C65),1)) -> 0 | M65: =IF($I65=0,0,ROUND(SUM(D$48:D65),1)) -> 0 | N65: =IF($I65=0,0,ROUND(SUM(E$48:E65),1)) -> 0 | O65: =IF($I65=0,0,ROUND(SUM(F$48:F65),1)) -> 0 | P65: =IF($I65=0,0,ROUND(SUM(G$48:G65),1)) -> 0 | Q65: =IF($I65=0,0,ROUND(SUM(H$48:H65),1)) -> 0 | R65: =MAX(L65:Q65) -> 0 | AI65: =L65-MAX($L65:$Q65) -> 0 | AJ65: =M65-MAX($L65:$Q65) -> 0 | AK65: =N65-MAX($L65:$Q65) -> 0 | AL65: =O65-MAX($L65:$Q65) -> 0 | AM65: =P65-MAX($L65:$Q65) -> 0 | AN65: =Q65-MAX($L65:$Q65) -> 0 | AQ65: =RANK(AQ52,$AQ52:$AT52) -> 1 | AR65: 1 | AS65: 1 | AT65: 1 | AU65: 0 | AV65: 0
B66: 19 | C66: =C27 -> 0 | D66: 0 | E66: 0 | F66: 0 | G66: 0 | H66: 0 | I66: 0 | L66: =IF($I66=0,0,ROUND(SUM(C$48:C66),1)) -> 0 | M66: =IF($I66=0,0,ROUND(SUM(D$48:D66),1)) -> 0 | N66: =IF($I66=0,0,ROUND(SUM(E$48:E66),1)) -> 0 | O66: =IF($I66=0,0,ROUND(SUM(F$48:F66),1)) -> 0 | P66: =IF($I66=0,0,ROUND(SUM(G$48:G66),1)) -> 0 | Q66: =IF($I66=0,0,ROUND(SUM(H$48:H66),1)) -> 0 | R66: 0 | AI66: 0 | AJ66: 0 | AK66: 0 | AL66: 0 | AM66: 0 | AN66: 0 | AQ66: 1 | AR66: 1 | AS66: 1 | AT66: 1 | AU66: =RANK(AU53,$AQ53:$AV53) -> 1 | AV66: 1
B67: 20 | C67: =C28 -> 0 | D67: 0 | E67: 0 | F67: 0 | G67: 0 | H67: 0 | I67: 0 | L67: =IF($I67=0,0,ROUND(SUM(C$48:C67),1)) -> 0 | M67: =IF($I67=0,0,ROUND(SUM(D$48:D67),1)) -> 0 | N67: =IF($I67=0,0,ROUND(SUM(E$48:E67),1)) -> 0 | O67: =IF($I67=0,0,ROUND(SUM(F$48:F67),1)) -> 0 | P67: =IF($I67=0,0,ROUND(SUM(G$48:G67),1)) -> 0 | Q67: =IF($I67=0,0,ROUND(SUM(H$48:H67),1)) -> 0 | R67: 0 | AI67: 0 | AJ67: 0 | AK67: 0 | AL67: 0 | AM67: 0 | AN67: 0 | AQ67: 1 | AR67: 1 | AS67: 1 | AT67: 1 | AU67: 1 | AV67: 1
B68: 21 | C68: =C29 -> 0 | D68: 0 | E68: 0 | F68: 0 | G68: 0 | H68: 0 | I68: 0 | L68: =IF($I68=0,0,ROUND(SUM(C$48:C68),1)) -> 0 | M68: =IF($I68=0,0,ROUND(SUM(D$48:D68),1)) -> 0 | N68: =IF($I68=0,0,ROUND(SUM(E$48:E68),1)) -> 0 | O68: =IF($I68=0,0,ROUND(SUM(F$48:F68),1)) -> 0 | P68: =IF($I68=0,0,ROUND(SUM(G$48:G68),1)) -> 0 | Q68: =IF($I68=0,0,ROUND(SUM(H$48:H68),1)) -> 0 | R68: 0 | AI68: 0 | AJ68: 0 | AK68: 0 | AL68: 0 | AM68: 0 | AN68: 0 | AQ68: 1 | AR68: 1 | AS68: 1 | AT68: 1 | AU68: 1 | AV68: 1
B69: 22 | C69: =C30 -> 0 | D69: 0 | E69: 0 | F69: 0 | G69: 0 | H69: 0 | I69: 0 | L69: =IF($I69=0,0,ROUND(SUM(C$48:C69),1)) -> 0 | M69: =IF($I69=0,0,ROUND(SUM(D$48:D69),1)) -> 0 | N69: =IF($I69=0,0,ROUND(SUM(E$48:E69),1)) -> 0 | O69: =IF($I69=0,0,ROUND(SUM(F$48:F69),1)) -> 0 | P69: =IF($I69=0,0,ROUND(SUM(G$48:G69),1)) -> 0 | Q69: =IF($I69=0,0,ROUND(SUM(H$48:H69),1)) -> 0 | R69: 0 | AI69: 0 | AJ69: 0 | AK69: 0 | AL69: 0 | AM69: 0 | AN69: 0
B70: 23 | C70: =C31 -> 0 | D70: 0 | E70: 0 | F70: 0 | G70: 0 | H70: 0 | I70: 0 | L70: =IF($I70=0,0,ROUND(SUM(C$48:C70),1)) -> 0 | M70: =IF($I70=0,0,ROUND(SUM(D$48:D70),1)) -> 0 | N70: =IF($I70=0,0,ROUND(SUM(E$48:E70),1)) -> 0 | O70: =IF($I70=0,0,ROUND(SUM(F$48:F70),1)) -> 0 | P70: =IF($I70=0,0,ROUND(SUM(G$48:G70),1)) -> 0 | Q70: =IF($I70=0,0,ROUND(SUM(H$48:H70),1)) -> 0 | R70: 0 | AI70: 0 | AJ70: 0 | AK70: 0 | AL70: 0 | AM70: 0 | AN70: 0
B71: 24 | C71: =C32 -> 0 | D71: 0 | E71: 0 | F71: 0 | G71: 0 | H71: 0 | I71: 0 | L71: =IF($I71=0,0,ROUND(SUM(C$48:C71),1)) -> 0 | M71: =IF($I71=0,0,ROUND(SUM(D$48:D71),1)) -> 0 | N71: =IF($I71=0,0,ROUND(SUM(E$48:E71),1)) -> 0 | O71: =IF($I71=0,0,ROUND(SUM(F$48:F71),1)) -> 0 | P71: =IF($I71=0,0,ROUND(SUM(G$48:G71),1)) -> 0 | Q71: =IF($I71=0,0,ROUND(SUM(H$48:H71),1)) -> 0 | R71: 0 | AI71: 0 | AJ71: 0 | AK71: 0 | AL71: 0 | AM71: 0 | AN71: 0
B72: 25 | C72: =C33 -> 0 | D72: 0 | E72: 0 | F72: 0 | G72: 0 | H72: 0 | I72: 0 | L72: =IF($I72=0,0,ROUND(SUM(C$48:C72),1)) -> 0 | M72: =IF($I72=0,0,ROUND(SUM(D$48:D72),1)) -> 0 | N72: =IF($I72=0,0,ROUND(SUM(E$48:E72),1)) -> 0 | O72: =IF($I72=0,0,ROUND(SUM(F$48:F72),1)) -> 0 | P72: =IF($I72=0,0,ROUND(SUM(G$48:G72),1)) -> 0 | Q72: =IF($I72=0,0,ROUND(SUM(H$48:H72),1)) -> 0 | R72: 0 | AI72: 0 | AJ72: 0 | AK72: 0 | AL72: 0 | AM72: 0 | AN72: 0 | AP72: Auszahlg. | AQ72: =Parameter!$C$1 -> MA | AR72: =Parameter!$D$1 -> MN | AS72: =Parameter!$E$1 -> AH | AT72: =Parameter!$F$1 -> KS | AU72: =Parameter!$G$1 -> LM | AV72: =Parameter!$H$1 -> EN
B73: 26 | C73: =C34 -> 0 | D73: 0 | E73: 0 | F73: 0 | G73: 0 | H73: 0 | I73: 0 | L73: =IF($I73=0,0,ROUND(SUM(C$48:C73),1)) -> 0 | M73: =IF($I73=0,0,ROUND(SUM(D$48:D73),1)) -> 0 | N73: =IF($I73=0,0,ROUND(SUM(E$48:E73),1)) -> 0 | O73: =IF($I73=0,0,ROUND(SUM(F$48:F73),1)) -> 0 | P73: =IF($I73=0,0,ROUND(SUM(G$48:G73),1)) -> 0 | Q73: =IF($I73=0,0,ROUND(SUM(H$48:H73),1)) -> 0 | R73: 0 | AI73: 0 | AJ73: 0 | AK73: 0 | AL73: 0 | AM73: 0 | AN73: 0 | AP73: Herbst | AQ73: =AQ5 -> 25 | AR73: 25 | AS73: 25 | AT73: 25 | AU73: 0 | AV73: 0
B74: 27 | C74: =C35 -> 0 | D74: 0 | E74: 0 | F74: 0 | G74: 0 | H74: 0 | I74: 0 | L74: =IF($I74=0,0,ROUND(SUM(C$48:C74),1)) -> 0 | M74: =IF($I74=0,0,ROUND(SUM(D$48:D74),1)) -> 0 | N74: =IF($I74=0,0,ROUND(SUM(E$48:E74),1)) -> 0 | O74: =IF($I74=0,0,ROUND(SUM(F$48:F74),1)) -> 0 | P74: =IF($I74=0,0,ROUND(SUM(G$48:G74),1)) -> 0 | Q74: =IF($I74=0,0,ROUND(SUM(H$48:H74),1)) -> 0 | R74: 0 | AI74: 0 | AJ74: 0 | AK74: 0 | AL74: 0 | AM74: 0 | AN74: 0 | AP74: Frühjahr | AQ74: =AQ27 -> 25 | AR74: 25 | AS74: 25 | AT74: 25 | AU74: 0 | AV74: 0
B75: 28 | C75: =C36 -> 0 | D75: 0 | E75: 0 | F75: 0 | G75: 0 | H75: 0 | I75: 0 | L75: =IF($I75=0,0,ROUND(SUM(C$48:C75),1)) -> 0 | M75: =IF($I75=0,0,ROUND(SUM(D$48:D75),1)) -> 0 | N75: =IF($I75=0,0,ROUND(SUM(E$48:E75),1)) -> 0 | O75: =IF($I75=0,0,ROUND(SUM(F$48:F75),1)) -> 0 | P75: =IF($I75=0,0,ROUND(SUM(G$48:G75),1)) -> 0 | Q75: =IF($I75=0,0,ROUND(SUM(H$48:H75),1)) -> 0 | R75: 0 | AI75: 0 | AJ75: 0 | AK75: 0 | AL75: 0 | AM75: 0 | AN75: 0 | AP75: Jahr | AQ75: =AQ49 -> 0 | AR75: =AR49 -> 0 | AS75: 0 | AT75: 0 | AU75: 0 | AV75: 0 | AW75: 0
B76: 29 | C76: =C37 -> 0 | D76: 0 | E76: 0 | F76: 0 | G76: 0 | H76: 0 | I76: 0 | L76: =IF($I76=0,0,ROUND(SUM(C$48:C76),1)) -> 0 | M76: =IF($I76=0,0,ROUND(SUM(D$48:D76),1)) -> 0 | N76: =IF($I76=0,0,ROUND(SUM(E$48:E76),1)) -> 0 | O76: =IF($I76=0,0,ROUND(SUM(F$48:F76),1)) -> 0 | P76: =IF($I76=0,0,ROUND(SUM(G$48:G76),1)) -> 0 | Q76: =IF($I76=0,0,ROUND(SUM(H$48:H76),1)) -> 0 | R76: 0 | AI76: 0 | AJ76: 0 | AK76: 0 | AL76: 0 | AM76: 0 | AN76: 0 | AP76: FrühJ+Jahr | AQ76: =AQ27+AQ49 -> 25 | AR76: 25 | AS76: 25 | AT76: 25 | AU76: 0 | AV76: 0
B77: 30 | C77: =C38 -> 0 | D77: 0 | E77: 0 | F77: 0 | G77: 0 | H77: 0 | I77: 0 | L77: =IF($I77=0,0,ROUND(SUM(C$48:C77),1)) -> 0 | M77: =IF($I77=0,0,ROUND(SUM(D$48:D77),1)) -> 0 | N77: =IF($I77=0,0,ROUND(SUM(E$48:E77),1)) -> 0 | O77: =IF($I77=0,0,ROUND(SUM(F$48:F77),1)) -> 0 | P77: =IF($I77=0,0,ROUND(SUM(G$48:G77),1)) -> 0 | Q77: =IF($I77=0,0,ROUND(SUM(H$48:H77),1)) -> 0 | R77: 0 | AI77: 0 | AJ77: 0 | AK77: 0 | AL77: 0 | AM77: 0 | AN77: 0 | AP77: Gesamt | AQ77: =AQ76+AQ73 -> 50 | AR77: 50 | AS77: 50 | AT77: 50 | AU77: 0 | AV77: 0
B78: 31 | C78: =C39 -> 0 | D78: 0 | E78: 0 | F78: 0 | G78: 0 | H78: 0 | I78: 0 | L78: =IF($I78=0,0,ROUND(SUM(C$48:C78),1)) -> 0 | M78: =IF($I78=0,0,ROUND(SUM(D$48:D78),1)) -> 0 | N78: =IF($I78=0,0,ROUND(SUM(E$48:E78),1)) -> 0 | O78: =IF($I78=0,0,ROUND(SUM(F$48:F78),1)) -> 0 | P78: =IF($I78=0,0,ROUND(SUM(G$48:G78),1)) -> 0 | Q78: =IF($I78=0,0,ROUND(SUM(H$48:H78),1)) -> 0 | R78: 0 | AI78: 0 | AJ78: 0 | AK78: 0 | AL78: 0 | AM78: 0 | AN78: 0 | AQ78: =RANK(AQ73,$AQ73:$AV73) -> 1 | AR78: 1 | AS78: 1 | AT78: 1 | AU78: 5 | AV78: 5
B79: 32 | C79: =C40 -> 0 | D79: 0 | E79: 0 | F79: 0 | G79: 0 | H79: 0 | I79: 0 | L79: =IF($I79=0,0,ROUND(SUM(C$48:C79),1)) -> 0 | M79: =IF($I79=0,0,ROUND(SUM(D$48:D79),1)) -> 0 | N79: =IF($I79=0,0,ROUND(SUM(E$48:E79),1)) -> 0 | O79: =IF($I79=0,0,ROUND(SUM(F$48:F79),1)) -> 0 | P79: =IF($I79=0,0,ROUND(SUM(G$48:G79),1)) -> 0 | Q79: =IF($I79=0,0,ROUND(SUM(H$48:H79),1)) -> 0 | R79: 0 | AI79: 0 | AJ79: 0 | AK79: 0 | AL79: 0 | AM79: 0 | AN79: 0 | AQ79: =RANK(AQ74,$AQ74:$AV74) -> 1 | AR79: 1 | AS79: 1 | AT79: 1 | AU79: 5 | AV79: 5
B80: 33 | C80: =C41 -> 0 | D80: 0 | E80: 0 | F80: 0 | G80: 0 | H80: 0 | I80: 0 | L80: =IF($I80=0,0,ROUND(SUM(C$48:C80),1)) -> 0 | M80: =IF($I80=0,0,ROUND(SUM(D$48:D80),1)) -> 0 | N80: =IF($I80=0,0,ROUND(SUM(E$48:E80),1)) -> 0 | O80: =IF($I80=0,0,ROUND(SUM(F$48:F80),1)) -> 0 | P80: =IF($I80=0,0,ROUND(SUM(G$48:G80),1)) -> 0 | Q80: =IF($I80=0,0,ROUND(SUM(H$48:H80),1)) -> 0 | R80: 0 | AI80: 0 | AJ80: 0 | AK80: 0 | AL80: 0 | AM80: 0 | AN80: 0 | AQ80: =RANK(AQ75,$AQ75:$AV75) -> 1 | AR80: 1 | AS80: 1 | AT80: 1 | AU80: 1 | AV80: 1
B81: 34 | C81: =C42 -> 0 | D81: 0 | E81: 0 | F81: 0 | G81: 0 | H81: 0 | I81: 0 | L81: =IF($I81=0,0,ROUND(SUM(C$48:C81),1)) -> 0 | M81: =IF($I81=0,0,ROUND(SUM(D$48:D81),1)) -> 0 | N81: =IF($I81=0,0,ROUND(SUM(E$48:E81),1)) -> 0 | O81: =IF($I81=0,0,ROUND(SUM(F$48:F81),1)) -> 0 | P81: =IF($I81=0,0,ROUND(SUM(G$48:G81),1)) -> 0 | Q81: =IF($I81=0,0,ROUND(SUM(H$48:H81),1)) -> 0 | R81: 0 | AI81: 0 | AJ81: 0 | AK81: 0 | AL81: 0 | AM81: 0 | AN81: 0 | AQ81: =RANK(AQ76,$AQ76:$AV76) -> 1 | AR81: 1 | AS81: 1 | AT81: 1 | AU81: 5 | AV81: 5
B82: =Parameter!B15 -> 26/27 | C82: =ROUND(SUM(C48:C81),1) -> 0 | D82: 0 | E82: 0 | F82: 0 | G82: 0 | H82: 0 | I82: 0 | U82: =SUM(U48:U81)/COUNT(U48:U81) ->  | AQ82: =RANK(AQ77,$AQ77:$AV77) -> 1 | AR82: 1 | AS82: 1 | AT82: 1 | AU82: 5 | AV82: 5
B84: 1 | C84: =COUNTIF(U$48:U$81,$B84) -> 0 | D84: 0 | E84: 0 | F84: 0 | G84: =COUNTIF(X$48:X$81,$B84) -> 0 | H84: 0 | I84: 0
B85: 2 | C85: 0 | D85: 0 | E85: 0 | F85: 0 | G85: 0 | H85: 0 | I85: 0
B86: 3 | C86: 0 | D86: 0 | E86: 0 | F86: 0 | G86: 0 | H86: 0 | I86: 0
B87: 4 | C87: 0 | D87: 0 | E87: 0 | F87: 0 | G87: 0 | H87: 0 | I87: 0

Sheet Statistik1
B2: =Parameter!B15 -> 26/27 | C2: genaue Treffer | I2: Trend | O2: Nicht getroffen | U2: genau + Trend | AA2: Tordifferenz
B3: Runde | C3: =Parameter!C$1 -> MA | D3: =Parameter!D$1 -> MN | E3: =Parameter!E$1 -> AH | F3: =Parameter!F$1 -> KS | G3: =Parameter!G$1 -> LM | H3: =Parameter!H$1 -> EN | I3: =Parameter!C$1 -> MA | J3: =Parameter!D$1 -> MN | K3: =Parameter!E$1 -> AH | L3: =Parameter!F$1 -> KS | M3: =Parameter!G$1 -> LM | N3: =Parameter!H$1 -> EN | O3: =Parameter!C$1 -> MA | P3: =Parameter!D$1 -> MN | Q3: =Parameter!E$1 -> AH | R3: =Parameter!F$1 -> KS | S3: =Parameter!G$1 -> LM | T3: =Parameter!H$1 -> EN | U3: =Parameter!C$1 -> MA | V3: =Parameter!D$1 -> MN | W3: =Parameter!E$1 -> AH | X3: =Parameter!F$1 -> KS | Y3: =Parameter!G$1 -> LM | Z3: =Parameter!H$1 -> EN | AA3: =Parameter!C$1 -> MA | AB3: =Parameter!D$1 -> MN | AC3: =Parameter!E$1 -> AH | AD3: =Parameter!F$1 -> KS | AE3: =Parameter!G$1 -> LM | AF3: =Parameter!H$1 -> EN
B4: 1
B5: 2
B6: 3
B7: 4
B8: 5 | DU8: 75 | DV8: 75 | DW8: 75 | DX8: 75 | DY8: 75
B9: 6
B10: 7
B11: 8
B12: 9
B13: 10
B14: 11
B15: 12
B16: 13
B17: 14
B18: 15
B19: 16
B20: 17
B21: 18
B22: 19
B23: 20
B24: 21
B25: 22
B26: 23
B27: 24
B28: 25
B29: 26
B30: 27
B31: 28
B32: 29
B33: 30
B34: 31
B35: 32
B36: 33
B37: 34
B38: Ges | C38: =SUM(C4:C37) -> 0 | D38: =SUM(D4:D37) -> 0 | E38: =SUM(E4:E37) -> 0 | F38: =SUM(F4:F37) -> 0 | I38: =SUM(I4:I37) -> 0 | J38: 0 | K38: 0 | L38: 0 | O38: =SUM(O4:O37) -> 0 | P38: =SUM(P4:P37) -> 0 | Q38: =SUM(Q4:Q37) -> 0 | R38: =SUM(R4:R37) -> 0 | U38: 0 | V38: 0 | W38: 0 | X38: 0 | AA38: 0 | AB38: 0 | AC38: 0 | AD38: 0
B39: H | C39: =SUM(C4:C20) -> 0 | D39: =SUM(D4:D20) -> 0 | E39: =SUM(E4:E20) -> 0 | F39: =SUM(F4:F20) -> 0 | I39: =SUM(I4:I20) -> 0 | J39: 0 | K39: 0 | L39: 0 | O39: =SUM(O4:O20) -> 0 | P39: =SUM(P4:P20) -> 0 | Q39: =SUM(Q4:Q20) -> 0 | R39: =SUM(R4:R20) -> 0 | U39: 0 | V39: 0 | W39: 0 | X39: 0 | AA39: 0 | AB39: 0 | AC39: 0 | AD39: 0
B40: F | C40: =SUM(C21:C37) -> 0 | D40: =SUM(D21:D37) -> 0 | E40: =SUM(E21:E37) -> 0 | F40: =SUM(F21:F37) -> 0 | I40: =SUM(I21:I37) -> 0 | J40: 0 | K40: 0 | L40: 0 | O40: =SUM(O21:O37) -> 0 | P40: =SUM(P21:P37) -> 0 | Q40: =SUM(Q21:Q37) -> 0 | R40: =SUM(R21:R37) -> 0 | U40: 0 | V40: 0 | W40: 0 | X40: 0 | AA40: 0 | AB40: 0 | AC40: 0 | AD40: 0
C42: =MAX(C4:F37) -> 0 | I42: =MAX(I4:L37) -> 0 | O42: =MAX(O4:R37) -> 0 | U42: =MAX(U4:X37) -> 0 | AA42: =MAX(AA4:AD37) -> 0

Sheet Statistik2
B2: =Parameter!B15&" Ergebnisse" -> 26/27 Ergebnisse | G2: =Parameter!B15&" getippt" -> 26/27 getippt | R2: Ergebnisse | W2: getippt | AA2: =Parameter!$C$1 -> MA | AB2: =Parameter!$D$1 -> MN | AC2: =Parameter!$E$1 -> AH | AD2: =Parameter!$F$1 -> KS | AE2: =Parameter!$G$1 -> LM | AF2: =Parameter!$H$1 -> EN | AG2: =Parameter!$C$1 -> MA | AH2: =Parameter!$D$1 -> MN | AI2: =Parameter!$E$1 -> AH | AJ2: =Parameter!$F$1 -> KS | AK2: =Parameter!$G$1 -> LM | AL2: =Parameter!$H$1 -> EN
B3: M1 | C3: M2 | D3: Rang | E3: Anz | G3: M1 | H3: M2 | I3: Rang | J3: Anz | K3: =Parameter!C$1 -> MA | L3: =Parameter!D$1 -> MN | M3: =Parameter!E$1 -> AH | N3: =Parameter!F$1 -> KS | O3: =Parameter!G$1 -> LM | P3: =Parameter!H$1 -> EN | R3: Tipp 1 | U3: =T3/T$6 ->  | W3: Tipp 1 | Y3: =SUM(AA3:AF3) -> 0 | Z3: =Y3/Y$6 ->  | AG3: =AA3/AA$6 ->  | AH3: =AB3/AB$6 -> 
B4: 0 | C4: 0 | D4: =IF(E4>0,RANK(E4,E$4:E$103,0),"") ->  | G4: 0 | H4: 0 | I4: =IF(J4>0,RANK(J4,J$4:J$103,0),"") ->  | R4: Tipp 2 | U4: =T4/T$6 ->  | W4: Tipp 2 | Y4: =SUM(AA4:AF4) -> 0 | Z4: =Y4/Y$6 ->  | AG4: =AA4/AA$6 -> 
B5: 0 | C5: 1 | G5: 0 | H5: 1 | R5: Tipp X | U5: =T5/T$6 ->  | W5: Tipp X | Y5: =SUM(AA5:AF5) -> 0 | Z5: =Y5/Y$6 ->  | AG5: =AA5/AA$6 -> 
B6: 0 | C6: 2 | G6: 0 | H6: 2 | R6: Gesamt | T6: =SUM(T3:T5) -> 0 | U6: =T6/T$6 ->  | W6: Gesamt | Y6: =SUM(Y3:Y5) -> 0 | Z6: =Y6/Y$6 ->  | AA6: =SUM(AA3:AA5) -> 0 | AB6: 0 | AC6: 0 | AD6: 0 | AE6: 0 | AF6: 0 | AG6: =AA6/AA$6 -> 
B7: 0 | C7: 3 | G7: 0 | H7: 3
B8: 0 | C8: 4 | G8: 0 | H8: 4 | DD8: 75 | DE8: 75 | DF8: 75 | DG8: 75 | DH8: 75
B9: 0 | C9: 5 | G9: 0 | H9: 5
B10: 0 | C10: 6 | G10: 0 | H10: 6
B11: 0 | C11: 7 | G11: 0 | H11: 7
B12: 0 | C12: 8 | G12: 0 | H12: 8
B13: 0 | C13: 9 | G13: 0 | H13: 9
B14: 1 | C14: 0 | G14: 1 | H14: 0
B15: 1 | C15: 1 | G15: 1 | H15: 1
B16: 1 | C16: 2 | G16: 1 | H16: 2
B17: 1 | C17: 3 | G17: 1 | H17: 3
B18: 1 | C18: 4 | G18: 1 | H18: 4
B19: 1 | C19: 5 | G19: 1 | H19: 5
B20: 1 | C20: 6 | G20: 1 | H20: 6
B21: 1 | C21: 7 | G21: 1 | H21: 7
B22: 1 | C22: 8 | G22: 1 | H22: 8
B23: 1 | C23: 9 | G23: 1 | H23: 9
B24: 2 | C24: 0 | G24: 2 | H24: 0
B25: 2 | C25: 1 | G25: 2 | H25: 1
B26: 2 | C26: 2 | G26: 2 | H26: 2
B27: 2 | C27: 3 | G27: 2 | H27: 3
B28: 2 | C28: 4 | G28: 2 | H28: 4
B29: 2 | C29: 5 | G29: 2 | H29: 5
B30: 2 | C30: 6 | G30: 2 | H30: 6
B31: 2 | C31: 7 | G31: 2 | H31: 7
B32: 2 | C32: 8 | G32: 2 | H32: 8
B33: 2 | C33: 9 | G33: 2 | H33: 9
B34: 3 | C34: 0 | G34: 3 | H34: 0
B35: 3 | C35: 1 | G35: 3 | H35: 1
B36: 3 | C36: 2 | D36: =IF(E36>0,RANK(E36,E$4:E$103,0),"") ->  | G36: 3 | H36: 2 | I36: =IF(J36>0,RANK(J36,J$4:J$103,0),"") -> 
B37: 3 | C37: 3 | G37: 3 | H37: 3
B38: 3 | C38: 4 | G38: 3 | H38: 4
B39: 3 | C39: 5 | G39: 3 | H39: 5
B40: 3 | C40: 6 | G40: 3 | H40: 6
B41: 3 | C41: 7 | G41: 3 | H41: 7
B42: 3 | C42: 8 | G42: 3 | H42: 8
B43: 3 | C43: 9 | G43: 3 | H43: 9
B44: 4 | C44: 0 | G44: 4 | H44: 0
B45: 4 | C45: 1 | G45: 4 | H45: 1
B46: 4 | C46: 2 | G46: 4 | H46: 2
B47: 4 | C47: 3 | G47: 4 | H47: 3
B48: 4 | C48: 4 | G48: 4 | H48: 4
B49: 4 | C49: 5 | G49: 4 | H49: 5
B50: 4 | C50: 6 | G50: 4 | H50: 6
B51: 4 | C51: 7 | G51: 4 | H51: 7
B52: 4 | C52: 8 | G52: 4 | H52: 8
B53: 4 | C53: 9 | G53: 4 | H53: 9
B54: 5 | C54: 0 | G54: 5 | H54: 0
B55: 5 | C55: 1 | G55: 5 | H55: 1
B56: 5 | C56: 2 | G56: 5 | H56: 2
B57: 5 | C57: 3 | G57: 5 | H57: 3
B58: 5 | C58: 4 | G58: 5 | H58: 4
B59: 5 | C59: 5 | G59: 5 | H59: 5
B60: 5 | C60: 6 | G60: 5 | H60: 6
B61: 5 | C61: 7 | G61: 5 | H61: 7
B62: 5 | C62: 8 | G62: 5 | H62: 8
B63: 5 | C63: 9 | G63: 5 | H63: 9
B64: 6 | C64: 0 | G64: 6 | H64: 0
B65: 6 | C65: 1 | G65: 6 | H65: 1
B66: 6 | C66: 2 | G66: 6 | H66: 2
B67: 6 | C67: 3 | G67: 6 | H67: 3
B68: 6 | C68: 4 | D68: =IF(E68>0,RANK(E68,E$4:E$103,0),"") ->  | G68: 6 | H68: 4 | I68: =IF(J68>0,RANK(J68,J$4:J$103,0),"") -> 
B69: 6 | C69: 5 | G69: 6 | H69: 5
B70: 6 | C70: 6 | G70: 6 | H70: 6
B71: 6 | C71: 7 | G71: 6 | H71: 7
B72: 6 | C72: 8 | G72: 6 | H72: 8
B73: 6 | C73: 9 | G73: 6 | H73: 9
B74: 7 | C74: 0 | G74: 7 | H74: 0
B75: 7 | C75: 1 | G75: 7 | H75: 1
B76: 7 | C76: 2 | G76: 7 | H76: 2
B77: 7 | C77: 3 | G77: 7 | H77: 3
B78: 7 | C78: 4 | G78: 7 | H78: 4
B79: 7 | C79: 5 | G79: 7 | H79: 5
B80: 7 | C80: 6 | G80: 7 | H80: 6
B81: 7 | C81: 7 | G81: 7 | H81: 7
B82: 7 | C82: 8 | G82: 7 | H82: 8
B83: 7 | C83: 9 | G83: 7 | H83: 9
B84: 8 | C84: 0 | G84: 8 | H84: 0
B85: 8 | C85: 1 | G85: 8 | H85: 1
B86: 8 | C86: 2 | G86: 8 | H86: 2
B87: 8 | C87: 3 | G87: 8 | H87: 3
B88: 8 | C88: 4 | G88: 8 | H88: 4
B89: 8 | C89: 5 | G89: 8 | H89: 5
B90: 8 | C90: 6 | G90: 8 | H90: 6
B91: 8 | C91: 7 | G91: 8 | H91: 7
B92: 8 | C92: 8 | G92: 8 | H92: 8
B93: 8 | C93: 9 | G93: 8 | H93: 9
B94: 9 | C94: 0 | G94: 9 | H94: 0
B95: 9 | C95: 1 | G95: 9 | H95: 1
B96: 9 | C96: 2 | G96: 9 | H96: 2
B97: 9 | C97: 3 | G97: 9 | H97: 3
B98: 9 | C98: 4 | G98: 9 | H98: 4
B99: 9 | C99: 5 | G99: 9 | H99: 5
B100: 9 | C100: 6 | D100: =IF(E100>0,RANK(E100,E$4:E$103,0),"") ->  | G100: 9 | H100: 6 | I100: =IF(J100>0,RANK(J100,J$4:J$103,0),"") -> 
B101: 9 | C101: 7 | G101: 9 | H101: 7
B102: 9 | C102: 8 | G102: 9 | H102: 8
B103: 9 | C103: 9 | G103: 9 | H103: 9 | I103: ED
E105: =SUM(E4:E103) -> 0

Sheet Statistik3
AU1: ^^
A2: Ränge je Saisonhälfte/Saison | I2: Saison | J2: Einsatz | P2: Auszahlung | V2: Geldgewinn | AB2: Seidl | AH2: Preis | AI2: Seidl-Gewinn | AO2: Gesamtgewinn | AV2: Anzahl Rundensiege
A3: Saison | B3: MA | C3: MN | D3: AH | E3: KS | F3: LM | G3: EN | J3: MA | K3: MN | L3: AH | M3: KS | N3: LM | O3: EN | P3: MA | Q3: MN | R3: AH | S3: KS | T3: LM | U3: EN | V3: MA | W3: MN | X3: AH | Y3: KS | Z3: LM | AA3: EN | AB3: MA | AC3: MN | AD3: AH | AE3: KS | AF3: LM | AG3: EN | AI3: MA | AJ3: MN | AK3: AH | AL3: KS | AM3: LM | AN3: EN | AO3: MA | AP3: MN | AQ3: AH | AR3: KS | AS3: LM | AT3: EN | AV3: MA | AW3: MN | AX3: AH | AY3: KS | AZ3: LM | BA3: EN
A4: Herbst 10/11 (ab 08) | B4: 3 | C4: 2 | D4: - | E4: 1 | F4: - | G4: 4 | I4: =A4 -> Herbst 10/11 (ab 08) | J4: 10 | K4: 10 | M4: 10 | O4: 10 | P4: 4 | Q4: 12 | S4: 24 | U4: 0 | V4: =P4-J4 -> -6 | W4: =Q4-K4 -> 2 | Y4: =S4-M4 -> 14 | AA4: =U4-O4 -> -10 | AB4: 6 | AC4: 6 | AE4: -6 | AG4: -6 | AH4: 2.6 | AI4: =AB4*$AH4 -> 15.6 | AJ4: =AC4*$AH4 -> 15.6 | AL4: =AE4*$AH4 -> -15.6 | AN4: =AG4*$AH4 -> -15.6 | AO4: =V4+AI4 -> 9.6 | AP4: =W4+AJ4 -> 17.6 | AR4: =Y4+AL4 -> -1.6 | AT4: =AA4+AN4 -> -25.6 | AV4: 4 | AW4: 4 | AY4: 1 | BA4: 1
A5: Frühjahr 10/11 | B5: 1 | C5: 2 | D5: - | E5: 4 | F5: - | G5: 3 | I5: =A5 -> Frühjahr 10/11 | J5: 17 | K5: 17 | M5: 17 | O5: 17 | P5: 40.8 | Q5: 20.4 | S5: 0 | U5: 6.8 | V5: 23.8 | W5: 3.4 | Y5: -17 | AA5: -10.2 | AB5: =22-9 -> 13 | AC5: =16-11 -> 5 | AE5: =3-16 -> -13 | AG5: =9-14 -> -5 | AH5: 2.6 | AI5: 33.8 | AJ5: 13 | AL5: -33.8 | AN5: -13 | AO5: 57.6 | AP5: 16.4 | AR5: -50.8 | AT5: -23.2 | AV5: 8 | AW5: 6 | AY5: 1 | BA5: 3
A6: Herbst 11/12 | B6: 1 | C6: 3 | D6: - | E6: 4 | F6: - | G6: 2 | I6: Herbst 11/12 | J6: 17 | K6: 17 | M6: 17 | O6: 17 | P6: 40.8 | Q6: 6.8 | S6: 0 | U6: 20.4 | V6: 23.8 | W6: -10.2 | Y6: -17 | AA6: 3.4 | AB6: -6 | AC6: 6 | AE6: -2 | AG6: 2 | AH6: 2.6 | AI6: -15.6 | AJ6: 15.6 | AL6: -5.2 | AN6: 5.2 | AO6: 8.2 | AP6: 5.4 | AR6: -22.2 | AT6: 8.6 | AV6: 3 | AW6: 6 | AY6: 4 | BA6: 5
A7: Frühjahr 11/12 | B7: 1 | C7: 3 | D7: - | E7: 2 | F7: - | G7: 4 | I7: Frühjahr 11/12 | J7: 17 | K7: 17 | M7: 17 | O7: 17 | P7: 40.8 | Q7: 6.8 | S7: 20.4 | U7: 0 | V7: 23.8 | W7: -10.2 | Y7: 3.4 | AA7: -17 | AB7: 7 | AC7: -5 | AE7: 7 | AG7: -9 | AH7: 2.7 | AI7: 18.9 | AJ7: -13.5 | AL7: 18.9 | AN7: -24.3 | AO7: 42.7 | AP7: -23.7 | AR7: 22.3 | AT7: -41.3 | AV7: 6 | AW7: 3 | AY7: 6 | BA7: 2
A8: Herbst 12/13 | B8: 1 | C8: 2 | D8: - | E8: 4 | F8: 3 | G8: 5 | I8: Herbst 12/13 | J8: 17 | K8: 17 | M8: 17 | N8: 17 | O8: 17 | P8: 51 | Q8: 25.5 | S8: 0 | T8: 8.5 | U8: 0 | V8: 34 | W8: 8.5 | Y8: -17 | Z8: =T8-N8 -> -8.5 | AA8: -17 | AB8: 18 | AC8: 8 | AE8: -17 | AF8: -2 | AG8: -7 | AH8: 2.7 | AI8: 48.6 | AJ8: 21.6 | AL8: -45.9 | AM8: =AF8*$AH8 -> -5.4 | AN8: -18.9 | AO8: 82.6 | AP8: 30.1 | AR8: -62.9 | AS8: =Z8+AM8 -> -13.9 | AT8: -35.9 | AV8: 7 | AW8: 5 | AY8: 0 | AZ8: 3 | BA8: 2 | EG8: 75 | EH8: 75 | EI8: 75 | EJ8: 75 | EK8: 75
A9: Frühjahr 12/13 | B9: 2 | C9: 1 | D9: - | E9: 4 | F9: 5 | G9: 3 | I9: Frühjahr 12/13 | J9: 17 | K9: 17 | M9: 17 | N9: 17 | O9: 17 | P9: 25.5 | Q9: 51 | S9: 0 | T9: 0 | U9: 8.5 | V9: 8.5 | W9: 34 | Y9: -17 | Z9: -17 | AA9: -8.5 | AB9: -13 | AC9: 22 | AE9: -13 | AF9: -3 | AG9: 7 | AH9: 2.8 | AI9: -36.4 | AJ9: 61.6 | AL9: -36.4 | AM9: -8.4 | AN9: 19.6 | AO9: -27.9 | AP9: 95.6 | AR9: -53.4 | AS9: -25.4 | AT9: 11.1 | AV9: 1 | AW9: 8 | AY9: 1 | AZ9: 3 | BA9: 5
A10: Herbst 13/14 | B10: 1 | C10: 4 | D10: - | E10: 2 | F10: 5 | G10: 3 | I10: Herbst 13/14 | J10: 17 | K10: 17 | M10: 17 | N10: 17 | O10: 17 | P10: 51 | Q10: 0 | S10: 25.5 | T10: 0 | U10: 8.5 | V10: 34 | W10: -17 | Y10: 8.5 | Z10: -17 | AA10: -8.5 | AB10: 3 | AC10: -2 | AE10: -2 | AF10: -7 | AG10: 8 | AH10: 2.8 | AI10: 8.4 | AJ10: -5.6 | AL10: -5.6 | AM10: -19.6 | AN10: 22.4 | AO10: 42.4 | AP10: -22.6 | AR10: 2.9 | AS10: -36.6 | AT10: 13.9 | AV10: 4 | AW10: 3 | AY10: 3 | AZ10: 2 | BA10: 5
A11: Frühjahr 13/14 | B11: 1 | C11: 3 | D11: - | E11: 5 | F11: 4 | G11: 2 | I11: Frühjahr 13/14 | J11: 17 | K11: 17 | M11: 17 | N11: 17 | O11: 17 | P11: 51 | Q11: 8.5 | S11: 0 | T11: 0 | U11: 25.5 | V11: 34 | W11: -8.5 | Y11: -17 | Z11: -17 | AA11: 8.5 | AB11: 3 | AC11: -2 | AE11: -2 | AF11: -2 | AG11: 3 | AH11: 2.9 | AI11: 8.7 | AJ11: -5.8 | AL11: -5.8 | AM11: -5.8 | AN11: 8.7 | AO11: 42.7 | AP11: -14.3 | AR11: -22.8 | AS11: -22.8 | AT11: 17.2 | AV11: 4 | AW11: 3 | AY11: 3 | AZ11: 3 | BA11: 4
A12: 13/14 | B12: 1 | C12: 4 | D12: - | E12: 3 | F12: 5 | G12: 2 | I12: 13/14 | J12: 16 | K12: 16 | M12: 16 | N12: 16 | O12: 16 | P12: 48 | Q12: 0 | S12: 8 | T12: 0 | U12: 24 | V12: 32 | W12: -16 | Y12: -8 | Z12: -16 | AA12: 8 | AO12: 32 | AP12: -16 | AR12: -8 | AS12: -16 | AT12: 8
A13: Herbst 14/15 | B13: 1 | C13: 3 | D13: - | E13: 4 | F13: 5 | G13: 2 | I13: Herbst 14/15 | J13: 17 | K13: 17 | M13: 17 | N13: 17 | O13: 17 | P13: 51 | Q13: 8.5 | S13: 0 | T13: 0 | U13: 25.5 | V13: 34 | W13: -8.5 | Y13: -17 | Z13: -17 | AA13: 8.5 | AB13: 16 | AC13: -4 | AE13: 1 | AF13: -9 | AG13: -4 | AH13: 2.9 | AI13: 46.4 | AJ13: -11.6 | AL13: 2.9 | AM13: -26.1 | AN13: -11.6 | AO13: 80.4 | AP13: -20.1 | AR13: -14.1 | AS13: -43.1 | AT13: -3.1 | AV13: 7 | AW13: 3 | AY13: 4 | AZ13: 2 | BA13: 3
A14: Frühjahr 14/15 | B14: 4 | C14: 1 | D14: - | E14: 2 | F14: 5 | G14: 3 | I14: Frühjahr 14/15 | J14: 17 | K14: 17 | M14: 17 | N14: 17 | O14: 17 | P14: 0 | Q14: 51 | S14: 25.5 | T14: 0 | U14: 8.5 | V14: -17 | W14: 34 | Y14: 8.5 | Z14: -17 | AA14: -8.5 | AB14: -7 | AC14: 8 | AE14: 8 | AF14: -12 | AG14: 3 | AH14: 2.9 | AI14: -20.3 | AJ14: 23.2 | AL14: 23.2 | AM14: -34.8 | AN14: 8.7 | AO14: -37.3 | AP14: 57.2 | AR14: 31.7 | AS14: -51.8 | AT14: 0.2 | AV14: 2 | AW14: 5 | AY14: 5 | AZ14: 1 | BA14: 4
A15: 14/15 | B15: 2 | C15: 1 | D15: - | E15: 4 | F15: 5 | G15: 3 | I15: 14/15 | J15: 16 | K15: 16 | M15: 16 | N15: 16 | O15: 16 | P15: 24 | Q15: 48 | S15: 0 | T15: 0 | U15: 8 | V15: 8 | W15: 32 | Y15: -16 | Z15: -16 | AA15: -8 | AO15: 8 | AP15: 32 | AR15: -16 | AS15: -16 | AT15: -8
A16: Herbst 15/16 | B16: 1 | C16: 4 | D16: - | E16: 2 | F16: - | G16: 3 | I16: Herbst 15/16 | J16: 17 | K16: 17 | M16: 17 | O16: 17 | P16: 40.8 | Q16: 0 | S16: 20.4 | U16: 6.8 | V16: 23.8 | W16: -17 | Y16: 3.4 | AA16: -10.2 | AB16: 1 | AC16: -7 | AE16: 9 | AG16: -3 | AH16: 2.9 | AI16: 2.9 | AJ16: -20.3 | AL16: 26.1 | AN16: -8.7 | AO16: 26.7 | AP16: -37.3 | AR16: 29.5 | AT16: -18.9 | AV16: 5 | AW16: 3 | AY16: 7 | BA16: 4
A17: Frühjahr 15/16 | B17: 2 | C17: 3 | D17: - | E17: 1 | F17: - | G17: 4 | I17: Frühjahr 15/16 | J17: 17 | K17: 17 | M17: 17 | O17: 17 | P17: 20.4 | Q17: 6.8 | S17: 40.8 | U17: 0 | V17: 3.4 | W17: -10.2 | Y17: 23.8 | AA17: -17 | AB17: -6 | AC17: -6 | AE17: 6 | AG17: 6 | AH17: 2.9 | AI17: -17.4 | AJ17: -17.4 | AL17: 17.4 | AN17: 17.4 | AO17: -14 | AP17: -27.6 | AR17: 41.2 | AT17: 0.4 | AV17: 3 | AW17: 3 | AY17: 6 | BA17: 6
A18: 15/16 | B18: 2 | C18: 3 | D18: - | E18: 1 | F18: - | G18: 4 | I18: 15/16 | J18: 16 | K18: 16 | M18: 16 | O18: 16 | P18: 19.2 | Q18: 6.4 | S18: 38.4 | U18: 0 | V18: 3.2 | W18: -9.6 | Y18: 22.4 | AA18: -16 | AO18: 3.2 | AP18: -9.6 | AR18: 22.4 | AT18: -16
A19: Herbst 16/17 | B19: 3 | C19: 1 | D19: - | E19: 2 | F19: - | G19: 4 | I19: Herbst 16/17 | J19: 17 | K19: 17 | M19: 17 | O19: 17 | P19: 6.8 | Q19: 40.8 | S19: 20.4 | U19: 0 | V19: -10.2 | W19: 23.8 | Y19: 3.4 | AA19: -17 | AB19: -5 | AC19: 3 | AE19: 3 | AG19: -1 | AH19: 2.9 | AI19: -14.5 | AJ19: 8.7 | AL19: 8.7 | AN19: -2.9 | AO19: -24.7 | AP19: 32.5 | AR19: 12.1 | AT19: -19.9 | AV19: 3 | AW19: 5 | AY19: 5 | BA19: 4
A20: Frühjahr 16/17 | B20: 1 | C20: 4 | D20: - | E20: 2 | F20: - | G20: 3 | I20: Frühjahr 16/17 | J20: 17 | K20: 17 | M20: 17 | O20: 17 | P20: 40.8 | Q20: 0 | S20: 20.4 | U20: 6.8 | V20: 23.8 | W20: -17 | Y20: 3.4 | AA20: -10.2 | AB20: 18 | AC20: -6 | AE20: -10 | AG20: -2 | AH20: 3.1 | AI20: =AB20*$AH20 -> 55.8 | AJ20: -18.6 | AL20: -31 | AN20: -6.2 | AO20: =V20+AI20 -> 79.6 | AP20: -35.6 | AR20: -27.6 | AT20: -16.4 | AV20: 9 | AW20: 3 | AY20: 2 | BA20: 4
A21: 16/17 | B21: 1 | C21: 4 | D21: - | E21: 2 | F21: - | G21: 3 | I21: 16/17 | J21: 16 | K21: 16 | M21: 16 | O21: 16 | P21: 38.4 | Q21: 0 | S21: 19.2 | U21: 6.4 | V21: 22.4 | W21: -16 | Y21: 3.2 | AA21: -9.6 | AO21: 22.4 | AP21: -16 | AR21: 3.2 | AT21: -9.6
A22: Herbst 17/18 | B22: 4 | C22: 3 | D22: - | E22: 1 | F22: - | G22: 2 | I22: Herbst 17/18 | J22: 17 | K22: 17 | M22: 17 | O22: 17 | P22: 0 | Q22: 6.8 | S22: 40.8 | U22: 20.4 | V22: -17 | W22: -10.2 | Y22: 23.8 | AA22: 3.4 | AB22: -11 | AC22: 5 | AE22: -3 | AG22: 9 | AH22: 3.1 | AI22: -34.1 | AJ22: 15.5 | AL22: -9.3 | AN22: 27.9 | AO22: -51.1 | AP22: 5.3 | AR22: 14.5 | AT22: 31.3 | AV22: 2 | AW22: 6 | AY22: 4 | BA22: 7
A23: Frühjahr 17/18 | B23: 1 | C23: 4 | D23: - | E23: 2 | F23: - | G23: 3 | I23: Frühjahr 17/18 | J23: 17 | K23: 17 | M23: 17 | O23: 17 | P23: 40.8 | Q23: 0 | S23: 20.4 | U23: 6.8 | V23: 23.8 | W23: -17 | Y23: 3.4 | AA23: -10.2 | AB23: 9 | AC23: -7 | AE23: -3 | AG23: 1 | AH23: 3.1 | AI23: 27.9 | AJ23: -21.7 | AL23: -9.3 | AN23: 3.1 | AO23: 51.7 | AP23: -38.7 | AR23: -5.9 | AT23: -7.1 | AV23: 7 | AW23: 3 | AY23: 4 | BA23: 5
A24: 17/18 | B24: 3 | C24: 4 | D24: - | E24: 1 | F24: - | G24: 2 | I24: 17/18 | J24: 16 | K24: 16 | M24: 16 | O24: 16 | P24: 6.4 | Q24: 0 | S24: 38.4 | U24: 19.2 | V24: -9.6 | W24: -16 | Y24: 22.4 | AA24: 3.2 | AO24: -9.6 | AP24: -16 | AR24: 22.4 | AT24: 3.2
A25: Herbst 18/19 | B25: 2 | C25: 1 | D25: 4 | E25: 3 | F25: - | G25: - | I25: Herbst 18/19 | J25: 17 | K25: 17 | L25: 17 | M25: 17 | P25: 20.4 | Q25: 40.8 | R25: 0 | S25: 6.8 | V25: 3.4 | W25: 23.8 | X25: =R25-L25 -> -17 | Y25: -10.2 | AB25: -7 | AC25: 5 | AD25: -3 | AE25: 5 | AH25: 3.2 | AI25: -22.4 | AJ25: 16 | AK25: =AD25*$AH25 -> -9.6 | AL25: 16 | AO25: -19 | AP25: 39.8 | AQ25: =X25+AK25 -> -26.6 | AR25: 5.8 | AV25: 3 | AW25: 6 | AX25: 4 | AY25: 6
A26: Frühjahr 18/19 | B26: 2 | C26: 1 | D26: 3 | E26: 4 | F26: - | G26: - | I26: Frühjahr 18/19 | J26: 17 | K26: 17 | L26: 17 | M26: 17 | P26: 20.4 | Q26: 40.8 | R26: 6.8 | S26: 0 | V26: 3.4 | W26: 23.8 | X26: -10.2 | Y26: -17 | AB26: -2 | AC26: 10 | AD26: -6 | AE26: -2 | AH26: 3.4 | AI26: -6.8 | AJ26: 34 | AK26: -20.4 | AL26: -6.8 | AO26: -3.4 | AP26: 57.8 | AQ26: -30.6 | AR26: -23.8 | AV26: 4 | AW26: 7 | AX26: 3 | AY26: 4
A27: 18/19 | B27: 2 | C27: 1 | D27: 4 | E27: 3 | F27: - | G27: - | I27: 18/19 | J27: 16 | K27: 16 | L27: 16 | M27: 16 | P27: 19.2 | Q27: 38.4 | R27: 0 | S27: 6.4 | V27: 3.2 | W27: 22.4 | X27: -16 | Y27: -9.6 | AO27: 3.2 | AP27: 22.4 | AQ27: -16 | AR27: -9.6
A28: Herbst 19/20 | B28: 1 | C28: 2 | D28: 3 | E28: 4 | F28: - | G28: - | I28: Herbst 19/20 | J28: 17 | K28: 17 | L28: 17 | M28: 17 | P28: 40.8 | Q28: 20.4 | R28: 6.8 | S28: 0 | V28: 23.8 | W28: 3.4 | X28: -10.2 | Y28: -17 | AB28: 2 | AC28: 6 | AD28: -6 | AE28: -2 | AH28: 3.4 | AI28: 6.8 | AJ28: 20.4 | AK28: -20.4 | AL28: -6.8 | AO28: 30.6 | AP28: 23.8 | AQ28: -30.6 | AR28: -23.8 | AV28: 5 | AW28: 6 | AX28: 3 | AY28: 4
A29: Frühjahr 19/20 | B29: 1 | C29: 3 | D29: 2 | E29: 4 | F29: - | G29: - | I29: Frühjahr 19/20 | J29: 17 | K29: 17 | L29: 17 | M29: 17 | P29: 40.8 | Q29: 6.8 | R29: 20.4 | S29: 0 | V29: 23.8 | W29: -10.2 | X29: 3.4 | Y29: -17 | AB29: 18 | AC29: 2 | AD29: -6 | AE29: -14 | AH29: 3.4 | AI29: 61.2 | AJ29: 6.8 | AK29: -20.4 | AL29: -47.6 | AO29: 85 | AP29: -3.4 | AQ29: -17 | AR29: -64.6 | AV29: 9 | AW29: 5 | AX29: 3 | AY29: 1
A30: 19/20 | B30: 1 | C30: 2 | D30: 3 | E30: 4 | F30: - | G30: - | I30: 19/20 | J30: 16 | K30: 16 | L30: 16 | M30: 16 | P30: 38.4 | Q30: 19.2 | R30: 6.4 | S30: 0 | V30: 22.4 | W30: 3.2 | X30: -9.6 | Y30: -16 | AO30: 22.4 | AP30: 3.2 | AQ30: -9.6 | AR30: -16
A31: Herbst 20/21 | B31: 4 | C31: 1 | D31: 2 | E31: 3 | F31: - | G31: - | I31: =A31 -> Herbst 20/21 | J31: 17 | K31: 17 | L31: 17 | M31: 17 | P31: 0 | Q31: 40.8 | R31: 20.4 | S31: 6.8 | V31: -17 | W31: 23.8 | X31: 3.4 | Y31: -10.2 | AB31: -1 | AC31: 3 | AD31: 7 | AE31: -9 | AH31: 3.4 | AI31: -3.4 | AJ31: 10.2 | AK31: 23.8 | AL31: -30.6 | AO31: -20.4 | AP31: 34 | AQ31: 27.2 | AR31: -40.8 | AV31: 4 | AW31: 5 | AX31: 6 | AY31: 2
A32: Frühjahr 20/21 | B32: 3 | C32: 4 | D32: 2 | E32: 1 | F32: - | G32: - | I32: Frühjahr 20/21 | J32: 17 | K32: 17 | L32: 17 | M32: 17 | P32: 6.8 | Q32: 0 | R32: 20.4 | S32: 40.8 | V32: -10.2 | W32: -17 | X32: 3.4 | Y32: 23.8 | AB32: -5 | AC32: -5 | AD32: -1 | AE32: 11 | AH32: 3.4 | AI32: -17 | AJ32: -17 | AK32: -3.4 | AL32: 37.4 | AO32: -27.2 | AP32: -34 | AQ32: 0 | AR32: 61.2 | AV32: 3 | AW32: 3 | AX32: 4 | AY32: 7
A33: 20/21 | B33: 4 | C33: 3 | D33: 2 | E33: 1 | F33: - | G33: - | I33: 20/21 | J33: 16 | K33: 16 | L33: 16 | M33: 16 | P33: 0 | Q33: 6.4 | R33: 19.2 | S33: 38.4 | V33: -16 | W33: -9.6 | X33: 3.2 | Y33: 22.4 | AO33: -16 | AP33: -9.6 | AQ33: 3.2 | AR33: 22.4
A34: Herbst 21/22 | B34: 2 | C34: 1 | D34: 4 | E34: 2 | F34: - | G34: - | I34: =A34 -> Herbst 21/22 | J34: 17 | K34: 17 | L34: 17 | M34: 17 | P34: 13.6 | Q34: 40.8 | R34: 0 | S34: 13.6 | V34: -3.4 | W34: 23.8 | X34: -17 | Y34: -3.4 | AB34: -9 | AC34: 11 | AD34: -5 | AE34: 3 | AH34: 3.6 | AI34: -32.4 | AJ34: 39.6 | AK34: -18 | AL34: 10.8 | AO34: -35.8 | AP34: 63.4 | AQ34: -35 | AR34: 7.4 | AV34: 2 | AW34: 7 | AX34: 3 | AY34: 5
A35: Frühjahr 21/22 | B35: 3 | C35: 1 | D35: 2 | E35: 4 | F35: - | G35: - | I35: =A35 -> Frühjahr 21/22 | J35: 17 | K35: 17 | L35: 17 | M35: 17 | P35: 6.8 | Q35: 40.8 | R35: 20.4 | S35: 0 | V35: -10.2 | W35: 23.8 | X35: 3.4 | Y35: -17 | AB35: 2 | AC35: 2 | AD35: 2 | AE35: -6 | AH35: 3.8 | AI35: 7.6 | AJ35: 7.6 | AK35: 7.6 | AL35: -22.8 | AO35: -2.6 | AP35: 31.4 | AQ35: 11 | AR35: -39.8 | AV35: 5 | AW35: 5 | AX35: 5 | AY35: 3
A36: 21/22 | B36: 3 | C36: 1 | D36: 2 | E36: 4 | F36: - | G36: - | I36: =A36 -> 21/22 | J36: 16 | K36: 16 | L36: 16 | M36: 16 | P36: 6.4 | Q36: 38.4 | R36: 19.2 | S36: 0 | V36: -9.6 | W36: 22.4 | X36: 3.2 | Y36: -16 | AO36: -9.6 | AP36: 22.4 | AQ36: 3.2 | AR36: -16
A37: Herbst 22/23 | B37: 2 | C37: 1 | D37: 3 | E37: 4 | F37: - | G37: - | I37: Herbst 22/23 | J37: 20 | K37: 20 | L37: 20 | M37: 20 | P37: 24 | Q37: 48 | R37: 8 | S37: 0 | V37: 4 | W37: 28 | X37: -12 | Y37: -20 | AB37: 1 | AC37: -7 | AD37: 9 | AE37: -3 | AH37: 4 | AI37: 4 | AJ37: -28 | AK37: 36 | AL37: -12 | AO37: 8 | AP37: 0 | AQ37: 24 | AR37: -32 | AV37: 5 | AW37: 3 | AX37: 7 | AY37: 4
A38: Frühjahr 22/23 | B38: 2 | C38: 1 | D38: 3 | E38: 4 | F38: - | G38: - | I38: Frühjahr 22/23 | J38: 20 | K38: 20 | L38: 20 | M38: 20 | P38: 24 | Q38: 48 | R38: 8 | S38: 0 | V38: 4 | W38: 28 | X38: -12 | Y38: -20 | AB38: -3 | AC38: 9 | AD38: 1 | AE38: -7 | AH38: 4.2 | AI38: -12.6 | AJ38: 37.8 | AK38: 4.2 | AL38: -29.4 | AO38: -8.6 | AP38: 65.8 | AQ38: -7.8 | AR38: -49.4 | AV38: 4 | AW38: 7 | AX38: 5 | AY38: 3
A39: 22/23 | B39: 2 | C39: 1 | D39: 3 | E39: 4 | F39: - | G39: - | I39: 22/23 | J39: 20 | K39: 20 | L39: 20 | M39: 20 | P39: 24 | Q39: 48 | R39: 8 | S39: 0 | V39: 4 | W39: 28 | X39: -12 | Y39: -20 | AO39: 4 | AP39: 28 | AQ39: -12 | AR39: -20
A40: Herbst 23/24 | B40: 1 | C40: 2 | D40: 3 | E40: 4 | F40: - | G40: - | I40: Herbst 23/24 | J40: 20 | K40: 20 | L40: 20 | M40: 20 | P40: 48 | Q40: 24 | R40: 8 | S40: 0 | V40: 28 | W40: 4 | X40: -12 | Y40: -20 | AB40: 9 | AC40: -3 | AD40: -3 | AE40: -3 | AH40: 4.2 | AI40: 37.8 | AJ40: -12.6 | AK40: -12.6 | AL40: -12.6 | AO40: 65.8 | AP40: -8.6 | AQ40: -24.6 | AR40: -32.6 | AV40: 7 | AW40: 4 | AX40: 4 | AY40: 4
A41: Frühjahr 23/24 | B41: 2 | C41: 1 | D41: 4 | E41: 3 | F41: - | G41: - | I41: Frühjahr 23/24 | J41: 20 | K41: 20 | L41: 20 | M41: 20 | P41: 24 | Q41: 48 | R41: 0 | S41: 8 | V41: 4 | W41: 28 | X41: -20 | Y41: -12 | AB41: -10 | AC41: 14 | AD41: -10 | AE41: 6 | AH41: 4.2 | AI41: -42 | AJ41: 58.8 | AK41: -42 | AL41: 25.2 | AO41: -38 | AP41: 86.8 | AQ41: -62 | AR41: 13.2 | AV41: 2 | AW41: 8 | AX41: 2 | AY41: 6
A42: 23/24 | B42: 2 | C42: 1 | D42: 4 | E42: 3 | F42: - | G42: - | I42: 23/24 | J42: 20 | K42: 20 | L42: 20 | M42: 20 | P42: 24 | Q42: 48 | R42: 0 | S42: 8 | V42: 4 | W42: 28 | X42: -20 | Y42: -12 | AO42: 4 | AP42: 28 | AQ42: -20 | AR42: -12
A43: Herbst 24/25 | B43: 1 | C43: 4 | D43: 2 | E43: 3 | F43: - | G43: - | I43: Herbst 24/25 | J43: 25 | K43: 25 | L43: 25 | M43: 25 | P43: 60 | Q43: 0 | R43: 30 | S43: 10 | V43: 35 | W43: -25 | X43: 5 | Y43: -15 | AB43: 0 | AC43: 0 | AD43: 4 | AE43: -4 | AH43: 4.4 | AI43: 0 | AJ43: 0 | AK43: 17.6 | AL43: -17.6 | AO43: 35 | AP43: -25 | AQ43: 22.6 | AR43: -32.6 | AV43: 5 | AW43: 5 | AX43: 6 | AY43: 4
A44: Frühjahr 24/25 | B44: 3 | C44: 2 | D44: 1 | E44: 4 | F44: - | G44: - | I44: Frühjahr 24/25 | J44: 25 | K44: 25 | L44: 25 | M44: 25 | P44: 10 | Q44: 30 | R44: 60 | S44: 0 | V44: -15 | W44: 5 | X44: 35 | Y44: -25 | AB44: 4 | AC44: 4 | AD44: 4 | AE44: -12 | AH44: 4.4 | AI44: 17.6 | AJ44: 17.6 | AK44: 17.6 | AL44: -52.8 | AO44: 2.6 | AP44: 22.6 | AQ44: 52.6 | AR44: -77.8 | AV44: 6 | AW44: 6 | AX44: 6 | AY44: 2
A45: 24/25 | V45: 0 | W45: 0 | X45: 0 | Y45: 0 | AI45: 0 | AJ45: 0 | AK45: 0 | AL45: 0 | AO45: 0 | AP45: 0 | AQ45: 0 | AR45: 0
A46: Herbst 25/26 | B46: =Übersicht!AQ3 ->  | C46: =Übersicht!AR3 ->  | D46: =Übersicht!AS3 ->  | E46: =Übersicht!AT3 ->  | F46: - | G46: - | I46: Herbst 25/26 | J46: =Parameter!C2 -> 25 | K46: =Parameter!D2 -> 25 | L46: =Parameter!E2 -> 25 | M46: =Parameter!F2 -> 25 | P46: =Übersicht!AQ5 -> 25 | Q46: =Übersicht!AR5 -> 25 | R46: =Übersicht!AS5 -> 25 | S46: =Übersicht!AT5 -> 25 | V46: 0 | W46: 0 | X46: 0 | Y46: 0 | AB46: =Seidl!B20 -> 0 | AC46: =Seidl!C20 -> 0 | AD46: =Seidl!D20 -> 0 | AE46: =Seidl!E20 -> 0 | AH46: =Parameter!B16 -> 4.6 | AI46: 0 | AJ46: 0 | AK46: 0 | AL46: 0 | AO46: 0 | AP46: 0 | AQ46: 0 | AR46: 0 | AV46: =COUNTIF(Übersicht!U4:U20,1) -> 0 | AW46: =COUNTIF(Übersicht!V4:V20,1) -> 0 | AX46: =COUNTIF(Übersicht!W4:W20,1) -> 0 | AY46: =COUNTIF(Übersicht!X4:X20,1) -> 0 | AZ46: =COUNTIF(Übersicht!Y4:Y20,1) -> 0 | BA46: =COUNTIF(Übersicht!Z4:Z20,1) -> 0
A47: Frühjahr 25/26 | B47: =Übersicht!AQ25 ->  | C47: =Übersicht!AR25 ->  | D47: =Übersicht!AS25 ->  | E47: =Übersicht!AT25 ->  | F47: - | G47: - | I47: Frühjahr 25/26 | J47: =Parameter!C3 -> 25 | K47: =Parameter!D3 -> 25 | L47: =Parameter!E3 -> 25 | M47: =Parameter!F3 -> 25 | P47: =Übersicht!AQ27 -> 25 | Q47: =Übersicht!AR27 -> 25 | R47: =Übersicht!AS27 -> 25 | S47: =Übersicht!AT27 -> 25 | V47: 0 | W47: 0 | X47: 0 | Y47: 0 | AB47: =Seidl!J20 -> 0 | AC47: =Seidl!K20 -> 0 | AD47: =Seidl!L20 -> 0 | AE47: =Seidl!M20 -> 0 | AH47: =Parameter!B17 -> 4.6 | AI47: 0 | AJ47: 0 | AK47: 0 | AL47: 0 | AO47: 0 | AP47: 0 | AQ47: 0 | AR47: 0 | AV47: =COUNTIF(Übersicht!U26:U42,1) -> 0 | AW47: =COUNTIF(Übersicht!V26:V42,1) -> 0 | AX47: =COUNTIF(Übersicht!W26:W42,1) -> 0 | AY47: =COUNTIF(Übersicht!X26:X42,1) -> 0 | AZ47: =COUNTIF(Übersicht!Y26:Y42,1) -> 0 | BA47: =COUNTIF(Übersicht!Z26:Z42,1) -> 0
A48: 25/26
A49: Bundesliga | B49: =RANK(AO49,$AO49:$AT49) -> 1 | C49: =RANK(AP49,$AO49:$AT49) -> 2 | D49: =RANK(AQ49,$AO49:$AT49) -> 4 | E49: =RANK(AR49,$AO49:$AT49) -> 6 | F49: =RANK(AS49,$AO49:$AT49) -> 5 | G49: =RANK(AT49,$AO49:$AT49) -> 3 | I49: Gesamt | J49: =SUM(J4:J48) -> 765 | K49: 765 | L49: 420 | M49: 765 | N49: 134 | O49: 345 | P49: 1143.1 | Q49: 976.9 | R49: 312 | S49: 551.4 | T49: 8.5 | U49: 202.1 | V49: 378.1 | W49: 211.9 | X49: -108 | Y49: -213.6 | Z49: -125.5 | AA49: -142.9 | AB49: 45 | AC49: 75 | AD49: -13 | AE49: -74 | AF49: -35 | AG49: 2 | AI49: =SUM(AI4:AI48) -> 127.1 | AJ49: 251.5 | AK49: -40 | AL49: -250.3 | AM49: -100.1 | AN49: 11.8 | AO49: 505.2 | AP49: 463.4 | AQ49: -148 | AR49: -463.9 | AS49: -225.6 | AT49: -131.1 | AV49: =SUM(AV4:AV47) -> 139 | AW49: =SUM(AW4:AW47) -> 146 | AX49: 61 | AY49: 111 | AZ49: 14 | BA49: 64
A50: Rang | B50: Anzahl
B51: MA | C51: MN | D51: AH | E51: KS | F51: LM | G51: EN
A52: 1 | B52: =COUNTIF(B$4:B$48,$A52) -> 17 | C52: 16 | D52: 1 | E52: 7 | F52: 0 | G52: 0
A53: 2 | B53: 13 | C53: 7 | D53: 7 | E53: 9 | F53: 0 | G53: 6
A54: 3 | B54: 7 | C54: 9 | D54: 7 | E54: 7 | F54: 1 | G54: 9
A55: 4 | B55: 4 | C55: 9 | D55: 5 | E55: 17 | F55: 1 | G55: 5
A56: 5 | B56: 0 | C56: 0 | D56: 0 | E56: 1 | F56: 6 | G56: 1
A58: Ränge laut Gesamtgewinn | I58: Saison | J58: Einsatz | P58: Auszahlung | V58: =V2 -> Geldgewinn | AB58: Seidl | AH58: Preis | AI58: =AI2 -> Seidl-Gewinn | AO58: =AO2 -> Gesamtgewinn | AV58: Anzahl Rundensiege
A59: Saison | B59: MA | C59: MN | D59: AH | E59: KS | F59: LM | G59: EN | J59: MA | K59: MN | L59: AH | M59: KS | N59: LM | O59: EN | P59: MA | Q59: MN | R59: AH | S59: KS | T59: LM | U59: EN | V59: MA | W59: MN | X59: AH | Y59: KS | Z59: LM | AA59: EN | AB59: MA | AC59: MN | AD59: AH | AE59: KS | AF59: LM | AG59: EN | AH59: € | AI59: MA | AJ59: MN | AK59: AH | AL59: KS | AM59: LM | AN59: EN | AO59: MA | AP59: MN | AQ59: AH | AR59: KS | AS59: LM | AT59: EN | AV59: MA | AW59: MN | AX59: AH | AY59: KS | AZ59: LM | BA59: EN
A60: 10/11 | B60: =RANK(AO60,$AO60:$AT60) -> 1 | C60: =RANK(AP60,$AO60:$AT60) -> 2 | E60: =RANK(AR60,$AO60:$AT60) -> 4 | G60: =RANK(AT60,$AO60:$AT60) -> 3 | I60: 10/11 | J60: =SUM(J4:J5) -> 27 | K60: =SUM(K4:K5) -> 27 | L60: 0 | M60: 27 | N60: 0 | O60: 27 | P60: =SUM(P4:P5) -> 44.8 | Q60: 32.4 | R60: 0 | S60: 24 | T60: 0 | U60: 6.8 | V60: 17.8 | W60: 5.4 | X60: 0 | Y60: -3 | Z60: 0 | AA60: -20.2 | AB60: =SUM(AB4:AB5) -> 19 | AC60: 11 | AD60: 0 | AE60: -19 | AF60: 0 | AG60: -11 | AH60: =SUM(AH4:AH5)/2 -> 2.6 | AI60: =SUM(AI4:AI5) -> 49.4 | AJ60: =SUM(AJ4:AJ5) -> 28.6 | AK60: 0 | AL60: -49.4 | AM60: 0 | AN60: -28.6 | AO60: 67.2 | AP60: 34 | AR60: =SUM(AR4:AR5) -> -52.4 | AT60: =SUM(AT4:AT5) -> -48.8 | AV60: =AV4+AV5 -> 12 | AW60: =AW4+AW5 -> 10 | AY60: 2 | BA60: 4
A61: 11/12 | B61: =RANK(AO61,$AO61:$AT61) -> 1 | C61: =RANK(AP61,$AO61:$AT61) -> 3 | E61: =RANK(AR61,$AO61:$AT61) -> 2 | G61: =RANK(AT61,$AO61:$AT61) -> 4 | I61: 11/12 | J61: =SUM(J6:J7) -> 34 | K61: =SUM(K6:K7) -> 34 | L61: 0 | M61: 34 | N61: 0 | O61: 34 | P61: =SUM(P6:P7) -> 81.6 | Q61: 13.6 | R61: 0 | S61: 20.4 | T61: 0 | U61: 20.4 | V61: 47.6 | W61: -20.4 | X61: 0 | Y61: -13.6 | Z61: 0 | AA61: -13.6 | AB61: =SUM(AB6:AB7) -> 1 | AC61: 1 | AD61: 0 | AE61: 5 | AF61: 0 | AG61: -7 | AH61: =SUM(AH6:AH7)/2 -> 2.65 | AI61: =SUM(AI6:AI7) -> 3.3 | AJ61: =SUM(AJ6:AJ7) -> 2.1 | AK61: 0 | AL61: 13.7 | AM61: 0 | AN61: -19.1 | AO61: 50.9 | AP61: -18.3 | AR61: =SUM(AR6:AR7) -> 0.1 | AT61: =SUM(AT6:AT7) -> -32.7 | AV61: =AV6+AV7 -> 9 | AW61: =AW6+AW7 -> 9 | AY61: 10 | BA61: 7
A62: 12/13 | B62: 2 | C62: 1 | E62: 5 | F62: =RANK(AS62,$AO62:$AT62) -> 4 | G62: 3 | I62: 12/13 | J62: =SUM(J8:J9) -> 34 | K62: =SUM(K8:K9) -> 34 | L62: 0 | M62: 34 | N62: 34 | O62: 34 | P62: =SUM(P8:P9) -> 76.5 | Q62: 76.5 | R62: 0 | S62: 0 | T62: 8.5 | U62: 8.5 | V62: 42.5 | W62: 42.5 | X62: 0 | Y62: -34 | Z62: -25.5 | AA62: -25.5 | AB62: =SUM(AB8:AB9) -> 5 | AC62: 30 | AD62: 0 | AE62: -30 | AF62: -5 | AG62: 0 | AH62: =SUM(AH8:AH9)/2 -> 2.75 | AI62: =SUM(AI8:AI9) -> 12.2 | AJ62: =SUM(AJ8:AJ9) -> 83.2 | AK62: 0 | AL62: -82.3 | AM62: -13.8 | AN62: 0.7 | AO62: 54.7 | AP62: 125.7 | AR62: =SUM(AR8:AR9) -> -116.3 | AS62: =SUM(AS8:AS9) -> -39.3 | AT62: =SUM(AT8:AT9) -> -24.8 | AV62: =AV8+AV9 -> 8 | AW62: =AW8+AW9 -> 13 | AY62: 1 | AZ62: 6 | BA62: 7
A63: 13/14 | B63: 1 | C63: 4 | E63: 3 | F63: =RANK(AS63,$AO63:$AT63) -> 5 | G63: 2 | I63: 13/14 | J63: =SUM(J10:J12) -> 50 | K63: =SUM(K10:K12) -> 50 | L63: 0 | M63: 50 | N63: 50 | O63: 50 | P63: =SUM(P10:P12) -> 150 | Q63: 8.5 | R63: 0 | S63: 33.5 | T63: 0 | U63: 58 | V63: 100 | W63: -41.5 | X63: 0 | Y63: -16.5 | Z63: -50 | AA63: 8 | AB63: =SUM(AB10:AB12) -> 6 | AC63: -4 | AD63: 0 | AE63: -4 | AF63: -9 | AG63: 11 | AH63: =SUM(AH10:AH12)/2 -> 2.85 | AI63: =SUM(AI10:AI12) -> 17.1 | AJ63: =SUM(AJ10:AJ12) -> -11.4 | AK63: 0 | AL63: -11.4 | AM63: -25.4 | AN63: 31.1 | AO63: 117.1 | AP63: -52.9 | AR63: =SUM(AR10:AR12) -> -27.9 | AS63: =SUM(AS10:AS12) -> -75.4 | AT63: =SUM(AT10:AT12) -> 39.1 | AV63: =AV10+AV11 -> 8 | AW63: =AW10+AW11 -> 6 | AY63: 6 | AZ63: 5 | BA63: 9
A64: 14/15 | B64: 2 | C64: 1 | E64: 3 | F64: =RANK(AS64,$AO64:$AT64) -> 5 | G64: 4 | I64: 14/15 | J64: =SUM(J13:J15) -> 50 | K64: =SUM(K13:K15) -> 50 | L64: 0 | M64: 50 | N64: 50 | O64: 50 | P64: =SUM(P13:P15) -> 75 | Q64: 107.5 | R64: 0 | S64: 25.5 | T64: 0 | U64: 42 | V64: 25 | W64: 57.5 | X64: 0 | Y64: -24.5 | Z64: -50 | AA64: -8 | AB64: =SUM(AB13:AB15) -> 9 | AC64: 4 | AD64: 0 | AE64: 9 | AF64: -21 | AG64: -1 | AH64: =SUM(AH13:AH15)/2 -> 2.9 | AI64: =SUM(AI13:AI15) -> 26.1 | AJ64: =SUM(AJ13:AJ15) -> 11.6 | AK64: 0 | AL64: 26.1 | AM64: -60.9 | AN64: -2.9 | AO64: 51.1 | AP64: 69.1 | AR64: =SUM(AR13:AR15) -> 1.6 | AS64: =SUM(AS13:AS15) -> -110.9 | AT64: =SUM(AT13:AT15) -> -10.9 | AV64: =AV13+AV14 -> 9 | AW64: =AW13+AW14 -> 8 | AY64: 9 | AZ64: 3 | BA64: 7
A65: 15/16 | B65: 2 | C65: 4 | E65: 1 | G65: 3 | I65: 15/16 | J65: =SUM(J16:J18) -> 50 | K65: =SUM(K16:K18) -> 50 | L65: 0 | M65: 50 | N65: 0 | O65: 50 | P65: =SUM(P16:P18) -> 80.4 | Q65: 13.2 | R65: 0 | S65: 99.6 | T65: 0 | U65: 6.8 | V65: 30.4 | W65: -36.8 | X65: 0 | Y65: 49.6 | Z65: 0 | AA65: -43.2 | AB65: =SUM(AB16:AB18) -> -5 | AC65: -13 | AD65: 0 | AE65: 15 | AF65: 0 | AG65: 3 | AH65: =SUM(AH16:AH18)/2 -> 2.9 | AI65: =SUM(AI16:AI18) -> -14.5 | AJ65: =SUM(AJ16:AJ18) -> -37.7 | AK65: 0 | AL65: 43.5 | AM65: 0 | AN65: 8.7 | AO65: 15.9 | AP65: -74.5 | AR65: =SUM(AR16:AR18) -> 93.1 | AT65: =SUM(AT16:AT18) -> -34.5 | AV65: =AV16+AV17 -> 8 | AW65: =AW16+AW17 -> 6 | AY65: 13 | BA65: 10
A66: 16/17 | B66: 1 | C66: 3 | E66: 2 | G66: 4 | I66: 16/17 | J66: =SUM(J19:J21) -> 50 | K66: =SUM(K19:K21) -> 50 | L66: 0 | M66: 50 | N66: 0 | O66: 50 | P66: =SUM(P19:P21) -> 86 | Q66: 40.8 | R66: 0 | S66: 60 | T66: 0 | U66: 13.2 | V66: 36 | W66: -9.2 | X66: 0 | Y66: 10 | Z66: 0 | AA66: -36.8 | AB66: =SUM(AB19:AB21) -> 13 | AC66: -3 | AD66: 0 | AE66: -7 | AF66: 0 | AG66: -3 | AH66: =SUM(AH19:AH21)/2 -> 3 | AI66: =SUM(AI19:AI21) -> 41.3 | AJ66: =SUM(AJ19:AJ21) -> -9.9 | AK66: 0 | AL66: -22.3 | AM66: 0 | AN66: -9.1 | AO66: 77.3 | AP66: -19.1 | AR66: =SUM(AR19:AR21) -> -12.3 | AT66: =SUM(AT19:AT21) -> -45.9 | AV66: =AV19+AV20 -> 12 | AW66: =AW19+AW20 -> 8 | AY66: 7 | BA66: 8
A67: 17/18 | B67: 3 | C67: 4 | E67: 1 | G67: 2 | I67: 17/18 | J67: =SUM(J22:J24) -> 50 | K67: =SUM(K22:K24) -> 50 | L67: 0 | M67: 50 | N67: 0 | O67: 50 | P67: =SUM(P22:P24) -> 47.2 | Q67: 6.8 | R67: 0 | S67: 99.6 | T67: 0 | U67: 46.4 | V67: -2.8 | W67: -43.2 | X67: 0 | Y67: 49.6 | Z67: 0 | AA67: -3.6 | AB67: =SUM(AB22:AB24) -> -2 | AC67: -2 | AD67: 0 | AE67: -6 | AF67: 0 | AG67: 10 | AH67: =SUM(AH22:AH24)/2 -> 3.1 | AI67: =SUM(AI22:AI24) -> -6.2 | AJ67: =SUM(AJ22:AJ24) -> -6.2 | AK67: 0 | AL67: -18.6 | AM67: 0 | AN67: 31 | AO67: -9 | AP67: -49.4 | AR67: =SUM(AR22:AR24) -> 31 | AT67: =SUM(AT22:AT24) -> 27.4 | AV67: =AV22+AV23 -> 9 | AW67: =AW22+AW23 -> 9 | AY67: 8 | BA67: 12
A68: 18/19 | B68: 2 | C68: 1 | D68: =RANK(AQ68,$AO68:$AT68) -> 4 | E68: 3 | I68: 18/19 | J68: =SUM(J25:J27) -> 50 | K68: =SUM(K25:K27) -> 50 | L68: 50 | M68: 50 | N68: 0 | O68: 0 | P68: =SUM(P25:P27) -> 60 | Q68: 120 | R68: 6.8 | S68: 13.2 | T68: 0 | U68: 0 | V68: 10 | W68: 70 | X68: -43.2 | Y68: -36.8 | Z68: 0 | AA68: 0 | AB68: =SUM(AB25:AB27) -> -9 | AC68: 15 | AD68: -9 | AE68: 3 | AF68: 0 | AG68: 0 | AH68: =SUM(AH25:AH27)/2 -> 3.3 | AI68: =SUM(AI25:AI27) -> -29.2 | AJ68: =SUM(AJ25:AJ27) -> 50 | AK68: -30 | AL68: 9.2 | AM68: 0 | AN68: 0 | AO68: -19.2 | AP68: 120 | AQ68: -73.2 | AR68: -27.6 | AV68: =AV25+AV26 -> 7 | AW68: =AW25+AW26 -> 13 | AX68: 7 | AY68: 10
A69: 19/20 | B69: 1 | C69: 2 | D69: 3 | E69: 4 | I69: 19/20 | J69: =SUM(J28:J30) -> 50 | K69: =SUM(K28:K30) -> 50 | L69: 50 | M69: 50 | N69: 0 | O69: 0 | P69: =SUM(P28:P30) -> 120 | Q69: 46.4 | R69: 33.6 | S69: 0 | T69: 0 | U69: 0 | V69: 70 | W69: -3.6 | X69: -16.4 | Y69: -50 | Z69: 0 | AA69: 0 | AB69: =SUM(AB28:AB30) -> 20 | AC69: 8 | AD69: -12 | AE69: -16 | AF69: 0 | AG69: 0 | AH69: =SUM(AH28:AH30)/2 -> 3.4 | AI69: =SUM(AI28:AI30) -> 68 | AJ69: =SUM(AJ28:AJ30) -> 27.2 | AK69: -40.8 | AL69: -54.4 | AM69: 0 | AN69: 0 | AO69: 138 | AP69: 23.6 | AQ69: -57.2 | AR69: -104.4 | AV69: =AV28+AV29 -> 14 | AW69: =AW28+AW29 -> 11 | AX69: 6 | AY69: 5
A70: 20/21 | B70: 4 | C70: 3 | D70: 2 | E70: 1 | I70: 20/21 | J70: =SUM(J31:J33) -> 50 | K70: =SUM(K31:K33) -> 50 | L70: 50 | M70: 50 | N70: 0 | O70: 0 | P70: =SUM(P31:P33) -> 6.8 | Q70: 47.2 | R70: 60 | S70: 86 | T70: 0 | U70: 0 | V70: -43.2 | W70: -2.8 | X70: 10 | Y70: 36 | Z70: 0 | AA70: 0 | AB70: =SUM(AB31:AB33) -> -6 | AC70: -2 | AD70: 6 | AE70: 2 | AF70: 0 | AG70: 0 | AH70: =SUM(AH31:AH33)/2 -> 3.4 | AI70: =SUM(AI31:AI33) -> -20.4 | AJ70: =SUM(AJ31:AJ33) -> -6.8 | AK70: 20.4 | AL70: 6.8 | AM70: 0 | AN70: 0 | AO70: -63.6 | AP70: -9.6 | AQ70: 30.4 | AR70: 42.8 | AV70: =AV31+AV32 -> 7 | AW70: =AW31+AW32 -> 8 | AX70: 10 | AY70: 9
A71: 21/22 | B71: 3 | C71: 1 | D71: 2 | E71: 4 | I71: 21/22 | J71: =SUM(J34:J36) -> 50 | K71: =SUM(K34:K36) -> 50 | L71: 50 | M71: 50 | N71: 0 | O71: 0 | P71: =SUM(P34:P36) -> 26.8 | Q71: 120 | R71: 39.6 | S71: 13.6 | T71: 0 | U71: 0 | V71: -23.2 | W71: 70 | X71: -10.4 | Y71: -36.4 | Z71: 0 | AA71: 0 | AB71: =SUM(AB34:AB36) -> -7 | AC71: 13 | AD71: -3 | AE71: -3 | AF71: 0 | AG71: 0 | AH71: =SUM(AH34:AH36)/2 -> 3.7 | AI71: =SUM(AI34:AI36) -> -24.8 | AJ71: =SUM(AJ34:AJ36) -> 47.2 | AK71: -10.4 | AL71: -12 | AM71: 0 | AN71: 0 | AO71: -48 | AP71: 117.2 | AQ71: -20.8 | AR71: -48.4 | AV71: =AV34+AV35 -> 7 | AW71: =AW34+AW35 -> 12 | AX71: 8 | AY71: 8
A72: 22/23 | B72: 3 | C72: 1 | D72: 2 | E72: 4 | I72: 22/23 | J72: =SUM(J37:J39) -> 60 | K72: =SUM(K37:K39) -> 60 | L72: 60 | M72: 60 | N72: 0 | O72: 0 | P72: =SUM(P37:P39) -> 72 | Q72: 144 | R72: 24 | S72: 0 | T72: 0 | U72: 0 | V72: 12 | W72: 84 | X72: -36 | Y72: -60 | Z72: 0 | AA72: 0 | AB72: =SUM(AB37:AB39) -> -2 | AC72: 2 | AD72: 10 | AE72: -10 | AF72: 0 | AG72: 0 | AH72: =SUM(AH37:AH39)/2 -> 4.1 | AI72: =SUM(AI37:AI39) -> -8.6 | AJ72: =SUM(AJ37:AJ39) -> 9.8 | AK72: 40.2 | AL72: -41.4 | AM72: 0 | AN72: 0 | AO72: 3.4 | AP72: 93.8 | AQ72: 4.2 | AR72: -101.4 | AV72: =AV37+AV38 -> 9 | AW72: =AW37+AW38 -> 10 | AX72: 12 | AY72: 7
A73: 23/24 | B73: 2 | C73: 1 | D73: 4 | E73: 3 | I73: 23/24 | J73: =SUM(J40:J42) -> 60 | K73: =SUM(K40:K42) -> 60 | L73: 60 | M73: 60 | N73: 0 | O73: 0 | P73: =SUM(P40:P42) -> 96 | Q73: 120 | R73: 8 | S73: 16 | T73: 0 | U73: 0 | V73: 36 | W73: 60 | X73: -52 | Y73: -44 | Z73: 0 | AA73: 0 | AB73: =SUM(AB40:AB42) -> -1 | AC73: 11 | AD73: -13 | AE73: 3 | AF73: 0 | AG73: 0 | AH73: 4.2 | AI73: =SUM(AI40:AI42) -> -4.2 | AJ73: =SUM(AJ40:AJ42) -> 46.2 | AK73: -54.6 | AL73: 12.6 | AM73: 0 | AN73: 0 | AO73: 31.8 | AP73: 106.2 | AQ73: -106.6 | AR73: -31.4 | AV73: =AV40+AV41 -> 9 | AW73: =AW40+AW41 -> 12 | AX73: 6 | AY73: 10
A74: 24/25 | B74: =RANK(AO74,$AO74:$AT74) -> 2 | C74: =RANK(AP74,$AO74:$AT74) -> 3 | D74: =RANK(AQ74,$AO74:$AT74) -> 1 | E74: =RANK(AR74,$AO74:$AT74) -> 4 | I74: 24/25 | J74: =SUM(J43:J45) -> 50 | K74: =SUM(K43:K45) -> 50 | L74: 50 | M74: 50 | N74: 0 | O74: 0 | P74: =SUM(P43:P45) -> 70 | Q74: 30 | R74: 90 | S74: 10 | T74: 0 | U74: 0 | V74: 20 | W74: -20 | X74: 40 | Y74: -40 | Z74: 0 | AA74: 0 | AB74: =SUM(AB43:AB45) -> 4 | AC74: 4 | AD74: 8 | AE74: -16 | AF74: 0 | AG74: 0 | AH74: =SUM(AH45:AH47)/2 -> 4.6 | AI74: =SUM(AI43:AI45) -> 17.6 | AJ74: =SUM(AJ43:AJ45) -> 17.6 | AK74: 35.2 | AL74: -70.4 | AM74: 0 | AN74: 0 | AO74: 37.6 | AP74: -2.4 | AQ74: 75.2 | AR74: -110.4 | AV74: =AV43+AV44 -> 11 | AW74: =AW43+AW44 -> 11 | AX74: 12 | AY74: 6
A75: 25/26 | B75: 1 | C75: 1 | D75: 1 | E75: 1 | I75: 25/26 | J75: =SUM(J46:J48) -> 50 | K75: =SUM(K46:K48) -> 50 | L75: 50 | M75: 50 | N75: 0 | O75: 0 | P75: =SUM(P46:P48) -> 50 | Q75: 50 | R75: 50 | S75: 50 | T75: 0 | U75: 0 | V75: 0 | W75: 0 | X75: 0 | Y75: 0 | Z75: 0 | AA75: 0 | AB75: =SUM(AB46:AB48) -> 0 | AC75: 0 | AD75: 0 | AE75: 0 | AF75: 0 | AG75: 0 | AH75: =SUM(AH46:AH48)/2 -> 4.6 | AI75: =SUM(AI46:AI48) -> 0 | AJ75: =SUM(AJ46:AJ48) -> 0 | AK75: 0 | AL75: 0 | AM75: 0 | AN75: 0 | AO75: 0 | AP75: 0 | AQ75: 0 | AR75: 0 | AV75: =AV46+AV47 -> 0 | AW75: =AW46+AW47 -> 0 | AX75: 0 | AY75: 0
A76: Gesamt | B76: 1 | C76: 2 | D76: 4 | E76: 6 | F76: =RANK(AS76,$AO76:$AT76) -> 5 | G76: 3 | I76: Gesamt | J76: =SUM(J60:J75) -> 765 | K76: =SUM(K60:K75) -> 765 | L76: 420 | M76: 765 | N76: 134 | O76: 345 | P76: 1143.1 | Q76: 976.9 | R76: 312 | S76: 551.4 | T76: 8.5 | U76: 202.1 | V76: 378.1 | W76: 211.9 | X76: -108 | Y76: -213.6 | Z76: -125.5 | AA76: -142.9 | AB76: 45 | AC76: 75 | AD76: -13 | AE76: -74 | AF76: -35 | AG76: 2 | AI76: 127.1 | AJ76: 251.5 | AK76: -40 | AL76: -250.3 | AM76: -100.1 | AN76: 11.8 | AO76: =SUM(AO60:AO75) -> 505.2 | AP76: 463.4 | AQ76: -148 | AR76: -463.9 | AS76: -225.6 | AT76: -131.1 | AV76: =SUM(AV60:AV75) -> 139 | AW76: =SUM(AW60:AW75) -> 146 | AX76: 61 | AY76: 111 | AZ76: 14 | BA76: 64
A78: Ränge laut Gesamtgewinn | I78: Saison | J78: Einsatz | P78: Auszahlung | V78: =V2 -> Geldgewinn | AB78: Seidl | AH78: Preis | AI78: =AI2 -> Seidl-Gewinn | AO78: =AO2 -> Gesamtgewinn | AV78: Anzahl Rundensiege
A79: Bewerb | B79: MA | C79: MN | D79: AH | E79: KS | F79: LM | G79: EN | I79: Bewerb | J79: MA | K79: MN | L79: AH | M79: KS | N79: LM | O79: EN | P79: MA | Q79: MN | R79: AH | S79: KS | T79: LM | U79: EN | V79: MA | W79: MN | X79: AH | Y79: KS | Z79: LM | AA79: EN | AB79: MA | AC79: MN | AD79: AH | AE79: KS | AF79: LM | AG79: EN | AH79: € | AI79: MA | AJ79: MN | AK79: AH | AL79: KS | AM79: LM | AN79: EN | AO79: MA | AP79: MN | AQ79: AH | AR79: KS | AS79: LM | AT79: EN | AV79: MA | AW79: MN | AX79: AH | AY79: KS | AZ79: LM | BA79: EN
A80: EM2012 | B80: =RANK(AO80,$AO80:$AT80) -> 4 | C80: =RANK(AP80,$AO80:$AT80) -> 2 | E80: =RANK(AR80,$AO80:$AT80) -> 2 | F80: =RANK(AS80,$AO80:$AT80) -> 4 | G80: =RANK(AT80,$AO80:$AT80) -> 1 | I80: =A80 -> EM2012 | AB80: -4 | AC80: 1 | AE80: 1 | AF80: -4 | AG80: 6 | AH80: 2.6 | AI80: =$AH80*AB80 -> -10.4 | AJ80: 2.6 | AL80: =$AH80*AE80 -> 2.6 | AM80: =$AH80*AF80 -> -10.4 | AN80: =$AH80*AG80 -> 15.6 | AO80: =AI80+V80 -> -10.4 | AP80: 2.6 | AR80: =AL80+Y80 -> 2.6 | AS80: =AM80+Z80 -> -10.4 | AT80: =AN80+AA80 -> 15.6 | AV80: 0 | AW80: 1 | AY80: 1 | AZ80: 0 | BA80: 2
A81: EM2016 | B81: 2 | C81: 4 | E81: 1 | G81: 3 | I81: EM2016 | J81: 25 | K81: 25 | M81: 25 | O81: 25 | P81: 30 | S81: 60 | U81: 10 | V81: =P81-J81 -> 5 | W81: -25 | Y81: =S81-M81 -> 35 | AA81: =U81-O81 -> -15 | AB81: 3 | AC81: 3 | AE81: -1 | AG81: -5 | AH81: 2.9 | AI81: 8.7 | AJ81: 8.7 | AL81: =$AH81*AE81 -> -2.9 | AN81: =$AH81*AG81 -> -14.5 | AO81: 13.7 | AP81: -16.3 | AR81: =AL81+Y81 -> 32.1 | AT81: =AN81+AA81 -> -29.5 | AV81: 2 | AW81: 2 | AY81: 1 | BA81: 0
A82: EM2020 | B82: 1 | C82: 2 | D82: =RANK(AQ82,$AO82:$AT82) -> 4 | E82: 3 | I82: EM2020 | J82: 25 | K82: 25 | L82: 25 | M82: 25 | P82: 60 | Q82: 30 | R82: 0 | S82: 10 | V82: 35 | W82: 5 | X82: =R82-L82 -> -25 | Y82: =S82-M82 -> -15 | AB82: 3 | AC82: 3 | AD82: -5 | AE82: -1 | AH82: 3.6 | AI82: 10.8 | AJ82: 10.8 | AK82: =$AH82*AD82 -> -18 | AL82: =$AH82*AE82 -> -3.6 | AO82: 45.8 | AP82: 15.8 | AQ82: =AK82+X82 -> -43 | AR82: =AL82+Y82 -> -18.6 | AV82: 2 | AW82: 2 | AX82: 0 | AY82: 1
A83: EM2024 | B83: 3 | C83: 1 | D83: 2 | E83: 4 | I83: EM2024 | J83: 25 | K83: 25 | L83: 25 | M83: 25 | P83: 10 | Q83: 60 | R83: 30 | S83: 0 | V83: =P83-J83 -> -15 | W83: =Q83-K83 -> 35 | X83: =R83-L83 -> 5 | Y83: =S83-M83 -> -25 | AB83: -2 | AC83: 6 | AD83: 2 | AE83: -6 | AH83: 4.2 | AI83: =$AH83*AB83 -> -8.4 | AJ83: =$AH83*AC83 -> 25.2 | AK83: =$AH83*AD83 -> 8.4 | AL83: =$AH83*AE83 -> -25.2 | AO83: =AI83+V83 -> -23.4 | AP83: =AJ83+W83 -> 60.2 | AQ83: =AK83+X83 -> 13.4 | AR83: =AL83+Y83 -> -50.2 | AV83: 1 | AW83: 3 | AX83: 2 | AY83: 0
A84: WM2018 | B84: =RANK(AO84,$AO84:$AT84) -> 2 | C84: =RANK(AP84,$AO84:$AT84) -> 4 | D84: =RANK(AQ84,$AO84:$AT84) -> 1 | E84: =RANK(AR84,$AO84:$AT84) -> 3 | I84: =A84 -> WM2018 | J84: 25 | K84: 25 | L84: 25 | M84: 25 | P84: 30 | R84: 60 | S84: 10 | V84: =P84-J84 -> 5 | W84: =Q84-K84 -> -25 | X84: =R84-L84 -> 35 | Y84: =S84-M84 -> -15 | AB84: -1 | AC84: -5 | AD84: 7 | AE84: -1 | AH84: 3.2 | AI84: =$AH84*AB84 -> -3.2 | AJ84: =$AH84*AC84 -> -16 | AK84: =$AH84*AD84 -> 22.4 | AL84: =$AH84*AE84 -> -3.2 | AO84: =AI84+V84 -> 1.8 | AP84: =AJ84+W84 -> -41 | AQ84: =AK84+X84 -> 57.4 | AR84: =AL84+Y84 -> -18.2 | AV84: 1 | AW84: 0 | AX84: 3 | AY84: 1
A85: WM2022 | B85: 3 | C85: 1 | D85: =RANK(AQ85,$AO85:$AT85) -> 2 | E85: 4 | I85: WM2022 | J85: 25 | K85: 25 | L85: 25 | M85: 25 | P85: 30 | Q85: 60 | R85: 10 | S85: 0 | V85: 5 | W85: 35 | X85: =R85-L85 -> -15 | Y85: =S85-M85 -> -25 | AB85: -1 | AC85: -1 | AD85: 7 | AE85: -5 | AH85: 4 | AI85: -4 | AJ85: -4 | AK85: =$AH85*AD85 -> 28 | AL85: =$AH85*AE85 -> -20 | AO85: 1 | AP85: 31 | AQ85: =AK85+X85 -> 13 | AR85: =AL85+Y85 -> -45 | AV85: 1 | AW85: 1 | AX85: 3 | AY85: 0
A86: Bundesliga | B86: 1 | C86: 2 | D86: =RANK(AQ86,$AO86:$AT86) -> 4 | E86: 6 | F86: 5 | G86: 3 | I86: Bundesliga | J86: =J76 -> 765 | K86: 765 | L86: 420 | M86: 765 | N86: 134 | O86: 345 | P86: 1143.1 | Q86: 976.9 | R86: 312 | S86: 551.4 | T86: 8.5 | U86: 202.1 | V86: 378.1 | W86: 211.9 | X86: -108 | Y86: -213.6 | Z86: -125.5 | AA86: -142.9 | AB86: 45 | AC86: 75 | AD86: -13 | AE86: -74 | AF86: -35 | AG86: 2 | AI86: =AI76 -> 127.1 | AJ86: 251.5 | AK86: -40 | AL86: -250.3 | AM86: -100.1 | AN86: 11.8 | AO86: 505.2 | AP86: 463.4 | AQ86: -148 | AR86: -463.9 | AS86: -225.6 | AT86: -131.1 | AV86: =AV76 -> 139 | AW86: =AW76 -> 146 | AX86: 61 | AY86: 111 | AZ86: 14 | BA86: 64
A87: Gesamt | B87: =RANK(AO87,$AO87:$AT87) -> 1 | C87: 2 | D87: =RANK(AQ87,$AO87:$AT87) -> 3 | E87: 6 | F87: 5 | G87: 4 | I87: Gesamt | J87: =SUM(J80:J86) -> 890 | K87: 890 | L87: 520 | M87: 890 | N87: 134 | O87: 370 | P87: 1303.1 | Q87: 1126.9 | R87: 412 | S87: 631.4 | T87: 8.5 | U87: 212.1 | V87: 413.1 | W87: 236.9 | X87: -108 | Y87: -258.6 | Z87: -125.5 | AA87: -157.9 | AB87: 43 | AC87: 82 | AD87: -2 | AE87: -87 | AF87: -39 | AG87: 3 | AI87: =SUM(AI80:AI86) -> 120.6 | AJ87: =SUM(AJ80:AJ86) -> 278.8 | AK87: 0.8 | AL87: -302.6 | AM87: -110.5 | AN87: 12.9 | AO87: 533.7 | AP87: 515.7 | AQ87: -107.2 | AR87: -561.2 | AS87: -236 | AT87: -145 | AV87: =SUM(AV80:AV86) -> 146 | AW87: =SUM(AW80:AW86) -> 155 | AX87: 69 | AY87: 115 | AZ87: 14 | BA87: 66

Sheet Abstände
A1: =Parameter!B15 -> 26/27 | B1: Abstand zum Rundensieger | H1: Abstand zum Führenden der Saisonwertung | N1: Abstand zum Führenden der Jahreswertung
A2: Runde | B2: =Parameter!$C$1 -> MA | C2: =Parameter!$D$1 -> MN | D2: =Parameter!$E$1 -> AH | E2: =Parameter!$F$1 -> KS | F2: =Parameter!$G$1 -> LM | G2: =Parameter!$H$1 -> EN | H2: =Parameter!$C$1 -> MA | I2: =Parameter!$D$1 -> MN | J2: =Parameter!$E$1 -> AH | K2: =Parameter!$F$1 -> KS | L2: =Parameter!$G$1 -> LM | M2: =Parameter!$H$1 -> EN | N2: =Parameter!$C$1 -> MA | O2: =Parameter!$D$1 -> MN | P2: =Parameter!$E$1 -> AH | Q2: =Parameter!$F$1 -> KS | R2: =Parameter!$G$1 -> LM | S2: =Parameter!$H$1 -> EN
A3: 1 | B3: =Übersicht!C48-MAX(Übersicht!$C48:$F48) -> 0 | C3: =Übersicht!D48-MAX(Übersicht!$C48:$F48) -> 0 | D3: =Übersicht!E48-MAX(Übersicht!$C48:$F48) -> 0 | E3: =Übersicht!F48-MAX(Übersicht!$C48:$F48) -> 0 | F3: =Übersicht!G48-MAX(Übersicht!$C48:$F48) -> 0 | G3: =Übersicht!H48-MAX(Übersicht!$C48:$F48) -> 0 | H3: =Übersicht!L4-MAX(Übersicht!$L4:$O4) -> 0 | I3: =Übersicht!M4-MAX(Übersicht!$L4:$O4) -> 0 | J3: =Übersicht!N4-MAX(Übersicht!$L4:$O4) -> 0 | K3: =Übersicht!O4-MAX(Übersicht!$L4:$O4) -> 0 | L3: =Übersicht!P4-MAX(Übersicht!$L4:$O4) -> 0 | M3: =Übersicht!Q4-MAX(Übersicht!$L4:$O4) -> 0 | N3: =Übersicht!L48-MAX(Übersicht!$L48:$O48) -> 0 | O3: =Übersicht!M48-MAX(Übersicht!$L48:$O48) -> 0 | P3: =Übersicht!N48-MAX(Übersicht!$L48:$O48) -> 0 | Q3: =Übersicht!O48-MAX(Übersicht!$L48:$O48) -> 0 | R3: =Übersicht!P48-MAX(Übersicht!$L48:$O48) -> 0 | S3: =Übersicht!Q48-MAX(Übersicht!$L48:$O48) -> 0
A4: 2 | B4: =Übersicht!C49-MAX(Übersicht!$C49:$F49) -> 0 | C4: =Übersicht!D49-MAX(Übersicht!$C49:$F49) -> 0 | D4: =Übersicht!E49-MAX(Übersicht!$C49:$F49) -> 0 | E4: =Übersicht!F49-MAX(Übersicht!$C49:$F49) -> 0 | F4: =Übersicht!G49-MAX(Übersicht!$C49:$F49) -> 0 | G4: =Übersicht!H49-MAX(Übersicht!$C49:$F49) -> 0 | H4: =Übersicht!L5-MAX(Übersicht!$L5:$O5) -> 0 | I4: =Übersicht!M5-MAX(Übersicht!$L5:$O5) -> 0 | J4: =Übersicht!N5-MAX(Übersicht!$L5:$O5) -> 0 | K4: =Übersicht!O5-MAX(Übersicht!$L5:$O5) -> 0 | L4: =Übersicht!P5-MAX(Übersicht!$L5:$O5) -> 0 | M4: =Übersicht!Q5-MAX(Übersicht!$L5:$O5) -> 0 | N4: =Übersicht!L49-MAX(Übersicht!$L49:$O49) -> 0 | O4: =Übersicht!M49-MAX(Übersicht!$L49:$O49) -> 0 | P4: =Übersicht!N49-MAX(Übersicht!$L49:$O49) -> 0 | Q4: =Übersicht!O49-MAX(Übersicht!$L49:$O49) -> 0 | R4: =Übersicht!P49-MAX(Übersicht!$L49:$O49) -> 0 | S4: =Übersicht!Q49-MAX(Übersicht!$L49:$O49) -> 0
A5: 3 | B5: =Übersicht!C50-MAX(Übersicht!$C50:$F50) -> 0 | C5: =Übersicht!D50-MAX(Übersicht!$C50:$F50) -> 0 | D5: =Übersicht!E50-MAX(Übersicht!$C50:$F50) -> 0 | E5: =Übersicht!F50-MAX(Übersicht!$C50:$F50) -> 0 | F5: =Übersicht!G50-MAX(Übersicht!$C50:$F50) -> 0 | G5: =Übersicht!H50-MAX(Übersicht!$C50:$F50) -> 0 | H5: =Übersicht!L6-MAX(Übersicht!$L6:$O6) -> 0 | I5: =Übersicht!M6-MAX(Übersicht!$L6:$O6) -> 0 | J5: =Übersicht!N6-MAX(Übersicht!$L6:$O6) -> 0 | K5: =Übersicht!O6-MAX(Übersicht!$L6:$O6) -> 0 | L5: =Übersicht!P6-MAX(Übersicht!$L6:$O6) -> 0 | M5: =Übersicht!Q6-MAX(Übersicht!$L6:$O6) -> 0 | N5: =Übersicht!L50-MAX(Übersicht!$L50:$O50) -> 0 | O5: =Übersicht!M50-MAX(Übersicht!$L50:$O50) -> 0 | P5: =Übersicht!N50-MAX(Übersicht!$L50:$O50) -> 0 | Q5: =Übersicht!O50-MAX(Übersicht!$L50:$O50) -> 0 | R5: =Übersicht!P50-MAX(Übersicht!$L50:$O50) -> 0 | S5: =Übersicht!Q50-MAX(Übersicht!$L50:$O50) -> 0
A6: 4 | B6: =Übersicht!C51-MAX(Übersicht!$C51:$F51) -> 0 | C6: =Übersicht!D51-MAX(Übersicht!$C51:$F51) -> 0 | D6: =Übersicht!E51-MAX(Übersicht!$C51:$F51) -> 0 | E6: =Übersicht!F51-MAX(Übersicht!$C51:$F51) -> 0 | F6: =Übersicht!G51-MAX(Übersicht!$C51:$F51) -> 0 | G6: =Übersicht!H51-MAX(Übersicht!$C51:$F51) -> 0 | H6: =Übersicht!L7-MAX(Übersicht!$L7:$O7) -> 0 | I6: =Übersicht!M7-MAX(Übersicht!$L7:$O7) -> 0 | J6: =Übersicht!N7-MAX(Übersicht!$L7:$O7) -> 0 | K6: =Übersicht!O7-MAX(Übersicht!$L7:$O7) -> 0 | L6: =Übersicht!P7-MAX(Übersicht!$L7:$O7) -> 0 | M6: =Übersicht!Q7-MAX(Übersicht!$L7:$O7) -> 0 | N6: =Übersicht!L51-MAX(Übersicht!$L51:$O51) -> 0 | O6: =Übersicht!M51-MAX(Übersicht!$L51:$O51) -> 0 | P6: =Übersicht!N51-MAX(Übersicht!$L51:$O51) -> 0 | Q6: =Übersicht!O51-MAX(Übersicht!$L51:$O51) -> 0 | R6: =Übersicht!P51-MAX(Übersicht!$L51:$O51) -> 0 | S6: =Übersicht!Q51-MAX(Übersicht!$L51:$O51) -> 0
A7: 5 | B7: =Übersicht!C52-MAX(Übersicht!$C52:$F52) -> 0 | C7: =Übersicht!D52-MAX(Übersicht!$C52:$F52) -> 0 | D7: =Übersicht!E52-MAX(Übersicht!$C52:$F52) -> 0 | E7: =Übersicht!F52-MAX(Übersicht!$C52:$F52) -> 0 | F7: =Übersicht!G52-MAX(Übersicht!$C52:$F52) -> 0 | G7: =Übersicht!H52-MAX(Übersicht!$C52:$F52) -> 0 | H7: =Übersicht!L8-MAX(Übersicht!$L8:$O8) -> 0 | I7: =Übersicht!M8-MAX(Übersicht!$L8:$O8) -> 0 | J7: =Übersicht!N8-MAX(Übersicht!$L8:$O8) -> 0 | K7: =Übersicht!O8-MAX(Übersicht!$L8:$O8) -> 0 | L7: =Übersicht!P8-MAX(Übersicht!$L8:$O8) -> 0 | M7: =Übersicht!Q8-MAX(Übersicht!$L8:$O8) -> 0 | N7: =Übersicht!L52-MAX(Übersicht!$L52:$O52) -> 0 | O7: =Übersicht!M52-MAX(Übersicht!$L52:$O52) -> 0 | P7: =Übersicht!N52-MAX(Übersicht!$L52:$O52) -> 0 | Q7: =Übersicht!O52-MAX(Übersicht!$L52:$O52) -> 0 | R7: =Übersicht!P52-MAX(Übersicht!$L52:$O52) -> 0 | S7: =Übersicht!Q52-MAX(Übersicht!$L52:$O52) -> 0
A8: 6 | B8: =Übersicht!C53-MAX(Übersicht!$C53:$F53) -> 0 | C8: =Übersicht!D53-MAX(Übersicht!$C53:$F53) -> 0 | D8: =Übersicht!E53-MAX(Übersicht!$C53:$F53) -> 0 | E8: =Übersicht!F53-MAX(Übersicht!$C53:$F53) -> 0 | F8: =Übersicht!G53-MAX(Übersicht!$C53:$F53) -> 0 | G8: =Übersicht!H53-MAX(Übersicht!$C53:$F53) -> 0 | H8: =Übersicht!L9-MAX(Übersicht!$L9:$O9) -> 0 | I8: =Übersicht!M9-MAX(Übersicht!$L9:$O9) -> 0 | J8: =Übersicht!N9-MAX(Übersicht!$L9:$O9) -> 0 | K8: =Übersicht!O9-MAX(Übersicht!$L9:$O9) -> 0 | L8: =Übersicht!P9-MAX(Übersicht!$L9:$O9) -> 0 | M8: =Übersicht!Q9-MAX(Übersicht!$L9:$O9) -> 0 | N8: =Übersicht!L53-MAX(Übersicht!$L53:$O53) -> 0 | O8: =Übersicht!M53-MAX(Übersicht!$L53:$O53) -> 0 | P8: =Übersicht!N53-MAX(Übersicht!$L53:$O53) -> 0 | Q8: =Übersicht!O53-MAX(Übersicht!$L53:$O53) -> 0 | R8: =Übersicht!P53-MAX(Übersicht!$L53:$O53) -> 0 | S8: =Übersicht!Q53-MAX(Übersicht!$L53:$O53) -> 0
A9: 7 | B9: =Übersicht!C54-MAX(Übersicht!$C54:$F54) -> 0 | C9: =Übersicht!D54-MAX(Übersicht!$C54:$F54) -> 0 | D9: =Übersicht!E54-MAX(Übersicht!$C54:$F54) -> 0 | E9: =Übersicht!F54-MAX(Übersicht!$C54:$F54) -> 0 | F9: =Übersicht!G54-MAX(Übersicht!$C54:$F54) -> 0 | G9: =Übersicht!H54-MAX(Übersicht!$C54:$F54) -> 0 | H9: =Übersicht!L10-MAX(Übersicht!$L10:$O10) -> 0 | I9: =Übersicht!M10-MAX(Übersicht!$L10:$O10) -> 0 | J9: =Übersicht!N10-MAX(Übersicht!$L10:$O10) -> 0 | K9: =Übersicht!O10-MAX(Übersicht!$L10:$O10) -> 0 | L9: =Übersicht!P10-MAX(Übersicht!$L10:$O10) -> 0 | M9: =Übersicht!Q10-MAX(Übersicht!$L10:$O10) -> 0 | N9: =Übersicht!L54-MAX(Übersicht!$L54:$O54) -> 0 | O9: =Übersicht!M54-MAX(Übersicht!$L54:$O54) -> 0 | P9: =Übersicht!N54-MAX(Übersicht!$L54:$O54) -> 0 | Q9: =Übersicht!O54-MAX(Übersicht!$L54:$O54) -> 0 | R9: =Übersicht!P54-MAX(Übersicht!$L54:$O54) -> 0 | S9: =Übersicht!Q54-MAX(Übersicht!$L54:$O54) -> 0
A10: 8 | B10: =Übersicht!C55-MAX(Übersicht!$C55:$F55) -> 0 | C10: =Übersicht!D55-MAX(Übersicht!$C55:$F55) -> 0 | D10: =Übersicht!E55-MAX(Übersicht!$C55:$F55) -> 0 | E10: =Übersicht!F55-MAX(Übersicht!$C55:$F55) -> 0 | F10: =Übersicht!G55-MAX(Übersicht!$C55:$F55) -> 0 | G10: =Übersicht!H55-MAX(Übersicht!$C55:$F55) -> 0 | H10: =Übersicht!L11-MAX(Übersicht!$L11:$O11) -> 0 | I10: =Übersicht!M11-MAX(Übersicht!$L11:$O11) -> 0 | J10: =Übersicht!N11-MAX(Übersicht!$L11:$O11) -> 0 | K10: =Übersicht!O11-MAX(Übersicht!$L11:$O11) -> 0 | L10: =Übersicht!P11-MAX(Übersicht!$L11:$O11) -> 0 | M10: =Übersicht!Q11-MAX(Übersicht!$L11:$O11) -> 0 | N10: =Übersicht!L55-MAX(Übersicht!$L55:$O55) -> 0 | O10: =Übersicht!M55-MAX(Übersicht!$L55:$O55) -> 0 | P10: =Übersicht!N55-MAX(Übersicht!$L55:$O55) -> 0 | Q10: =Übersicht!O55-MAX(Übersicht!$L55:$O55) -> 0 | R10: =Übersicht!P55-MAX(Übersicht!$L55:$O55) -> 0 | S10: =Übersicht!Q55-MAX(Übersicht!$L55:$O55) -> 0
A11: 9 | B11: =Übersicht!C56-MAX(Übersicht!$C56:$F56) -> 0 | C11: =Übersicht!D56-MAX(Übersicht!$C56:$F56) -> 0 | D11: =Übersicht!E56-MAX(Übersicht!$C56:$F56) -> 0 | E11: =Übersicht!F56-MAX(Übersicht!$C56:$F56) -> 0 | F11: =Übersicht!G56-MAX(Übersicht!$C56:$F56) -> 0 | G11: =Übersicht!H56-MAX(Übersicht!$C56:$F56) -> 0 | H11: =Übersicht!L12-MAX(Übersicht!$L12:$O12) -> 0 | I11: =Übersicht!M12-MAX(Übersicht!$L12:$O12) -> 0 | J11: =Übersicht!N12-MAX(Übersicht!$L12:$O12) -> 0 | K11: =Übersicht!O12-MAX(Übersicht!$L12:$O12) -> 0 | L11: =Übersicht!P12-MAX(Übersicht!$L12:$O12) -> 0 | M11: =Übersicht!Q12-MAX(Übersicht!$L12:$O12) -> 0 | N11: =Übersicht!L56-MAX(Übersicht!$L56:$O56) -> 0 | O11: =Übersicht!M56-MAX(Übersicht!$L56:$O56) -> 0 | P11: =Übersicht!N56-MAX(Übersicht!$L56:$O56) -> 0 | Q11: =Übersicht!O56-MAX(Übersicht!$L56:$O56) -> 0 | R11: =Übersicht!P56-MAX(Übersicht!$L56:$O56) -> 0 | S11: =Übersicht!Q56-MAX(Übersicht!$L56:$O56) -> 0
A12: 10 | B12: =Übersicht!C57-MAX(Übersicht!$C57:$F57) -> 0 | C12: =Übersicht!D57-MAX(Übersicht!$C57:$F57) -> 0 | D12: =Übersicht!E57-MAX(Übersicht!$C57:$F57) -> 0 | E12: =Übersicht!F57-MAX(Übersicht!$C57:$F57) -> 0 | F12: =Übersicht!G57-MAX(Übersicht!$C57:$F57) -> 0 | G12: =Übersicht!H57-MAX(Übersicht!$C57:$F57) -> 0 | H12: =Übersicht!L13-MAX(Übersicht!$L13:$O13) -> 0 | I12: =Übersicht!M13-MAX(Übersicht!$L13:$O13) -> 0 | J12: =Übersicht!N13-MAX(Übersicht!$L13:$O13) -> 0 | K12: =Übersicht!O13-MAX(Übersicht!$L13:$O13) -> 0 | L12: =Übersicht!P13-MAX(Übersicht!$L13:$O13) -> 0 | M12: =Übersicht!Q13-MAX(Übersicht!$L13:$O13) -> 0 | N12: =Übersicht!L57-MAX(Übersicht!$L57:$O57) -> 0 | O12: =Übersicht!M57-MAX(Übersicht!$L57:$O57) -> 0 | P12: =Übersicht!N57-MAX(Übersicht!$L57:$O57) -> 0 | Q12: =Übersicht!O57-MAX(Übersicht!$L57:$O57) -> 0 | R12: =Übersicht!P57-MAX(Übersicht!$L57:$O57) -> 0 | S12: =Übersicht!Q57-MAX(Übersicht!$L57:$O57) -> 0
A13: 11 | B13: =Übersicht!C58-MAX(Übersicht!$C58:$F58) -> 0 | C13: =Übersicht!D58-MAX(Übersicht!$C58:$F58) -> 0 | D13: =Übersicht!E58-MAX(Übersicht!$C58:$F58) -> 0 | E13: =Übersicht!F58-MAX(Übersicht!$C58:$F58) -> 0 | F13: =Übersicht!G58-MAX(Übersicht!$C58:$F58) -> 0 | G13: =Übersicht!H58-MAX(Übersicht!$C58:$F58) -> 0 | H13: =Übersicht!L14-MAX(Übersicht!$L14:$O14) -> 0 | I13: =Übersicht!M14-MAX(Übersicht!$L14:$O14) -> 0 | J13: =Übersicht!N14-MAX(Übersicht!$L14:$O14) -> 0 | K13: =Übersicht!O14-MAX(Übersicht!$L14:$O14) -> 0 | L13: =Übersicht!P14-MAX(Übersicht!$L14:$O14) -> 0 | M13: =Übersicht!Q14-MAX(Übersicht!$L14:$O14) -> 0 | N13: =Übersicht!L58-MAX(Übersicht!$L58:$O58) -> 0 | O13: =Übersicht!M58-MAX(Übersicht!$L58:$O58) -> 0 | P13: =Übersicht!N58-MAX(Übersicht!$L58:$O58) -> 0 | Q13: =Übersicht!O58-MAX(Übersicht!$L58:$O58) -> 0 | R13: =Übersicht!P58-MAX(Übersicht!$L58:$O58) -> 0 | S13: =Übersicht!Q58-MAX(Übersicht!$L58:$O58) -> 0
A14: 12 | B14: =Übersicht!C59-MAX(Übersicht!$C59:$F59) -> 0 | C14: =Übersicht!D59-MAX(Übersicht!$C59:$F59) -> 0 | D14: =Übersicht!E59-MAX(Übersicht!$C59:$F59) -> 0 | E14: =Übersicht!F59-MAX(Übersicht!$C59:$F59) -> 0 | F14: =Übersicht!G59-MAX(Übersicht!$C59:$F59) -> 0 | G14: =Übersicht!H59-MAX(Übersicht!$C59:$F59) -> 0 | H14: =Übersicht!L15-MAX(Übersicht!$L15:$O15) -> 0 | I14: =Übersicht!M15-MAX(Übersicht!$L15:$O15) -> 0 | J14: =Übersicht!N15-MAX(Übersicht!$L15:$O15) -> 0 | K14: =Übersicht!O15-MAX(Übersicht!$L15:$O15) -> 0 | L14: =Übersicht!P15-MAX(Übersicht!$L15:$O15) -> 0 | M14: =Übersicht!Q15-MAX(Übersicht!$L15:$O15) -> 0 | N14: =Übersicht!L59-MAX(Übersicht!$L59:$O59) -> 0 | O14: =Übersicht!M59-MAX(Übersicht!$L59:$O59) -> 0 | P14: =Übersicht!N59-MAX(Übersicht!$L59:$O59) -> 0 | Q14: =Übersicht!O59-MAX(Übersicht!$L59:$O59) -> 0 | R14: =Übersicht!P59-MAX(Übersicht!$L59:$O59) -> 0 | S14: =Übersicht!Q59-MAX(Übersicht!$L59:$O59) -> 0
A15: 13 | B15: =Übersicht!C60-MAX(Übersicht!$C60:$F60) -> 0 | C15: =Übersicht!D60-MAX(Übersicht!$C60:$F60) -> 0 | D15: =Übersicht!E60-MAX(Übersicht!$C60:$F60) -> 0 | E15: =Übersicht!F60-MAX(Übersicht!$C60:$F60) -> 0 | F15: =Übersicht!G60-MAX(Übersicht!$C60:$F60) -> 0 | G15: =Übersicht!H60-MAX(Übersicht!$C60:$F60) -> 0 | H15: =Übersicht!L16-MAX(Übersicht!$L16:$O16) -> 0 | I15: =Übersicht!M16-MAX(Übersicht!$L16:$O16) -> 0 | J15: =Übersicht!N16-MAX(Übersicht!$L16:$O16) -> 0 | K15: =Übersicht!O16-MAX(Übersicht!$L16:$O16) -> 0 | L15: =Übersicht!P16-MAX(Übersicht!$L16:$O16) -> 0 | M15: =Übersicht!Q16-MAX(Übersicht!$L16:$O16) -> 0 | N15: =Übersicht!L60-MAX(Übersicht!$L60:$O60) -> 0 | O15: =Übersicht!M60-MAX(Übersicht!$L60:$O60) -> 0 | P15: =Übersicht!N60-MAX(Übersicht!$L60:$O60) -> 0 | Q15: =Übersicht!O60-MAX(Übersicht!$L60:$O60) -> 0 | R15: =Übersicht!P60-MAX(Übersicht!$L60:$O60) -> 0 | S15: =Übersicht!Q60-MAX(Übersicht!$L60:$O60) -> 0
A16: 14 | B16: =Übersicht!C61-MAX(Übersicht!$C61:$F61) -> 0 | C16: =Übersicht!D61-MAX(Übersicht!$C61:$F61) -> 0 | D16: =Übersicht!E61-MAX(Übersicht!$C61:$F61) -> 0 | E16: =Übersicht!F61-MAX(Übersicht!$C61:$F61) -> 0 | F16: =Übersicht!G61-MAX(Übersicht!$C61:$F61) -> 0 | G16: =Übersicht!H61-MAX(Übersicht!$C61:$F61) -> 0 | H16: =Übersicht!L17-MAX(Übersicht!$L17:$O17) -> 0 | I16: =Übersicht!M17-MAX(Übersicht!$L17:$O17) -> 0 | J16: =Übersicht!N17-MAX(Übersicht!$L17:$O17) -> 0 | K16: =Übersicht!O17-MAX(Übersicht!$L17:$O17) -> 0 | L16: =Übersicht!P17-MAX(Übersicht!$L17:$O17) -> 0 | M16: =Übersicht!Q17-MAX(Übersicht!$L17:$O17) -> 0 | N16: =Übersicht!L61-MAX(Übersicht!$L61:$O61) -> 0 | O16: =Übersicht!M61-MAX(Übersicht!$L61:$O61) -> 0 | P16: =Übersicht!N61-MAX(Übersicht!$L61:$O61) -> 0 | Q16: =Übersicht!O61-MAX(Übersicht!$L61:$O61) -> 0 | R16: =Übersicht!P61-MAX(Übersicht!$L61:$O61) -> 0 | S16: =Übersicht!Q61-MAX(Übersicht!$L61:$O61) -> 0
A17: 15 | B17: =Übersicht!C62-MAX(Übersicht!$C62:$F62) -> 0 | C17: =Übersicht!D62-MAX(Übersicht!$C62:$F62) -> 0 | D17: =Übersicht!E62-MAX(Übersicht!$C62:$F62) -> 0 | E17: =Übersicht!F62-MAX(Übersicht!$C62:$F62) -> 0 | F17: =Übersicht!G62-MAX(Übersicht!$C62:$F62) -> 0 | G17: =Übersicht!H62-MAX(Übersicht!$C62:$F62) -> 0 | H17: =Übersicht!L18-MAX(Übersicht!$L18:$O18) -> 0 | I17: =Übersicht!M18-MAX(Übersicht!$L18:$O18) -> 0 | J17: =Übersicht!N18-MAX(Übersicht!$L18:$O18) -> 0 | K17: =Übersicht!O18-MAX(Übersicht!$L18:$O18) -> 0 | L17: =Übersicht!P18-MAX(Übersicht!$L18:$O18) -> 0 | M17: =Übersicht!Q18-MAX(Übersicht!$L18:$O18) -> 0 | N17: =Übersicht!L62-MAX(Übersicht!$L62:$O62) -> 0 | O17: =Übersicht!M62-MAX(Übersicht!$L62:$O62) -> 0 | P17: =Übersicht!N62-MAX(Übersicht!$L62:$O62) -> 0 | Q17: =Übersicht!O62-MAX(Übersicht!$L62:$O62) -> 0 | R17: =Übersicht!P62-MAX(Übersicht!$L62:$O62) -> 0 | S17: =Übersicht!Q62-MAX(Übersicht!$L62:$O62) -> 0
A18: 16 | B18: =Übersicht!C63-MAX(Übersicht!$C63:$F63) -> 0 | C18: =Übersicht!D63-MAX(Übersicht!$C63:$F63) -> 0 | D18: =Übersicht!E63-MAX(Übersicht!$C63:$F63) -> 0 | E18: =Übersicht!F63-MAX(Übersicht!$C63:$F63) -> 0 | F18: =Übersicht!G63-MAX(Übersicht!$C63:$F63) -> 0 | G18: =Übersicht!H63-MAX(Übersicht!$C63:$F63) -> 0 | H18: =Übersicht!L19-MAX(Übersicht!$L19:$O19) -> 0 | I18: =Übersicht!M19-MAX(Übersicht!$L19:$O19) -> 0 | J18: =Übersicht!N19-MAX(Übersicht!$L19:$O19) -> 0 | K18: =Übersicht!O19-MAX(Übersicht!$L19:$O19) -> 0 | L18: =Übersicht!P19-MAX(Übersicht!$L19:$O19) -> 0 | M18: =Übersicht!Q19-MAX(Übersicht!$L19:$O19) -> 0 | N18: =Übersicht!L63-MAX(Übersicht!$L63:$O63) -> 0 | O18: =Übersicht!M63-MAX(Übersicht!$L63:$O63) -> 0 | P18: =Übersicht!N63-MAX(Übersicht!$L63:$O63) -> 0 | Q18: =Übersicht!O63-MAX(Übersicht!$L63:$O63) -> 0 | R18: =Übersicht!P63-MAX(Übersicht!$L63:$O63) -> 0 | S18: =Übersicht!Q63-MAX(Übersicht!$L63:$O63) -> 0
A19: 17 | B19: =Übersicht!C64-MAX(Übersicht!$C64:$F64) -> 0 | C19: =Übersicht!D64-MAX(Übersicht!$C64:$F64) -> 0 | D19: =Übersicht!E64-MAX(Übersicht!$C64:$F64) -> 0 | E19: =Übersicht!F64-MAX(Übersicht!$C64:$F64) -> 0 | F19: =Übersicht!G64-MAX(Übersicht!$C64:$F64) -> 0 | G19: =Übersicht!H64-MAX(Übersicht!$C64:$F64) -> 0 | H19: =Übersicht!L20-MAX(Übersicht!$L20:$O20) -> 0 | I19: =Übersicht!M20-MAX(Übersicht!$L20:$O20) -> 0 | J19: =Übersicht!N20-MAX(Übersicht!$L20:$O20) -> 0 | K19: =Übersicht!O20-MAX(Übersicht!$L20:$O20) -> 0 | L19: =Übersicht!P20-MAX(Übersicht!$L20:$O20) -> 0 | M19: =Übersicht!Q20-MAX(Übersicht!$L20:$O20) -> 0 | N19: =Übersicht!L64-MAX(Übersicht!$L64:$O64) -> 0 | O19: =Übersicht!M64-MAX(Übersicht!$L64:$O64) -> 0 | P19: =Übersicht!N64-MAX(Übersicht!$L64:$O64) -> 0 | Q19: =Übersicht!O64-MAX(Übersicht!$L64:$O64) -> 0 | R19: =Übersicht!P64-MAX(Übersicht!$L64:$O64) -> 0 | S19: =Übersicht!Q64-MAX(Übersicht!$L64:$O64) -> 0
A20: 18 | B20: =Übersicht!C65-MAX(Übersicht!$C65:$F65) -> 0 | C20: =Übersicht!D65-MAX(Übersicht!$C65:$F65) -> 0 | D20: =Übersicht!E65-MAX(Übersicht!$C65:$F65) -> 0 | E20: =Übersicht!F65-MAX(Übersicht!$C65:$F65) -> 0 | F20: =Übersicht!G65-MAX(Übersicht!$C65:$F65) -> 0 | G20: =Übersicht!H65-MAX(Übersicht!$C65:$F65) -> 0 | H20: =Übersicht!L26-MAX(Übersicht!$L26:$O26) -> 0 | I20: =Übersicht!M26-MAX(Übersicht!$L26:$O26) -> 0 | J20: =Übersicht!N26-MAX(Übersicht!$L26:$O26) -> 0 | K20: =Übersicht!O26-MAX(Übersicht!$L26:$O26) -> 0 | L20: =Übersicht!P26-MAX(Übersicht!$L26:$O26) -> 0 | M20: =Übersicht!Q26-MAX(Übersicht!$L26:$O26) -> 0 | N20: =Übersicht!L65-MAX(Übersicht!$L65:$O65) -> 0 | O20: =Übersicht!M65-MAX(Übersicht!$L65:$O65) -> 0 | P20: =Übersicht!N65-MAX(Übersicht!$L65:$O65) -> 0 | Q20: =Übersicht!O65-MAX(Übersicht!$L65:$O65) -> 0 | R20: =Übersicht!P65-MAX(Übersicht!$L65:$O65) -> 0 | S20: =Übersicht!Q65-MAX(Übersicht!$L65:$O65) -> 0
A21: 19 | B21: =Übersicht!C66-MAX(Übersicht!$C66:$F66) -> 0 | C21: =Übersicht!D66-MAX(Übersicht!$C66:$F66) -> 0 | D21: =Übersicht!E66-MAX(Übersicht!$C66:$F66) -> 0 | E21: =Übersicht!F66-MAX(Übersicht!$C66:$F66) -> 0 | F21: =Übersicht!G66-MAX(Übersicht!$C66:$F66) -> 0 | G21: =Übersicht!H66-MAX(Übersicht!$C66:$F66) -> 0 | H21: =Übersicht!L27-MAX(Übersicht!$L27:$O27) -> 0 | I21: =Übersicht!M27-MAX(Übersicht!$L27:$O27) -> 0 | J21: =Übersicht!N27-MAX(Übersicht!$L27:$O27) -> 0 | K21: =Übersicht!O27-MAX(Übersicht!$L27:$O27) -> 0 | L21: =Übersicht!P27-MAX(Übersicht!$L27:$O27) -> 0 | M21: =Übersicht!Q27-MAX(Übersicht!$L27:$O27) -> 0 | N21: =Übersicht!L66-MAX(Übersicht!$L66:$O66) -> 0 | O21: =Übersicht!M66-MAX(Übersicht!$L66:$O66) -> 0 | P21: =Übersicht!N66-MAX(Übersicht!$L66:$O66) -> 0 | Q21: =Übersicht!O66-MAX(Übersicht!$L66:$O66) -> 0 | R21: =Übersicht!P66-MAX(Übersicht!$L66:$O66) -> 0 | S21: =Übersicht!Q66-MAX(Übersicht!$L66:$O66) -> 0
A22: 20 | B22: =Übersicht!C67-MAX(Übersicht!$C67:$F67) -> 0 | C22: =Übersicht!D67-MAX(Übersicht!$C67:$F67) -> 0 | D22: =Übersicht!E67-MAX(Übersicht!$C67:$F67) -> 0 | E22: =Übersicht!F67-MAX(Übersicht!$C67:$F67) -> 0 | F22: =Übersicht!G67-MAX(Übersicht!$C67:$F67) -> 0 | G22: =Übersicht!H67-MAX(Übersicht!$C67:$F67) -> 0 | H22: =Übersicht!L28-MAX(Übersicht!$L28:$O28) -> 0 | I22: =Übersicht!M28-MAX(Übersicht!$L28:$O28) -> 0 | J22: =Übersicht!N28-MAX(Übersicht!$L28:$O28) -> 0 | K22: =Übersicht!O28-MAX(Übersicht!$L28:$O28) -> 0 | L22: =Übersicht!P28-MAX(Übersicht!$L28:$O28) -> 0 | M22: =Übersicht!Q28-MAX(Übersicht!$L28:$O28) -> 0 | N22: =Übersicht!L67-MAX(Übersicht!$L67:$O67) -> 0 | O22: =Übersicht!M67-MAX(Übersicht!$L67:$O67) -> 0 | P22: =Übersicht!N67-MAX(Übersicht!$L67:$O67) -> 0 | Q22: =Übersicht!O67-MAX(Übersicht!$L67:$O67) -> 0 | R22: =Übersicht!P67-MAX(Übersicht!$L67:$O67) -> 0 | S22: =Übersicht!Q67-MAX(Übersicht!$L67:$O67) -> 0
A23: 21 | B23: =Übersicht!C68-MAX(Übersicht!$C68:$F68) -> 0 | C23: =Übersicht!D68-MAX(Übersicht!$C68:$F68) -> 0 | D23: =Übersicht!E68-MAX(Übersicht!$C68:$F68) -> 0 | E23: =Übersicht!F68-MAX(Übersicht!$C68:$F68) -> 0 | F23: =Übersicht!G68-MAX(Übersicht!$C68:$F68) -> 0 | G23: =Übersicht!H68-MAX(Übersicht!$C68:$F68) -> 0 | H23: =Übersicht!L29-MAX(Übersicht!$L29:$O29) -> 0 | I23: =Übersicht!M29-MAX(Übersicht!$L29:$O29) -> 0 | J23: =Übersicht!N29-MAX(Übersicht!$L29:$O29) -> 0 | K23: =Übersicht!O29-MAX(Übersicht!$L29:$O29) -> 0 | L23: =Übersicht!P29-MAX(Übersicht!$L29:$O29) -> 0 | M23: =Übersicht!Q29-MAX(Übersicht!$L29:$O29) -> 0 | N23: =Übersicht!L68-MAX(Übersicht!$L68:$O68) -> 0 | O23: =Übersicht!M68-MAX(Übersicht!$L68:$O68) -> 0 | P23: =Übersicht!N68-MAX(Übersicht!$L68:$O68) -> 0 | Q23: =Übersicht!O68-MAX(Übersicht!$L68:$O68) -> 0 | R23: =Übersicht!P68-MAX(Übersicht!$L68:$O68) -> 0 | S23: =Übersicht!Q68-MAX(Übersicht!$L68:$O68) -> 0
A24: 22 | B24: =Übersicht!C69-MAX(Übersicht!$C69:$F69) -> 0 | C24: =Übersicht!D69-MAX(Übersicht!$C69:$F69) -> 0 | D24: =Übersicht!E69-MAX(Übersicht!$C69:$F69) -> 0 | E24: =Übersicht!F69-MAX(Übersicht!$C69:$F69) -> 0 | F24: =Übersicht!G69-MAX(Übersicht!$C69:$F69) -> 0 | G24: =Übersicht!H69-MAX(Übersicht!$C69:$F69) -> 0 | H24: =Übersicht!L30-MAX(Übersicht!$L30:$O30) -> 0 | I24: =Übersicht!M30-MAX(Übersicht!$L30:$O30) -> 0 | J24: =Übersicht!N30-MAX(Übersicht!$L30:$O30) -> 0 | K24: =Übersicht!O30-MAX(Übersicht!$L30:$O30) -> 0 | L24: =Übersicht!P30-MAX(Übersicht!$L30:$O30) -> 0 | M24: =Übersicht!Q30-MAX(Übersicht!$L30:$O30) -> 0 | N24: =Übersicht!L69-MAX(Übersicht!$L69:$O69) -> 0 | O24: =Übersicht!M69-MAX(Übersicht!$L69:$O69) -> 0 | P24: =Übersicht!N69-MAX(Übersicht!$L69:$O69) -> 0 | Q24: =Übersicht!O69-MAX(Übersicht!$L69:$O69) -> 0 | R24: =Übersicht!P69-MAX(Übersicht!$L69:$O69) -> 0 | S24: =Übersicht!Q69-MAX(Übersicht!$L69:$O69) -> 0
A25: 23 | B25: =Übersicht!C70-MAX(Übersicht!$C70:$F70) -> 0 | C25: =Übersicht!D70-MAX(Übersicht!$C70:$F70) -> 0 | D25: =Übersicht!E70-MAX(Übersicht!$C70:$F70) -> 0 | E25: =Übersicht!F70-MAX(Übersicht!$C70:$F70) -> 0 | F25: =Übersicht!G70-MAX(Übersicht!$C70:$F70) -> 0 | G25: =Übersicht!H70-MAX(Übersicht!$C70:$F70) -> 0 | H25: =Übersicht!L31-MAX(Übersicht!$L31:$O31) -> 0 | I25: =Übersicht!M31-MAX(Übersicht!$L31:$O31) -> 0 | J25: =Übersicht!N31-MAX(Übersicht!$L31:$O31) -> 0 | K25: =Übersicht!O31-MAX(Übersicht!$L31:$O31) -> 0 | L25: =Übersicht!P31-MAX(Übersicht!$L31:$O31) -> 0 | M25: =Übersicht!Q31-MAX(Übersicht!$L31:$O31) -> 0 | N25: =Übersicht!L70-MAX(Übersicht!$L70:$O70) -> 0 | O25: =Übersicht!M70-MAX(Übersicht!$L70:$O70) -> 0 | P25: =Übersicht!N70-MAX(Übersicht!$L70:$O70) -> 0 | Q25: =Übersicht!O70-MAX(Übersicht!$L70:$O70) -> 0 | R25: =Übersicht!P70-MAX(Übersicht!$L70:$O70) -> 0 | S25: =Übersicht!Q70-MAX(Übersicht!$L70:$O70) -> 0
A26: 24 | B26: =Übersicht!C71-MAX(Übersicht!$C71:$F71) -> 0 | C26: =Übersicht!D71-MAX(Übersicht!$C71:$F71) -> 0 | D26: =Übersicht!E71-MAX(Übersicht!$C71:$F71) -> 0 | E26: =Übersicht!F71-MAX(Übersicht!$C71:$F71) -> 0 | F26: =Übersicht!G71-MAX(Übersicht!$C71:$F71) -> 0 | G26: =Übersicht!H71-MAX(Übersicht!$C71:$F71) -> 0 | H26: =Übersicht!L32-MAX(Übersicht!$L32:$O32) -> 0 | I26: =Übersicht!M32-MAX(Übersicht!$L32:$O32) -> 0 | J26: =Übersicht!N32-MAX(Übersicht!$L32:$O32) -> 0 | K26: =Übersicht!O32-MAX(Übersicht!$L32:$O32) -> 0 | L26: =Übersicht!P32-MAX(Übersicht!$L32:$O32) -> 0 | M26: =Übersicht!Q32-MAX(Übersicht!$L32:$O32) -> 0 | N26: =Übersicht!L71-MAX(Übersicht!$L71:$O71) -> 0 | O26: =Übersicht!M71-MAX(Übersicht!$L71:$O71) -> 0 | P26: =Übersicht!N71-MAX(Übersicht!$L71:$O71) -> 0 | Q26: =Übersicht!O71-MAX(Übersicht!$L71:$O71) -> 0 | R26: =Übersicht!P71-MAX(Übersicht!$L71:$O71) -> 0 | S26: =Übersicht!Q71-MAX(Übersicht!$L71:$O71) -> 0
A27: 25 | B27: =Übersicht!C72-MAX(Übersicht!$C72:$F72) -> 0 | C27: =Übersicht!D72-MAX(Übersicht!$C72:$F72) -> 0 | D27: =Übersicht!E72-MAX(Übersicht!$C72:$F72) -> 0 | E27: =Übersicht!F72-MAX(Übersicht!$C72:$F72) -> 0 | F27: =Übersicht!G72-MAX(Übersicht!$C72:$F72) -> 0 | G27: =Übersicht!H72-MAX(Übersicht!$C72:$F72) -> 0 | H27: =Übersicht!L33-MAX(Übersicht!$L33:$O33) -> 0 | I27: =Übersicht!M33-MAX(Übersicht!$L33:$O33) -> 0 | J27: =Übersicht!N33-MAX(Übersicht!$L33:$O33) -> 0 | K27: =Übersicht!O33-MAX(Übersicht!$L33:$O33) -> 0 | L27: =Übersicht!P33-MAX(Übersicht!$L33:$O33) -> 0 | M27: =Übersicht!Q33-MAX(Übersicht!$L33:$O33) -> 0 | N27: =Übersicht!L72-MAX(Übersicht!$L72:$O72) -> 0 | O27: =Übersicht!M72-MAX(Übersicht!$L72:$O72) -> 0 | P27: =Übersicht!N72-MAX(Übersicht!$L72:$O72) -> 0 | Q27: =Übersicht!O72-MAX(Übersicht!$L72:$O72) -> 0 | R27: =Übersicht!P72-MAX(Übersicht!$L72:$O72) -> 0 | S27: =Übersicht!Q72-MAX(Übersicht!$L72:$O72) -> 0
A28: 26 | B28: =Übersicht!C73-MAX(Übersicht!$C73:$F73) -> 0 | C28: =Übersicht!D73-MAX(Übersicht!$C73:$F73) -> 0 | D28: =Übersicht!E73-MAX(Übersicht!$C73:$F73) -> 0 | E28: =Übersicht!F73-MAX(Übersicht!$C73:$F73) -> 0 | F28: =Übersicht!G73-MAX(Übersicht!$C73:$F73) -> 0 | G28: =Übersicht!H73-MAX(Übersicht!$C73:$F73) -> 0 | H28: =Übersicht!L34-MAX(Übersicht!$L34:$O34) -> 0 | I28: =Übersicht!M34-MAX(Übersicht!$L34:$O34) -> 0 | J28: =Übersicht!N34-MAX(Übersicht!$L34:$O34) -> 0 | K28: =Übersicht!O34-MAX(Übersicht!$L34:$O34) -> 0 | L28: =Übersicht!P34-MAX(Übersicht!$L34:$O34) -> 0 | M28: =Übersicht!Q34-MAX(Übersicht!$L34:$O34) -> 0 | N28: =Übersicht!L73-MAX(Übersicht!$L73:$O73) -> 0 | O28: =Übersicht!M73-MAX(Übersicht!$L73:$O73) -> 0 | P28: =Übersicht!N73-MAX(Übersicht!$L73:$O73) -> 0 | Q28: =Übersicht!O73-MAX(Übersicht!$L73:$O73) -> 0 | R28: =Übersicht!P73-MAX(Übersicht!$L73:$O73) -> 0 | S28: =Übersicht!Q73-MAX(Übersicht!$L73:$O73) -> 0
A29: 27 | B29: =Übersicht!C74-MAX(Übersicht!$C74:$F74) -> 0 | C29: =Übersicht!D74-MAX(Übersicht!$C74:$F74) -> 0 | D29: =Übersicht!E74-MAX(Übersicht!$C74:$F74) -> 0 | E29: =Übersicht!F74-MAX(Übersicht!$C74:$F74) -> 0 | F29: =Übersicht!G74-MAX(Übersicht!$C74:$F74) -> 0 | G29: =Übersicht!H74-MAX(Übersicht!$C74:$F74) -> 0 | H29: =Übersicht!L35-MAX(Übersicht!$L35:$O35) -> 0 | I29: =Übersicht!M35-MAX(Übersicht!$L35:$O35) -> 0 | J29: =Übersicht!N35-MAX(Übersicht!$L35:$O35) -> 0 | K29: =Übersicht!O35-MAX(Übersicht!$L35:$O35) -> 0 | L29: =Übersicht!P35-MAX(Übersicht!$L35:$O35) -> 0 | M29: =Übersicht!Q35-MAX(Übersicht!$L35:$O35) -> 0 | N29: =Übersicht!L74-MAX(Übersicht!$L74:$O74) -> 0 | O29: =Übersicht!M74-MAX(Übersicht!$L74:$O74) -> 0 | P29: =Übersicht!N74-MAX(Übersicht!$L74:$O74) -> 0 | Q29: =Übersicht!O74-MAX(Übersicht!$L74:$O74) -> 0 | R29: =Übersicht!P74-MAX(Übersicht!$L74:$O74) -> 0 | S29: =Übersicht!Q74-MAX(Übersicht!$L74:$O74) -> 0
A30: 28 | B30: =Übersicht!C75-MAX(Übersicht!$C75:$F75) -> 0 | C30: =Übersicht!D75-MAX(Übersicht!$C75:$F75) -> 0 | D30: =Übersicht!E75-MAX(Übersicht!$C75:$F75) -> 0 | E30: =Übersicht!F75-MAX(Übersicht!$C75:$F75) -> 0 | F30: =Übersicht!G75-MAX(Übersicht!$C75:$F75) -> 0 | G30: =Übersicht!H75-MAX(Übersicht!$C75:$F75) -> 0 | H30: =Übersicht!L36-MAX(Übersicht!$L36:$O36) -> 0 | I30: =Übersicht!M36-MAX(Übersicht!$L36:$O36) -> 0 | J30: =Übersicht!N36-MAX(Übersicht!$L36:$O36) -> 0 | K30: =Übersicht!O36-MAX(Übersicht!$L36:$O36) -> 0 | L30: =Übersicht!P36-MAX(Übersicht!$L36:$O36) -> 0 | M30: =Übersicht!Q36-MAX(Übersicht!$L36:$O36) -> 0 | N30: =Übersicht!L75-MAX(Übersicht!$L75:$O75) -> 0 | O30: =Übersicht!M75-MAX(Übersicht!$L75:$O75) -> 0 | P30: =Übersicht!N75-MAX(Übersicht!$L75:$O75) -> 0 | Q30: =Übersicht!O75-MAX(Übersicht!$L75:$O75) -> 0 | R30: =Übersicht!P75-MAX(Übersicht!$L75:$O75) -> 0 | S30: =Übersicht!Q75-MAX(Übersicht!$L75:$O75) -> 0
A31: 29 | B31: =Übersicht!C76-MAX(Übersicht!$C76:$F76) -> 0 | C31: =Übersicht!D76-MAX(Übersicht!$C76:$F76) -> 0 | D31: =Übersicht!E76-MAX(Übersicht!$C76:$F76) -> 0 | E31: =Übersicht!F76-MAX(Übersicht!$C76:$F76) -> 0 | F31: =Übersicht!G76-MAX(Übersicht!$C76:$F76) -> 0 | G31: =Übersicht!H76-MAX(Übersicht!$C76:$F76) -> 0 | H31: =Übersicht!L37-MAX(Übersicht!$L37:$O37) -> 0 | I31: =Übersicht!M37-MAX(Übersicht!$L37:$O37) -> 0 | J31: =Übersicht!N37-MAX(Übersicht!$L37:$O37) -> 0 | K31: =Übersicht!O37-MAX(Übersicht!$L37:$O37) -> 0 | L31: =Übersicht!P37-MAX(Übersicht!$L37:$O37) -> 0 | M31: =Übersicht!Q37-MAX(Übersicht!$L37:$O37) -> 0 | N31: =Übersicht!L76-MAX(Übersicht!$L76:$O76) -> 0 | O31: =Übersicht!M76-MAX(Übersicht!$L76:$O76) -> 0 | P31: =Übersicht!N76-MAX(Übersicht!$L76:$O76) -> 0 | Q31: =Übersicht!O76-MAX(Übersicht!$L76:$O76) -> 0 | R31: =Übersicht!P76-MAX(Übersicht!$L76:$O76) -> 0 | S31: =Übersicht!Q76-MAX(Übersicht!$L76:$O76) -> 0
A32: 30 | B32: =Übersicht!C77-MAX(Übersicht!$C77:$F77) -> 0 | C32: =Übersicht!D77-MAX(Übersicht!$C77:$F77) -> 0 | D32: =Übersicht!E77-MAX(Übersicht!$C77:$F77) -> 0 | E32: =Übersicht!F77-MAX(Übersicht!$C77:$F77) -> 0 | F32: =Übersicht!G77-MAX(Übersicht!$C77:$F77) -> 0 | G32: =Übersicht!H77-MAX(Übersicht!$C77:$F77) -> 0 | H32: =Übersicht!L38-MAX(Übersicht!$L38:$O38) -> 0 | I32: =Übersicht!M38-MAX(Übersicht!$L38:$O38) -> 0 | J32: =Übersicht!N38-MAX(Übersicht!$L38:$O38) -> 0 | K32: =Übersicht!O38-MAX(Übersicht!$L38:$O38) -> 0 | L32: =Übersicht!P38-MAX(Übersicht!$L38:$O38) -> 0 | M32: =Übersicht!Q38-MAX(Übersicht!$L38:$O38) -> 0 | N32: =Übersicht!L77-MAX(Übersicht!$L77:$O77) -> 0 | O32: =Übersicht!M77-MAX(Übersicht!$L77:$O77) -> 0 | P32: =Übersicht!N77-MAX(Übersicht!$L77:$O77) -> 0 | Q32: =Übersicht!O77-MAX(Übersicht!$L77:$O77) -> 0 | R32: =Übersicht!P77-MAX(Übersicht!$L77:$O77) -> 0 | S32: =Übersicht!Q77-MAX(Übersicht!$L77:$O77) -> 0
A33: 31 | B33: =Übersicht!C78-MAX(Übersicht!$C78:$F78) -> 0 | C33: =Übersicht!D78-MAX(Übersicht!$C78:$F78) -> 0 | D33: =Übersicht!E78-MAX(Übersicht!$C78:$F78) -> 0 | E33: =Übersicht!F78-MAX(Übersicht!$C78:$F78) -> 0 | F33: =Übersicht!G78-MAX(Übersicht!$C78:$F78) -> 0 | G33: =Übersicht!H78-MAX(Übersicht!$C78:$F78) -> 0 | H33: =Übersicht!L39-MAX(Übersicht!$L39:$O39) -> 0 | I33: =Übersicht!M39-MAX(Übersicht!$L39:$O39) -> 0 | J33: =Übersicht!N39-MAX(Übersicht!$L39:$O39) -> 0 | K33: =Übersicht!O39-MAX(Übersicht!$L39:$O39) -> 0 | L33: =Übersicht!P39-MAX(Übersicht!$L39:$O39) -> 0 | M33: =Übersicht!Q39-MAX(Übersicht!$L39:$O39) -> 0 | N33: =Übersicht!L78-MAX(Übersicht!$L78:$O78) -> 0 | O33: =Übersicht!M78-MAX(Übersicht!$L78:$O78) -> 0 | P33: =Übersicht!N78-MAX(Übersicht!$L78:$O78) -> 0 | Q33: =Übersicht!O78-MAX(Übersicht!$L78:$O78) -> 0 | R33: =Übersicht!P78-MAX(Übersicht!$L78:$O78) -> 0 | S33: =Übersicht!Q78-MAX(Übersicht!$L78:$O78) -> 0
A34: 32 | B34: =Übersicht!C79-MAX(Übersicht!$C79:$F79) -> 0 | C34: =Übersicht!D79-MAX(Übersicht!$C79:$F79) -> 0 | D34: =Übersicht!E79-MAX(Übersicht!$C79:$F79) -> 0 | E34: =Übersicht!F79-MAX(Übersicht!$C79:$F79) -> 0 | F34: =Übersicht!G79-MAX(Übersicht!$C79:$F79) -> 0 | G34: =Übersicht!H79-MAX(Übersicht!$C79:$F79) -> 0 | H34: =Übersicht!L40-MAX(Übersicht!$L40:$O40) -> 0 | I34: =Übersicht!M40-MAX(Übersicht!$L40:$O40) -> 0 | J34: =Übersicht!N40-MAX(Übersicht!$L40:$O40) -> 0 | K34: =Übersicht!O40-MAX(Übersicht!$L40:$O40) -> 0 | L34: =Übersicht!P40-MAX(Übersicht!$L40:$O40) -> 0 | M34: =Übersicht!Q40-MAX(Übersicht!$L40:$O40) -> 0 | N34: =Übersicht!L79-MAX(Übersicht!$L79:$O79) -> 0 | O34: =Übersicht!M79-MAX(Übersicht!$L79:$O79) -> 0 | P34: =Übersicht!N79-MAX(Übersicht!$L79:$O79) -> 0 | Q34: =Übersicht!O79-MAX(Übersicht!$L79:$O79) -> 0 | R34: =Übersicht!P79-MAX(Übersicht!$L79:$O79) -> 0 | S34: =Übersicht!Q79-MAX(Übersicht!$L79:$O79) -> 0
A35: 33 | B35: =Übersicht!C80-MAX(Übersicht!$C80:$F80) -> 0 | C35: =Übersicht!D80-MAX(Übersicht!$C80:$F80) -> 0 | D35: =Übersicht!E80-MAX(Übersicht!$C80:$F80) -> 0 | E35: =Übersicht!F80-MAX(Übersicht!$C80:$F80) -> 0 | F35: =Übersicht!G80-MAX(Übersicht!$C80:$F80) -> 0 | G35: =Übersicht!H80-MAX(Übersicht!$C80:$F80) -> 0 | H35: =Übersicht!L41-MAX(Übersicht!$L41:$O41) -> 0 | I35: =Übersicht!M41-MAX(Übersicht!$L41:$O41) -> 0 | J35: =Übersicht!N41-MAX(Übersicht!$L41:$O41) -> 0 | K35: =Übersicht!O41-MAX(Übersicht!$L41:$O41) -> 0 | L35: =Übersicht!P41-MAX(Übersicht!$L41:$O41) -> 0 | M35: =Übersicht!Q41-MAX(Übersicht!$L41:$O41) -> 0 | N35: =Übersicht!L80-MAX(Übersicht!$L80:$O80) -> 0 | O35: =Übersicht!M80-MAX(Übersicht!$L80:$O80) -> 0 | P35: =Übersicht!N80-MAX(Übersicht!$L80:$O80) -> 0 | Q35: =Übersicht!O80-MAX(Übersicht!$L80:$O80) -> 0 | R35: =Übersicht!P80-MAX(Übersicht!$L80:$O80) -> 0 | S35: =Übersicht!Q80-MAX(Übersicht!$L80:$O80) -> 0
A36: 34 | B36: =Übersicht!C81-MAX(Übersicht!$C81:$F81) -> 0 | C36: =Übersicht!D81-MAX(Übersicht!$C81:$F81) -> 0 | D36: =Übersicht!E81-MAX(Übersicht!$C81:$F81) -> 0 | E36: =Übersicht!F81-MAX(Übersicht!$C81:$F81) -> 0 | F36: =Übersicht!G81-MAX(Übersicht!$C81:$F81) -> 0 | G36: =Übersicht!H81-MAX(Übersicht!$C81:$F81) -> 0 | H36: =Übersicht!L42-MAX(Übersicht!$L42:$O42) -> 0 | I36: =Übersicht!M42-MAX(Übersicht!$L42:$O42) -> 0 | J36: =Übersicht!N42-MAX(Übersicht!$L42:$O42) -> 0 | K36: =Übersicht!O42-MAX(Übersicht!$L42:$O42) -> 0 | L36: =Übersicht!P42-MAX(Übersicht!$L42:$O42) -> 0 | M36: =Übersicht!Q42-MAX(Übersicht!$L42:$O42) -> 0 | N36: =Übersicht!L81-MAX(Übersicht!$L81:$O81) -> 0 | O36: =Übersicht!M81-MAX(Übersicht!$L81:$O81) -> 0 | P36: =Übersicht!N81-MAX(Übersicht!$L81:$O81) -> 0 | Q36: =Übersicht!O81-MAX(Übersicht!$L81:$O81) -> 0 | R36: =Übersicht!P81-MAX(Übersicht!$L81:$O81) -> 0 | S36: =Übersicht!Q81-MAX(Übersicht!$L81:$O81) -> 0
AA66: D

Sheet Tippschein
C1: =Parameter!B15&" Runde" -> 26/27 Runde | E1: 1 | G1: Spiel | K1: =MATCH(1,Runde!AC12:AH12,0) -> 1
B3: =INDEX(Daten!$A$3:$S$308,Tippschein!$G3,COLUMN()) -> Fr 20:30 | C3: =INDEX(Daten!$A$3:$S$308,Tippschein!$G3,COLUMN()) -> 1 | D3: =INDEX(Daten!$A$3:$S$308,Tippschein!$G3,COLUMN()) -> 0 | E3: =INDEX(Daten!$A$3:$S$308,Tippschein!$G3,COLUMN()) -> 0 | F3: =Runde!E3 -> 00:00:00 | G3: =G4-1 -> 1 | H3: =IF(K3=0,"bereit für Runde " & Runde!B1,"Runde " & Runde!B1 & " geht an " & INDEX(Runde!V2:AA2,1,K1)) -> bereit für Runde 1 | K3: =SUM(Runde!V3:AA11) -> 0
B4: =INDEX(Daten!$A$3:$S$308,Tippschein!$G4,COLUMN()) -> Sa 15:30 | C4: =INDEX(Daten!$A$3:$S$308,Tippschein!$G4,COLUMN()) -> 2 | D4: =INDEX(Daten!$A$3:$S$308,Tippschein!$G4,COLUMN()) -> 0 | E4: =INDEX(Daten!$A$3:$S$308,Tippschein!$G4,COLUMN()) -> 0 | G4: 2
B5: =INDEX(Daten!$A$3:$S$308,Tippschein!$G5,COLUMN()) -> Sa 15:30 | C5: =INDEX(Daten!$A$3:$S$308,Tippschein!$G5,COLUMN()) -> 3 | D5: =INDEX(Daten!$A$3:$S$308,Tippschein!$G5,COLUMN()) -> 0 | E5: =INDEX(Daten!$A$3:$S$308,Tippschein!$G5,COLUMN()) -> 0 | G5: 3 | H5: Runde 34 geht an AH Frühjahr: MA vor AH und MN
B6: =INDEX(Daten!$A$3:$S$308,Tippschein!$G6,COLUMN()) -> Sa 15:30 | C6: =INDEX(Daten!$A$3:$S$308,Tippschein!$G6,COLUMN()) -> 4 | D6: =INDEX(Daten!$A$3:$S$308,Tippschein!$G6,COLUMN()) -> 0 | E6: =INDEX(Daten!$A$3:$S$308,Tippschein!$G6,COLUMN()) -> 0 | G6: 4
B7: =INDEX(Daten!$A$3:$S$308,Tippschein!$G7,COLUMN()) -> Sa 15:30 | C7: =INDEX(Daten!$A$3:$S$308,Tippschein!$G7,COLUMN()) -> 5 | D7: =INDEX(Daten!$A$3:$S$308,Tippschein!$G7,COLUMN()) -> 0 | E7: =INDEX(Daten!$A$3:$S$308,Tippschein!$G7,COLUMN()) -> 0 | G7: 5
B8: =INDEX(Daten!$A$3:$S$308,Tippschein!$G8,COLUMN()) -> Sa 15:30 | C8: =INDEX(Daten!$A$3:$S$308,Tippschein!$G8,COLUMN()) -> 6 | D8: =INDEX(Daten!$A$3:$S$308,Tippschein!$G8,COLUMN()) -> 0 | E8: =INDEX(Daten!$A$3:$S$308,Tippschein!$G8,COLUMN()) -> 0 | G8: 6
B9: =INDEX(Daten!$A$3:$S$308,Tippschein!$G9,COLUMN()) -> Sa 18:30 | C9: =INDEX(Daten!$A$3:$S$308,Tippschein!$G9,COLUMN()) -> 7 | D9: =INDEX(Daten!$A$3:$S$308,Tippschein!$G9,COLUMN()) -> 0 | E9: =INDEX(Daten!$A$3:$S$308,Tippschein!$G9,COLUMN()) -> 0 | G9: 7
B10: =INDEX(Daten!$A$3:$S$308,Tippschein!$G10,COLUMN()) -> So 15:30 | C10: =INDEX(Daten!$A$3:$S$308,Tippschein!$G10,COLUMN()) -> 8 | D10: =INDEX(Daten!$A$3:$S$308,Tippschein!$G10,COLUMN()) -> 0 | E10: =INDEX(Daten!$A$3:$S$308,Tippschein!$G10,COLUMN()) -> 0 | G10: =G11-1 -> 8
B11: =INDEX(Daten!$A$3:$S$308,Tippschein!$G11,COLUMN()) -> So 17:30 | C11: =INDEX(Daten!$A$3:$S$308,Tippschein!$G11,COLUMN()) -> 9 | D11: =INDEX(Daten!$A$3:$S$308,Tippschein!$G11,COLUMN()) -> 0 | E11: =INDEX(Daten!$A$3:$S$308,Tippschein!$G11,COLUMN()) -> 0 | G11: =E1*9 -> 9

Sheet Parameter
A1: Spieleranzahl | B1: =SUM(C6:H6) -> 4 | C1: MA | D1: MN | E1: AH | F1: KS | G1: LM | H1: EN | K1: MA | AA1: Rd | AB1: Sp | AC1: =C1 -> MA | AE1: =D1 -> MN | AG1: =E1 -> AH | AI1: =F1 -> KS | AK1: =G1 -> LM | AM1: =H1 -> EN | AR1: Rd | AS1: Sp | AT1: =AC1 -> MA | AV1: =AE1 -> MN | AX1: =AG1 -> AH | AZ1: =AI1 -> KS | BB1: =AK1 -> LM | BD1: =AM1 -> EN
A2: Einsatz Herbst | C2: 25 | D2: 25 | E2: 25 | F2: 25 | K2: MN | AA2: 01 | AB2: 1 | AC2: 2 | AD2: 0 | AE2: 3 | AF2: 1 | AG2: 2 | AH2: 1 | AI2: 2 | AJ2: 0 | AR2: 01 | AS2: 1 | AT2: 2 | AU2: 0 | AV2: 3 | AW2: 1 | AX2: 2 | AY2: 1 | AZ2: 2 | BA2: 1
A3: Einsatz Frühjahr | C3: 25 | D3: 25 | E3: 25 | F3: 25 | K3: AH | AA3: 01 | AB3: 2 | AC3: 2 | AD3: 1 | AE3: 3 | AF3: 0 | AG3: 2 | AH3: 0 | AI3: 3 | AJ3: 1 | AR3: 01 | AS3: 2 | AT3: 2 | AU3: 1 | AV3: 3 | AW3: 0 | AX3: 2 | AY3: 0 | AZ3: 2 | BA3: 1
A4: Einsatz Jahr | C4: 0 | D4: 0 | E4: 0 | F4: 0 | K4: KS | AA4: 01 | AB4: 3 | AC4: 2 | AD4: 0 | AE4: 3 | AF4: 0 | AG4: 2 | AH4: 1 | AI4: 4 | AJ4: 0 | AR4: 01 | AS4: 3 | AT4: 2 | AU4: 0 | AV4: 3 | AW4: 0 | AX4: 2 | AY4: 1 | AZ4: 2 | BA4: 1
A5: aktiv | C5: J | D5: J | E5: J | F5: J | G5: N | H5: N | K5: LM | AA5: 01 | AB5: 4 | AC5: 2 | AD5: 1 | AE5: 2 | AF5: 1 | AG5: 1 | AH5: 1 | AI5: 2 | AJ5: 0 | AR5: 01 | AS5: 4 | AT5: 2 | AU5: 1 | AV5: 2 | AW5: 1 | AX5: 1 | AY5: 1 | AZ5: 2 | BA5: 1
A6: aktiv | C6: =IF(C5="J",1,0) -> 1 | D6: 1 | E6: 1 | F6: 1 | G6: 0 | H6: 0 | K6: EN | AA6: 01 | AB6: 5 | AC6: 1 | AD6: 0 | AE6: 2 | AF6: 1 | AG6: 2 | AH6: 1 | AI6: 1 | AJ6: 1 | AR6: 01 | AS6: 5 | AT6: 1 | AU6: 0 | AV6: 2 | AW6: 1 | AX6: 2 | AY6: 1 | AZ6: 2 | BA6: 1
AA7: 01 | AB7: 6 | AC7: 2 | AD7: 1 | AE7: 2 | AF7: 1 | AG7: 2 | AH7: 1 | AI7: 2 | AJ7: 1 | AR7: 01 | AS7: 6 | AT7: 2 | AU7: 1 | AV7: 2 | AW7: 1 | AX7: 2 | AY7: 1 | AZ7: 2 | BA7: 1
A8: Rang 1 | B8: 0.6 | AA8: 01 | AB8: 7 | AC8: 2 | AD8: 1 | AE8: 2 | AF8: 1 | AG8: 2 | AH8: 1 | AI8: 1 | AJ8: 2 | AR8: 01 | AS8: 7 | AT8: 2 | AU8: 1 | AV8: 2 | AW8: 1 | AX8: 2 | AY8: 1 | AZ8: 2 | BA8: 1
A9: Rang 2 | B9: 0.3 | AA9: 01 | AB9: 8 | AC9: 2 | AD9: 1 | AE9: 1 | AF9: 1 | AG9: 1 | AH9: 1 | AI9: 1 | AJ9: 1 | AR9: 01 | AS9: 8 | AT9: 2 | AU9: 1 | AV9: 1 | AW9: 1 | AX9: 1 | AY9: 1 | AZ9: 2 | BA9: 1
A10: Rang 3 | B10: 0.1 | AA10: 01 | AB10: 9 | AC10: 1 | AD10: 2 | AE10: 1 | AF10: 3 | AG10: 1 | AH10: 2 | AI10: 2 | AJ10: 0 | AR10: 01 | AS10: 9 | AT10: 1 | AU10: 2 | AV10: 1 | AW10: 3 | AX10: 1 | AY10: 2 | AZ10: 2 | BA10: 1
A11: Rang 4 | AA11: 02 | AB11: 1 | AC11: 0 | AD11: 3 | AE11: 1 | AF11: 3 | AG11: 1 | AH11: 3 | AI11: 0 | AJ11: 3 | AR11: 02 | AS11: 1 | AT11: 0 | AU11: 3 | AV11: 1 | AW11: 3 | AX11: 1 | AY11: 3 | AZ11: 2 | BA11: 1
A12: Rang 5 | AA12: 02 | AB12: 2 | AC12: 1 | AD12: 2 | AE12: 1 | AF12: 2 | AG12: 1 | AH12: 2 | AI12: 1 | AJ12: 1 | AR12: 02 | AS12: 2 | AT12: 1 | AU12: 2 | AV12: 1 | AW12: 2 | AX12: 1 | AY12: 2 | AZ12: 2 | BA12: 1
A13: Rang 6 | AA13: 02 | AB13: 3 | AC13: 1 | AD13: 0 | AE13: 1 | AF13: 0 | AG13: 0 | AH13: 2 | AI13: 2 | AJ13: 0 | AR13: 02 | AS13: 3 | AT13: 1 | AU13: 0 | AV13: 1 | AW13: 0 | AX13: 0 | AY13: 2 | AZ13: 2 | BA13: 1
AA14: 02 | AB14: 4 | AC14: 1 | AD14: 2 | AE14: 1 | AF14: 1 | AG14: 1 | AH14: 2 | AI14: 0 | AJ14: 1 | AR14: 02 | AS14: 4 | AT14: 1 | AU14: 2 | AV14: 1 | AW14: 1 | AX14: 1 | AY14: 2 | AZ14: 2 | BA14: 1
A15: Saison | B15: 26/27 | AA15: 02 | AB15: 5 | AC15: 2 | AD15: 1 | AE15: 1 | AF15: 2 | AG15: 1 | AH15: 1 | AI15: 0 | AJ15: 2 | AR15: 02 | AS15: 5 | AT15: 2 | AU15: 1 | AV15: 1 | AW15: 2 | AX15: 1 | AY15: 1 | AZ15: 2 | BA15: 1
A16: Seidlpreis Herbst | B16: 4.6 | AA16: 02 | AB16: 6 | AC16: 2 | AD16: 1 | AE16: 2 | AF16: 1 | AG16: 1 | AH16: 2 | AI16: 2 | AJ16: 1 | AR16: 02 | AS16: 6 | AT16: 2 | AU16: 1 | AV16: 2 | AW16: 1 | AX16: 1 | AY16: 2 | AZ16: 2 | BA16: 1
A17: Seidlpreis Frühjahr | B17: 4.6 | AA17: 02 | AB17: 7 | AC17: 1 | AD17: 3 | AE17: 1 | AF17: 3 | AG17: 0 | AH17: 3 | AI17: 1 | AJ17: 2 | AR17: 02 | AS17: 7 | AT17: 1 | AU17: 3 | AV17: 1 | AW17: 3 | AX17: 0 | AY17: 3 | AZ17: 2 | BA17: 1
AA18: 02 | AB18: 8 | AC18: 3 | AD18: 1 | AE18: 3 | AF18: 1 | AG18: 2 | AH18: 1 | AI18: 2 | AJ18: 0 | AR18: 02 | AS18: 8 | AT18: 3 | AU18: 1 | AV18: 3 | AW18: 1 | AX18: 2 | AY18: 1 | AZ18: 2 | BA18: 1
AA19: 02 | AB19: 9 | AC19: 1 | AD19: 2 | AE19: 2 | AF19: 1 | AG19: 1 | AH19: 2 | AI19: 1 | AJ19: 1 | AR19: 02 | AS19: 9 | AT19: 1 | AU19: 2 | AV19: 2 | AW19: 1 | AX19: 1 | AY19: 2 | AZ19: 2 | BA19: 1
A20: Mannschaften | B20: Augsburg | AA20: 03 | AB20: 1 | AC20: 1 | AD20: 2 | AE20: 2 | AF20: 2 | AG20: 1 | AH20: 2 | AI20: 1 | AJ20: 1 | AR20: 03 | AS20: 1 | AT20: 1 | AU20: 2 | AV20: 2 | AW20: 2 | AX20: 1 | AY20: 2 | AZ20: 2 | BA20: 1
B21: Bayern | AA21: 03 | AB21: 2 | AC21: 2 | AD21: 1 | AE21: 3 | AF21: 0 | AG21: 2 | AH21: 0 | AI21: 3 | AJ21: 0 | AR21: 03 | AS21: 2 | AT21: 2 | AU21: 1 | AV21: 3 | AW21: 0 | AX21: 2 | AY21: 0 | AZ21: 2 | BA21: 1
B22: Berlin | AA22: 03 | AB22: 3 | AC22: 2 | AD22: 1 | AE22: 2 | AF22: 1 | AG22: 1 | AH22: 1 | AI22: 2 | AJ22: 1 | AR22: 03 | AS22: 3 | AT22: 2 | AU22: 1 | AV22: 2 | AW22: 1 | AX22: 1 | AY22: 1 | AZ22: 2 | BA22: 1
B23: Bremen | AA23: 03 | AB23: 4 | AC23: 1 | AD23: 0 | AE23: 1 | AF23: 2 | AG23: 1 | AH23: 3 | AI23: 2 | AJ23: 0 | AR23: 03 | AS23: 4 | AT23: 1 | AU23: 0 | AV23: 1 | AW23: 2 | AX23: 1 | AY23: 3 | AZ23: 2 | BA23: 1
B24: Dortmund | AA24: 03 | AB24: 5 | AC24: 1 | AD24: 1 | AE24: 1 | AF24: 1 | AG24: 2 | AH24: 1 | AI24: 1 | AJ24: 0 | AR24: 03 | AS24: 5 | AT24: 1 | AU24: 1 | AV24: 1 | AW24: 1 | AX24: 2 | AY24: 1 | AZ24: 2 | BA24: 1
B25: Elversberg | AA25: 03 | AB25: 6 | AC25: 4 | AD25: 0 | AE25: 3 | AF25: 1 | AG25: 3 | AH25: 0 | AI25: 3 | AJ25: 0 | AR25: 03 | AS25: 6 | AT25: 4 | AU25: 0 | AV25: 3 | AW25: 1 | AX25: 3 | AY25: 0 | AZ25: 2 | BA25: 1
B26: Frankfurt | AA26: 03 | AB26: 7 | AC26: 1 | AD26: 3 | AE26: 1 | AF26: 3 | AG26: 1 | AH26: 2 | AI26: 1 | AJ26: 3 | AR26: 03 | AS26: 7 | AT26: 1 | AU26: 3 | AV26: 1 | AW26: 3 | AX26: 1 | AY26: 2 | AZ26: 2 | BA26: 1
B27: Freiburg | AA27: 03 | AB27: 8 | AC27: 2 | AD27: 1 | AE27: 2 | AF27: 1 | AG27: 2 | AH27: 2 | AI27: 1 | AJ27: 0 | AR27: 03 | AS27: 8 | AT27: 2 | AU27: 1 | AV27: 2 | AW27: 1 | AX27: 2 | AY27: 2 | AZ27: 2 | BA27: 1
B28: Hamburg | AA28: 03 | AB28: 9 | AC28: 2 | AD28: 1 | AE28: 2 | AF28: 1 | AG28: 3 | AH28: 1 | AI28: 2 | AJ28: 0 | AR28: 03 | AS28: 9 | AT28: 2 | AU28: 1 | AV28: 2 | AW28: 1 | AX28: 3 | AY28: 1 | AZ28: 2 | BA28: 1
B29: Hoffenheim | AA29: 04 | AB29: 1 | AC29: 1 | AD29: 2 | AE29: 1 | AF29: 2 | AG29: 1 | AH29: 2 | AI29: 0 | AJ29: 2 | AR29: 04 | AS29: 1 | AT29: 1 | AU29: 2 | AV29: 1 | AW29: 2 | AX29: 1 | AY29: 2 | AZ29: 2 | BA29: 1
B30: Köln | AA30: 04 | AB30: 2 | AC30: 1 | AD30: 2 | AE30: 2 | AF30: 1 | AG30: 1 | AH30: 1 | AI30: 1 | AJ30: 1 | AR30: 04 | AS30: 2 | AT30: 1 | AU30: 2 | AV30: 2 | AW30: 1 | AX30: 1 | AY30: 1 | AZ30: 2 | BA30: 1
B31: Leipzig | AA31: 04 | AB31: 3 | AC31: 1 | AD31: 0 | AE31: 2 | AF31: 1 | AG31: 1 | AH31: 2 | AI31: 1 | AJ31: 0 | AR31: 04 | AS31: 3 | AT31: 1 | AU31: 0 | AV31: 2 | AW31: 1 | AX31: 1 | AY31: 2 | AZ31: 2 | BA31: 1
B32: Leverkusen | AA32: 04 | AB32: 4 | AC32: 3 | AD32: 2 | AE32: 2 | AF32: 1 | AG32: 2 | AH32: 1 | AI32: 2 | AJ32: 2 | AR32: 04 | AS32: 4 | AT32: 3 | AU32: 2 | AV32: 2 | AW32: 1 | AX32: 2 | AY32: 1 | AZ32: 2 | BA32: 1
B33: Mainz | AA33: 04 | AB33: 5 | AC33: 1 | AD33: 2 | AE33: 1 | AF33: 2 | AG33: 0 | AH33: 3 | AI33: 1 | AJ33: 2 | AR33: 04 | AS33: 5 | AT33: 1 | AU33: 2 | AV33: 1 | AW33: 2 | AX33: 0 | AY33: 3 | AZ33: 2 | BA33: 1
B34: M'Gladbach | AA34: 04 | AB34: 6 | AC34: 1 | AD34: 2 | AE34: 1 | AF34: 2 | AG34: 0 | AH34: 2 | AI34: 1 | AJ34: 1 | AR34: 04 | AS34: 6 | AT34: 1 | AU34: 2 | AV34: 1 | AW34: 2 | AX34: 0 | AY34: 2 | AZ34: 2 | BA34: 1
B35: Paderborn | AA35: 04 | AB35: 7 | AC35: 2 | AD35: 3 | AE35: 2 | AF35: 3 | AG35: 2 | AH35: 3 | AI35: 2 | AJ35: 1 | AR35: 04 | AS35: 7 | AT35: 2 | AU35: 3 | AV35: 2 | AW35: 3 | AX35: 2 | AY35: 3 | AZ35: 2 | BA35: 1
B36: Schalke | AA36: 04 | AB36: 8 | AC36: 2 | AD36: 1 | AE36: 3 | AF36: 1 | AG36: 0 | AH36: 2 | AI36: 0 | AJ36: 0 | AR36: 04 | AS36: 8 | AT36: 2 | AU36: 1 | AV36: 3 | AW36: 1 | AX36: 0 | AY36: 2 | AZ36: 2 | BA36: 1
B37: Stuttgart | AA37: 04 | AB37: 9 | AC37: 1 | AD37: 2 | AE37: 1 | AF37: 2 | AG37: 1 | AH37: 2 | AI37: 0 | AJ37: 1 | AR37: 04 | AS37: 9 | AT37: 1 | AU37: 2 | AV37: 1 | AW37: 2 | AX37: 1 | AY37: 2 | AZ37: 2 | BA37: 1
AA38: 05 | AB38: 1 | AC38: 3 | AD38: 1 | AE38: 2 | AF38: 1 | AG38: 2 | AH38: 1 | AI38: 3 | AJ38: 0 | AR38: 05 | AS38: 1 | AT38: 3 | AU38: 1 | AV38: 2 | AW38: 1 | AX38: 2 | AY38: 1 | AZ38: 2 | BA38: 1
AA39: 05 | AB39: 2 | AC39: 2 | AD39: 1 | AE39: 2 | AF39: 1 | AG39: 3 | AH39: 0 | AI39: 3 | AJ39: 1 | AR39: 05 | AS39: 2 | AT39: 2 | AU39: 1 | AV39: 2 | AW39: 1 | AX39: 3 | AY39: 0 | AZ39: 2 | BA39: 1
A40: Berechnen | B40: TRUE | AA40: 05 | AB40: 3 | AC40: 2 | AD40: 1 | AE40: 3 | AF40: 1 | AG40: 1 | AH40: 1 | AI40: 4 | AJ40: 0 | AR40: 05 | AS40: 3 | AT40: 2 | AU40: 1 | AV40: 3 | AW40: 1 | AX40: 1 | AY40: 1 | AZ40: 2 | BA40: 1
AA41: 05 | AB41: 4 | AC41: 4 | AD41: 1 | AE41: 4 | AF41: 0 | AG41: 3 | AH41: 1 | AI41: 5 | AJ41: 0 | AR41: 05 | AS41: 4 | AT41: 4 | AU41: 1 | AV41: 4 | AW41: 0 | AX41: 3 | AY41: 1 | AZ41: 2 | BA41: 1
AA42: 05 | AB42: 5 | AC42: 2 | AD42: 1 | AE42: 2 | AF42: 0 | AG42: 2 | AH42: 1 | AI42: 2 | AJ42: 1 | AR42: 05 | AS42: 5 | AT42: 2 | AU42: 1 | AV42: 2 | AW42: 0 | AX42: 2 | AY42: 1 | AZ42: 2 | BA42: 1
AA43: 05 | AB43: 6 | AC43: 1 | AD43: 2 | AE43: 1 | AF43: 3 | AG43: 1 | AH43: 2 | AI43: 1 | AJ43: 2 | AR43: 05 | AS43: 6 | AT43: 1 | AU43: 2 | AV43: 1 | AW43: 3 | AX43: 1 | AY43: 2 | AZ43: 2 | BA43: 1
AA44: 05 | AB44: 7 | AC44: 2 | AD44: 1 | AE44: 3 | AF44: 0 | AG44: 2 | AH44: 1 | AI44: 2 | AJ44: 0 | AR44: 05 | AS44: 7 | AT44: 2 | AU44: 1 | AV44: 3 | AW44: 0 | AX44: 2 | AY44: 1 | AZ44: 2 | BA44: 1
A45: Tipps | AA45: 05 | AB45: 8 | AC45: 1 | AD45: 3 | AE45: 1 | AF45: 2 | AG45: 0 | AH45: 2 | AI45: 1 | AJ45: 3 | AR45: 05 | AS45: 8 | AT45: 1 | AU45: 3 | AV45: 1 | AW45: 2 | AX45: 0 | AY45: 2 | AZ45: 2 | BA45: 1
B46: 0 | AA46: 05 | AB46: 9 | AC46: 2 | AD46: 1 | AE46: 2 | AF46: 1 | AG46: 2 | AH46: 1 | AI46: 2 | AJ46: 0 | AR46: 05 | AS46: 9 | AT46: 2 | AU46: 1 | AV46: 2 | AW46: 1 | AX46: 2 | AY46: 1 | AZ46: 2 | BA46: 1
B47: 1 | AA47: 06 | AB47: 1 | AC47: 1 | AD47: 2 | AE47: 1 | AF47: 2 | AG47: 1 | AH47: 3 | AI47: 1 | AJ47: 1 | AR47: 06 | AS47: 1 | AT47: 1 | AU47: 2 | AV47: 1 | AW47: 2 | AX47: 1 | AY47: 3 | AZ47: 2 | BA47: 1
B48: 2 | AA48: 06 | AB48: 2 | AC48: 1 | AD48: 2 | AE48: 2 | AF48: 1 | AG48: 1 | AH48: 2 | AI48: 1 | AJ48: 0 | AR48: 06 | AS48: 2 | AT48: 1 | AU48: 2 | AV48: 2 | AW48: 1 | AX48: 1 | AY48: 2 | AZ48: 2 | BA48: 1
B49: 3 | AA49: 06 | AB49: 3 | AC49: 1 | AD49: 2 | AE49: 1 | AF49: 2 | AG49: 1 | AH49: 2 | AI49: 0 | AJ49: 2 | AR49: 06 | AS49: 3 | AT49: 1 | AU49: 2 | AV49: 1 | AW49: 2 | AX49: 1 | AY49: 2 | AZ49: 2 | BA49: 1
B50: 4 | AA50: 06 | AB50: 4 | AC50: 1 | AD50: 2 | AE50: 1 | AF50: 2 | AG50: 1 | AH50: 2 | AI50: 1 | AJ50: 3 | AR50: 06 | AS50: 4 | AT50: 1 | AU50: 2 | AV50: 1 | AW50: 2 | AX50: 1 | AY50: 2 | AZ50: 2 | BA50: 1
B51: 5 | AA51: 06 | AB51: 5 | AC51: 2 | AD51: 1 | AE51: 3 | AF51: 1 | AG51: 3 | AH51: 1 | AI51: 2 | AJ51: 2 | AR51: 06 | AS51: 5 | AT51: 2 | AU51: 1 | AV51: 3 | AW51: 1 | AX51: 3 | AY51: 1 | AZ51: 2 | BA51: 1
B52: 6 | AA52: 06 | AB52: 6 | AC52: 1 | AD52: 4 | AE52: 0 | AF52: 4 | AG52: 1 | AH52: 3 | AI52: 0 | AJ52: 4 | AR52: 06 | AS52: 6 | AT52: 1 | AU52: 4 | AV52: 0 | AW52: 4 | AX52: 1 | AY52: 3 | AZ52: 2 | BA52: 1
B53: 7 | AA53: 06 | AB53: 7 | AC53: 3 | AD53: 0 | AE53: 3 | AF53: 1 | AG53: 2 | AH53: 1 | AI53: 4 | AJ53: 0 | AR53: 06 | AS53: 7 | AT53: 3 | AU53: 0 | AV53: 3 | AW53: 1 | AX53: 2 | AY53: 1 | AZ53: 2 | BA53: 1
B54: 8 | AA54: 06 | AB54: 8 | AC54: 2 | AD54: 0 | AE54: 2 | AF54: 1 | AG54: 1 | AH54: 3 | AI54: 0 | AJ54: 3 | AR54: 06 | AS54: 8 | AT54: 2 | AU54: 0 | AV54: 2 | AW54: 1 | AX54: 1 | AY54: 3 | AZ54: 2 | BA54: 1
B55: 9 | AA55: 06 | AB55: 9 | AC55: 2 | AD55: 1 | AE55: 2 | AF55: 1 | AG55: 1 | AH55: 2 | AI55: 0 | AJ55: 0 | AR55: 06 | AS55: 9 | AT55: 2 | AU55: 1 | AV55: 2 | AW55: 1 | AX55: 1 | AY55: 2 | AZ55: 2 | BA55: 1
AA56: 07 | AB56: 1 | AC56: 2 | AD56: 1 | AE56: 2 | AF56: 1 | AG56: 2 | AH56: 1 | AI56: 2 | AJ56: 0 | AR56: 07 | AS56: 1 | AT56: 2 | AU56: 1 | AV56: 2 | AW56: 1 | AX56: 2 | AY56: 1 | AZ56: 2 | BA56: 1
B57: 6 | AA57: 07 | AB57: 2 | AC57: 1 | AD57: 2 | AE57: 1 | AF57: 3 | AG57: 1 | AH57: 2 | AI57: 1 | AJ57: 1 | AR57: 07 | AS57: 2 | AT57: 1 | AU57: 2 | AV57: 1 | AW57: 3 | AX57: 1 | AY57: 2 | AZ57: 2 | BA57: 1
A58: Tore | AA58: 07 | AB58: 3 | AC58: 3 | AD58: 1 | AE58: 4 | AF58: 1 | AG58: 3 | AH58: 0 | AI58: 3 | AJ58: 1 | AR58: 07 | AS58: 3 | AT58: 3 | AU58: 1 | AV58: 4 | AW58: 1 | AX58: 3 | AY58: 0 | AZ58: 2 | BA58: 1
A59: Tordifferenz | AA59: 07 | AB59: 4 | AC59: 1 | AD59: 1 | AE59: 2 | AF59: 1 | AG59: 1 | AH59: 2 | AI59: 1 | AJ59: 0 | AR59: 07 | AS59: 4 | AT59: 1 | AU59: 1 | AV59: 2 | AW59: 1 | AX59: 1 | AY59: 2 | AZ59: 2 | BA59: 1
A60: genaue Treffer | AA60: 07 | AB60: 5 | AC60: 1 | AD60: 3 | AE60: 1 | AF60: 2 | AG60: 1 | AH60: 2 | AI60: 2 | AJ60: 2 | AR60: 07 | AS60: 5 | AT60: 1 | AU60: 3 | AV60: 1 | AW60: 2 | AX60: 1 | AY60: 2 | AZ60: 2 | BA60: 1
A61: Trends | AA61: 07 | AB61: 6 | AC61: 2 | AD61: 0 | AE61: 2 | AF61: 0 | AG61: 3 | AH61: 1 | AI61: 3 | AJ61: 0 | AR61: 07 | AS61: 6 | AT61: 2 | AU61: 0 | AV61: 2 | AW61: 0 | AX61: 3 | AY61: 1 | AZ61: 2 | BA61: 1
A62: nicht getroffen | AA62: 07 | AB62: 7 | AC62: 2 | AD62: 1 | AE62: 2 | AF62: 1 | AG62: 2 | AH62: 1 | AI62: 2 | AJ62: 0 | AR62: 07 | AS62: 7 | AT62: 2 | AU62: 1 | AV62: 2 | AW62: 1 | AX62: 2 | AY62: 1 | AZ62: 2 | BA62: 1
A63: Abstände | AA63: 07 | AB63: 8 | AC63: 2 | AD63: 0 | AE63: 2 | AF63: 0 | AG63: 2 | AH63: 1 | AI63: 3 | AJ63: 1 | AR63: 07 | AS63: 8 | AT63: 2 | AU63: 0 | AV63: 2 | AW63: 0 | AX63: 2 | AY63: 1 | AZ63: 2 | BA63: 1
AA64: 07 | AB64: 9 | AC64: 2 | AD64: 1 | AE64: 2 | AF64: 1 | AG64: 2 | AH64: 1 | AI64: 2 | AJ64: 1 | AR64: 07 | AS64: 9 | AT64: 2 | AU64: 1 | AV64: 2 | AW64: 1 | AX64: 2 | AY64: 1 | AZ64: 2 | BA64: 1
AA65: 08 | AB65: 1 | AC65: 2 | AD65: 1 | AE65: 1 | AF65: 2 | AG65: 1 | AH65: 2 | AI65: 2 | AJ65: 1 | AR65: 08 | AS65: 1 | AT65: 2 | AU65: 1 | AV65: 1 | AW65: 2 | AX65: 1 | AY65: 2 | AZ65: 2 | BA65: 1
AA66: 08 | AB66: 2 | AC66: 2 | AD66: 1 | AE66: 1 | AF66: 0 | AG66: 1 | AH66: 2 | AI66: 1 | AJ66: 1 | AR66: 08 | AS66: 2 | AT66: 2 | AU66: 1 | AV66: 1 | AW66: 0 | AX66: 1 | AY66: 2 | AZ66: 2 | BA66: 1
AA67: 08 | AB67: 3 | AC67: 1 | AD67: 2 | AE67: 1 | AF67: 2 | AG67: 1 | AH67: 3 | AI67: 0 | AJ67: 2 | AR67: 08 | AS67: 3 | AT67: 1 | AU67: 2 | AV67: 1 | AW67: 2 | AX67: 1 | AY67: 3 | AZ67: 2 | BA67: 1
AA68: 08 | AB68: 4 | AC68: 1 | AD68: 3 | AE68: 1 | AF68: 3 | AG68: 0 | AH68: 3 | AI68: 1 | AJ68: 4 | AR68: 08 | AS68: 4 | AT68: 1 | AU68: 3 | AV68: 1 | AW68: 3 | AX68: 0 | AY68: 3 | AZ68: 2 | BA68: 1
AA69: 08 | AB69: 5 | AC69: 1 | AD69: 1 | AE69: 2 | AF69: 1 | AG69: 1 | AH69: 2 | AI69: 2 | AJ69: 1 | AR69: 08 | AS69: 5 | AT69: 1 | AU69: 1 | AV69: 2 | AW69: 1 | AX69: 1 | AY69: 2 | AZ69: 2 | BA69: 1
AA70: 08 | AB70: 6 | AC70: 2 | AD70: 1 | AE70: 2 | AF70: 1 | AG70: 1 | AH70: 2 | AI70: 2 | AJ70: 2 | AR70: 08 | AS70: 6 | AT70: 2 | AU70: 1 | AV70: 2 | AW70: 1 | AX70: 1 | AY70: 2 | AZ70: 2 | BA70: 1
AA71: 08 | AB71: 7 | AC71: 2 | AD71: 1 | AE71: 2 | AF71: 1 | AG71: 1 | AH71: 2 | AI71: 2 | AJ71: 1 | AR71: 08 | AS71: 7 | AT71: 2 | AU71: 1 | AV71: 2 | AW71: 1 | AX71: 1 | AY71: 2 | AZ71: 2 | BA71: 1
AA72: 08 | AB72: 8 | AC72: 1 | AD72: 0 | AE72: 2 | AF72: 0 | AG72: 2 | AH72: 1 | AI72: 1 | AJ72: 0 | AR72: 08 | AS72: 8 | AT72: 1 | AU72: 0 | AV72: 2 | AW72: 0 | AX72: 2 | AY72: 1 | AZ72: 2 | BA72: 1
AA73: 08 | AB73: 9 | AC73: 1 | AD73: 2 | AE73: 1 | AF73: 1 | AG73: 1 | AH73: 2 | AI73: 1 | AJ73: 3 | AR73: 08 | AS73: 9 | AT73: 1 | AU73: 2 | AV73: 1 | AW73: 1 | AX73: 1 | AY73: 2 | AZ73: 2 | BA73: 1
AA74: 09 | AB74: 1 | AC74: 1 | AD74: 0 | AE74: 2 | AF74: 1 | AG74: 2 | AH74: 1 | AI74: 1 | AJ74: 1 | AR74: 09 | AS74: 1 | AT74: 1 | AU74: 0 | AV74: 2 | AW74: 1 | AX74: 2 | AY74: 1 | AZ74: 2 | BA74: 1
AA75: 09 | AB75: 2 | AC75: 1 | AD75: 2 | AE75: 1 | AF75: 2 | AG75: 1 | AH75: 2 | AI75: 1 | AJ75: 1 | AR75: 09 | AS75: 2 | AT75: 1 | AU75: 2 | AV75: 1 | AW75: 2 | AX75: 1 | AY75: 2 | AZ75: 2 | BA75: 1
AA76: 09 | AB76: 3 | AC76: 3 | AD76: 0 | AE76: 4 | AF76: 1 | AG76: 2 | AH76: 1 | AI76: 3 | AJ76: 0 | AR76: 09 | AS76: 3 | AT76: 3 | AU76: 0 | AV76: 4 | AW76: 1 | AX76: 2 | AY76: 1 | AZ76: 2 | BA76: 1
AA77: 09 | AB77: 4 | AC77: 1 | AD77: 2 | AE77: 1 | AF77: 1 | AG77: 1 | AH77: 2 | AI77: 1 | AJ77: 1 | AR77: 09 | AS77: 4 | AT77: 1 | AU77: 2 | AV77: 1 | AW77: 1 | AX77: 1 | AY77: 2 | AZ77: 2 | BA77: 1
AA78: 09 | AB78: 5 | AC78: 2 | AD78: 1 | AE78: 2 | AF78: 1 | AG78: 1 | AH78: 1 | AI78: 1 | AJ78: 1 | AR78: 09 | AS78: 5 | AT78: 2 | AU78: 1 | AV78: 2 | AW78: 1 | AX78: 1 | AY78: 1 | AZ78: 2 | BA78: 1
AA79: 09 | AB79: 6 | AC79: 1 | AD79: 2 | AE79: 1 | AF79: 2 | AG79: 1 | AH79: 2 | AI79: 0 | AJ79: 1 | AR79: 09 | AS79: 6 | AT79: 1 | AU79: 2 | AV79: 1 | AW79: 2 | AX79: 1 | AY79: 2 | AZ79: 2 | BA79: 1
AA80: 09 | AB80: 7 | AC80: 2 | AD80: 1 | AE80: 2 | AF80: 1 | AG80: 2 | AH80: 1 | AI80: 2 | AJ80: 0 | AR80: 09 | AS80: 7 | AT80: 2 | AU80: 1 | AV80: 2 | AW80: 1 | AX80: 2 | AY80: 1 | AZ80: 2 | BA80: 1
AA81: 09 | AB81: 8 | AC81: 2 | AD81: 1 | AE81: 2 | AF81: 1 | AG81: 3 | AH81: 1 | AI81: 3 | AJ81: 0 | AR81: 09 | AS81: 8 | AT81: 2 | AU81: 1 | AV81: 2 | AW81: 1 | AX81: 3 | AY81: 1 | AZ81: 2 | BA81: 1
AA82: 09 | AB82: 9 | AC82: 2 | AD82: 1 | AE82: 2 | AF82: 1 | AG82: 2 | AH82: 1 | AI82: 2 | AJ82: 1 | AR82: 09 | AS82: 9 | AT82: 2 | AU82: 1 | AV82: 2 | AW82: 1 | AX82: 2 | AY82: 1 | AZ82: 2 | BA82: 1
AA83: 10 | AB83: 1 | AC83: 2 | AD83: 1 | AE83: 3 | AF83: 1 | AG83: 2 | AH83: 1 | AI83: 2 | AJ83: 0 | AR83: 10 | AS83: 1 | AT83: 2 | AU83: 1 | AV83: 3 | AW83: 1 | AX83: 2 | AY83: 1 | AZ83: 2 | BA83: 1
AA84: 10 | AB84: 2 | AC84: 2 | AD84: 1 | AE84: 2 | AF84: 2 | AG84: 1 | AH84: 2 | AI84: 1 | AJ84: 0 | AR84: 10 | AS84: 2 | AT84: 2 | AU84: 1 | AV84: 2 | AW84: 2 | AX84: 1 | AY84: 2 | AZ84: 2 | BA84: 1
AA85: 10 | AB85: 3 | AC85: 2 | AD85: 1 | AE85: 2 | AF85: 1 | AG85: 1 | AH85: 2 | AI85: 1 | AJ85: 1 | AR85: 10 | AS85: 3 | AT85: 2 | AU85: 1 | AV85: 2 | AW85: 1 | AX85: 1 | AY85: 2 | AZ85: 2 | BA85: 1
AA86: 10 | AB86: 4 | AC86: 1 | AD86: 2 | AE86: 1 | AF86: 2 | AG86: 1 | AH86: 2 | AI86: 1 | AJ86: 3 | AR86: 10 | AS86: 4 | AT86: 1 | AU86: 2 | AV86: 1 | AW86: 2 | AX86: 1 | AY86: 2 | AZ86: 2 | BA86: 1
AA87: 10 | AB87: 5 | AC87: 2 | AD87: 1 | AE87: 3 | AF87: 1 | AG87: 2 | AH87: 1 | AI87: 3 | AJ87: 0 | AR87: 10 | AS87: 5 | AT87: 2 | AU87: 1 | AV87: 3 | AW87: 1 | AX87: 2 | AY87: 1 | AZ87: 2 | BA87: 1
AA88: 10 | AB88: 6 | AC88: 2 | AD88: 1 | AE88: 2 | AF88: 1 | AG88: 1 | AH88: 2 | AI88: 1 | AJ88: 1 | AR88: 10 | AS88: 6 | AT88: 2 | AU88: 1 | AV88: 2 | AW88: 1 | AX88: 1 | AY88: 2 | AZ88: 2 | BA88: 1
AA89: 10 | AB89: 7 | AC89: 2 | AD89: 1 | AE89: 1 | AF89: 2 | AG89: 2 | AH89: 1 | AI89: 1 | AJ89: 2 | AR89: 10 | AS89: 7 | AT89: 2 | AU89: 1 | AV89: 1 | AW89: 2 | AX89: 2 | AY89: 1 | AZ89: 2 | BA89: 1
AA90: 10 | AB90: 8 | AC90: 2 | AD90: 1 | AE90: 1 | AF90: 1 | AG90: 1 | AH90: 1 | AI90: 1 | AJ90: 0 | AR90: 10 | AS90: 8 | AT90: 2 | AU90: 1 | AV90: 1 | AW90: 1 | AX90: 1 | AY90: 1 | AZ90: 2 | BA90: 1
AA91: 10 | AB91: 9 | AC91: 1 | AD91: 2 | AE91: 1 | AF91: 1 | AG91: 1 | AH91: 2 | AI91: 0 | AJ91: 2 | AR91: 10 | AS91: 9 | AT91: 1 | AU91: 2 | AV91: 1 | AW91: 1 | AX91: 1 | AY91: 2 | AZ91: 2 | BA91: 1
AA92: 11 | AB92: 1 | AC92: 1 | AD92: 2 | AE92: 1 | AF92: 2 | AG92: 1 | AH92: 2 | AI92: 0 | AJ92: 2 | AR92: 11 | AS92: 1 | AT92: 1 | AU92: 2 | AV92: 1 | AW92: 2 | AX92: 1 | AY92: 2 | AZ92: 2 | BA92: 1
AA93: 11 | AB93: 2 | AC93: 2 | AD93: 1 | AE93: 2 | AF93: 1 | AG93: 1 | AH93: 2 | AI93: 1 | AJ93: 0 | AR93: 11 | AS93: 2 | AT93: 2 | AU93: 1 | AV93: 2 | AW93: 1 | AX93: 1 | AY93: 2 | AZ93: 2 | BA93: 1
AA94: 11 | AB94: 3 | AC94: 2 | AD94: 0 | AE94: 2 | AF94: 0 | AG94: 2 | AH94: 1 | AI94: 3 | AJ94: 0 | AR94: 11 | AS94: 3 | AT94: 2 | AU94: 0 | AV94: 2 | AW94: 0 | AX94: 2 | AY94: 1 | AZ94: 2 | BA94: 1
AA95: 11 | AB95: 4 | AC95: 1 | AD95: 3 | AE95: 1 | AF95: 3 | AG95: 1 | AH95: 2 | AI95: 1 | AJ95: 3 | AR95: 11 | AS95: 4 | AT95: 1 | AU95: 3 | AV95: 1 | AW95: 3 | AX95: 1 | AY95: 2 | AZ95: 2 | BA95: 1
AA96: 11 | AB96: 5 | AC96: 1 | AD96: 0 | AE96: 2 | AF96: 1 | AG96: 1 | AH96: 2 | AI96: 1 | AJ96: 1 | AR96: 11 | AS96: 5 | AT96: 1 | AU96: 0 | AV96: 2 | AW96: 1 | AX96: 1 | AY96: 2 | AZ96: 2 | BA96: 1
AA97: 11 | AB97: 6 | AC97: 3 | AD97: 1 | AE97: 2 | AF97: 1 | AG97: 2 | AH97: 1 | AI97: 2 | AJ97: 1 | AR97: 11 | AS97: 6 | AT97: 3 | AU97: 1 | AV97: 2 | AW97: 1 | AX97: 2 | AY97: 1 | AZ97: 2 | BA97: 1
AA98: 11 | AB98: 7 | AC98: 2 | AD98: 0 | AE98: 2 | AF98: 1 | AG98: 2 | AH98: 1 | AI98: 4 | AJ98: 1 | AR98: 11 | AS98: 7 | AT98: 2 | AU98: 0 | AV98: 2 | AW98: 1 | AX98: 2 | AY98: 1 | AZ98: 2 | BA98: 1
AA99: 11 | AB99: 8 | AC99: 2 | AD99: 1 | AE99: 1 | AF99: 1 | AG99: 2 | AH99: 1 | AI99: 2 | AJ99: 0 | AR99: 11 | AS99: 8 | AT99: 2 | AU99: 1 | AV99: 1 | AW99: 1 | AX99: 2 | AY99: 1 | AZ99: 2 | BA99: 1
AA100: 11 | AB100: 9 | AC100: 1 | AD100: 2 | AE100: 2 | AF100: 1 | AG100: 1 | AH100: 2 | AI100: 1 | AJ100: 1 | AR100: 11 | AS100: 9 | AT100: 1 | AU100: 2 | AV100: 2 | AW100: 1 | AX100: 1 | AY100: 2 | AZ100: 2 | BA100: 1
AA101: 12 | AB101: 1 | AC101: 3 | AD101: 0 | AE101: 3 | AF101: 1 | AG101: 3 | AH101: 0 | AI101: 4 | AJ101: 0 | AR101: 12 | AS101: 1 | AT101: 3 | AU101: 0 | AV101: 3 | AW101: 1 | AX101: 3 | AY101: 0 | AZ101: 2 | BA101: 1
AA102: 12 | AB102: 2 | AC102: 2 | AD102: 1 | AE102: 2 | AF102: 1 | AG102: 1 | AH102: 2 | AI102: 1 | AJ102: 1 | AR102: 12 | AS102: 2 | AT102: 2 | AU102: 1 | AV102: 2 | AW102: 1 | AX102: 1 | AY102: 2 | AZ102: 2 | BA102: 1
AA103: 12 | AB103: 3 | AC103: 2 | AD103: 1 | AE103: 2 | AF103: 1 | AG103: 2 | AH103: 1 | AI103: 2 | AJ103: 1 | AR103: 12 | AS103: 3 | AT103: 2 | AU103: 1 | AV103: 2 | AW103: 1 | AX103: 2 | AY103: 1 | AZ103: 2 | BA103: 1
AA104: 12 | AB104: 4 | AC104: 1 | AD104: 2 | AE104: 1 | AF104: 2 | AG104: 1 | AH104: 3 | AI104: 0 | AJ104: 3 | AR104: 12 | AS104: 4 | AT104: 1 | AU104: 2 | AV104: 1 | AW104: 2 | AX104: 1 | AY104: 3 | AZ104: 2 | BA104: 1
AA105: 12 | AB105: 5 | AC105: 1 | AD105: 4 | AE105: 0 | AF105: 3 | AG105: 1 | AH105: 2 | AI105: 0 | AJ105: 2 | AR105: 12 | AS105: 5 | AT105: 1 | AU105: 4 | AV105: 0 | AW105: 3 | AX105: 1 | AY105: 2 | AZ105: 2 | BA105: 1
AA106: 12 | AB106: 6 | AC106: 2 | AD106: 1 | AE106: 1 | AF106: 2 | AG106: 1 | AH106: 2 | AI106: 1 | AJ106: 3 | AR106: 12 | AS106: 6 | AT106: 2 | AU106: 1 | AV106: 1 | AW106: 2 | AX106: 1 | AY106: 2 | AZ106: 2 | BA106: 1
AA107: 12 | AB107: 7 | AC107: 2 | AD107: 1 | AE107: 3 | AF107: 0 | AG107: 2 | AH107: 1 | AI107: 5 | AJ107: 0 | AR107: 12 | AS107: 7 | AT107: 2 | AU107: 1 | AV107: 3 | AW107: 0 | AX107: 2 | AY107: 1 | AZ107: 2 | BA107: 1
AA108: 12 | AB108: 8 | AC108: 1 | AD108: 2 | AE108: 1 | AF108: 1 | AG108: 1 | AH108: 2 | AI108: 0 | AJ108: 2 | AR108: 12 | AS108: 8 | AT108: 1 | AU108: 2 | AV108: 1 | AW108: 1 | AX108: 1 | AY108: 2 | AZ108: 2 | BA108: 1
AA109: 12 | AB109: 9 | AC109: 2 | AD109: 1 | AE109: 2 | AF109: 0 | AG109: 2 | AH109: 1 | AI109: 3 | AJ109: 0 | AR109: 12 | AS109: 9 | AT109: 2 | AU109: 1 | AV109: 2 | AW109: 0 | AX109: 2 | AY109: 1 | AZ109: 2 | BA109: 1
AA110: 13 | AB110: 1 | AC110: 2 | AD110: 1 | AE110: 3 | AF110: 1 | AG110: 2 | AH110: 1 | AI110: 2 | AJ110: 0 | AR110: 13 | AS110: 1 | AT110: 2 | AU110: 1 | AV110: 3 | AW110: 1 | AX110: 2 | AY110: 1 | AZ110: 2 | BA110: 1
AA111: 13 | AB111: 2 | AC111: 1 | AD111: 3 | AE111: 1 | AF111: 3 | AG111: 2 | AH111: 1 | AI111: 0 | AJ111: 3 | AR111: 13 | AS111: 2 | AT111: 1 | AU111: 3 | AV111: 1 | AW111: 3 | AX111: 2 | AY111: 1 | AZ111: 2 | BA111: 1
AA112: 13 | AB112: 3 | AC112: 1 | AD112: 3 | AE112: 1 | AF112: 3 | AG112: 1 | AH112: 2 | AI112: 0 | AJ112: 4 | AR112: 13 | AS112: 3 | AT112: 1 | AU112: 3 | AV112: 1 | AW112: 3 | AX112: 1 | AY112: 2 | AZ112: 2 | BA112: 1
AA113: 13 | AB113: 4 | AC113: 2 | AD113: 1 | AE113: 2 | AF113: 0 | AG113: 2 | AH113: 1 | AI113: 2 | AJ113: 0 | AR113: 13 | AS113: 4 | AT113: 2 | AU113: 1 | AV113: 2 | AW113: 0 | AX113: 2 | AY113: 1 | AZ113: 2 | BA113: 1
AA114: 13 | AB114: 5 | AC114: 1 | AD114: 2 | AE114: 1 | AF114: 1 | AG114: 1 | AH114: 2 | AI114: 2 | AJ114: 2 | AR114: 13 | AS114: 5 | AT114: 1 | AU114: 2 | AV114: 1 | AW114: 1 | AX114: 1 | AY114: 2 | AZ114: 2 | BA114: 1
AA115: 13 | AB115: 6 | AC115: 3 | AD115: 1 | AE115: 3 | AF115: 1 | AG115: 2 | AH115: 1 | AI115: 3 | AJ115: 1 | AR115: 13 | AS115: 6 | AT115: 3 | AU115: 1 | AV115: 3 | AW115: 1 | AX115: 2 | AY115: 1 | AZ115: 2 | BA115: 1
AA116: 13 | AB116: 7 | AC116: 2 | AD116: 0 | AE116: 2 | AF116: 1 | AG116: 2 | AH116: 1 | AI116: 2 | AJ116: 1 | AR116: 13 | AS116: 7 | AT116: 2 | AU116: 0 | AV116: 2 | AW116: 1 | AX116: 2 | AY116: 1 | AZ116: 2 | BA116: 1
AA117: 13 | AB117: 8 | AC117: 2 | AD117: 1 | AE117: 2 | AF117: 0 | AG117: 2 | AH117: 1 | AI117: 2 | AJ117: 0 | AR117: 13 | AS117: 8 | AT117: 2 | AU117: 1 | AV117: 2 | AW117: 0 | AX117: 2 | AY117: 1 | AZ117: 2 | BA117: 1
AA118: 13 | AB118: 9 | AC118: 1 | AD118: 2 | AE118: 1 | AF118: 2 | AG118: 1 | AH118: 2 | AI118: 1 | AJ118: 3 | AR118: 13 | AS118: 9 | AT118: 1 | AU118: 2 | AV118: 1 | AW118: 2 | AX118: 1 | AY118: 2 | AZ118: 2 | BA118: 1
AA119: 14 | AB119: 1 | AC119: 2 | AD119: 1 | AE119: 2 | AF119: 1 | AG119: 2 | AH119: 1 | AI119: 2 | AJ119: 1 | AR119: 14 | AS119: 1 | AT119: 2 | AU119: 1 | AV119: 2 | AW119: 1 | AX119: 2 | AY119: 1 | AZ119: 2 | BA119: 1
AA120: 14 | AB120: 2 | AC120: 1 | AD120: 3 | AE120: 1 | AF120: 2 | AG120: 1 | AH120: 2 | AI120: 1 | AJ120: 1 | AR120: 14 | AS120: 2 | AT120: 1 | AU120: 3 | AV120: 1 | AW120: 2 | AX120: 1 | AY120: 2 | AZ120: 2 | BA120: 1
AA121: 14 | AB121: 3 | AC121: 2 | AD121: 1 | AE121: 2 | AF121: 1 | AG121: 2 | AH121: 1 | AI121: 2 | AJ121: 0 | AR121: 14 | AS121: 3 | AT121: 2 | AU121: 1 | AV121: 2 | AW121: 1 | AX121: 2 | AY121: 1 | AZ121: 2 | BA121: 1
AA122: 14 | AB122: 4 | AC122: 2 | AD122: 1 | AE122: 1 | AF122: 2 | AG122: 1 | AH122: 2 | AI122: 2 | AJ122: 2 | AR122: 14 | AS122: 4 | AT122: 2 | AU122: 1 | AV122: 1 | AW122: 2 | AX122: 1 | AY122: 2 | AZ122: 2 | BA122: 1
AA123: 14 | AB123: 5 | AC123: 3 | AD123: 1 | AE123: 3 | AF123: 1 | AG123: 2 | AH123: 1 | AI123: 3 | AJ123: 0 | AR123: 14 | AS123: 5 | AT123: 3 | AU123: 1 | AV123: 3 | AW123: 1 | AX123: 2 | AY123: 1 | AZ123: 2 | BA123: 1
AA124: 14 | AB124: 6 | AC124: 2 | AD124: 0 | AE124: 3 | AF124: 1 | AG124: 2 | AH124: 1 | AI124: 4 | AJ124: 0 | AR124: 14 | AS124: 6 | AT124: 2 | AU124: 0 | AV124: 3 | AW124: 1 | AX124: 2 | AY124: 1 | AZ124: 2 | BA124: 1
AA125: 14 | AB125: 7 | AC125: 1 | AD125: 2 | AE125: 2 | AF125: 1 | AG125: 1 | AH125: 2 | AI125: 1 | AJ125: 1 | AR125: 14 | AS125: 7 | AT125: 1 | AU125: 2 | AV125: 2 | AW125: 1 | AX125: 1 | AY125: 2 | AZ125: 2 | BA125: 1
AA126: 14 | AB126: 8 | AC126: 1 | AD126: 0 | AE126: 2 | AF126: 1 | AG126: 2 | AH126: 1 | AI126: 0 | AJ126: 0 | AR126: 14 | AS126: 8 | AT126: 1 | AU126: 0 | AV126: 2 | AW126: 1 | AX126: 2 | AY126: 1 | AZ126: 2 | BA126: 1
AA127: 14 | AB127: 9 | AC127: 2 | AD127: 1 | AE127: 2 | AF127: 1 | AG127: 2 | AH127: 1 | AI127: 2 | AJ127: 1 | AR127: 14 | AS127: 9 | AT127: 2 | AU127: 1 | AV127: 2 | AW127: 1 | AX127: 2 | AY127: 1 | AZ127: 2 | BA127: 1
AA128: 15 | AB128: 1 | AC128: 2 | AD128: 1 | AE128: 2 | AF128: 1 | AG128: 2 | AH128: 1 | AI128: 2 | AJ128: 0 | AR128: 15 | AS128: 1 | AT128: 2 | AU128: 1 | AV128: 2 | AW128: 1 | AX128: 2 | AY128: 1 | AZ128: 2 | BA128: 1
AA129: 15 | AB129: 2 | AC129: 1 | AD129: 2 | AE129: 0 | AF129: 2 | AG129: 1 | AH129: 2 | AI129: 0 | AJ129: 3 | AR129: 15 | AS129: 2 | AT129: 1 | AU129: 2 | AV129: 0 | AW129: 2 | AX129: 1 | AY129: 2 | AZ129: 2 | BA129: 1
AA130: 15 | AB130: 3 | AC130: 1 | AD130: 2 | AE130: 1 | AF130: 2 | AG130: 1 | AH130: 2 | AI130: 0 | AJ130: 4 | AR130: 15 | AS130: 3 | AT130: 1 | AU130: 2 | AV130: 1 | AW130: 2 | AX130: 1 | AY130: 2 | AZ130: 2 | BA130: 1
AA131: 15 | AB131: 4 | AC131: 3 | AD131: 0 | AE131: 4 | AF131: 0 | AG131: 2 | AH131: 1 | AI131: 2 | AJ131: 0 | AR131: 15 | AS131: 4 | AT131: 3 | AU131: 0 | AV131: 4 | AW131: 0 | AX131: 2 | AY131: 1 | AZ131: 2 | BA131: 1
AA132: 15 | AB132: 5 | AC132: 2 | AD132: 1 | AE132: 2 | AF132: 1 | AG132: 1 | AH132: 2 | AI132: 0 | AJ132: 3 | AR132: 15 | AS132: 5 | AT132: 2 | AU132: 1 | AV132: 2 | AW132: 1 | AX132: 1 | AY132: 2 | AZ132: 2 | BA132: 1
AA133: 15 | AB133: 6 | AC133: 1 | AD133: 1 | AE133: 1 | AF133: 1 | AG133: 1 | AH133: 2 | AI133: 2 | AJ133: 1 | AR133: 15 | AS133: 6 | AT133: 1 | AU133: 1 | AV133: 1 | AW133: 1 | AX133: 1 | AY133: 2 | AZ133: 2 | BA133: 1
AA134: 15 | AB134: 7 | AC134: 0 | AD134: 3 | AE134: 1 | AF134: 3 | AG134: 1 | AH134: 2 | AI134: 0 | AJ134: 3 | AR134: 15 | AS134: 7 | AT134: 0 | AU134: 3 | AV134: 1 | AW134: 3 | AX134: 1 | AY134: 2 | AZ134: 2 | BA134: 1
AA135: 15 | AB135: 8 | AC135: 1 | AD135: 2 | AE135: 2 | AF135: 1 | AG135: 1 | AH135: 2 | AI135: 1 | AJ135: 3 | AR135: 15 | AS135: 8 | AT135: 1 | AU135: 2 | AV135: 2 | AW135: 1 | AX135: 1 | AY135: 2 | AZ135: 2 | BA135: 1
AA136: 15 | AB136: 9 | AC136: 2 | AD136: 1 | AE136: 2 | AF136: 1 | AG136: 2 | AH136: 1 | AI136: 2 | AJ136: 0 | AR136: 15 | AS136: 9 | AT136: 2 | AU136: 1 | AV136: 2 | AW136: 1 | AX136: 2 | AY136: 1 | AZ136: 2 | BA136: 1
AA137: 16 | AB137: 1 | AC137: 2 | AD137: 1 | AE137: 2 | AF137: 1 | AG137: 1 | AH137: 2 | AI137: 1 | AJ137: 0 | AR137: 16 | AS137: 1 | AT137: 2 | AU137: 1 | AV137: 2 | AW137: 1 | AX137: 1 | AY137: 2 | AZ137: 2 | BA137: 1
AA138: 16 | AB138: 2 | AC138: 3 | AD138: 2 | AE138: 1 | AF138: 2 | AG138: 1 | AH138: 2 | AI138: 2 | AJ138: 1 | AR138: 16 | AS138: 2 | AT138: 3 | AU138: 2 | AV138: 1 | AW138: 2 | AX138: 1 | AY138: 2 | AZ138: 2 | BA138: 1
AA139: 16 | AB139: 3 | AC139: 1 | AD139: 2 | AE139: 2 | AF139: 1 | AG139: 2 | AH139: 1 | AI139: 2 | AJ139: 0 | AR139: 16 | AS139: 3 | AT139: 1 | AU139: 2 | AV139: 2 | AW139: 1 | AX139: 2 | AY139: 1 | AZ139: 2 | BA139: 1
AA140: 16 | AB140: 4 | AC140: 2 | AD140: 1 | AE140: 2 | AF140: 1 | AG140: 2 | AH140: 1 | AI140: 2 | AJ140: 1 | AR140: 16 | AS140: 4 | AT140: 2 | AU140: 1 | AV140: 2 | AW140: 1 | AX140: 2 | AY140: 1 | AZ140: 2 | BA140: 1
AA141: 16 | AB141: 5 | AC141: 2 | AD141: 1 | AE141: 2 | AF141: 1 | AG141: 2 | AH141: 1 | AI141: 2 | AJ141: 0 | AR141: 16 | AS141: 5 | AT141: 2 | AU141: 1 | AV141: 2 | AW141: 1 | AX141: 2 | AY141: 1 | AZ141: 2 | BA141: 1
AA142: 16 | AB142: 6 | AC142: 1 | AD142: 4 | AE142: 1 | AF142: 3 | AG142: 1 | AH142: 2 | AI142: 2 | AJ142: 2 | AR142: 16 | AS142: 6 | AT142: 1 | AU142: 4 | AV142: 1 | AW142: 3 | AX142: 1 | AY142: 2 | AZ142: 2 | BA142: 1
AA143: 16 | AB143: 7 | AC143: 2 | AD143: 1 | AE143: 2 | AF143: 0 | AG143: 2 | AH143: 1 | AI143: 3 | AJ143: 0 | AR143: 16 | AS143: 7 | AT143: 2 | AU143: 1 | AV143: 2 | AW143: 0 | AX143: 2 | AY143: 1 | AZ143: 2 | BA143: 1
AA144: 16 | AB144: 8 | AC144: 2 | AD144: 1 | AE144: 2 | AF144: 1 | AG144: 2 | AH144: 1 | AI144: 1 | AJ144: 1 | AR144: 16 | AS144: 8 | AT144: 2 | AU144: 1 | AV144: 2 | AW144: 1 | AX144: 2 | AY144: 1 | AZ144: 2 | BA144: 1
AA145: 16 | AB145: 9 | AC145: 2 | AD145: 1 | AE145: 2 | AF145: 1 | AG145: 1 | AH145: 2 | AI145: 0 | AJ145: 0 | AR145: 16 | AS145: 9 | AT145: 2 | AU145: 1 | AV145: 2 | AW145: 1 | AX145: 1 | AY145: 2 | AZ145: 2 | BA145: 1
AA146: 17 | AB146: 1 | AC146: 1 | AD146: 2 | AE146: 1 | AF146: 2 | AG146: 0 | AH146: 3 | AI146: 0 | AJ146: 2 | AR146: 17 | AS146: 1 | AT146: 1 | AU146: 2 | AV146: 1 | AW146: 2 | AX146: 0 | AY146: 3 | AZ146: 2 | BA146: 1
AA147: 17 | AB147: 2 | AC147: 1 | AD147: 2 | AE147: 2 | AF147: 1 | AG147: 1 | AH147: 2 | AI147: 1 | AJ147: 3 | AR147: 17 | AS147: 2 | AT147: 1 | AU147: 2 | AV147: 2 | AW147: 1 | AX147: 1 | AY147: 2 | AZ147: 2 | BA147: 1
AA148: 17 | AB148: 3 | AC148: 3 | AD148: 1 | AE148: 4 | AF148: 1 | AG148: 3 | AH148: 1 | AI148: 2 | AJ148: 0 | AR148: 17 | AS148: 3 | AT148: 3 | AU148: 1 | AV148: 4 | AW148: 1 | AX148: 3 | AY148: 1 | AZ148: 2 | BA148: 1
AA149: 17 | AB149: 4 | AC149: 2 | AD149: 1 | AE149: 2 | AF149: 1 | AG149: 2 | AH149: 1 | AI149: 1 | AJ149: 1 | AR149: 17 | AS149: 4 | AT149: 2 | AU149: 1 | AV149: 2 | AW149: 1 | AX149: 2 | AY149: 1 | AZ149: 2 | BA149: 1
AA150: 17 | AB150: 5 | AC150: 2 | AD150: 1 | AE150: 1 | AF150: 1 | AG150: 2 | AH150: 1 | AI150: 2 | AJ150: 0 | AR150: 17 | AS150: 5 | AT150: 2 | AU150: 1 | AV150: 1 | AW150: 1 | AX150: 2 | AY150: 1 | AZ150: 2 | BA150: 1
AA151: 17 | AB151: 6 | AC151: 3 | AD151: 1 | AE151: 3 | AF151: 1 | AG151: 2 | AH151: 0 | AI151: 3 | AJ151: 0 | AR151: 17 | AS151: 6 | AT151: 3 | AU151: 1 | AV151: 3 | AW151: 1 | AX151: 2 | AY151: 0 | AZ151: 2 | BA151: 1
AA152: 17 | AB152: 7 | AC152: 1 | AD152: 2 | AE152: 1 | AF152: 2 | AG152: 1 | AH152: 2 | AI152: 0 | AJ152: 3 | AR152: 17 | AS152: 7 | AT152: 1 | AU152: 2 | AV152: 1 | AW152: 2 | AX152: 1 | AY152: 2 | AZ152: 2 | BA152: 1
AA153: 17 | AB153: 8 | AC153: 2 | AD153: 1 | AE153: 1 | AF153: 0 | AG153: 0 | AH153: 2 | AI153: 2 | AJ153: 1 | AR153: 17 | AS153: 8 | AT153: 2 | AU153: 1 | AV153: 1 | AW153: 0 | AX153: 0 | AY153: 2 | AZ153: 2 | BA153: 1
AA154: 17 | AB154: 9 | AC154: 1 | AD154: 2 | AE154: 1 | AF154: 2 | AG154: 0 | AH154: 2 | AI154: 1 | AJ154: 1 | AR154: 17 | AS154: 9 | AT154: 1 | AU154: 2 | AV154: 1 | AW154: 2 | AX154: 0 | AY154: 2 | AZ154: 2 | BA154: 1
AA155: 18 | AB155: 1 | AC155: 2 | AD155: 1 | AE155: 1 | AF155: 2 | AG155: 1 | AH155: 3 | AI155: 2 | AJ155: 1 | AR155: 18 | AS155: 1 | AT155: 2 | AU155: 1 | AV155: 1 | AW155: 2 | AX155: 1 | AY155: 3 | AZ155: 2 | BA155: 1
AA156: 18 | AB156: 2 | AC156: 2 | AD156: 1 | AE156: 2 | AF156: 1 | AG156: 2 | AH156: 1 | AI156: 2 | AJ156: 0 | AR156: 18 | AS156: 2 | AT156: 2 | AU156: 1 | AV156: 2 | AW156: 1 | AX156: 2 | AY156: 1 | AZ156: 2 | BA156: 1
AA157: 18 | AB157: 3 | AC157: 1 | AD157: 2 | AE157: 1 | AF157: 2 | AG157: 0 | AH157: 3 | AI157: 1 | AJ157: 3 | AR157: 18 | AS157: 3 | AT157: 1 | AU157: 2 | AV157: 1 | AW157: 2 | AX157: 0 | AY157: 3 | AZ157: 2 | BA157: 1
AA158: 18 | AB158: 4 | AC158: 2 | AD158: 1 | AE158: 1 | AF158: 0 | AG158: 1 | AH158: 2 | AI158: 1 | AJ158: 1 | AR158: 18 | AS158: 4 | AT158: 2 | AU158: 1 | AV158: 1 | AW158: 0 | AX158: 1 | AY158: 2 | AZ158: 2 | BA158: 1
AA159: 18 | AB159: 5 | AC159: 2 | AD159: 1 | AE159: 1 | AF159: 2 | AG159: 0 | AH159: 2 | AI159: 0 | AJ159: 1 | AR159: 18 | AS159: 5 | AT159: 2 | AU159: 1 | AV159: 1 | AW159: 2 | AX159: 0 | AY159: 2 | AZ159: 2 | BA159: 1
AA160: 18 | AB160: 6 | AC160: 1 | AD160: 2 | AE160: 1 | AF160: 1 | AG160: 0 | AH160: 2 | AI160: 1 | AJ160: 2 | AR160: 18 | AS160: 6 | AT160: 1 | AU160: 2 | AV160: 1 | AW160: 1 | AX160: 0 | AY160: 2 | AZ160: 2 | BA160: 1
AA161: 18 | AB161: 7 | AC161: 2 | AD161: 0 | AE161: 3 | AF161: 1 | AG161: 3 | AH161: 1 | AI161: 2 | AJ161: 0 | AR161: 18 | AS161: 7 | AT161: 2 | AU161: 0 | AV161: 3 | AW161: 1 | AX161: 3 | AY161: 1 | AZ161: 2 | BA161: 1
AA162: 18 | AB162: 8 | AC162: 1 | AD162: 3 | AE162: 1 | AF162: 3 | AG162: 0 | AH162: 3 | AI162: 1 | AJ162: 1 | AR162: 18 | AS162: 8 | AT162: 1 | AU162: 3 | AV162: 1 | AW162: 3 | AX162: 0 | AY162: 3 | AZ162: 2 | BA162: 1
AA163: 18 | AB163: 9 | AC163: 1 | AD163: 2 | AE163: 1 | AF163: 3 | AG163: 0 | AH163: 2 | AI163: 0 | AJ163: 2 | AR163: 18 | AS163: 9 | AT163: 1 | AU163: 2 | AV163: 1 | AW163: 3 | AX163: 0 | AY163: 2 | AZ163: 2 | BA163: 1
AA164: 19 | AB164: 1 | AR164: 19 | AS164: 1
AA165: 19 | AB165: 2 | AR165: 19 | AS165: 2
AA166: 19 | AB166: 3 | AR166: 19 | AS166: 3
AA167: 19 | AB167: 4 | AR167: 19 | AS167: 4
AA168: 19 | AB168: 5 | AR168: 19 | AS168: 5
AA169: 19 | AB169: 6 | AR169: 19 | AS169: 6
AA170: 19 | AB170: 7 | AR170: 19 | AS170: 7
AA171: 19 | AB171: 8 | AR171: 19 | AS171: 8
AA172: 19 | AB172: 9 | AR172: 19 | AS172: 9
AA173: 20 | AB173: 1 | AR173: 20 | AS173: 1
AA174: 20 | AB174: 2 | AR174: 20 | AS174: 2
AA175: 20 | AB175: 3 | AR175: 20 | AS175: 3
AA176: 20 | AB176: 4 | AR176: 20 | AS176: 4
AA177: 20 | AB177: 5 | AR177: 20 | AS177: 5
AA178: 20 | AB178: 6 | AR178: 20 | AS178: 6
AA179: 20 | AB179: 7 | AR179: 20 | AS179: 7
AA180: 20 | AB180: 8 | AR180: 20 | AS180: 8
AA181: 20 | AB181: 9 | AR181: 20 | AS181: 9
AA182: 21 | AB182: 1 | AR182: 21 | AS182: 1
AA183: 21 | AB183: 2 | AR183: 21 | AS183: 2
AA184: 21 | AB184: 3 | AR184: 21 | AS184: 3
AA185: 21 | AB185: 4 | AR185: 21 | AS185: 4
AA186: 21 | AB186: 5 | AR186: 21 | AS186: 5
AA187: 21 | AB187: 6 | AR187: 21 | AS187: 6
AA188: 21 | AB188: 7 | AR188: 21 | AS188: 7
AA189: 21 | AB189: 8 | AR189: 21 | AS189: 8
AA190: 21 | AB190: 9 | AR190: 21 | AS190: 9
AA191: 22 | AB191: 1 | AR191: 22 | AS191: 1
AA192: 22 | AB192: 2 | AR192: 22 | AS192: 2
AA193: 22 | AB193: 3 | AR193: 22 | AS193: 3
AA194: 22 | AB194: 4 | AR194: 22 | AS194: 4
AA195: 22 | AB195: 5 | AR195: 22 | AS195: 5
AA196: 22 | AB196: 6 | AR196: 22 | AS196: 6
AA197: 22 | AB197: 7 | AR197: 22 | AS197: 7
AA198: 22 | AB198: 8 | AR198: 22 | AS198: 8
AA199: 22 | AB199: 9 | AR199: 22 | AS199: 9
AA200: 23 | AB200: 1 | AR200: 23 | AS200: 1
... 117 more rows
